{"text_format":"1","workbook":"xlsx","n_sheets":2,"sheets":["Blad1","Blad2"],"not_rendered":{"charts":0,"images":14,"macros":1,"external_links":0,"defined_names":2,"comments":0,"pivot_tables":0},"unopened":[],"bounds":{"document_bytes":16777216,"sheet_cells":100000,"rows_first":2000,"rows_last":500,"rows_between":2000,"halvings":0,"cell_chars":16384,"cell_head_chars":4096},"cells_cut":0,"cells_raw":0,"read":"whole","date_system":"1900"}

{"sheet":"Blad1","index":0,"n_rows":1304,"n_cols":68,"rows_kept":1304,"cut":false,"hidden":false,"merged":[[3,42,3,51],[1,29,4,29],[1,63,4,63],[36,29,41,29],[33,3,41,3],[8,3,30,3],[8,29,19,29],[21,29,34,29],[3,31,3,40]]}
[null,null,null,null,null,"GFL 4.6",null,16,null,17,null,17,null,17,null,17,null,17,null,18,null,19,null,20]
[null,null,null,"vul aan ->           naam van je school",null,"ICT Co",null,4,null,5,null,5,null,5,null,5,null,5,null,1,null,6,null,7,null,null,null,null,null,"                                                                                              ",null,null,null,null,null,null,null,null,null,null,null,null,null,null,null,null,null,null,null,null,null,null,null,null,null,null,null,null,null,null,null,null,null,"Leerplannen 2de graad"]
[null,null,null,"vul aan ->           …",null,null,null,null,null,"K1/K2",null,"K4/K5",null,"K7",null,"K8",null,"K6",null,"K3",null,null,null,null,null,null,null,null,null,null,null,"sep","okt","nov","dec","jan","feb","maa","apr","mei ","jun",null,"sep","okt","nov","dec","jan","feb","maa","apr","mei ","jun"]
[null,null,null,"vul aan ->           …",null,null,null,{"$f":"COUNTIF(H6:H1304,BD7)","v":0},null,{"$f":"COUNTIF(J6:J1304,BD8)","v":0},null,{"$f":"COUNTIF(L6:L1304,BD9)","v":0},null,{"$f":"COUNTIF(N6:N1304,BD10)","v":0},null,{"$f":"COUNTIF(P6:P1304,BD11)","v":0},null,{"$f":"COUNTIF(R6:R1304,BD12)","v":0},null,{"$f":"COUNTIF(T6:T1304,BD13)","v":0},null,{"$f":"COUNTIF(V6:V1304,BD14)","v":0},null,{"$f":"COUNTIF(X6:X1304,BD15)","v":0},null,null,null,null,null,null,null," schooljaar 2023-2024        3de jaar",null,null,null,null,null,null,null,null,null,null," schooljaar 2024-2025        4de jaar"]
[null,null,null,"maak je keuze -> Studiedomein"]
[null,null,null,null,null,null,null,null,null,null,null,null,null,null,null,null,null,null,null,null,null,null,null,null,null,null,"d","x",null,null,"d",null,null,null,null,null,null,null,null,null,null,0]
[null,null,null,null,null,null,null,null,null,null,null,null,null,null,null,null,null,null,null,null,null,null,null,null,null,null,"d","x",null,"Zeg Me Waar en Wanneer - ZMW&W²³²³","d",null,null,null,null,null,null,null,null,null,null,0,null,null,null,null,null,null,null,null,null,null,null,null,6,"LPD 4 ICTco - LPD 16 GFL -> Digitaal communiceren",{"$f":"COUNTIF($D$162:$D$1157,BL8)","v":0}]
[null,null,null,null,null,null,null,null,null,null,null,null,null,null,null,null,null,null,null,null,null,null,null,null,null,null,"d","x",null,null,"d",null,null,null,null,null,null,null,null,null,null,0,null,null,null,null,null,null,null,null,null,null,null,null,7,"LPD 5 ICTco (K1/K2) - LPD 17 GFL -> Digitale inhouden creëren TEKST",0,null,null,null,null,null,null,"Aardrijkskunde B - 2de graad - D/A-finaliteit",1,null,"Magazijnmedewerker - 2de graad - A-finaliteit",78]
[null,null,null,{"$error":"#VALUE!"},null,null,null,"Onderstaande studiedomeinen",null,null,null,null,null,null,null,null,null,null,null,null,null,null,null,null,null,null,"d","x",null,{"$error":"#VALUE!"},"d",null,null,null,null,null,null,null,null,null,null,0,null,null,null,null,null,null,null,null,null,null,null,null,8,"LPD 5 ICTco (K4/K5) - LPD 17 GFL -> Digitale inhouden creëren CIJFER",0,null,null,null,null,null,null,"Aardrijkskunde B - 2de graad - D-finaliteit",2,null,"Mechanica - 2de graad - A-finaliteit",79]
[null,null,null,null,null,null,null,"en",null,null,null,null,null,null,null,null,null,null,null,null,null,null,null,null,null,null,"d","x",null,null,"d",null,null,null,null,null,null,null,null,null,null,0,null,null,null,null,null,null,null,null,null,null,null,null,9,"LPD 5 ICTco (K7) - LPD 17 GFL -> Digitale inhouden creëren GELUID en BEELD",0,null,null,null,null,null,null,"Architecturale en beeldende kunsten - 2de graad - D/A-finaliteit",3,null,"Mechanische technieken B+S - 2de graad - D/A-finaliteit",80]
[null,null,null,null,null,null,null,"de drie extra's zijn in deze DEMO",null,null,null,null,null,null,null,null,null,null,null,null,null,null,null,null,null,null,"d","x",null,null,"d",null,null,null,null,null,null,null,null,null,null,0,null,null,null,null,null,null,null,null,null,null,null,null,10,"LPD 5 ICTco (K8) - LPD 17 GFL -> Digitale inhouden creëren COMPATIBEL",0,null,null,null,null,null,null,"Architecturale en beeldende vorming - 2de graad - D-finaliteit",4,null,"Medewerker (banket)bakkerij - 2de graad - A-finaliteit",81]
[null,null,null,null,null,null,null,"vrij toegankelijk.",null,null,null,null,null,null,null,null,null,null,null,null,null,null,null,null,null,null,"d","x",null,null,"d",null,null,null,null,null,null,null,null,null,null,0,null,null,null,null,null,null,null,null,null,null,null,null,11,"LPD 5 ICTco (K6) - LPD 17 GFL -> Digitale inhouden creëren PRESENTATIE",0,null,null,null,null,null,null,"Artistiek-creatieve bewerkingen - 2de graad - A-finaliteit",5,null,"Medewerker fastfood S - 2de graad - A-finaliteit",82]
[null,null,null,null,null,null,null,"01 extra",null,null,null,null,null,null,null,null,null,null,null,null,null,null,null,null,null,null,"d","x",null,null,"d",null,null,null,null,null,null,null,null,null,null,0,null,null,null,null,null,null,null,null,null,null,null,null,12,"LPD 1 ICTco (K3) - LPD 18 GFL -> Beheren",0,null,null,null,null,null,null,"Artistieke vorming Co - 2de graad - D-D/A-A-finaliteit",6,null,"Medewerker groen- en tuinaanleg S - 2de graad - A-finaliteit",83]
[null,null,null,null,null,null,null,"02 extra",null,null,null,null,null,null,null,null,null,null,null,null,null,null,null,null,null,null,"d","x",null,null,"d",null,null,null,null,null,null,null,null,null,null,0,null,null,null,null,null,null,null,null,null,null,null,null,13,"LPD 6 ICTco - LPD 19 GFL -> Respecteren",0,null,null,null,null,null,null,"Bakkerij - 2de graad - A-finaliteit",7,null,"Medewerker groen- en tuinbeheer S - 2de graad - A-finaliteit",84]
[null,null,null,null,null,null,null,"03 extra",null,null,null,null,null,null,null,null,null,null,null,null,null,null,null,null,null,null,"d","x",null,null,"d",null,null,null,null,null,null,null,null,null,null,0,null,null,null,null,null,null,null,null,null,null,null,null,14,"LPD 7 ICTco - LPD 20 GFL -> Impact",0,null,null,null,null,null,null,"Bakkerijtechnieken - 2de graad - D/A-finaliteit",8,null,"Medewerker hout - 2de graad - A-finaliteit",85]
[null,null,null,null,null,null,null,"Architecturale en beeldende kunsten",null,null,null,null,null,null,null,null,null,null,null,null,null,null,null,null,null,null,"d","x",null,null,"d",null,null,null,null,null,null,null,null,null,null,0,null,null,null,null,null,null,null,null,null,null,null,null,null,null,0,null,null,null,null,null,null,"Bandenmonteur S - 2de graad - A-finaliteit",9,null,"Medewerker kamerdienst - 2de graad - A-finaliteit",86]
[null,null,null,null,null,null,null,"Architecturale en beeldende vorming",null,null,null,null,null,null,null,null,null,null,null,null,null,null,null,null,null,null,"d","x",null,null,"d",null,null,null,null,null,null,null,null,null,null,0,null,null,null,null,null,null,null,null,null,null,null,null,null,null,0,null,null,null,null,null,null,"Bedrijfseconomie - 2de graad - D/A-finaliteit",10,null,"Medewerker productielijn kleding, confectie en meubelstoffering - 2de graad - A-finaliteit",87]
[null,null,null,null,null,null,null,"Artistiek-creatieve bewerkingen",null,null,null,null,null,null,null,null,null,null,null,null,null,null,null,null,null,null,"d","x",null,null,"d",null,null,null,null,null,null,null,null,null,null,0,null,null,null,null,null,null,null,null,null,null,null,null,null,null,0,null,null,null,null,null,null,"Beeldende en audiovisuele kunsten - 2de graad - D/A-finaliteit",11,null,"Medewerker ruwbouw S - 2de graad - A-finaliteit",88]
[null,null,null,null,null,null,null,"Bakkerij",null,null,null,null,null,null,null,null,null,null,null,null,null,null,null,null,null,null,"d","x",null,null,"d",null,null,null,null,null,null,null,null,null,null,0,null,null,null,null,null,null,null,null,null,null,null,null,null,null,0,null,null,null,null,null,null,"Beeldende en audiovisuele vorming - 2de graad - D-finaliteit",12,null,"Medewerker schilder- en behangwerken - 2de graad - A-finaliteit",89]
[null,null,null,null,null,null,null,null,null,null,null,null,null,null,null,null,null,null,null,null,null,null,null,null,null,null,"d","x",null,null,"d",null,null,null,null,null,null,null,null,null,null,0,null,null,null,null,null,null,null,null,null,null,null,"oranje","A","kies 'A'      ->  aanleren",0,null,null,null,null,null,null,"Bestuurder interne transportmiddelen - 2de graad - A-finaliteit",13,null,"Medewerker slagerij - 2de graad - A-finaliteit",90]
[null,null,null,null,null,null,null,null,null,null,null,null,null,null,null,null,null,null,null,null,null,null,null,null,null,null,"d","x",null,null,"d",null,null,null,null,null,null,null,null,null,null,0,null,null,null,null,null,null,null,null,null,null,null,"groen","O","kies 'O'      ->  oefenen",0,null,null,null,null,null,null,"Biologie - 2de graad - D-finaliteit",14,null,"Medewerker tegelzetwerken en dekvloeren - 2de graad - A-finaliteit",91]
[null,null,null,null,null,null,null,null,null,null,null,null,null,null,null,null,null,null,null,null,null,null,null,null,null,null,"d","x",null,{"$error":"#VALUE!"},"d",null,null,null,null,null,null,null,null,null,null,0,null,null,null,null,null,null,null,null,null,null,null,"rood","E","kies 'E'       ->  evalueren",0,null,null,null,null,null,null,"Biologie-chemie - 2de graad - D-finaliteit",15,null,"Mens en samenleving complementair - 2de graad - D/DA-finaliteit",92]
[null,null,null,null,null,null,null,null,null,null,null,null,null,null,null,null,null,null,null,null,null,null,null,null,null,null,"d","x",null,null,"d",null,null,null,null,null,null,null,null,null,null,0,null,null,null,null,null,null,null,null,null,null,null,"oranje + groen","AO","kies 'AO'    -> aanleren + oefenen",0,null,null,null,null,null,null,"Biotechnieken B+S - 2de graad - D/A-finaliteit",16,null,"Moderealisatie en textielverzorging - 2de graad - A-finaliteit",93]
[null,null,null,null,null,null,null,null,null,null,null,null,null,null,null,null,null,null,null,null,null,null,null,null,null,null,"d","x",null,null,"d",null,null,null,null,null,null,null,null,null,null,0,null,null,null,null,null,null,null,null,null,null,null,"groen + rood","OE","kies 'OE'    -> oefenen + evalueren",0,null,null,null,null,null,null,"Biotechnologische STEM-wetenschappen B+S - 2de graad - D-finaliteit",17,null,"Monteur sanitaire en verwarmingsinstallaties - 2de graad - A-finaliteit",94]
[null,null,null,null,null,null,null,null,null,null,null,null,null,null,null,null,null,null,null,null,null,null,null,null,null,null,"d","x",null,null,"d",null,null,null,null,null,null,null,null,null,null,0,null,null,null,null,null,null,null,null,null,null,null,"blauw geel","AOE","kies 'AOE'  -> aanleren + oefenen + evalueren",0,null,null,null,null,null,null,"Biotechnologische wetenschappen B+S - 2de graad - D-finaliteit",18,null,"Muziek - 2de graad - D-finaliteit",95]
[null,null,null,null,null,null,null,null,null,null,null,null,null,null,null,null,null,null,null,null,null,null,null,null,null,null,"d","x",null,null,"d",null,null,null,null,null,null,null,null,null,null,0,null,null,null,null,null,null,null,null,null,null,null,null,null,null,0,null,null,null,null,null,null,"Bouw - 2de graad - A-finaliteit",19,null,"Natuurwetenschappen B - 2de graad - D/A-finaliteit",96]
[null,null,null,null,null,null,null,null,null,null,null,null,null,null,null,null,null,null,null,null,null,null,null,null,null,null,"d","x",null,null,"d",null,null,null,null,null,null,null,null,null,null,0,null,null,null,null,null,null,null,null,null,null,null,null,null,null,0,null,null,null,null,null,null,"Bouwtechnieken B+S - 2de graad - D/A-finaliteit",20,null,"Natuurwetenschappen B' - 2de graad - D/A-finaliteit",97]
[null,null,null,null,null,null,null,null,null,null,null,null,null,null,null,null,null,null,null,null,null,null,null,null,null,null,"d","x",null,null,"d",null,null,null,null,null,null,null,null,null,null,0,null,null,null,null,null,null,null,null,null,null,null,null,null," schooljaar 2023-2024        3de jaar",0,null,null,null,null,null,null,"Bouwwetenschappen B+S - 2de graad - D-finaliteit",21,null,"Natuurwetenschappen B (oud) - 2de graad - A-finaliteit",98]
[null,null,null,null,null,null,null,null,null,null,null,null,null,null,null,null,null,null,null,null,null,null,null,null,null,null,"d","x",null,null,"d",null,null,null,null,null,null,null,null,null,null,0,null,null,null,null,null,null,null,null,null,null,null,null,null," schooljaar 2024-2025        3de jaar",0,null,null,null,null,null,null,"Cementgebonden voeger - 2de graad - A-finaliteit",22,null,"Natuurwetenschappen B+ - 2de graad - D-finaliteit",99]
[null,null,null,null,null,null,null,null,null,null,null,null,null,null,null,null,null,null,null,null,null,null,null,null,null,null,"d","x",null,null,"d",null,null,null,null,null,null,null,null,null,null,0,null,null,null,null,null,null,null,null,null,null,null,null,null," schooljaar 2025-2026        3de jaar",0,null,null,null,null,null,null,"Communicatiewetenschappen en taaltechnologie - 2de graad - D-finaliteit",23,null,"Natuurwetenschappen B+S - 2de graad - D/A-finaliteit",100]
[null,null,null,null,null,null,null,null,null,null,null,null,null,null,null,null,null,null,null,null,null,null,null,null,null,null,"d","x",null,null,"d",null,null,null,null,null,null,null,null,null,null,0,null,null,null,null,null,null,null,null,null,null,null,null,null," schooljaar 2026-2027        3de jaar",0,null,null,null,null,null,null,"Creatie en mode - 2de graad - D/A-finaliteit",24,null,"Natuurwetenschappen B+S' - 2de graad - D/A-finaliteit",101]
[null,null,null,null,null,null,null,null,null,null,null,null,null,null,null,null,null,null,null,null,null,null,null,null,null,null,"d","x",null,null,"d",null,null,null,null,null,null,null,null,null,null,0,null,null,null,null,null,null,null,null,null,null,null,null,null," schooljaar 2027-2028        3de jaar",0,null,null,null,null,null,null,"Dans - 2de graad - D-finaliteit",25,null,"Natuurwetenschappen B+S - 2de graad - D-finaliteit",102]
[null,null,null,"                                          Leerplannen",null,null,null,null,null,null,null,null,null,null,null,null,null,null,null,null,null,null,null,null,null,null,"d","x",null,null,"d",null,null,null,null,null,null,null,null,null,null,0,null,null,null,null,null,null,null,null,null,null,null,null,null," schooljaar 2028-2029        3de jaar",0,null,null,null,null,null,null,"Decor en etalage - 2de graad - A-finaliteit",26,null,"Natuurwetenschappen - 2de graad - D-finaliteit",103]
[null,null,null,{"$error":"#VALUE!"},null,null,null,null,null,null,null,null,null,null,null,null,null,null,null,null,null,null,null,null,null,null,"d","x",null,null,"d",null,null,null,null,null,null,null,null,null,null,0,null,null,null,null,null,null,null,null,null,null,null,null,null," schooljaar 2029-2030        3de jaar",0,null,null,null,null,null,null,"Duits - 2de graad - D-finaliteit",27,null,"Nederlands B - 2de graad - D/A-finaliteit",104]
[null,null,null,null,null,null,null,null,null,null,null,null,null,null,null,null,null,null,null,null,null,null,null,null,null,null,"d","x",null,null,"d",null,null,null,null,null,null,null,null,null,null,0,null,null,null,null,null,null,null,null,null,null,null,null,null,null,0,null,null,null,null,null,null,"Duits Co - 2de graad - D-D/A-finaliteit",28,null,"Nederlands B - 2de graad - D-finaliteit",105]
[null,null,null,null,null,null,null,null,null,null,null,null,null,null,null,null,null,null,null,null,null,null,null,null,null,null,"d","x",null,null,"d",null,null,null,null,null,null,null,null,null,null,0,null,null,null,null,null,null,null,null,null,null,null,null,null,null,0,null,null,null,null,null,null,"Duits S - 2de graad - D/A-finaliteit",29,null,"Nederlands B+ - 2de graad - D-finaliteit",106]
[null,null,null,null,null,null,null,null,null,null,null,null,null,null,null,null,null,null,null,null,null,null,null,null,null,null,"d","x",null,{"$error":"#VALUE!"},"d",null,null,null,null,null,null,null,null,null,null,0,null,null,null,null,null,null,null,null,null,null,null,null,null,null,0,null,null,null,null,null,null,"Economie' - 2de graad - D-finaliteit",30,null,"Nederlands B+S - 2de graad - D/A-finaliteit",107]
[null,null,null,null,null,null,null,null,null,null,null,null,null,null,null,null,null,null,null,null,null,null,null,null,null,null,"d","x",null,null,"d",null,null,null,null,null,null,null,null,null,null,0,null,null,null,null,null,null,null,null,null,null,null,null,null,null,0,null,null,null,null,null,null,"Economie Co - 2de graad - D-finaliteit",31,null,"Nederlands B+S' - 2de graad - D-finaliteit",108]
[null,null,null,null,null,null,null,null,null,null,null,null,null,null,null,null,null,null,null,null,null,null,null,null,null,null,"d","x",null,null,"d",null,null,null,null,null,null,null,null,null,null,0,null,null,null,null,null,null,null,null,null,null,null,null,null,null,{"$f":"COUNTIF($D$162:$D$1157,BL40)","v":0},null,null,null,null,null,null,"Economie - 2de graad - D-finaliteit",32,null,"Nederlands B+S - 2de graad - D-finaliteit",109]
[null,null,null,null,null,null,null,null,null,null,null,null,null,null,null,null,null,null,null,null,null,null,null,null,null,null,"d","x",null,null,"d",null,null,null,null,null,null,null,null,null,null,0,null,null,null,null,null,null,null,null,null,null,null,null,null,null,0,null,null,null,null,null,null,"Elektriciteit - 2de graad - A-finaliteit",33,null,"Nederlands - 2de graad - A-finaliteit",110]
[null,null,null,null,null,null,null,null,null,null,null,null,null,null,null,null,null,null,null,null,null,null,null,null,null,null,"d","x",null,null,"d",null,null,null,null,null,null,null,null,null,null,0,null,null,null,null,null,null,null,null,null,null,null,null,null,null,0,null,null,null,null,null,null,"Elektromechanische technieken B+S - 2de graad - D/A-finaliteit",34,null,"Onderhoudsmedewerker - 2de graad - A-finaliteit",111]
[null,null,null,null,null,null,null,null,null,null,null,null,null,null,null,null,null,null,null,null,null,null,null,null,null,null,"d","x",null,null,"d",null,null,null,null,null,null,null,null,null,null,0,null,null,null,null,null,null,null,null,null,null,null,null,null,null,0,null,null,null,null,null,null,"Elektrotechnieken B+S - 2de graad - D/A-finaliteit",35,null,"Onthaal en recreatie - 2de graad - A-finaliteit",112]
[null,null,null,null,null,null,null,null,null,null,null,null,null,null,null,null,null,null,null,null,null,null,null,null,null,null,"d","x",null,null,"d",null,null,null,null,null,null,null,null,null,null,0,null,null,null,null,null,null,null,null,null,null,null,null,null,null,0,null,null,null,null,null,null,"Engels B - 2de graad - A-finaliteit",36,null,"Organisatie en logistiek - 2de graad - A-finaliteit",113]
[null,null,null,null,null,null,null,null,null,null,null,null,null,null,null,null,null,null,null,null,null,null,null,null,null,null,"d","x",null,null,"d",null,null,null,null,null,null,null,null,null,null,0,null,null,null,null,null,null,null,null,null,null,null,null,null,null,0,null,null,null,null,null,null,"Engels B - 2de graad - D/A-finaliteit",37,null,"Paardenhouderij - 2de graad - A-finaliteit",114]
[null,null,null,null,null,null,null,null,null,null,null,null,null,null,null,null,null,null,null,null,null,null,null,null,null,null,"d","x",null,null,"d",null,null,null,null,null,null,null,null,null,null,0,null,null,null,null,null,null,null,null,null,null,null,null,null,null,0,null,null,null,null,null,null,"Engels B - 2de graad - D-finaliteit",38,null,"Plant, dier en milieu - 2de graad - A-finaliteit",115]
[null,null,null,null,null,null,null,null,null,null,null,null,null,null,null,null,null,null,null,null,null,null,null,null,null,null,"d","x",null,null,"d",null,null,null,null,null,null,null,null,null,null,0,null,null,null,null,null,null,null,null,null,null,null,null,null,null,0,null,null,null,null,null,null,"Engels B+ - 2de graad - D-finaliteit",39,null,"Plant-, dier- en milieutechnieken - 2de graad - D/A-finaliteit",116]
[null,null,null,null,null,null,null,null,null,null,null,null,null,null,null,null,null,null,null,null,null,null,null,null,null,null,"d","x",null,null,"d",null,null,null,null,null,null,null,null,null,null,0,null,null,null,null,null,null,null,null,null,null,null,null,null,null,0,null,null,null,null,null,null,"Engels B+S - 2de graad - A-finaliteit",40,null,"Polyvalent administratief ondersteuner - 2de graad - A-finaliteit",117]
[null,null,null,null,null,null,null,null,null,null,null,null,null,null,null,null,null,null,null,null,null,null,null,null,null,null,"d","x",null,null,"d",null,null,null,null,null,null,null,null,null,null,0,null,null,null,null,null,null,null,null,null,null,null,null,null,null,0,null,null,null,null,null,null,"Engels B+S - 2de graad - D/A-finaliteit",41,null,"Printmedia - 2de graad - A-finaliteit",118]
[null,null,null,null,null,null,null,null,null,null,null,null,null,null,null,null,null,null,null,null,null,null,null,null,null,null,"d","x",null,null,"d",null,null,null,null,null,null,null,null,null,null,0,null,null,null,null,null,null,null,null,null,null,null,null,null,null,0,null,null,null,null,null,null,"Engels B+S - 2de graad - D-finaliteit",42,null,"Productiemedewerker drukafwerking in de printmedia - 2de graad - A-finaliteit",119]
[null,null,null,null,null,null,null,null,null,null,null,null,null,null,null,null,null,null,null,null,null,null,null,null,null,null,"d","x",null,null,"d",null,null,null,null,null,null,null,null,null,null,0,null,null,null,null,null,null,null,null,null,null,null,null,null," schooljaar 2023-2024        4de jaar",0,null,null,null,null,null,null,"Fietshersteller - 2de graad - A-finaliteit",43,null,"Productiemedewerker industrie - 2de graad - A-finaliteit",120]
[null,null,null,null,null,null,null,null,null,null,null,null,null,null,null,null,null,null,null,null,null,null,null,null,null,null,"d","x",null,null,"d",null,null,null,null,null,null,null,null,null,null,0,null,null,null,null,null,null,null,null,null,null,null,null,null," schooljaar 2024-2025        4de jaar",0,null,null,null,null,null,null,"Filosofie - 2de graad - D-finaliteit",44,null,"Public relations S - 2de graad - D/A-finaliteit",121]
[null,null,null,null,null,null,null,null,null,null,null,null,null,null,null,null,null,null,null,null,null,null,null,null,null,null,"d","x",null,null,"d",null,null,null,null,null,null,null,null,null,null,0,null,null,null,null,null,null,null,null,null,null,null,null,null," schooljaar 2025-2026        4de jaar",0,null,null,null,null,null,null,"Fotografie - 2de graad - D/A-finaliteit",45,null,"Restaurant en keuken - 2de graad - A-finaliteit",122]
[null,null,null,null,null,null,null,null,null,null,null,null,null,null,null,null,null,null,null,null,null,null,null,null,null,null,"d","x",null,null,"d",null,null,null,null,null,null,null,null,null,null,0,null,null,null,null,null,null,null,null,null,null,null,null,null," schooljaar 2026-2027        4de jaar",0,null,null,null,null,null,null,"Frans - 2de graad - D-finaliteit",46,null,"Rooms-katholieke godsdienst - 1ste, 2de en 3de graad",123]
[null,null,null,null,null,null,null,null,null,null,null,null,null,null,null,null,null,null,null,null,null,null,null,null,null,null,"d","x",null,null,"d",null,null,null,null,null,null,null,null,null,null,0,null,null,null,null,null,null,null,null,null,null,null,null,null," schooljaar 2027-2028        4de jaar",0,null,null,null,null,null,null,"Frans B - 2de graad - A-finaliteit",47,null,"Schilderen en decoratie - 2de graad - A-finaliteit",124]
[null,null,null,null,null,null,null,null,null,null,null,null,null,null,null,null,null,null,null,null,null,null,null,null,null,null,"d","x",null,null,"d",null,null,null,null,null,null,null,null,null,null,0,null,null,null,null,null,null,null,null,null,null,null,null,null," schooljaar 2028-2029        4de jaar",0,null,null,null,null,null,null,"Frans B - 2de graad - D/A-finaliteit",48,null,"Schoonmaker - 2de graad - A-finaliteit",125]
[null,null,null,null,null,null,null,null,null,null,null,null,null,null,null,null,null,null,null,null,null,null,null,null,null,null,"d","x",null,null,"d",null,null,null,null,null,null,null,null,null,null,0,null,null,null,null,null,null,null,null,null,null,null,null,null," schooljaar 2029-2030        4de jaar",0,null,null,null,null,null,null,"Frans B+ - 2de graad - D-finaliteit",49,null,"Slagerij - 2de graad - A-finaliteit",126]
[null,null,null,null,null,null,null,null,null,null,null,null,null,null,null,null,null,null,null,null,null,null,null,null,null,null,"d","x",null,null,"d",null,null,null,null,null,null,null,null,null,null,0,null,null,null,null,null,null,null,null,null,null,null,null,null,null,0,null,null,null,null,null,null,"Frans B+S - 2de graad - A-finaliteit",50,null,"Slagerijtechnieken - 2de graad - D/A-finaliteit",127]
[null,null,null,null,null,null,null,null,null,null,null,null,null,null,null,null,null,null,null,null,null,null,null,null,null,null,"d","x",null,null,"d",null,null,null,null,null,null,null,null,null,null,0,null,null,null,null,null,null,null,null,null,null,null,null,null,null,0,null,null,null,null,null,null,"Frans B+S - 2de graad - D/A-finaliteit",51,null,"Sociologie en psychologie - 2de graad - D-finaliteit",128]
[null,null,null,null,null,null,null,null,null,null,null,null,null,null,null,null,null,null,null,null,null,null,null,null,null,null,"d","x",null,null,"d",null,null,null,null,null,null,null,null,null,null,0,null,null,null,null,null,null,null,null,null,null,null,null,null,null,0,null,null,null,null,null,null,"Frans B+S' - 2de graad - D/A-finaliteit",52,null,"Sport B+S - 2de graad - D/A-finaliteit",129]
[null,null,null,null,null,null,null,null,null,null,null,null,null,null,null,null,null,null,null,null,null,null,null,null,null,null,"d","x",null,null,"d",null,null,null,null,null,null,null,null,null,null,0,null,null,null,null,null,null,null,null,null,null,null,null,null,null,0,null,null,null,null,null,null,"Frans B+S - 2de graad - D-finaliteit",53,null,"Sport B+S - 2de graad - D-finaliteit",130]
[null,null,null,null,null,null,null,null,null,null,null,null,null,null,null,null,null,null,null,null,null,null,null,null,null,null,"d","x",null,null,"d",null,null,null,null,null,null,null,null,null,null,0,null,null,null,null,null,null,null,null,null,null,null,null,null,null,0,null,null,null,null,null,null,"Gemeenschappelijk funderend leerplan B - 2de graad - D,- D/A-, A-finaliteit",54,null,"Sport - 2de graad - A-finaliteit",131]
[null,null,null,null,null,null,null,null,null,null,null,null,null,null,null,null,null,null,null,null,null,null,null,null,null,null,"d","x",null,null,"d",null,null,null,null,null,null,null,null,null,null,0,null,null,null,null,null,null,null,null,null,null,null,null,null,null,0,null,null,null,null,null,null,"Geschiedenis B - 2de graad - D/A-finaliteit",55,null,"Stratenmaker - 2de graad - A-finaliteit",132]
[null,null,null,null,null,null,null,null,null,null,null,null,null,null,null,null,null,null,null,null,null,null,null,null,null,null,"d","x",null,null,"d",null,null,null,null,null,null,null,null,null,null,0,null,null,null,null,null,null,null,null,null,null,null,null,null,null,0,null,null,null,null,null,null,"Geschiedenis B+ - 2de graad - D-finaliteit",56,null,"Technologische wetenschappen B+S - 2de graad - D-finaliteit",133]
[null,null,null,null,null,null,null,null,null,null,null,null,null,null,null,null,null,null,null,null,null,null,null,null,null,null,"d","x",null,null,"d",null,null,null,null,null,null,null,null,null,null,0,null,null,null,null,null,null,null,null,null,null,null,null,null,null,0,null,null,null,null,null,null,"Geschiedenis - 2de graad - D-finaliteit",57,null,"Toerisme - 2de graad - D/A-finaliteit",134]
[null,null,null,null,null,null,null,null,null,null,null,null,null,null,null,null,null,null,null,null,null,null,null,null,null,null,"d","x",null,null,"d",null,null,null,null,null,null,null,null,null,null,0,null,null,null,null,null,null,null,null,null,null,null,null,null,null,0,null,null,null,null,null,null,"Grafische technieken - 2de graad -  D/A-finaliteit",58,null,"Topsport B+S - 2de graad - D/A-finaliteit",135]
[null,null,null,null,null,null,null,null,null,null,null,null,null,null,null,null,null,null,null,null,null,null,null,null,null,null,"d","x",null,null,"d",null,null,null,null,null,null,null,null,null,null,0,null,null,null,null,null,null,null,null,null,null,null,null,null,null,0,null,null,null,null,null,null,"Grieks - 2de graad - D-finaliteit",59,null,"Topsport B+S - 2de graad - D-finaliteit",136]
[null,null,null,null,null,null,null,null,null,null,null,null,null,null,null,null,null,null,null,null,null,null,null,null,null,null,"d","x",null,null,"d",null,null,null,null,null,null,null,null,null,null,0,null,null,null,null,null,null,null,null,null,null,null,null,null,null,0,null,null,null,null,null,null,"Haar- en schoonheidsverzorging - 2de graad - A-finaliteit",60,null,"Topsport S - 2de graad - A-finaliteit",137]
[null,null,null,null,null,null,null,null,null,null,null,null,null,null,null,null,null,null,null,null,null,null,null,null,null,null,"d","x",null,null,"d",null,null,null,null,null,null,null,null,null,null,0,null,null,null,null,null,null,null,null,null,null,null,null,null,null,0,null,null,null,null,null,null,"Hoeknaadlasser - 2de graad - A-finaliteit",61,null,"Verpakker - 2de graad - A-finaliteit",138]
[null,null,null,null,null,null,null,null,null,null,null,null,null,null,null,null,null,null,null,null,null,null,null,null,null,null,"d","x",null,null,"d",null,null,null,null,null,null,null,null,null,null,0,null,null,null,null,null,null,null,null,null,null,null,null,null,null,0,null,null,null,null,null,null,"Horeca - 2de graad - D/A-finaliteit",62,null,"Voertuigtechnieken B+S - 2de graad - D/A-finaliteit",139]
[null,null,null,null,null,null,null,null,null,null,null,null,null,null,null,null,null,null,null,null,null,null,null,null,null,null,"d","x",null,null,"d",null,null,null,null,null,null,null,null,null,null,0,null,null,null,null,null,null,null,null,null,null,null,null,null,null,0,null,null,null,null,null,null,"Hout - 2de graad - A-finaliteit",63,null,"Voorbewerker carrosserie - 2de graad - A-finaliteit",140]
[null,null,null,null,null,null,null,null,null,null,null,null,null,null,null,null,null,null,null,null,null,null,null,null,null,null,"d","x",null,null,"d",null,null,null,null,null,null,null,null,null,null,0,null,null,null,null,null,null,null,null,null,null,null,null,null,null,{"$f":"COUNTIF($D$162:$D$1157,BL72)","v":0},null,null,null,null,null,null,"Houttechnieken B+S - 2de graad - D/A-finaliteit",64,null,"Wellness en lifestyle B + S - 2de graad - D/A-finaliteit",141]
[null,null,null,null,null,null,null,null,null,null,null,null,null,null,null,null,null,null,null,null,null,null,null,null,null,null,"d","x",null,null,"d",null,null,null,null,null,null,null,null,null,null,0,null,null,null,null,null,null,null,null,null,null,null,null,null,null,0,null,null,null,null,null,null,"Hulpkelner - 2de graad - A-finaliteit",65,null,"Winkelmedewerker - 2de graad - A-finaliteit",142]
[null,null,null,null,null,null,null,null,null,null,null,null,null,null,null,null,null,null,null,null,null,null,null,null,null,null,"d","x",null,null,"d",null,null,null,null,null,null,null,null,null,null,0,null,null,null,null,null,null,null,null,null,null,null,null,null,null,0,null,null,null,null,null,null,"ICT Co - 2de graad - D/DA/A-finaliteit",66,null,"Wiskunde - 2de graad - D-finaliteit",143]
[null,null,null,null,null,null,null,null,null,null,null,null,null,null,null,null,null,null,null,null,null,null,null,null,null,null,"d","x",null,null,"d",null,null,null,null,null,null,null,null,null,null,0,null,null,null,null,null,null,null,null,null,null,null,null,null,null,0,null,null,null,null,null,null,"Informaticawetenschappen - 2de graad - D-finaliteit",67,null,"Wiskunde (oud) - 2de graad - D-finaliteit",144]
[null,null,null,null,null,null,null,null,null,null,null,null,null,null,null,null,null,null,null,null,null,null,null,null,null,null,"d","x",null,null,"d",null,null,null,null,null,null,null,null,null,null,0,null,null,null,null,null,null,null,null,null,null,null,null,null,null,0,null,null,null,null,null,null,"Inleiding filosofie S (oud) - 2de graad - D-finaliteit",68,null,"Wiskunde B + C' (oud) - 2de graad - D-finaliteit",145]
[null,null,null,null,null,null,null,null,null,null,null,null,null,null,null,null,null,null,null,null,null,null,null,null,null,null,"d","x",null,null,"d",null,null,null,null,null,null,null,null,null,null,0,null,null,null,null,null,null,null,null,null,null,null,null,null,null,0,null,null,null,null,null,null,"Installateur elektrotechnische basiscomponenten - 2de graad - A-finaliteit",69,null,"Wiskunde B+ - 2de graad - D-finaliteit",146]
[null,null,null,null,null,null,null,null,null,null,null,null,null,null,null,null,null,null,null,null,null,null,null,null,null,null,"d","x",null,null,"d",null,null,null,null,null,null,null,null,null,null,0,null,null,null,null,null,null,null,null,null,null,null,null,null,null,0,null,null,null,null,null,null,"Keukenmedewerker S - 2de graad - A-finaliteit",70,null,"Wiskunde B+S - 2de graad - D/A-finaliteit",147]
[null,null,null,null,null,null,null,null,null,null,null,null,null,null,null,null,null,null,null,null,null,null,null,null,null,null,"d","x",null,null,"d",null,null,null,null,null,null,null,null,null,null,0,null,null,null,null,null,null,null,null,null,null,null,null,null,null,0,null,null,null,null,null,null,"Kunstbeschouwing S' - 2de graad - D-finaliteit",71,null,"Wiskunde B+S - 2de graad - D-finaliteit",148]
[null,null,null,null,null,null,null,null,null,null,null,null,null,null,null,null,null,null,null,null,null,null,null,null,null,null,"d","x",null,null,"d",null,null,null,null,null,null,null,null,null,null,0,null,null,null,null,null,null,null,null,null,null,null,null,null,null,0,null,null,null,null,null,null,"Kunstbeschouwing - 2de graad - D-finaliteit",72,null,"Wiskunde B+S' - 2de graad - D-finaliteit",149]
[null,null,null,null,null,null,null,null,null,null,null,null,null,null,null,null,null,null,null,null,null,null,null,null,null,null,"d","x",null,null,"d",null,null,null,null,null,null,null,null,null,null,0,null,null,null,null,null,null,null,null,null,null,null,null,null,null,0,null,null,null,null,null,null,"Latijn - 2de graad - D-finaliteit",73,null,"Wiskunde B+S' (oud) - 2de graad - D/A-finaliteit",150]
[null,null,null,null,null,null,null,null,null,null,null,null,null,null,null,null,null,null,null,null,null,null,null,null,null,null,"d","x",null,null,"d",null,null,null,null,null,null,null,null,null,null,0,null,null,null,null,null,null,null,null,null,null,null,null,null,null,0,null,null,null,null,null,null,"Lichamelijke opvoeding B - 2de graad - D-, D/A-, A-finaliteit",74,null,"Wiskunde B+S'' (oud) - 2de graad - D/A-finaliteit",151]
[null,null,null,null,null,null,null,null,null,null,null,null,null,null,null,null,null,null,null,null,null,null,null,null,null,null,"d","x",null,null,"d",null,null,null,null,null,null,null,null,null,null,0,null,null,null,null,null,null,null,null,null,null,null,null,null,null,0,null,null,null,null,null,null,"Maatschappelijke vorming - 2de graad - A-finaliteit",75,null,"Wiskunde - 2de graad - A-finaliteit",152]
[null,null,null,null,null,null,null,null,null,null,null,null,null,null,null,null,null,null,null,null,null,null,null,null,null,null,"d","x",null,null,"d",null,null,null,null,null,null,null,null,null,null,0,null,null,null,null,null,null,null,null,null,null,null,null,null,null,0,null,null,null,null,null,null,"Maatschappij en welzijn - 2de graad - D/A-finaliteit",76,null,"Wiskunde - 2de graad - D/A-finaliteit",153]
[null,null,null,null,null,null,null,null,null,null,null,null,null,null,null,null,null,null,null,null,null,null,null,null,null,null,"d","x",null,null,"d",null,null,null,null,null,null,null,null,null,null,0,null,null,null,null,null,null,null,null,null,null,null,null,null,null,{"$f":"COUNTIF($D$162:$D$1157,BO8)","v":0},null,null,null,null,null,null,"Machinaal houtbewerker S - 2de graad - A-finaliteit",77,null,"Woordkunst-drama - 2de graad - D-finaliteit",154]
[null,null,null,null,null,null,null,null,null,null,null,null,null,null,null,null,null,null,null,null,null,null,null,null,null,null,"d","x",null,null,"d",null,null,null,null,null,null,null,null,null,null,0,null,null,null,null,null,null,null,null,null,null,null,null,null,null,0]
[null,null,null,null,null,null,null,null,null,null,null,null,null,null,null,null,null,null,null,null,null,null,null,null,null,null,"d","x",null,null,"d",null,null,null,null,null,null,null,null,null,null,0,null,null,null,null,null,null,null,null,null,null,null,null,null,null,0]
[null,null,null,null,null,null,null,null,null,null,null,null,null,null,null,null,null,null,null,null,null,null,null,null,null,null,"d","x",null,null,"d",null,null,null,null,null,null,null,null,null,null,0,null,null,null,null,null,null,null,null,null,null,null,null,null,null,0]
[null,null,null,null,null,null,null,null,null,null,null,null,null,null,null,null,null,null,null,null,null,null,null,null,null,null,"d","x",null,null,"d",null,null,null,null,null,null,null,null,null,null,0,null,null,null,null,null,null,null,null,null,null,null,null,null,null,0]
[null,null,null,null,null,null,null,null,null,null,null,null,null,null,null,null,null,null,null,null,null,null,null,null,null,null,"d","x",null,null,"d",null,null,null,null,null,null,null,null,null,null,0,null,null,null,null,null,null,null,null,null,null,null,null,null,null,0]
[null,null,null,null,null,null,null,null,null,null,null,null,null,null,null,null,null,null,null,null,null,null,null,null,null,null,"d","x",null,null,"d",null,null,null,null,null,null,null,null,null,null,0,null,null,null,null,null,null,null,null,null,null,null,null,null,null,0]
[null,null,null,null,null,null,null,null,null,null,null,null,null,null,null,null,null,null,null,null,null,null,null,null,null,null,"d","x",null,null,"d",null,null,null,null,null,null,null,null,null,null,0,null,null,null,null,null,null,null,null,null,null,null,null,null,null,0]
[null,null,null,null,null,null,null,null,null,null,null,null,null,null,null,null,null,null,null,null,null,null,null,null,null,null,"d","x",null,null,"d",null,null,null,null,null,null,null,null,null,null,0,null,null,null,null,null,null,null,null,null,null,null,null,null,null,0]
[null,null,null,null,null,null,null,null,null,null,null,null,null,null,null,null,null,null,null,null,null,null,null,null,null,null,"d","x",null,null,"d",null,null,null,null,null,null,null,null,null,null,0,null,null,null,null,null,null,null,null,null,null,null,null,null,null,0]
[null,null,null,null,null,null,null,null,null,null,null,null,null,null,null,null,null,null,null,null,null,null,null,null,null,null,"d","x",null,null,"d",null,null,null,null,null,null,null,null,null,null,0,null,null,null,null,null,null,null,null,null,null,null,null,null,null,0]
[null,null,null,null,null,null,null,null,null,null,null,null,null,null,null,null,null,null,null,null,null,null,null,null,null,null,"d","x",null,null,"d",null,null,null,null,null,null,null,null,null,null,0,null,null,null,null,null,null,null,null,null,null,null,null,null,null,0]
[null,null,null,null,null,null,null,null,null,null,null,null,null,null,null,null,null,null,null,null,null,null,null,null,null,null,"d","x",null,null,"d",null,null,null,null,null,null,null,null,null,null,0,null,null,null,null,null,null,null,null,null,null,null,null,null,null,0]
[null,null,null,null,null,null,null,null,null,null,null,null,null,null,null,null,null,null,null,null,null,null,null,null,null,null,"d","x",null,null,"d",null,null,null,null,null,null,null,null,null,null,0,null,null,null,null,null,null,null,null,null,null,null,null,null,null,0]
[null,null,null,null,null,null,null,null,null,null,null,null,null,null,null,null,null,null,null,null,null,null,null,null,null,null,"d","x",null,null,"d",null,null,null,null,null,null,null,null,null,null,0,null,null,null,null,null,null,null,null,null,null,null,null,null,null,0]
[null,null,null,null,null,null,null,null,null,null,null,null,null,null,null,null,null,null,null,null,null,null,null,null,null,null,"d","x",null,null,"d",null,null,null,null,null,null,null,null,null,null,0,null,null,null,null,null,null,null,null,null,null,null,null,null,null,0]
[null,null,null,null,null,null,null,null,null,null,null,null,null,null,null,null,null,null,null,null,null,null,null,null,null,null,"d","x",null,null,"d",null,null,null,null,null,null,null,null,null,null,0,null,null,null,null,null,null,null,null,null,null,null,null,null,null,0]
[null,null,null,null,null,null,null,null,null,null,null,null,null,null,null,null,null,null,null,null,null,null,null,null,null,null,"d","x",null,null,"d",null,null,null,null,null,null,null,null,null,null,0,null,null,null,null,null,null,null,null,null,null,null,null,null,null,0]
[null,null,null,null,null,null,null,null,null,null,null,null,null,null,null,null,null,null,null,null,null,null,null,null,null,null,"d","x",null,null,"d",null,null,null,null,null,null,null,null,null,null,0,null,null,null,null,null,null,null,null,null,null,null,null,null,null,0]
[null,null,null,null,null,null,null,null,null,null,null,null,null,null,null,null,null,null,null,null,null,null,null,null,null,null,"d","x",null,null,"d",null,null,null,null,null,null,null,null,null,null,0,null,null,null,null,null,null,null,null,null,null,null,null,null,null,0]
[null,null,null,null,null,null,null,null,null,null,null,null,null,null,null,null,null,null,null,null,null,null,null,null,null,null,"d","x",null,null,"d",null,null,null,null,null,null,null,null,null,null,0,null,null,null,null,null,null,null,null,null,null,null,null,null,null,0]
[null,null,null,null,null,null,null,null,null,null,null,null,null,null,null,null,null,null,null,null,null,null,null,null,null,null,"d","x",null,null,"d",null,null,null,null,null,null,null,null,null,null,0,null,null,null,null,null,null,null,null,null,null,null,null,null,null,0]
[null,null,null,null,null,null,null,null,null,null,null,null,null,null,null,null,null,null,null,null,null,null,null,null,null,null,"d","x",null,null,"d",null,null,null,null,null,null,null,null,null,null,0,null,null,null,null,null,null,null,null,null,null,null,null,null,null,0]
[null,null,null,null,null,null,null,null,null,null,null,null,null,null,null,null,null,null,null,null,null,null,null,null,null,null,"d","x",null,null,"d",null,null,null,null,null,null,null,null,null,null,0,null,null,null,null,null,null,null,null,null,null,null,null,null,null,0]
[null,null,null,null,null,null,null,null,null,null,null,null,null,null,null,null,null,null,null,null,null,null,null,null,null,null,"d","x",null,null,"d",null,null,null,null,null,null,null,null,null,null,0,null,null,null,null,null,null,null,null,null,null,null,null,null,null,0]
[null,null,null,null,null,null,null,null,null,null,null,null,null,null,null,null,null,null,null,null,null,null,null,null,null,null,"d","x",null,null,"d",null,null,null,null,null,null,null,null,null,null,0,null,null,null,null,null,null,null,null,null,null,null,null,null,null,0]
[null,null,null,null,null,null,null,null,null,null,null,null,null,null,null,null,null,null,null,null,null,null,null,null,null,null,"d","x",null,null,"d",null,null,null,null,null,null,null,null,null,null,0,null,null,null,null,null,null,null,null,null,null,null,null,null,null,0]
[null,null,null,null,null,null,null,null,null,null,null,null,null,null,null,null,null,null,null,null,null,null,null,null,null,null,"d","x",null,null,"d",null,null,null,null,null,null,null,null,null,null,0,null,null,null,null,null,null,null,null,null,null,null,null,null,null,0]
[null,null,null,null,null,null,null,null,null,null,null,null,null,null,null,null,null,null,null,null,null,null,null,null,null,null,"d","x",null,null,"d",null,null,null,null,null,null,null,null,null,null,0,null,null,null,null,null,null,null,null,null,null,null,null,null,null,0]
[null,null,null,null,null,null,null,null,null,null,null,null,null,null,null,null,null,null,null,null,null,null,null,null,null,null,"d","x",null,null,"d",null,null,null,null,null,null,null,null,null,null,0,null,null,null,null,null,null,null,null,null,null,null,null,null,null,0]
[null,null,null,null,null,null,null,null,null,null,null,null,null,null,null,null,null,null,null,null,null,null,null,null,null,null,"d","x",null,null,"d",null,null,null,null,null,null,null,null,null,null,0,null,null,null,null,null,null,null,null,null,null,null,null,null,null,0]
[null,null,null,null,null,null,null,null,null,null,null,null,null,null,null,null,null,null,null,null,null,null,null,null,null,null,"d","x",null,null,"d",null,null,null,null,null,null,null,null,null,null,0,null,null,null,null,null,null,null,null,null,null,null,null,null,null,0]
[null,null,null,null,null,null,null,null,null,null,null,null,null,null,null,null,null,null,null,null,null,null,null,null,null,null,"d","x",null,null,"d",null,null,null,null,null,null,null,null,null,null,0,null,null,null,null,null,null,null,null,null,null,null,null,null,null,{"$f":"COUNTIF($D$162:$D$1157,BO40)","v":0}]
[null,null,null,null,null,null,null,null,null,null,null,null,null,null,null,null,null,null,null,null,null,null,null,null,null,null,"d","x",null,null,"d",null,null,null,null,null,null,null,null,null,null,0,null,null,null,null,null,null,null,null,null,null,null,null,null,null,0]
[null,null,null,null,null,null,null,null,null,null,null,null,null,null,null,null,null,null,null,null,null,null,null,null,null,null,"d","x",null,null,"d",null,null,null,null,null,null,null,null,null,null,0,null,null,null,null,null,null,null,null,null,null,null,null,null,null,0]
[null,null,null,null,null,null,null,null,null,null,null,null,null,null,null,null,null,null,null,null,null,null,null,null,null,null,"d","x",null,null,"d",null,null,null,null,null,null,null,null,null,null,0,null,null,null,null,null,null,null,null,null,null,null,null,null,null,0]
[null,null,null,null,null,null,null,null,null,null,null,null,null,null,null,null,null,null,null,null,null,null,null,null,null,null,"d","x",null,null,"d",null,null,null,null,null,null,null,null,null,null,0,null,null,null,null,null,null,null,null,null,null,null,null,null,null,0]
[null,null,null,null,null,null,null,null,null,null,null,null,null,null,null,null,null,null,null,null,null,null,null,null,null,null,"d","x",null,null,"d",null,null,null,null,null,null,null,null,null,null,0,null,null,null,null,null,null,null,null,null,null,null,null,null,null,0]
[null,null,null,null,null,null,null,null,null,null,null,null,null,null,null,null,null,null,null,null,null,null,null,null,null,null,"d","x",null,null,"d",null,null,null,null,null,null,null,null,null,null,0,null,null,null,null,null,null,null,null,null,null,null,null,null,null,0]
[null,null,null,null,null,null,null,null,null,null,null,null,null,null,null,null,null,null,null,null,null,null,null,null,null,null,"d","x",null,null,"d",null,null,null,null,null,null,null,null,null,null,0,null,null,null,null,null,null,null,null,null,null,null,null,null,null,0]
[null,null,null,null,null,null,null,null,null,null,null,null,null,null,null,null,null,null,null,null,null,null,null,null,null,null,"d","x",null,null,"d",null,null,null,null,null,null,null,null,null,null,0,null,null,null,null,null,null,null,null,null,null,null,null,null,null,0]
[null,null,null,null,null,null,null,null,null,null,null,null,null,null,null,null,null,null,null,null,null,null,null,null,null,null,"d","x",null,null,"d",null,null,null,null,null,null,null,null,null,null,0,null,null,null,null,null,null,null,null,null,null,null,null,null,null,0]
[null,null,null,null,null,null,null,null,null,null,null,null,null,null,null,null,null,null,null,null,null,null,null,null,null,null,"d","x",null,null,"d",null,null,null,null,null,null,null,null,null,null,0,null,null,null,null,null,null,null,null,null,null,null,null,null,null,0]
[null,null,null,null,null,null,null,null,null,null,null,null,null,null,null,null,null,null,null,null,null,null,null,null,null,null,"d","x",null,null,"d",null,null,null,null,null,null,null,null,null,null,0,null,null,null,null,null,null,null,null,null,null,null,null,null,null,0]
[null,null,null,null,null,null,null,null,null,null,null,null,null,null,null,null,null,null,null,null,null,null,null,null,null,null,"d","x",null,null,"d",null,null,null,null,null,null,null,null,null,null,0,null,null,null,null,null,null,null,null,null,null,null,null,null,null,0]
[null,null,null,null,null,null,null,null,null,null,null,null,null,null,null,null,null,null,null,null,null,null,null,null,null,null,"d","x",null,null,"d",null,null,null,null,null,null,null,null,null,null,0,null,null,null,null,null,null,null,null,null,null,null,null,null,null,0]
[null,null,null,null,null,null,null,null,null,null,null,null,null,null,null,null,null,null,null,null,null,null,null,null,null,null,"d","x",null,null,"d",null,null,null,null,null,null,null,null,null,null,0,null,null,null,null,null,null,null,null,null,null,null,null,null,null,0]
[null,null,null,null,null,null,null,null,null,null,null,null,null,null,null,null,null,null,null,null,null,null,null,null,null,null,"d","x",null,null,"d",null,null,null,null,null,null,null,null,null,null,0,null,null,null,null,null,null,null,null,null,null,null,null,null,null,0]
[null,null,null,null,null,null,null,null,null,null,null,null,null,null,null,null,null,null,null,null,null,null,null,null,null,null,"d","x",null,null,"d",null,null,null,null,null,null,null,null,null,null,0,null,null,null,null,null,null,null,null,null,null,null,null,null,null,0]
[null,null,null,null,null,null,null,null,null,null,null,null,null,null,null,null,null,null,null,null,null,null,null,null,null,null,"d","x",null,null,"d",null,null,null,null,null,null,null,null,null,null,0,null,null,null,null,null,null,null,null,null,null,null,null,null,null,0]
[null,null,null,null,null,null,null,null,null,null,null,null,null,null,null,null,null,null,null,null,null,null,null,null,null,null,"d","x",null,null,"d",null,null,null,null,null,null,null,null,null,null,0,null,null,null,null,null,null,null,null,null,null,null,null,null,null,0]
[null,null,null,null,null,null,null,null,null,null,null,null,null,null,null,null,null,null,null,null,null,null,null,null,null,null,"d","x",null,null,"d",null,null,null,null,null,null,null,null,null,null,0,null,null,null,null,null,null,null,null,null,null,null,null,null,null,0]
[null,null,null,null,null,null,null,null,null,null,null,null,null,null,null,null,null,null,null,null,null,null,null,null,null,null,"d","x",null,null,"d",null,null,null,null,null,null,null,null,null,null,0,null,null,null,null,null,null,null,null,null,null,null,null,null,null,0]
[null,null,null,null,null,null,null,null,null,null,null,null,null,null,null,null,null,null,null,null,null,null,null,null,null,null,"d","x",null,null,"d",null,null,null,null,null,null,null,null,null,null,0,null,null,null,null,null,null,null,null,null,null,null,null,null,null,0]
[null,null,null,null,null,null,null,null,null,null,null,null,null,null,null,null,null,null,null,null,null,null,null,null,null,null,"d","x",null,null,"d",null,null,null,null,null,null,null,null,null,null,0,null,null,null,null,null,null,null,null,null,null,null,null,null,null,0]
[null,null,null,null,null,null,null,null,null,null,null,null,null,null,null,null,null,null,null,null,null,null,null,null,null,null,"d","x",null,null,"d",null,null,null,null,null,null,null,null,null,null,0,null,null,null,null,null,null,null,null,null,null,null,null,null,null,0]
[null,null,null,null,null,null,null,null,null,null,null,null,null,null,null,null,null,null,null,null,null,null,null,null,null,null,"d","x",null,null,"d",null,null,null,null,null,null,null,null,null,null,0,null,null,null,null,null,null,null,null,null,null,null,null,null,null,0]
[null,null,null,null,null,null,null,null,null,null,null,null,null,null,null,null,null,null,null,null,null,null,null,null,null,null,"d","x",null,null,"d",null,null,null,null,null,null,null,null,null,null,0,null,null,null,null,null,null,null,null,null,null,null,null,null,null,0]
[null,null,null,null,null,null,null,null,null,null,null,null,null,null,null,null,null,null,null,null,null,null,null,null,null,null,"d","x",null,null,"d",null,null,null,null,null,null,null,null,null,null,0,null,null,null,null,null,null,null,null,null,null,null,null,null,null,0]
[null,null,null,null,null,null,null,null,null,null,null,null,null,null,null,null,null,null,null,null,null,null,null,null,null,null,"d","x",null,null,"d",null,null,null,null,null,null,null,null,null,null,0,null,null,null,null,null,null,null,null,null,null,null,null,null,null,0]
[null,null,null,null,null,null,null,null,null,null,null,null,null,null,null,null,null,null,null,null,null,null,null,null,null,null,"d","x",null,null,"d",null,null,null,null,null,null,null,null,null,null,0,null,null,null,null,null,null,null,null,null,null,null,null,null,null,0]
[null,null,null,null,null,null,null,null,null,null,null,null,null,null,null,null,null,null,null,null,null,null,null,null,null,null,"d","x",null,null,"d",null,null,null,null,null,null,null,null,null,null,0,null,null,null,null,null,null,null,null,null,null,null,null,null,null,0]
[null,null,null,null,null,null,null,null,null,null,null,null,null,null,null,null,null,null,null,null,null,null,null,null,null,null,"d","x",null,null,"d",null,null,null,null,null,null,null,null,null,null,0,null,null,null,null,null,null,null,null,null,null,null,null,null,null,0]
[null,null,null,null,null,null,null,null,null,null,null,null,null,null,null,null,null,null,null,null,null,null,null,null,null,null,"d","x",null,null,"d",null,null,null,null,null,null,null,null,null,null,0,null,null,null,null,null,null,null,null,null,null,null,null,null,null,0]
[null,null,null,null,null,null,null,null,null,null,null,null,null,null,null,null,null,null,null,null,null,null,null,null,null,null,"d","x",null,null,"d",null,null,null,null,null,null,null,null,null,null,0,null,null,null,null,null,null,null,null,null,null,null,null,null,null,{"$f":"COUNTIF($D$162:$D$1157,BO72)","v":0}]
[null,null,null,null,null,null,null,null,null,null,null,null,null,null,null,null,null,null,null,null,null,null,null,null,null,null,"d","x",null,null,"d",null,null,null,null,null,null,null,null,null,null,0,null,null,null,null,null,null,null,null,null,null,null,null,null,null,0]
[null,null,null,null,null,null,null,null,null,null,null,null,null,null,null,null,null,null,null,null,null,null,null,null,null,null,"d","x",null,null,"d",null,null,null,null,null,null,null,null,null,null,0,null,null,null,null,null,null,null,null,null,null,null,null,null,null,0]
[null,null,null,null,null,null,null,null,null,null,null,null,null,null,null,null,null,null,null,null,null,null,null,null,null,null,"d","x",null,null,"d",null,null,null,null,null,null,null,null,null,null,0,null,null,null,null,null,null,null,null,null,null,null,null,null,null,0]
[null,null,null,null,null,null,null,null,null,null,null,null,null,null,null,null,null,null,null,null,null,null,null,null,null,null,"d","x",null,null,"d",null,null,null,null,null,null,null,null,null,null,0,null,null,null,null,null,null,null,null,null,null,null,null,null,null,0]
[null,null,null,null,null,null,null,null,null,null,null,null,null,null,null,null,null,null,null,null,null,null,null,null,null,null,"d","x",null,null,"d",null,null,null,null,null,null,null,null,null,null,0,null,null,null,null,null,null,null,null,null,null,null,null,null,null,0]
[null,null,null,null,null,null,null,null,null,null,null,null,null,null,null,null,null,null,null,null,null,null,null,null,null,null,"d","x",null,null,"d",null,null,null,null,null,null,null,null,null,null,0,null,null,null,null,null,null,null,null,null,null,null,null,null,null,0]
[null,null,null,null,null,null,null,null,null,null,null,null,null,null,null,null,null,null,null,null,null,null,null,null,null,null,"d","x",null,null,"d",null,null,null,null,null,null,null,null,null,null,0,null,null,null,null,null,null,null,null,null,null,null,null,null,null,0]
[null,null,null,null,null,null,null,null,null,null,null,null,null,null,null,null,null,null,null,null,null,null,null,null,null,null,"d","x",null,null,"d",null,null,null,null,null,null,null,null,null,null,0,null,null,null,null,null,null,null,null,null,null,null,null,null,null,0]
[null,null,null,null,null,null,null,null,null,null,null,null,null,null,null,null,null,null,null,null,null,null,null,null,null,null,"d","x",null,null,"d",null,null,null,null,null,null,null,null,null,null,0,null,null,null,null,null,null,null,null,null,null,null,null,null,null,0]
[null,null,null,null,null,null,null,null,null,null,null,null,null,null,null,null,null,null,null,null,null,null,null,null,null,null,"d","x",null,null,"d",null,null,null,null,null,null,null,null,null,null,0,null,null,null,null,null,null,null,null,null,null,null,null,null,null,0]
[null,null,null,null,null,null,null,null,null,null,null,null,null,null,null,null,null,null,null,null,null,null,null,null,null,null,"d","x",null,null,"d",null,null,null,null,null,null,null,null,null,null,0,null,null,null,null,null,null,null,null,null,null,null,null,null,null,0]
[null,null,null,null,null,null,null,null,null,null,null,null,null,null,null,null,null,null,null,null,null,null,null,null,null,null,"d","x",null,null,"d",null,null,null,null,null,null,null,null,null,null,0,null,null,null,null,null,null,null,null,null,null,null,null,null,null,0]
[null,null,null,null,null,null,null,null,null,null,null,null,null,null,null,null,null,null,null,null,null,null,null,null,null,null,"d","x",null,null,"d",null,null,null,null,null,null,null,null,null,null,0]
[null,null,null,"Architecturale en beeldende kunsten",null,{"$f":"9-(I162+K162+M162+O162+Q162+S162+U162++Y162+W162)","v":0},null,null,{"$f":"COUNTBLANK(H162)","v":1},null,{"$f":"COUNTBLANK(J162)","v":1},null,{"$f":"COUNTBLANK(L162)","v":1},null,{"$f":"COUNTBLANK(N162)","v":1},null,{"$f":"COUNTBLANK(P162)","v":1},null,{"$f":"COUNTBLANK(R162)","v":1},null,{"$f":"COUNTBLANK(T162)","v":1},null,{"$f":"COUNTBLANK(V162)","v":1},null,{"$f":"COUNTBLANK(X162)","v":1},null,"d","x",null,"AV    Aardrijkskunde B  ->  D/A-finaliteit","d",null,null,null,null,null,null,null,null,null,null,0]
[null,null,null,"Architecturale en beeldende kunsten",null,0,null,null,1,null,1,null,1,null,1,null,1,null,1,null,1,null,1,null,1,null,"d","x",null,"AV    Engels B  ->  D/A-finaliteit","d",null,null,null,null,null,null,null,null,null,null,0]
[null,null,null,"Architecturale en beeldende kunsten",null,0,null,null,1,null,1,null,1,null,1,null,1,null,1,null,1,null,1,null,1,null,"d","x",null,"AV    Frans B  ->  D/A-finaliteit","d",null,null,null,null,null,null,null,null,null,null,0]
[null,null,null,"Architecturale en beeldende kunsten",null,0,null,null,1,null,1,null,1,null,1,null,1,null,1,null,1,null,1,null,1,null,"d","x",null,"AV    Gemeenschappelijk funderend leerplan B  ->  D,- D/A-, A-finaliteit","d",null,null,null,null,null,null,null,null,null,null,0]
[null,null,null,"Architecturale en beeldende kunsten",null,0,null,null,1,null,1,null,1,null,1,null,1,null,1,null,1,null,1,null,1,null,"d","x",null,"AV    Geschiedenis B  ->  D/A-finaliteit","d",null,null,null,null,null,null,null,null,null,null,0]
[null,null,null,"Architecturale en beeldende kunsten",null,0,null,null,1,null,1,null,1,null,1,null,1,null,1,null,1,null,1,null,1,null,"d","x",null,"AV    Lichamelijke opvoeding B  ->  D-, D/A-, A-finaliteit","d",null,null,null,null,null,null,null,null,null,null,0]
[null,null,null,"Architecturale en beeldende kunsten",null,0,null,null,1,null,1,null,1,null,1,null,1,null,1,null,1,null,1,null,1,null,"d","x",null,"AV    Natuurwetenschappen B  ->  D/A-finaliteit","d",null,null,null,null,null,null,null,null,null,null,0]
[null,null,null,"Architecturale en beeldende kunsten",null,0,null,null,1,null,1,null,1,null,1,null,1,null,1,null,1,null,1,null,1,null,"d","x",null,"AV    Nederlands B  ->  D/A-finaliteit","d",null,null,null,null,null,null,null,null,null,null,0]
[null,null,null,"Architecturale en beeldende kunsten",null,0,null,null,1,null,1,null,1,null,1,null,1,null,1,null,1,null,1,null,1,null,"d","x",null,"AV    Rooms-katholieke godsdienst - 1ste, 2de en 3de graad","d",null,null,null,null,null,null,null,null,null,null,0]
[null,null,null,"Architecturale en beeldende kunsten",null,0,null,null,1,null,1,null,1,null,1,null,1,null,1,null,1,null,1,null,1,null,"d","x",null,"AV    Wiskunde  ->  D/A-finaliteit","d",null,null,null,null,null,null,null,null,null,null,0]
[null,null,null,"Architecturale en beeldende kunsten",null,0,null,null,1,null,1,null,1,null,1,null,1,null,1,null,1,null,1,null,1,null,"d","x",null,"SV    Architecturale en beeldende kunsten  ->  D/A-finaliteit","d",null,null,null,null,null,null,null,null,null,null,0]
[null,null,null,"Architecturale en beeldende kunsten",null,0,null,null,1,null,1,null,1,null,1,null,1,null,1,null,1,null,1,null,1,null,"d","x",null,"SV    Wiskunde B+S'' (oud)  ->  D/A-finaliteit","d",null,null,null,null,null,null,null,null,null,null,0]
[null,null,null,"Architecturale en beeldende kunsten",null,0,null,null,1,null,1,null,1,null,1,null,1,null,1,null,1,null,1,null,1,null,"d","x",null,"CG    Artistieke vorming Co  ->  D-D/A-A-finaliteit","d",null,null,null,null,null,null,null,null,null,null,0]
[null,null,null,"Architecturale en beeldende kunsten",null,0,null,null,1,null,1,null,1,null,1,null,1,null,1,null,1,null,1,null,1,null,"d","x",null,"CG    ICT Co  ->  D/DA/A-finaliteit","d",null,null,null,null,null,null,null,null,null,null,0]
[null,null,null,"Architecturale en beeldende kunsten",null,0,null,null,1,null,1,null,1,null,1,null,1,null,1,null,1,null,1,null,1,null,"d","x",null,"CG    Mens en samenleving complementair  ->  D/DA-finaliteit","d",null,null,null,null,null,null,null,null,null,null,0]
[null,null,null,"Architecturale en beeldende vorming",null,0,null,null,1,null,1,null,1,null,1,null,1,null,1,null,1,null,1,null,1,null,"d","x",null,"AV    Aardrijkskunde B  ->  D-finaliteit","d",null,null,null,null,null,null,null,null,null,null,0]
[null,null,null,"Architecturale en beeldende vorming",null,0,null,null,1,null,1,null,1,null,1,null,1,null,1,null,1,null,1,null,1,null,"d","x",null,"AV    Biologie-chemie  ->  D-finaliteit","d",null,null,null,null,null,null,null,null,null,null,0]
[null,null,null,"Architecturale en beeldende vorming",null,0,null,null,1,null,1,null,1,null,1,null,1,null,1,null,1,null,1,null,1,null,"d","x",null,"AV    Engels B  ->  D-finaliteit","d",null,null,null,null,null,null,null,null,null,null,0]
[null,null,null,"Architecturale en beeldende vorming",null,0,null,null,1,null,1,null,1,null,1,null,1,null,1,null,1,null,1,null,1,null,"d","x",null,"AV    Frans  ->  D-finaliteit","d",null,null,null,null,null,null,null,null,null,null,0]
[null,null,null,"Architecturale en beeldende vorming",null,0,null,null,1,null,1,null,1,null,1,null,1,null,1,null,1,null,1,null,1,null,"d","x",null,"AV    Gemeenschappelijk funderend leerplan B  ->  D,- D/A-, A-finaliteit","d",null,null,null,null,null,null,null,null,null,null,0]
[null,null,null,"Architecturale en beeldende vorming",null,0,null,null,1,null,1,null,1,null,1,null,1,null,1,null,1,null,1,null,1,null,"d","x",null,"AV    Geschiedenis  ->  D-finaliteit","d",null,null,null,null,null,null,null,null,null,null,0]
[null,null,null,"Architecturale en beeldende vorming",null,0,null,null,1,null,1,null,1,null,1,null,1,null,1,null,1,null,1,null,1,null,"d","x",null,"AV    Lichamelijke opvoeding B  ->  D-, D/A-, A-finaliteit","d",null,null,null,null,null,null,null,null,null,null,0]
[null,null,null,"Architecturale en beeldende vorming",null,0,null,null,1,null,1,null,1,null,1,null,1,null,1,null,1,null,1,null,1,null,"d","x",null,"AV    Natuurwetenschappen  ->  D-finaliteit","d",null,null,null,null,null,null,null,null,null,null,0]
[null,null,null,"Architecturale en beeldende vorming",null,0,null,null,1,null,1,null,1,null,1,null,1,null,1,null,1,null,1,null,1,null,"d","x",null,"AV    Nederlands B  ->  D-finaliteit","d",null,null,null,null,null,null,null,null,null,null,0]
[null,null,null,"Architecturale en beeldende vorming",null,0,null,null,1,null,1,null,1,null,1,null,1,null,1,null,1,null,1,null,1,null,"d","x",null,"AV    Rooms-katholieke godsdienst - 1ste, 2de en 3de graad","d",null,null,null,null,null,null,null,null,null,null,0]
[null,null,null,"Architecturale en beeldende vorming",null,0,null,null,1,null,1,null,1,null,1,null,1,null,1,null,1,null,1,null,1,null,"d","x",null,"SV    Architecturale en beeldende vorming  ->  D-finaliteit","d",null,null,null,null,null,null,null,null,null,null,0]
[null,null,null,"Architecturale en beeldende vorming",null,0,null,null,1,null,1,null,1,null,1,null,1,null,1,null,1,null,1,null,1,null,"d","x",null,"SV    Kunstbeschouwing  ->  D-finaliteit","d",null,null,null,null,null,null,null,null,null,null,0]
[null,null,null,"Architecturale en beeldende vorming",null,0,null,null,1,null,1,null,1,null,1,null,1,null,1,null,1,null,1,null,1,null,"d","x",null,"SV    Kunstbeschouwing S'  ->  D-finaliteit","d",null,null,null,null,null,null,null,null,null,null,0]
[null,null,null,"Architecturale en beeldende vorming",null,0,null,null,1,null,1,null,1,null,1,null,1,null,1,null,1,null,1,null,1,null,"d","x",null,"SV    Wiskunde B+S  ->  D-finaliteit","d",null,null,null,null,null,null,null,null,null,null,0]
[null,null,null,"Architecturale en beeldende vorming",null,0,null,null,1,null,1,null,1,null,1,null,1,null,1,null,1,null,1,null,1,null,"d","x",null,"CG    Artistieke vorming Co  ->  D-D/A-A-finaliteit","d",null,null,null,null,null,null,null,null,null,null,0]
[null,null,null,"Architecturale en beeldende vorming",null,0,null,null,1,null,1,null,1,null,1,null,1,null,1,null,1,null,1,null,1,null,"d","x",null,"CG    ICT Co  ->  D/DA/A-finaliteit","d",null,null,null,null,null,null,null,null,null,null,0]
[null,null,null,"Architecturale en beeldende vorming",null,0,null,null,1,null,1,null,1,null,1,null,1,null,1,null,1,null,1,null,1,null,"d","x",null,"CG    Mens en samenleving complementair  ->  D/DA-finaliteit","d",null,null,null,null,null,null,null,null,null,null,0]
[null,null,null,"Artistiek-creatieve bewerkingen",null,0,null,null,1,null,1,null,1,null,1,null,1,null,1,null,1,null,1,null,1,null,"d","x",null,"AV    Engels B  ->  A-finaliteit","d",null,null,null,null,null,null,null,null,null,null,0]
[null,null,null,"Artistiek-creatieve bewerkingen",null,0,null,null,1,null,1,null,1,null,1,null,1,null,1,null,1,null,1,null,1,null,"d","x",null,"AV    Frans B  ->  A-finaliteit","d",null,null,null,null,null,null,null,null,null,null,0]
[null,null,null,"Artistiek-creatieve bewerkingen",null,0,null,null,1,null,1,null,1,null,1,null,1,null,1,null,1,null,1,null,1,null,"d","x",null,"AV    Gemeenschappelijk funderend leerplan B  ->  D,- D/A-, A-finaliteit","d",null,null,null,null,null,null,null,null,null,null,0]
[null,null,null,"Artistiek-creatieve bewerkingen",null,0,null,null,1,null,1,null,1,null,1,null,1,null,1,null,1,null,1,null,1,null,"d","x",null,"AV    Lichamelijke opvoeding B  ->  D-, D/A-, A-finaliteit","d",null,null,null,null,null,null,null,null,null,null,0]
[null,null,null,"Artistiek-creatieve bewerkingen",null,{"$f":"9-(I198+K198+M198+O198+Q198+S198+U198++Y198+W198)","v":0},null,null,1,null,1,null,1,null,1,null,1,null,1,null,1,null,1,null,1,null,"d","x",null,"AV    Maatschappelijke vorming  ->  A-finaliteit","d",null,null,null,null,null,null,null,null,null,null,0]
[null,null,null,"Artistiek-creatieve bewerkingen",null,0,null,null,1,null,1,null,1,null,1,null,1,null,1,null,1,null,1,null,1,null,"d","x",null,"AV    Natuurwetenschappen B (oud)  ->  A-finaliteit","d",null,null,null,null,null,null,null,null,null,null,0]
[null,null,null,"Artistiek-creatieve bewerkingen",null,0,null,null,1,null,1,null,1,null,1,null,1,null,1,null,1,null,1,null,1,null,"d","x",null,"AV    Nederlands-  - A-finaliteit","d",null,null,null,null,null,null,null,null,null,null,0]
[null,null,null,"Artistiek-creatieve bewerkingen",null,0,null,null,1,null,1,null,1,null,1,null,1,null,1,null,1,null,1,null,1,null,"d","x",null,"AV       Rooms-katholieke godsdienst - 1ste, 2de en 3de graad","d",null,null,null,null,null,null,null,null,null,null,0]
[null,null,null,"Artistiek-creatieve bewerkingen",null,0,null,null,1,null,1,null,1,null,1,null,1,null,1,null,1,null,1,null,1,null,"d","x",null,"AV    Wiskunde  ->  A-finaliteit","d",null,null,null,null,null,null,null,null,null,null,0]
[null,null,null,"Artistiek-creatieve bewerkingen",null,0,null,null,1,null,1,null,1,null,1,null,1,null,1,null,1,null,1,null,1,null,"d","x",null,"SV    Artistiek-creatieve bewerkingen  ->  A-finaliteit","d",null,null,null,null,null,null,null,null,null,null,0]
[null,null,null,"Artistiek-creatieve bewerkingen",null,0,null,null,1,null,1,null,1,null,1,null,1,null,1,null,1,null,1,null,1,null,"d","x",null,"CG    Artistieke vorming Co  ->  D-D/A-A-finaliteit","d",null,null,null,null,null,null,null,null,null,null,0]
[null,null,null,"Artistiek-creatieve bewerkingen",null,0,null,null,1,null,1,null,1,null,1,null,1,null,1,null,1,null,1,null,1,null,"d","x",null,"CG    ICT Co  ->  D/DA/A-finaliteit","d",null,null,null,null,null,null,null,null,null,null,0]
[null,null,null,"Bakkerij",null,0,null,null,1,null,1,null,1,null,1,null,1,null,1,null,1,null,1,null,1,null,"d","x",null,"AV    Engels B  ->  A-finaliteit","d",null,null,null,null,null,null,null,null,null,null,0]
[null,null,null,"Bakkerij",null,0,null,null,1,null,1,null,1,null,1,null,1,null,1,null,1,null,1,null,1,null,"d","x",null,"AV    Frans B  ->  A-finaliteit","d",null,null,null,null,null,null,null,null,null,null,0]
[null,null,null,"Bakkerij",null,0,null,null,1,null,1,null,1,null,1,null,1,null,1,null,1,null,1,null,1,null,"d","x",null,"AV    Gemeenschappelijk funderend leerplan B  ->  D,- D/A-, A-finaliteit","d",null,null,null,null,null,null,null,null,null,null,0]
[null,null,null,"Bakkerij",null,0,null,null,1,null,1,null,1,null,1,null,1,null,1,null,1,null,1,null,1,null,"d","x",null,"AV    Lichamelijke opvoeding B  ->  D-, D/A-, A-finaliteit","d",null,null,null,null,null,null,null,null,null,null,0]
[null,null,null,"Bakkerij",null,0,null,null,1,null,1,null,1,null,1,null,1,null,1,null,1,null,1,null,1,null,"d","x",null,"AV    Maatschappelijke vorming  ->  A-finaliteit","d",null,null,null,null,null,null,null,null,null,null,0]
[null,null,null,"Bakkerij",null,0,null,null,1,null,1,null,1,null,1,null,1,null,1,null,1,null,1,null,1,null,"d","x",null,"AV    Natuurwetenschappen B (oud)  ->  A-finaliteit","d",null,null,null,null,null,null,null,null,null,null,0]
[null,null,null,"Bakkerij",null,0,null,null,1,null,1,null,1,null,1,null,1,null,1,null,1,null,1,null,1,null,"d","x",null,"AV    Nederlands  ->  A-finaliteit","d",null,null,null,null,null,null,null,null,null,null,0]
[null,null,null,"Bakkerij",null,0,null,null,1,null,1,null,1,null,1,null,1,null,1,null,1,null,1,null,1,null,"d","x",null,"AV    Rooms-katholieke godsdienst - 1ste, 2de en 3de graad","d",null,null,null,null,null,null,null,null,null,null,0]
[null,null,null,"Bakkerij",null,0,null,null,1,null,1,null,1,null,1,null,1,null,1,null,1,null,1,null,1,null,"d","x",null,"AV    Wiskunde  ->  A-finaliteit","d",null,null,null,null,null,null,null,null,null,null,0]
[null,null,null,"Bakkerij",null,0,null,null,1,null,1,null,1,null,1,null,1,null,1,null,1,null,1,null,1,null,"d","x",null,"SV    Bakkerij  ->  A-finaliteit","d",null,null,null,null,null,null,null,null,null,null,0]
[null,null,null,"Bakkerij",null,0,null,null,1,null,1,null,1,null,1,null,1,null,1,null,1,null,1,null,1,null,"d","x",null,"CG    Artistieke vorming Co  ->  D-D/A-A-finaliteit","d",null,null,null,null,null,null,null,null,null,null,0]
[null,null,null,"Bakkerij",null,0,null,null,1,null,1,null,1,null,1,null,1,null,1,null,1,null,1,null,1,null,"d","x",null,"CG    ICT Co  ->  D/DA/A-finaliteit","d",null,null,null,null,null,null,null,null,null,null,0]
[null,null,null,"Bakkerijtechnieken",null,null,null,null,1,null,1,null,1,null,1,null,1,null,1,null,1,null,1,null,1,null,"d","x",null,"AV    Aardrijkskunde B  ->  D/A-finaliteit","d",null,null,null,null,null,null,null,null,null,null,0]
[null,null,null,"Bakkerijtechnieken",null,0,null,null,1,null,1,null,1,null,1,null,1,null,1,null,1,null,1,null,1,null,"d","x",null,"AV    Engels B  ->  D/A-finaliteit","d",null,null,null,null,null,null,null,null,null,null,0]
[null,null,null,"Bakkerijtechnieken",null,0,null,null,1,null,1,null,1,null,1,null,1,null,1,null,1,null,1,null,1,null,"d","x",null,"AV    Frans B  ->  D/A-finaliteit","d",null,null,null,null,null,null,null,null,null,null,0]
[null,null,null,"Bakkerijtechnieken",null,0,null,null,1,null,1,null,1,null,1,null,1,null,1,null,1,null,1,null,1,null,"d","x",null,"AV    Gemeenschappelijk funderend leerplan B  ->  D,- D/A-, A-finaliteit","d",null,null,null,null,null,null,null,null,null,null,0]
[null,null,null,"Bakkerijtechnieken",null,0,null,null,1,null,1,null,1,null,1,null,1,null,1,null,1,null,1,null,1,null,"d","x",null,"AV    Geschiedenis B  ->  D/A-finaliteit","d",null,null,null,null,null,null,null,null,null,null,0]
[null,null,null,"Bakkerijtechnieken",null,0,null,null,1,null,1,null,1,null,1,null,1,null,1,null,1,null,1,null,1,null,"d","x",null,"AV    Lichamelijke opvoeding B  ->  D-, D/A-, A-finaliteit","d",null,null,null,null,null,null,null,null,null,null,0]
[null,null,null,"Bakkerijtechnieken",null,0,null,null,1,null,1,null,1,null,1,null,1,null,1,null,1,null,1,null,1,null,"d","x",null,"AV    Nederlands B  ->  D/A-finaliteit","d",null,null,null,null,null,null,null,null,null,null,0]
[null,null,null,"Bakkerijtechnieken",null,0,null,null,1,null,1,null,1,null,1,null,1,null,1,null,1,null,1,null,1,null,"d","x",null,"AV    Rooms-katholieke godsdienst - 1ste, 2de en 3de graad","d",null,null,null,null,null,null,null,null,null,null,0]
[null,null,null,"Bakkerijtechnieken",null,0,null,null,{"$f":"COUNTBLANK(H226)","v":1},null,{"$f":"COUNTBLANK(J226)","v":1},null,{"$f":"COUNTBLANK(L226)","v":1},null,{"$f":"COUNTBLANK(N226)","v":1},null,{"$f":"COUNTBLANK(P226)","v":1},null,{"$f":"COUNTBLANK(R226)","v":1},null,{"$f":"COUNTBLANK(T226)","v":1},null,{"$f":"COUNTBLANK(V226)","v":1},null,{"$f":"COUNTBLANK(X226)","v":1},null,"d","x",null,"AV    Wiskunde  ->  D/A-finaliteit","d",null,null,null,null,null,null,null,null,null,null,0]
[null,null,null,"Bakkerijtechnieken",null,0,null,null,1,null,1,null,1,null,1,null,1,null,1,null,1,null,1,null,1,null,"d","x",null,"SV    Bakkerijtechnieken  ->  D/A-finaliteit","d",null,null,null,null,null,null,null,null,null,null,0]
[null,null,null,"Bakkerijtechnieken",null,0,null,null,1,null,1,null,1,null,1,null,1,null,1,null,1,null,1,null,1,null,"d","x",null,"SV    Natuurwetenschappen B+S'  ->  D/A-finaliteit","d",null,null,null,null,null,null,null,null,null,null,0]
[null,null,null,"Bakkerijtechnieken",null,0,null,null,1,null,1,null,1,null,1,null,1,null,1,null,1,null,1,null,1,null,"d","x",null,"CG    Artistieke vorming Co  ->  D-D/A-A-finaliteit","d",null,null,null,null,null,null,null,null,null,null,0]
[null,null,null,"Bakkerijtechnieken",null,0,null,null,1,null,1,null,1,null,1,null,1,null,1,null,1,null,1,null,1,null,"d","x",null,"CG    ICT Co  ->  D/DA/A-finaliteit","d",null,null,null,null,null,null,null,null,null,null,0]
[null,null,null,"Bakkerijtechnieken",null,0,null,null,1,null,1,null,1,null,1,null,1,null,1,null,1,null,1,null,1,null,"d","x",null,"CG    Mens en samenleving complementair  ->  D/DA-finaliteit","d",null,null,null,null,null,null,null,null,null,null,0]
[null,null,null,"Bandenmonteur",null,0,null,null,1,null,1,null,1,null,1,null,1,null,1,null,1,null,1,null,1,null,"d","x",null,"AV    Engels B  ->  A-finaliteit","d",null,null,null,null,null,null,null,null,null,null,0]
[null,null,null,"Bandenmonteur",null,0,null,null,1,null,1,null,1,null,1,null,1,null,1,null,1,null,1,null,1,null,"d","x",null,"AV    Frans B  ->  A-finaliteit","d",null,null,null,null,null,null,null,null,null,null,0]
[null,null,null,"Bandenmonteur",null,0,null,null,1,null,1,null,1,null,1,null,1,null,1,null,1,null,1,null,1,null,"d","x",null,"AV    Gemeenschappelijk funderend leerplan B  ->  D,- D/A-, A-finaliteit","d",null,null,null,null,null,null,null,null,null,null,0]
[null,null,null,"Bandenmonteur",null,0,null,null,1,null,1,null,1,null,1,null,1,null,1,null,1,null,1,null,1,null,"d","x",null,"AV    Maatschappelijke vorming  ->  A-finaliteit","d",null,null,null,null,null,null,null,null,null,null,0]
[null,null,null,"Bandenmonteur",null,0,null,null,1,null,1,null,1,null,1,null,1,null,1,null,1,null,1,null,1,null,"d","x",null,"AV    Natuurwetenschappen B (oud)  ->  A-finaliteit","d",null,null,null,null,null,null,null,null,null,null,0]
[null,null,null,"Bandenmonteur",null,0,null,null,1,null,1,null,1,null,1,null,1,null,1,null,1,null,1,null,1,null,"d","x",null,"AV    Nederlands  ->  A-finaliteit","d",null,null,null,null,null,null,null,null,null,null,0]
[null,null,null,"Bandenmonteur",null,0,null,null,1,null,1,null,1,null,1,null,1,null,1,null,1,null,1,null,1,null,"d","x",null,"AV    Wiskunde  ->  A-finaliteit","d",null,null,null,null,null,null,null,null,null,null,0]
[null,null,null,"Bandenmonteur",null,0,null,null,1,null,1,null,1,null,1,null,1,null,1,null,1,null,1,null,1,null,"d","x",null,"SV    Bandenmonteur S  ->  A-finaliteit","d",null,null,null,null,null,null,null,null,null,null,0]
[null,null,null,"Bedrijf en organisatie",null,0,null,null,1,null,1,null,1,null,1,null,1,null,1,null,1,null,1,null,1,null,"d","x",null,"AV    Aardrijkskunde B  ->  D/A-finaliteit","d",null,null,null,null,null,null,null,null,null,null,0]
[null,null,null,"Bedrijf en organisatie",null,0,null,null,1,null,1,null,1,null,1,null,1,null,1,null,1,null,1,null,1,null,"d","x",null,"AV    Engels B  ->  D/A-finaliteit","d",null,null,null,null,null,null,null,null,null,null,0]
[null,null,null,"Bedrijf en organisatie",null,0,null,null,1,null,1,null,1,null,1,null,1,null,1,null,1,null,1,null,1,null,"d","x",null,"AV    Frans B  ->  D/A-finaliteit","d",null,null,null,null,null,null,null,null,null,null,0]
[null,null,null,"Bedrijf en organisatie",null,0,null,null,1,null,1,null,1,null,1,null,1,null,1,null,1,null,1,null,1,null,"d","x",null,"AV    Gemeenschappelijk funderend leerplan B  ->  D,- D/A-, A-finaliteit","d",null,null,null,null,null,null,null,null,null,null,0]
[null,null,null,"Bedrijf en organisatie",null,0,null,null,1,null,1,null,1,null,1,null,1,null,1,null,1,null,1,null,1,null,"d","x",null,"AV    Geschiedenis B  ->  D/A-finaliteit","d",null,null,null,null,null,null,null,null,null,null,0]
[null,null,null,"Bedrijf en organisatie",null,0,null,null,1,null,1,null,1,null,1,null,1,null,1,null,1,null,1,null,1,null,"d","x",null,"AV    Lichamelijke opvoeding B  ->  D-, D/A-, A-finaliteit","d",null,null,null,null,null,null,null,null,null,null,0]
[null,null,null,"Bedrijf en organisatie",null,0,null,null,1,null,1,null,1,null,1,null,1,null,1,null,1,null,1,null,1,null,"d","x",null,"AV    Natuurwetenschappen B  ->  D/A-finaliteit","d",null,null,null,null,null,null,null,null,null,null,0]
[null,null,null,"Bedrijf en organisatie",null,0,null,null,1,null,1,null,1,null,1,null,1,null,1,null,1,null,1,null,1,null,"d","x",null,"AV    Nederlands B  ->  D/A-finaliteit","d",null,null,null,null,null,null,null,null,null,null,0]
[null,null,null,"Bedrijf en organisatie",null,0,null,null,1,null,1,null,1,null,1,null,1,null,1,null,1,null,1,null,1,null,"d","x",null,"AV    Rooms-katholieke godsdienst - 1ste, 2de en 3de graad","d",null,null,null,null,null,null,null,null,null,null,0]
[null,null,null,"Bedrijf en organisatie",null,0,null,null,1,null,1,null,1,null,1,null,1,null,1,null,1,null,1,null,1,null,"d","x",null,"AV    Wiskunde  ->  D/A-finaliteit","d",null,null,null,null,null,null,null,null,null,null,0]
[null,null,null,"Bedrijf en organisatie",null,0,null,null,1,null,1,null,1,null,1,null,1,null,1,null,1,null,1,null,1,null,"d","x",null,"SV    Bedrijfseconomie  ->  D/A-finaliteit","d","O",null,null,null,null,null,null,null,null,null,0]
[null,null,null,"Bedrijf en organisatie",null,0,null,null,1,null,1,null,1,null,1,null,1,null,1,null,1,null,1,null,1,null,"d","x",null,"CG    Artistieke vorming Co  ->  D-D/A-A-finaliteit","d",null,null,null,null,null,null,null,null,null,null,0]
[null,null,null,"Bedrijf en organisatie",null,0,null,null,1,null,1,null,1,null,1,null,1,null,1,null,1,null,1,null,1,null,"d","x",null,"CG    ICT Co  ->  D/DA/A-finaliteit","d",null,null,null,null,null,null,null,null,null,null,0]
[null,null,null,"Bedrijf en organisatie",null,0,null,null,1,null,1,null,1,null,1,null,1,null,1,null,1,null,1,null,1,null,"d","x",null,"CG    Mens en samenleving complementair  ->  D/DA-finaliteit","d",null,null,null,null,null,null,null,null,null,null,0]
[null,null,null,"Bedrijfswetenschappen",null,0,null,null,1,null,1,null,1,null,1,null,1,null,1,null,1,null,1,null,1,null,"d","x",null,"AV    Aardrijkskunde B  ->  D-finaliteit","d",null,null,null,null,null,null,null,null,null,null,0]
[null,null,null,"Bedrijfswetenschappen",null,0,null,null,1,null,1,null,1,null,1,null,1,null,1,null,1,null,1,null,1,null,"d","x",null,"AV    Engels B  ->  D-finaliteit","d",null,null,null,null,null,null,null,null,null,null,0]
[null,null,null,"Bedrijfswetenschappen",null,0,null,null,1,null,1,null,1,null,1,null,1,null,1,null,1,null,1,null,1,null,"d","x",null,"AV    Frans  ->  D-finaliteit","d",null,null,null,null,null,null,null,null,null,null,0]
[null,null,null,"Bedrijfswetenschappen",null,0,null,null,1,null,1,null,1,null,1,null,1,null,1,null,1,null,1,null,1,null,"d","x",null,"AV    Gemeenschappelijk funderend leerplan B  ->  D,- D/A-, A-finaliteit","d",null,null,null,null,null,null,null,null,null,null,0]
[null,null,null,"Bedrijfswetenschappen",null,0,null,null,1,null,1,null,1,null,1,null,1,null,1,null,1,null,1,null,1,null,"d","x",null,"AV    Geschiedenis  ->  D-finaliteit","d",null,null,null,null,null,null,null,null,null,null,0]
[null,null,null,"Bedrijfswetenschappen",null,0,null,null,1,null,1,null,1,null,1,null,1,null,1,null,1,null,1,null,1,null,"d","x",null,"AV    Lichamelijke opvoeding B  ->  D-, D/A-, A-finaliteit","d",null,null,null,null,null,null,null,null,null,null,0]
[null,null,null,"Bedrijfswetenschappen",null,0,null,null,1,null,1,null,1,null,1,null,1,null,1,null,1,null,1,null,1,null,"d","x",null,"AV    Natuurwetenschappen  ->  D-finaliteit","d",null,null,null,null,null,null,null,null,null,null,0]
[null,null,null,"Bedrijfswetenschappen",null,0,null,null,1,null,1,null,1,null,1,null,1,null,1,null,1,null,1,null,1,null,"d","x",null,"AV    Nederlands B  ->  D-finaliteit","d",null,null,null,null,null,null,null,null,null,null,0]
[null,null,null,"Bedrijfswetenschappen",null,{"$f":"9-(I262+K262+M262+O262+Q262+S262+U262++Y262+W262)","v":0},null,null,1,null,1,null,1,null,1,null,1,null,1,null,1,null,1,null,1,null,"d","x",null,"AV    Rooms-katholieke godsdienst - 1ste, 2de en 3de graad","d",null,null,null,null,null,null,null,null,null,null,0]
[null,null,null,"Bedrijfswetenschappen",null,0,null,null,1,null,1,null,1,null,1,null,1,null,1,null,1,null,1,null,1,null,"d","x",null,"SV    Economie  ->  D-finaliteit","d",null,null,null,null,null,null,null,null,null,null,0]
[null,null,null,"Bedrijfswetenschappen",null,0,null,null,1,null,1,null,1,null,1,null,1,null,1,null,1,null,1,null,1,null,"d","x",null,"SV    Informaticawetenschappen  ->  D-finaliteit","d",null,null,null,null,null,null,null,null,null,null,0]
[null,null,null,"Bedrijfswetenschappen",null,0,null,null,1,null,1,null,1,null,1,null,1,null,1,null,1,null,1,null,1,null,"d","x",null,"SV    Wiskunde B+S'  ->  D-finaliteit","d",null,null,null,null,null,null,null,null,null,null,0]
[null,null,null,"Bedrijfswetenschappen",null,0,null,null,1,null,1,null,1,null,1,null,1,null,1,null,1,null,1,null,1,null,"d","x",null,"CG    Artistieke vorming Co  ->  D-D/A-A-finaliteit","d",null,null,null,null,null,null,null,null,null,null,0]
[null,null,null,"Bedrijfswetenschappen",null,0,null,null,1,null,1,null,1,null,1,null,1,null,1,null,1,null,1,null,1,null,"d","x",null,"CG    ICT Co  ->  D/DA/A-finaliteit","d",null,null,null,null,null,null,null,null,null,null,0]
[null,null,null,"Bedrijfswetenschappen",null,0,null,null,1,null,1,null,1,null,1,null,1,null,1,null,1,null,1,null,1,null,"d","x",null,"CG    Mens en samenleving complementair  ->  D/DA-finaliteit","d",null,null,null,null,null,null,null,null,null,null,0]
[null,null,null,"Beeldende en audiovisuele kunsten",null,0,null,null,1,null,1,null,1,null,1,null,1,null,1,null,1,null,1,null,1,null,"d","x",null,"AV    Aardrijkskunde B  ->  D/A-finaliteit","d",null,null,null,null,null,null,null,null,null,null,0]
[null,null,null,"Beeldende en audiovisuele kunsten",null,0,null,null,1,null,1,null,1,null,1,null,1,null,1,null,1,null,1,null,1,null,"d","x",null,"AV    Engels B  ->  D/A-finaliteit","d",null,null,null,null,null,null,null,null,null,null,0]
[null,null,null,"Beeldende en audiovisuele kunsten",null,0,null,null,1,null,1,null,1,null,1,null,1,null,1,null,1,null,1,null,1,null,"d","x",null,"AV    Frans B  ->  D/A-finaliteit","d",null,null,null,null,null,null,null,null,null,null,0]
[null,null,null,"Beeldende en audiovisuele kunsten",null,0,null,null,1,null,1,null,1,null,1,null,1,null,1,null,1,null,1,null,1,null,"d","x",null,"AV    Gemeenschappelijk funderend leerplan B  ->  D,- D/A-, A-finaliteit","d",null,null,null,null,null,null,null,null,null,null,0]
[null,null,null,"Beeldende en audiovisuele kunsten",null,0,null,null,1,null,1,null,1,null,1,null,1,null,1,null,1,null,1,null,1,null,"d","x",null,"AV    Geschiedenis B  ->  D/A-finaliteit","d",null,null,null,null,null,null,null,null,null,null,0]
[null,null,null,"Beeldende en audiovisuele kunsten",null,0,null,null,1,null,1,null,1,null,1,null,1,null,1,null,1,null,1,null,1,null,"d","x",null,"AV    Lichamelijke opvoeding B  ->  D-, D/A-, A-finaliteit","d",null,null,null,null,null,null,null,null,null,null,0]
[null,null,null,"Beeldende en audiovisuele kunsten",null,0,null,null,1,null,1,null,1,null,1,null,1,null,1,null,1,null,1,null,1,null,"d","x",null,"AV    Natuurwetenschappen B  ->  D/A-finaliteit","d",null,null,null,null,null,null,null,null,null,null,0]
[null,null,null,"Beeldende en audiovisuele kunsten",null,0,null,null,1,null,1,null,1,null,1,null,1,null,1,null,1,null,1,null,1,null,"d","x",null,"AV    Nederlands B  ->  D/A-finaliteit","d",null,null,null,null,null,null,null,null,null,null,0]
[null,null,null,"Beeldende en audiovisuele kunsten",null,0,null,null,1,null,1,null,1,null,1,null,1,null,1,null,1,null,1,null,1,null,"d","x",null,"AV    Wiskunde  ->  D/A-finaliteit","d",null,null,null,null,null,null,null,null,null,null,0]
[null,null,null,"Beeldende en audiovisuele kunsten",null,0,null,null,1,null,1,null,1,null,1,null,1,null,1,null,1,null,1,null,1,null,"d","x",null,"SV    Beeldende en audiovisuele kunsten  ->  D/A-finaliteit","d",null,null,null,null,null,null,null,null,null,null,0]
[null,null,null,"Beeldende en audiovisuele kunsten",null,0,null,null,1,null,1,null,1,null,1,null,1,null,1,null,1,null,1,null,1,null,"d","x",null,"CG    ICT Co  ->  D/DA/A-finaliteit","d",null,null,null,null,null,null,null,null,null,null,0]
[null,null,null,"Beeldende en audiovisuele kunsten",null,0,null,null,1,null,1,null,1,null,1,null,1,null,1,null,1,null,1,null,1,null,"d","x",null,"CG    Mens en samenleving complementair  ->  D/DA-finaliteit","d",null,null,null,null,null,null,null,null,null,null,0]
[null,null,null,"Beeldende en audiovisuele vorming",null,0,null,null,1,null,1,null,1,null,1,null,1,null,1,null,1,null,1,null,1,null,"d","x",null,"AV    Aardrijkskunde B  ->  D-finaliteit","d",null,null,null,null,null,null,null,null,null,null,0]
[null,null,null,"Beeldende en audiovisuele vorming",null,0,null,null,1,null,1,null,1,null,1,null,1,null,1,null,1,null,1,null,1,null,"d","x",null,"AV    Engels B  ->  D-finaliteit","d",null,null,null,null,null,null,null,null,null,null,0]
[null,null,null,"Beeldende en audiovisuele vorming",null,0,null,null,1,null,1,null,1,null,1,null,1,null,1,null,1,null,1,null,1,null,"d","x",null,"AV    Frans  ->  D-finaliteit","d",null,null,null,null,null,null,null,null,null,null,0]
[null,null,null,"Beeldende en audiovisuele vorming",null,0,null,null,1,null,1,null,1,null,1,null,1,null,1,null,1,null,1,null,1,null,"d","x",null,"AV    Gemeenschappelijk funderend leerplan B  ->  D,- D/A-, A-finaliteit","d",null,null,null,null,null,null,null,null,null,null,0]
[null,null,null,"Beeldende en audiovisuele vorming",null,0,null,null,1,null,1,null,1,null,1,null,1,null,1,null,1,null,1,null,1,null,"d","x",null,"AV    Geschiedenis  ->  D-finaliteit","d",null,null,null,null,null,null,null,null,null,null,0]
[null,null,null,"Beeldende en audiovisuele vorming",null,0,null,null,1,null,1,null,1,null,1,null,1,null,1,null,1,null,1,null,1,null,"d","x",null,"AV    Lichamelijke opvoeding B  ->  D-, D/A-, A-finaliteit","d",null,null,null,null,null,null,null,null,null,null,0]
[null,null,null,"Beeldende en audiovisuele vorming",null,0,null,null,1,null,1,null,1,null,1,null,1,null,1,null,1,null,1,null,1,null,"d","x",null,"AV    Natuurwetenschappen  ->  D-finaliteit","d",null,null,null,null,null,null,null,null,null,null,0]
[null,null,null,"Beeldende en audiovisuele vorming",null,0,null,null,1,null,1,null,1,null,1,null,1,null,1,null,1,null,1,null,1,null,"d","x",null,"AV    Nederlands B  ->  D-finaliteit","d",null,null,null,null,null,null,null,null,null,null,0]
[null,null,null,"Beeldende en audiovisuele vorming",null,0,null,null,1,null,1,null,1,null,1,null,1,null,1,null,1,null,1,null,1,null,"d","x",null,"AV    Rooms-katholieke godsdienst - 1ste, 2de en 3de graad","d",null,null,null,null,null,null,null,null,null,null,0]
[null,null,null,"Beeldende en audiovisuele vorming",null,0,null,null,{"$f":"COUNTBLANK(H290)","v":1},null,{"$f":"COUNTBLANK(J290)","v":1},null,{"$f":"COUNTBLANK(L290)","v":1},null,{"$f":"COUNTBLANK(N290)","v":1},null,{"$f":"COUNTBLANK(P290)","v":1},null,{"$f":"COUNTBLANK(R290)","v":1},null,{"$f":"COUNTBLANK(T290)","v":1},null,{"$f":"COUNTBLANK(V290)","v":1},null,{"$f":"COUNTBLANK(X290)","v":1},null,"d","x",null,"AV    Wiskunde  ->  D-finaliteit","d",null,null,null,null,null,null,null,null,null,null,0]
[null,null,null,"Beeldende en audiovisuele vorming",null,0,null,null,1,null,1,null,1,null,1,null,1,null,1,null,1,null,1,null,1,null,"d","x",null,"AV    Wiskunde (oud)  ->  D-finaliteit","d",null,null,null,null,null,null,null,null,null,null,0]
[null,null,null,"Beeldende en audiovisuele vorming",null,0,null,null,1,null,1,null,1,null,1,null,1,null,1,null,1,null,1,null,1,null,"d","x",null,"AV    Wiskunde B + C' (oud)  ->  D-finaliteit","d",null,null,null,null,null,null,null,null,null,null,0]
[null,null,null,"Beeldende en audiovisuele vorming",null,0,null,null,1,null,1,null,1,null,1,null,1,null,1,null,1,null,1,null,1,null,"d","x",null,"SV    Beeldende en audiovisuele vorming  ->  D-finaliteit","d",null,null,null,null,null,null,null,null,null,null,0]
[null,null,null,"Beeldende en audiovisuele vorming",null,0,null,null,1,null,1,null,1,null,1,null,1,null,1,null,1,null,1,null,1,null,"d","x",null,"SV    Kunstbeschouwing  ->  D-finaliteit","d",null,null,null,null,null,null,null,null,null,null,0]
[null,null,null,"Beeldende en audiovisuele vorming",null,0,null,null,1,null,1,null,1,null,1,null,1,null,1,null,1,null,1,null,1,null,"d","x",null,"SV    Kunstbeschouwing S'  ->  D-finaliteit","d",null,null,null,null,null,null,null,null,null,null,0]
[null,null,null,"Beeldende en audiovisuele vorming",null,0,null,null,1,null,1,null,1,null,1,null,1,null,1,null,1,null,1,null,1,null,"d","x",null,"CG    Artistieke vorming Co  ->  D-D/A-A-finaliteit","d",null,null,null,null,null,null,null,null,null,null,0]
[null,null,null,"Beeldende en audiovisuele vorming",null,0,null,null,1,null,1,null,1,null,1,null,1,null,1,null,1,null,1,null,1,null,"d","x",null,"CG    ICT Co  ->  D/DA/A-finaliteit","d",null,null,null,null,null,null,null,null,null,null,0]
[null,null,null,"Beeldende en audiovisuele vorming",null,0,null,null,1,null,1,null,1,null,1,null,1,null,1,null,1,null,1,null,1,null,"d","x",null,"CG    Mens en samenleving complementair  ->  D/DA-finaliteit","d",null,null,null,null,null,null,null,null,null,null,0]
[null,null,null,"Bestuurder interne transportmiddelen",null,0,null,null,1,null,1,null,1,null,1,null,1,null,1,null,1,null,1,null,1,null,"d","x",null,"AV    Engels B  ->  A-finaliteit","d",null,null,null,null,null,null,null,null,null,null,0]
[null,null,null,"Bestuurder interne transportmiddelen",null,0,null,null,1,null,1,null,1,null,1,null,1,null,1,null,1,null,1,null,1,null,"d","x",null,"AV    Frans B  ->  A-finaliteit","d",null,null,null,null,null,null,null,null,null,null,0]
[null,null,null,"Bestuurder interne transportmiddelen",null,0,null,null,1,null,1,null,1,null,1,null,1,null,1,null,1,null,1,null,1,null,"d","x",null,"AV    Gemeenschappelijk funderend leerplan B  ->  D,- D/A-, A-finaliteit","d",null,null,null,null,null,null,null,null,null,null,0]
[null,null,null,"Bestuurder interne transportmiddelen",null,0,null,null,1,null,1,null,1,null,1,null,1,null,1,null,1,null,1,null,1,null,"d","x",null,"AV    Maatschappelijke vorming  ->  A-finaliteit","d",null,null,null,null,null,null,null,null,null,null,0]
[null,null,null,"Bestuurder interne transportmiddelen",null,0,null,null,1,null,1,null,1,null,1,null,1,null,1,null,1,null,1,null,1,null,"d","x",null,"AV    Natuurwetenschappen B (oud)  ->  A-finaliteit","d",null,null,null,null,null,null,null,null,null,null,0]
[null,null,null,"Bestuurder interne transportmiddelen",null,0,null,null,1,null,1,null,1,null,1,null,1,null,1,null,1,null,1,null,1,null,"d","x",null,"AV    Nederlands  ->  A-finaliteit","d",null,null,null,null,null,null,null,null,null,null,0]
[null,null,null,"Bestuurder interne transportmiddelen",null,0,null,null,1,null,1,null,1,null,1,null,1,null,1,null,1,null,1,null,1,null,"d","x",null,"AV    Wiskunde  ->  A-finaliteit","d",null,null,null,null,null,null,null,null,null,null,0]
[null,null,null,"Bestuurder interne transportmiddelen",null,0,null,null,1,null,1,null,1,null,1,null,1,null,1,null,1,null,1,null,1,null,"d","x",null,"SV    Bestuurder interne transportmiddelen  ->  A-finaliteit","d",null,null,null,null,null,null,null,null,null,null,0]
[null,null,null,"Beweging en sport",null,0,null,null,1,null,1,null,1,null,1,null,1,null,1,null,1,null,1,null,1,null,"d","x",null,"AV    Engels B  ->  A-finaliteit","d",null,null,null,null,null,null,null,null,null,null,0]
[null,null,null,"Beweging en sport",null,0,null,null,1,null,1,null,1,null,1,null,1,null,1,null,1,null,1,null,1,null,"d","x",null,"AV    Frans B  ->  A-finaliteit","d",null,null,null,null,null,null,null,null,null,null,0]
[null,null,null,"Beweging en sport",null,0,null,null,1,null,1,null,1,null,1,null,1,null,1,null,1,null,1,null,1,null,"d","x",null,"AV    Gemeenschappelijk funderend leerplan B  ->  D,- D/A-, A-finaliteit","d",null,null,null,null,null,null,null,null,null,null,0]
[null,null,null,"Beweging en sport",null,0,null,null,1,null,1,null,1,null,1,null,1,null,1,null,1,null,1,null,1,null,"d","x",null,"AV    Maatschappelijke vorming  ->  A-finaliteit","d",null,null,null,null,null,null,null,null,null,null,0]
[null,null,null,"Beweging en sport",null,0,null,null,1,null,1,null,1,null,1,null,1,null,1,null,1,null,1,null,1,null,"d","x",null,"AV    Natuurwetenschappen B (oud)  ->  A-finaliteit","d",null,null,null,null,null,null,null,null,null,null,0]
[null,null,null,"Beweging en sport",null,0,null,null,1,null,1,null,1,null,1,null,1,null,1,null,1,null,1,null,1,null,"d","x",null,"AV    Nederlands  ->  A-finaliteit","d",null,null,null,null,null,null,null,null,null,null,0]
[null,null,null,"Beweging en sport",null,0,null,null,1,null,1,null,1,null,1,null,1,null,1,null,1,null,1,null,1,null,"d","x",null,"AV    Rooms-katholieke godsdienst - 1ste, 2de en 3de graad","d",null,null,null,null,null,null,null,null,null,null,0]
[null,null,null,"Beweging en sport",null,0,null,null,1,null,1,null,1,null,1,null,1,null,1,null,1,null,1,null,1,null,"d","x",null,"AV    Wiskunde  ->  A-finaliteit","d",null,null,null,null,null,null,null,null,null,null,0]
[null,null,null,"Beweging en sport",null,0,null,null,1,null,1,null,1,null,1,null,1,null,1,null,1,null,1,null,1,null,"d","x",null,"SV    Sport  ->  A-finaliteit","d",null,null,null,null,null,null,null,null,null,null,0]
[null,null,null,"Beweging en sport",null,0,null,null,1,null,1,null,1,null,1,null,1,null,1,null,1,null,1,null,1,null,"d","x",null,"CG    Artistieke vorming Co  ->  D-D/A-A-finaliteit","d",null,null,null,null,null,null,null,null,null,null,0]
[null,null,null,"Beweging en sport",null,0,null,null,1,null,1,null,1,null,1,null,1,null,1,null,1,null,1,null,1,null,"d","x",null,"CG    ICT Co  ->  D/DA/A-finaliteit","d",null,null,null,null,null,null,null,null,null,null,0]
[null,null,null,"Biotechnieken",null,0,null,null,1,null,1,null,1,null,1,null,1,null,1,null,1,null,1,null,1,null,"d","x",null,"AV    Aardrijkskunde B  ->  D/A-finaliteit","d",null,null,null,null,null,null,null,null,null,null,0]
[null,null,null,"Biotechnieken",null,0,null,null,1,null,1,null,1,null,1,null,1,null,1,null,1,null,1,null,1,null,"d","x",null,"AV    Engels B  ->  D/A-finaliteit","d",null,null,null,null,null,null,null,null,null,null,0]
[null,null,null,"Biotechnieken",null,0,null,null,1,null,1,null,1,null,1,null,1,null,1,null,1,null,1,null,1,null,"d","x",null,"AV    Frans B  ->  D/A-finaliteit","d",null,null,null,null,null,null,null,null,null,null,0]
[null,null,null,"Biotechnieken",null,0,null,null,1,null,1,null,1,null,1,null,1,null,1,null,1,null,1,null,1,null,"d","x",null,"AV    Gemeenschappelijk funderend leerplan B  ->  D,- D/A-, A-finaliteit","d",null,null,null,null,null,null,null,null,null,null,0]
[null,null,null,"Biotechnieken",null,0,null,null,1,null,1,null,1,null,1,null,1,null,1,null,1,null,1,null,1,null,"d","x",null,"AV    Geschiedenis B  ->  D/A-finaliteit","d",null,null,null,null,null,null,null,null,null,null,0]
[null,null,null,"Biotechnieken",null,0,null,null,1,null,1,null,1,null,1,null,1,null,1,null,1,null,1,null,1,null,"d","x",null,"AV    Lichamelijke opvoeding B  ->  D-, D/A-, A-finaliteit","d",null,null,null,null,null,null,null,null,null,null,0]
[null,null,null,"Biotechnieken",null,0,null,null,1,null,1,null,1,null,1,null,1,null,1,null,1,null,1,null,1,null,"d","x",null,"AV    Nederlands B  ->  D/A-finaliteit","d",null,null,null,null,null,null,null,null,null,null,0]
[null,null,null,"Biotechnieken",null,0,null,null,1,null,1,null,1,null,1,null,1,null,1,null,1,null,1,null,1,null,"d","x",null,"AV    Rooms-katholieke godsdienst - 1ste, 2de en 3de graad","d",null,null,null,null,null,null,null,null,null,null,0]
[null,null,null,"Biotechnieken",null,{"$f":"9-(I326+K326+M326+O326+Q326+S326+U326++Y326+W326)","v":0},null,null,1,null,1,null,1,null,1,null,1,null,1,null,1,null,1,null,1,null,"d","x",null,"SV    Biotechnieken B+S  ->  D/A-finaliteit","d",null,null,null,null,null,null,null,null,null,null,0]
[null,null,null,"Biotechnieken",null,0,null,null,1,null,1,null,1,null,1,null,1,null,1,null,1,null,1,null,1,null,"d","x",null,"SV    Wiskunde B+S  ->  D/A-finaliteit","d",null,null,null,null,null,null,null,null,null,null,0]
[null,null,null,"Biotechnieken",null,0,null,null,1,null,1,null,1,null,1,null,1,null,1,null,1,null,1,null,1,null,"d","x",null,"SV    Wiskunde B+S' (oud)  ->  D/A-finaliteit","d",null,null,null,null,null,null,null,null,null,null,0]
[null,null,null,"Biotechnieken",null,0,null,null,1,null,1,null,1,null,1,null,1,null,1,null,1,null,1,null,1,null,"d","x",null,"CG    Artistieke vorming Co  ->  D-D/A-A-finaliteit","d",null,null,null,null,null,null,null,null,null,null,0]
[null,null,null,"Biotechnieken",null,0,null,null,1,null,1,null,1,null,1,null,1,null,1,null,1,null,1,null,1,null,"d","x",null,"CG    ICT Co  ->  D/DA/A-finaliteit","d",null,null,null,null,null,null,null,null,null,null,0]
[null,null,null,"Biotechnieken",null,0,null,null,1,null,1,null,1,null,1,null,1,null,1,null,1,null,1,null,1,null,"d","x",null,"CG    Mens en samenleving complementair  ->  D/DA-finaliteit","d",null,null,null,null,null,null,null,null,null,null,0]
[null,null,null,"Biotechnologische STEM-wetenschappen",null,0,null,null,1,null,1,null,1,null,1,null,1,null,1,null,1,null,1,null,1,null,"d","x",null,"AV    Aardrijkskunde B  ->  D-finaliteit","d",null,null,null,null,null,null,null,null,null,null,0]
[null,null,null,"Biotechnologische STEM-wetenschappen",null,0,null,null,1,null,1,null,1,null,1,null,1,null,1,null,1,null,1,null,1,null,"d","x",null,"AV    Engels B  ->  D-finaliteit","d",null,null,null,null,null,null,null,null,null,null,0]
[null,null,null,"Biotechnologische STEM-wetenschappen",null,0,null,null,1,null,1,null,1,null,1,null,1,null,1,null,1,null,1,null,1,null,"d","x",null,"AV    Frans  ->  D-finaliteit","d",null,null,null,null,null,null,null,null,null,null,0]
[null,null,null,"Biotechnologische STEM-wetenschappen",null,0,null,null,1,null,1,null,1,null,1,null,1,null,1,null,1,null,1,null,1,null,"d","x",null,"AV    Gemeenschappelijk funderend leerplan B  ->  D,- D/A-, A-finaliteit","d",null,null,null,null,null,null,null,null,null,null,0]
[null,null,null,"Biotechnologische STEM-wetenschappen",null,0,null,null,1,null,1,null,1,null,1,null,1,null,1,null,1,null,1,null,1,null,"d","x",null,"AV    Geschiedenis  ->  D-finaliteit","d",null,null,null,null,null,null,null,null,null,null,0]
[null,null,null,"Biotechnologische STEM-wetenschappen",null,0,null,null,1,null,1,null,1,null,1,null,1,null,1,null,1,null,1,null,1,null,"d","x",null,"AV    Lichamelijke opvoeding B  ->  D-, D/A-, A-finaliteit","d",null,null,null,null,null,null,null,null,null,null,0]
[null,null,null,"Biotechnologische STEM-wetenschappen",null,0,null,null,1,null,1,null,1,null,1,null,1,null,1,null,1,null,1,null,1,null,"d","x",null,"AV    Nederlands B  ->  D-finaliteit","d",null,null,null,null,null,null,null,null,null,null,0]
[null,null,null,"Biotechnologische STEM-wetenschappen",null,0,null,null,1,null,1,null,1,null,1,null,1,null,1,null,1,null,1,null,1,null,"d","x",null,"SV    Biotechnologische STEM-wetenschappen B+S  ->  D-finaliteit","d",null,null,null,null,null,null,null,null,null,null,0]
[null,null,null,"Biotechnologische STEM-wetenschappen",null,0,null,null,1,null,1,null,1,null,1,null,1,null,1,null,1,null,1,null,1,null,"d","x",null,"SV    Wiskunde B+S  ->  D-finaliteit","d",null,null,null,null,null,null,null,null,null,null,0]
[null,null,null,"Biotechnologische STEM-wetenschappen",null,0,null,null,1,null,1,null,1,null,1,null,1,null,1,null,1,null,1,null,1,null,"d","x",null,"CG    Artistieke vorming Co  ->  D-D/A-A-finaliteit","d",null,null,null,null,null,null,null,null,null,null,0]
[null,null,null,"Biotechnologische STEM-wetenschappen",null,0,null,null,1,null,1,null,1,null,1,null,1,null,1,null,1,null,1,null,1,null,"d","x",null,"CG    ICT Co  ->  D/DA/A-finaliteit","d",null,null,null,null,null,null,null,null,null,null,0]
[null,null,null,"Biotechnologische STEM-wetenschappen",null,0,null,null,1,null,1,null,1,null,1,null,1,null,1,null,1,null,1,null,1,null,"d","x",null,"CG    Mens en samenleving complementair  ->  D/DA-finaliteit","d",null,null,null,null,null,null,null,null,null,null,0]
[null,null,null,"Biotechnologische wetenschappen",null,0,null,null,1,null,1,null,1,null,1,null,1,null,1,null,1,null,1,null,1,null,"d","x",null,"AV    Aardrijkskunde B  ->  D-finaliteit","d",null,null,null,null,null,null,null,null,null,null,0]
[null,null,null,"Biotechnologische wetenschappen",null,0,null,null,1,null,1,null,1,null,1,null,1,null,1,null,1,null,1,null,1,null,"d","x",null,"AV    Engels B  ->  D-finaliteit","d",null,null,null,null,null,null,null,null,null,null,0]
[null,null,null,"Biotechnologische wetenschappen",null,0,null,null,1,null,1,null,1,null,1,null,1,null,1,null,1,null,1,null,1,null,"d","x",null,"AV    Frans  ->  D-finaliteit","d",null,null,null,null,null,null,null,null,null,null,0]
[null,null,null,"Biotechnologische wetenschappen",null,0,null,null,1,null,1,null,1,null,1,null,1,null,1,null,1,null,1,null,1,null,"d","x",null,"AV    Gemeenschappelijk funderend leerplan B  ->  D,- D/A-, A-finaliteit","d",null,null,null,null,null,null,null,null,null,null,0]
[null,null,null,"Biotechnologische wetenschappen",null,0,null,null,1,null,1,null,1,null,1,null,1,null,1,null,1,null,1,null,1,null,"d","x",null,"AV    Geschiedenis  ->  D-finaliteit","d",null,null,null,null,null,null,null,null,null,null,0]
[null,null,null,"Biotechnologische wetenschappen",null,0,null,null,1,null,1,null,1,null,1,null,1,null,1,null,1,null,1,null,1,null,"d","x",null,"AV    Lichamelijke opvoeding B  ->  D-, D/A-, A-finaliteit","d",null,null,null,null,null,null,null,null,null,null,0]
[null,null,null,"Biotechnologische wetenschappen",null,0,null,null,1,null,1,null,1,null,1,null,1,null,1,null,1,null,1,null,1,null,"d","x",null,"AV    Nederlands B  ->  D-finaliteit","d",null,null,null,null,null,null,null,null,null,null,0]
[null,null,null,"Biotechnologische wetenschappen",null,0,null,null,1,null,1,null,1,null,1,null,1,null,1,null,1,null,1,null,1,null,"d","x",null,"AV    Rooms-katholieke godsdienst - 1ste, 2de en 3de graad","d",null,null,null,null,null,null,null,null,null,null,0]
[null,null,null,"Biotechnologische wetenschappen",null,0,null,null,1,null,1,null,1,null,1,null,1,null,1,null,1,null,1,null,1,null,"d","x",null,"SV    Wiskunde B+S  ->  D-finaliteit","d",null,null,null,null,null,null,null,null,null,null,0]
[null,null,null,"Biotechnologische wetenschappen",null,0,null,null,1,null,1,null,1,null,1,null,1,null,1,null,1,null,1,null,1,null,"d","x",null,"CG    Artistieke vorming Co  ->  D-D/A-A-finaliteit","d",null,null,null,null,null,null,null,null,null,null,0]
[null,null,null,"Biotechnologische wetenschappen",null,0,null,null,{"$f":"COUNTBLANK(H354)","v":1},null,{"$f":"COUNTBLANK(J354)","v":1},null,{"$f":"COUNTBLANK(L354)","v":1},null,{"$f":"COUNTBLANK(N354)","v":1},null,{"$f":"COUNTBLANK(P354)","v":1},null,{"$f":"COUNTBLANK(R354)","v":1},null,{"$f":"COUNTBLANK(T354)","v":1},null,{"$f":"COUNTBLANK(V354)","v":1},null,{"$f":"COUNTBLANK(X354)","v":1},null,"d","x",null,"CG    Mens en samenleving complementair  ->  D/DA-finaliteit","d",null,null,null,null,null,null,null,null,null,null,0]
[null,null,null,"Bouw",null,0,null,null,1,null,1,null,1,null,1,null,1,null,1,null,1,null,1,null,1,null,"d","x",null,"AV    Engels B  ->  A-finaliteit","d",null,null,null,null,null,null,null,null,null,null,0]
[null,null,null,"Bouw",null,0,null,null,1,null,1,null,1,null,1,null,1,null,1,null,1,null,1,null,1,null,"d","x",null,"AV    Frans B  ->  A-finaliteit","d",null,null,null,null,null,null,null,null,null,null,0]
[null,null,null,"Bouw",null,0,null,null,1,null,1,null,1,null,1,null,1,null,1,null,1,null,1,null,1,null,"d","x",null,"AV    Gemeenschappelijk funderend leerplan B  ->  D,- D/A-, A-finaliteit","d",null,null,null,null,null,null,null,null,null,null,0]
[null,null,null,"Bouw",null,0,null,null,1,null,1,null,1,null,1,null,1,null,1,null,1,null,1,null,1,null,"d","x",null,"AV    Lichamelijke opvoeding B  ->  D-, D/A-, A-finaliteit","d",null,null,null,null,null,null,null,null,null,null,0]
[null,null,null,"Bouw",null,0,null,null,1,null,1,null,1,null,1,null,1,null,1,null,1,null,1,null,1,null,"d","x",null,"AV    Maatschappelijke vorming  ->  A-finaliteit","d",null,null,null,null,null,null,null,null,null,null,0]
[null,null,null,"Bouw",null,0,null,null,1,null,1,null,1,null,1,null,1,null,1,null,1,null,1,null,1,null,"d","x",null,"AV    Natuurwetenschappen B (oud)  ->  A-finaliteit","d",null,null,null,null,null,null,null,null,null,null,0]
[null,null,null,"Bouw",null,0,null,null,1,null,1,null,1,null,1,null,1,null,1,null,1,null,1,null,1,null,"d","x",null,"AV    Nederlands  ->  A-finaliteit","d",null,null,null,null,null,null,null,null,null,null,0]
[null,null,null,"Bouw",null,0,null,null,1,null,1,null,1,null,1,null,1,null,1,null,1,null,1,null,1,null,"d","x",null,"AV    Rooms-katholieke godsdienst - 1ste, 2de en 3de graad","d",null,null,null,null,null,null,null,null,null,null,0]
[null,null,null,"Bouw",null,0,null,null,1,null,1,null,1,null,1,null,1,null,1,null,1,null,1,null,1,null,"d","x",null,"AV    Wiskunde  ->  A-finaliteit","d",null,null,null,null,null,null,null,null,null,null,0]
[null,null,null,"Bouw",null,0,null,null,1,null,1,null,1,null,1,null,1,null,1,null,1,null,1,null,1,null,"d","x",null,"SV    Bouw  ->  A-finaliteit","d",null,null,null,null,null,null,null,null,null,null,0]
[null,null,null,"Bouw",null,0,null,null,1,null,1,null,1,null,1,null,1,null,1,null,1,null,1,null,1,null,"d","x",null,"CG    Artistieke vorming Co  ->  D-D/A-A-finaliteit","d",null,null,null,null,null,null,null,null,null,null,0]
[null,null,null,"Bouwtechnieken",null,0,null,null,1,null,1,null,1,null,1,null,1,null,1,null,1,null,1,null,1,null,"d","x",null,"AV    Aardrijkskunde B  ->  D/A-finaliteit","d",null,null,null,null,null,null,null,null,null,null,0]
[null,null,null,"Bouwtechnieken",null,0,null,null,1,null,1,null,1,null,1,null,1,null,1,null,1,null,1,null,1,null,"d","x",null,"AV    Engels B  ->  D/A-finaliteit","d",null,null,null,null,null,null,null,null,null,null,0]
[null,null,null,"Bouwtechnieken",null,0,null,null,1,null,1,null,1,null,1,null,1,null,1,null,1,null,1,null,1,null,"d","x",null,"AV    Frans B  ->  D/A-finaliteit","d",null,null,null,null,null,null,null,null,null,null,0]
[null,null,null,"Bouwtechnieken",null,0,null,null,1,null,1,null,1,null,1,null,1,null,1,null,1,null,1,null,1,null,"d","x",null,"AV    Gemeenschappelijk funderend leerplan B  ->  D,- D/A-, A-finaliteit","d",null,null,null,null,null,null,null,null,null,null,0]
[null,null,null,"Bouwtechnieken",null,0,null,null,1,null,1,null,1,null,1,null,1,null,1,null,1,null,1,null,1,null,"d","x",null,"AV    Geschiedenis B  ->  D/A-finaliteit","d",null,null,null,null,null,null,null,null,null,null,0]
[null,null,null,"Bouwtechnieken",null,0,null,null,1,null,1,null,1,null,1,null,1,null,1,null,1,null,1,null,1,null,"d","x",null,"AV    Lichamelijke opvoeding B  ->  D-, D/A-, A-finaliteit","d",null,null,null,null,null,null,null,null,null,null,0]
[null,null,null,"Bouwtechnieken",null,0,null,null,1,null,1,null,1,null,1,null,1,null,1,null,1,null,1,null,1,null,"d","x",null,"AV    Natuurwetenschappen B'  ->  D/A-finaliteit","d",null,null,null,null,null,null,null,null,null,null,0]
[null,null,null,"Bouwtechnieken",null,0,null,null,1,null,1,null,1,null,1,null,1,null,1,null,1,null,1,null,1,null,"d","x",null,"AV    Nederlands B  ->  D/A-finaliteit","d",null,null,null,null,null,null,null,null,null,null,0]
[null,null,null,"Bouwtechnieken",null,0,null,null,1,null,1,null,1,null,1,null,1,null,1,null,1,null,1,null,1,null,"d","x",null,"AV    Rooms-katholieke godsdienst - 1ste, 2de en 3de graad","d",null,null,null,null,null,null,null,null,null,null,0]
[null,null,null,"Bouwtechnieken",null,0,null,null,1,null,1,null,1,null,1,null,1,null,1,null,1,null,1,null,1,null,"d","x",null,"SV    Bouwtechnieken B+S  ->  D/A-finaliteit","d",null,null,null,null,null,null,null,null,null,null,0]
[null,null,null,"Bouwtechnieken",null,0,null,null,1,null,1,null,1,null,1,null,1,null,1,null,1,null,1,null,1,null,"d","x",null,"SV    Wiskunde B+S  ->  D/A-finaliteit","d",null,null,null,null,null,null,null,null,null,null,0]
[null,null,null,"Bouwtechnieken",null,0,null,null,1,null,1,null,1,null,1,null,1,null,1,null,1,null,1,null,1,null,"d","x",null,"CG    Artistieke vorming Co  ->  D-D/A-A-finaliteit","d",null,null,null,null,null,null,null,null,null,null,0]
[null,null,null,"Bouwtechnieken",null,0,null,null,1,null,1,null,1,null,1,null,1,null,1,null,1,null,1,null,1,null,"d","x",null,"CG    ICT Co  ->  D/DA/A-finaliteit","d",null,null,null,null,null,null,null,null,null,null,0]
[null,null,null,"Bouwwetenschappen",null,0,null,null,1,null,1,null,1,null,1,null,1,null,1,null,1,null,1,null,1,null,"d","x",null,"AV    Aardrijkskunde B  ->  D-finaliteit","d",null,null,null,null,null,null,null,null,null,null,0]
[null,null,null,"Bouwwetenschappen",null,0,null,null,1,null,1,null,1,null,1,null,1,null,1,null,1,null,1,null,1,null,"d","x",null,"AV    Biologie-chemie  ->  D-finaliteit","d",null,null,null,null,null,null,null,null,null,null,0]
[null,null,null,"Bouwwetenschappen",null,0,null,null,1,null,1,null,1,null,1,null,1,null,1,null,1,null,1,null,1,null,"d","x",null,"AV    Engels B  ->  D-finaliteit","d",null,null,null,null,null,null,null,null,null,null,0]
[null,null,null,"Bouwwetenschappen",null,0,null,null,1,null,1,null,1,null,1,null,1,null,1,null,1,null,1,null,1,null,"d","x",null,"AV    Frans  ->  D-finaliteit","d",null,null,null,null,null,null,null,null,null,null,0]
[null,null,null,"Bouwwetenschappen",null,0,null,null,1,null,1,null,1,null,1,null,1,null,1,null,1,null,1,null,1,null,"d","x",null,"AV    Gemeenschappelijk funderend leerplan B  ->  D,- D/A-, A-finaliteit","d",null,null,null,null,null,null,null,null,null,null,0]
[null,null,null,"Bouwwetenschappen",null,0,null,null,1,null,1,null,1,null,1,null,1,null,1,null,1,null,1,null,1,null,"d","x",null,"AV    Geschiedenis  ->  D-finaliteit","d",null,null,null,null,null,null,null,null,null,null,0]
[null,null,null,"Bouwwetenschappen",null,0,null,null,1,null,1,null,1,null,1,null,1,null,1,null,1,null,1,null,1,null,"d","x",null,"AV    Lichamelijke opvoeding B  ->  D-, D/A-, A-finaliteit","d",null,null,null,null,null,null,null,null,null,null,0]
[null,null,null,"Bouwwetenschappen",null,0,null,null,1,null,1,null,1,null,1,null,1,null,1,null,1,null,1,null,1,null,"d","x",null,"AV    Nederlands B  ->  D-finaliteit","d",null,null,null,null,null,null,null,null,null,null,0]
[null,null,null,"Bouwwetenschappen",null,0,null,null,1,null,1,null,1,null,1,null,1,null,1,null,1,null,1,null,1,null,"d","x",null,"AV    Rooms-katholieke godsdienst - 1ste, 2de en 3de graad","d",null,null,null,null,null,null,null,null,null,null,0]
[null,null,null,"Bouwwetenschappen",null,0,null,null,1,null,1,null,1,null,1,null,1,null,1,null,1,null,1,null,1,null,"d","x",null,"SV    Bouwwetenschappen B+S  ->  D-finaliteit","d",null,null,null,null,null,null,null,null,null,null,0]
[null,null,null,"Bouwwetenschappen",null,0,null,null,1,null,1,null,1,null,1,null,1,null,1,null,1,null,1,null,1,null,"d","x",null,"SV    Wiskunde B+S  ->  D-finaliteit","d",null,null,null,null,null,null,null,null,null,null,0]
[null,null,null,"Bouwwetenschappen",null,{"$f":"9-(I390+K390+M390+O390+Q390+S390+U390++Y390+W390)","v":0},null,null,1,null,1,null,1,null,1,null,1,null,1,null,1,null,1,null,1,null,"d","x",null,"CG    Artistieke vorming Co  ->  D-D/A-A-finaliteit","d",null,null,null,null,null,null,null,null,null,null,0]
[null,null,null,"Bouwwetenschappen",null,0,null,null,1,null,1,null,1,null,1,null,1,null,1,null,1,null,1,null,1,null,"d","x",null,"CG    ICT Co  ->  D/DA/A-finaliteit","d",null,null,null,null,null,null,null,null,null,null,0]
[null,null,null,"Bouwwetenschappen",null,0,null,null,1,null,1,null,1,null,1,null,1,null,1,null,1,null,1,null,1,null,"d","x",null,"CG    Mens en samenleving complementair  ->  D/DA-finaliteit","d",null,null,null,null,null,null,null,null,null,null,0]
[null,null,null,"Cementgebonden voeger",null,0,null,null,1,null,1,null,1,null,1,null,1,null,1,null,1,null,1,null,1,null,"d","x",null,"AV    Engels B  ->  A-finaliteit","d",null,null,null,null,null,null,null,null,null,null,0]
[null,null,null,"Cementgebonden voeger",null,0,null,null,1,null,1,null,1,null,1,null,1,null,1,null,1,null,1,null,1,null,"d","x",null,"AV    Gemeenschappelijk funderend leerplan B  ->  D,- D/A-, A-finaliteit","d",null,null,null,null,null,null,null,null,null,null,0]
[null,null,null,"Cementgebonden voeger",null,0,null,null,1,null,1,null,1,null,1,null,1,null,1,null,1,null,1,null,1,null,"d","x",null,"AV    Maatschappelijke vorming  ->  A-finaliteit","d",null,null,null,null,null,null,null,null,null,null,0]
[null,null,null,"Cementgebonden voeger",null,0,null,null,1,null,1,null,1,null,1,null,1,null,1,null,1,null,1,null,1,null,"d","x",null,"AV    Natuurwetenschappen B (oud)  ->  A-finaliteit","d",null,null,null,null,null,null,null,null,null,null,0]
[null,null,null,"Cementgebonden voeger",null,0,null,null,1,null,1,null,1,null,1,null,1,null,1,null,1,null,1,null,1,null,"d","x",null,"AV    Nederlands  ->  A-finaliteit","d",null,null,null,null,null,null,null,null,null,null,0]
[null,null,null,"Cementgebonden voeger",null,0,null,null,1,null,1,null,1,null,1,null,1,null,1,null,1,null,1,null,1,null,"d","x",null,"AV    Wiskunde  ->  A-finaliteit","d",null,null,null,null,null,null,null,null,null,null,0]
[null,null,null,"Cementgebonden voeger",null,0,null,null,1,null,1,null,1,null,1,null,1,null,1,null,1,null,1,null,1,null,"d","x",null,"SV    Cementgebonden voeger  ->  A-finaliteit","d",null,null,null,null,null,null,null,null,null,null,0]
[null,null,null,"Creatie en mode",null,0,null,null,1,null,1,null,1,null,1,null,1,null,1,null,1,null,1,null,1,null,"d","x",null,"AV    Aardrijkskunde B  ->  D/A-finaliteit","d",null,null,null,null,null,null,null,null,null,null,0]
[null,null,null,"Creatie en mode",null,0,null,null,1,null,1,null,1,null,1,null,1,null,1,null,1,null,1,null,1,null,"d","x",null,"AV    Engels B  ->  D/A-finaliteit","d",null,null,null,null,null,null,null,null,null,null,0]
[null,null,null,"Creatie en mode",null,0,null,null,1,null,1,null,1,null,1,null,1,null,1,null,1,null,1,null,1,null,"d","x",null,"AV    Frans B  ->  D/A-finaliteit","d",null,null,null,null,null,null,null,null,null,null,0]
[null,null,null,"Creatie en mode",null,0,null,null,1,null,1,null,1,null,1,null,1,null,1,null,1,null,1,null,1,null,"d","x",null,"AV    Gemeenschappelijk funderend leerplan B  ->  D,- D/A-, A-finaliteit","d",null,null,null,null,null,null,null,null,null,null,0]
[null,null,null,"Creatie en mode",null,0,null,null,1,null,1,null,1,null,1,null,1,null,1,null,1,null,1,null,1,null,"d","x",null,"AV    Lichamelijke opvoeding B  ->  D-, D/A-, A-finaliteit","d",null,null,null,null,null,null,null,null,null,null,0]
[null,null,null,"Creatie en mode",null,0,null,null,1,null,1,null,1,null,1,null,1,null,1,null,1,null,1,null,1,null,"d","x",null,"AV    Natuurwetenschappen B  ->  D/A-finaliteit","d",null,null,null,null,null,null,null,null,null,null,0]
[null,null,null,"Creatie en mode",null,0,null,null,1,null,1,null,1,null,1,null,1,null,1,null,1,null,1,null,1,null,"d","x",null,"AV    Nederlands B  ->  D/A-finaliteit","d",null,null,null,null,null,null,null,null,null,null,0]
[null,null,null,"Creatie en mode",null,0,null,null,1,null,1,null,1,null,1,null,1,null,1,null,1,null,1,null,1,null,"d","x",null,"AV    Rooms-katholieke godsdienst - 1ste, 2de en 3de graad","d",null,null,null,null,null,null,null,null,null,null,0]
[null,null,null,"Creatie en mode",null,0,null,null,1,null,1,null,1,null,1,null,1,null,1,null,1,null,1,null,1,null,"d","x",null,"AV    Wiskunde  ->  D/A-finaliteit","d",null,null,null,null,null,null,null,null,null,null,0]
[null,null,null,"Creatie en mode",null,0,null,null,1,null,1,null,1,null,1,null,1,null,1,null,1,null,1,null,1,null,"d","x",null,"SV    Creatie en mode  ->  D/A-finaliteit","d",null,null,null,null,null,null,null,null,null,null,0]
[null,null,null,"Creatie en mode",null,0,null,null,1,null,1,null,1,null,1,null,1,null,1,null,1,null,1,null,1,null,"d","x",null,"CG    Artistieke vorming Co  ->  D-D/A-A-finaliteit","d",null,null,null,null,null,null,null,null,null,null,0]
[null,null,null,"Creatie en mode",null,0,null,null,1,null,1,null,1,null,1,null,1,null,1,null,1,null,1,null,1,null,"d","x",null,"CG    ICT Co  ->  D/DA/A-finaliteit","d",null,null,null,null,null,null,null,null,null,null,0]
[null,null,null,"Creatie en mode",null,0,null,null,1,null,1,null,1,null,1,null,1,null,1,null,1,null,1,null,1,null,"d","x",null,"CG    Mens en samenleving complementair  ->  D/DA-finaliteit","d",null,null,null,null,null,null,null,null,null,null,0]
[null,null,null,"Dans",null,0,null,null,1,null,1,null,1,null,1,null,1,null,1,null,1,null,1,null,1,null,"d","x",null,"AV    Aardrijkskunde B  ->  D-finaliteit","d",null,null,null,null,null,null,null,null,null,null,0]
[null,null,null,"Dans",null,0,null,null,1,null,1,null,1,null,1,null,1,null,1,null,1,null,1,null,1,null,"d","x",null,"AV    Engels B  ->  D-finaliteit","d",null,null,null,null,null,null,null,null,null,null,0]
[null,null,null,"Dans",null,0,null,null,1,null,1,null,1,null,1,null,1,null,1,null,1,null,1,null,1,null,"d","x",null,"AV    Gemeenschappelijk funderend leerplan B  ->  D,- D/A-, A-finaliteit","d",null,null,null,null,null,null,null,null,null,null,0]
[null,null,null,"Dans",null,0,null,null,1,null,1,null,1,null,1,null,1,null,1,null,1,null,1,null,1,null,"d","x",null,"AV    Lichamelijke opvoeding B  ->  D-, D/A-, A-finaliteit","d",null,null,null,null,null,null,null,null,null,null,0]
[null,null,null,"Dans",null,0,null,null,1,null,1,null,1,null,1,null,1,null,1,null,1,null,1,null,1,null,"d","x",null,"AV    Natuurwetenschappen  ->  D-finaliteit","d",null,null,null,null,null,null,null,null,null,null,0]
[null,null,null,"Dans",null,0,null,null,{"$f":"COUNTBLANK(H418)","v":1},null,{"$f":"COUNTBLANK(J418)","v":1},null,{"$f":"COUNTBLANK(L418)","v":1},null,{"$f":"COUNTBLANK(N418)","v":1},null,{"$f":"COUNTBLANK(P418)","v":1},null,{"$f":"COUNTBLANK(R418)","v":1},null,{"$f":"COUNTBLANK(T418)","v":1},null,{"$f":"COUNTBLANK(V418)","v":1},null,{"$f":"COUNTBLANK(X418)","v":1},null,"d","x",null,"AV    Nederlands B  ->  D-finaliteit","d",null,null,null,null,null,null,null,null,null,null,0]
[null,null,null,"Dans",null,0,null,null,1,null,1,null,1,null,1,null,1,null,1,null,1,null,1,null,1,null,"d","x",null,"AV    Rooms-katholieke godsdienst - 1ste, 2de en 3de graad","d",null,null,null,null,null,null,null,null,null,null,0]
[null,null,null,"Dans",null,0,null,null,1,null,1,null,1,null,1,null,1,null,1,null,1,null,1,null,1,null,"d","x",null,"AV    Wiskunde  ->  D-finaliteit","d",null,null,null,null,null,null,null,null,null,null,0]
[null,null,null,"Dans",null,0,null,null,1,null,1,null,1,null,1,null,1,null,1,null,1,null,1,null,1,null,"d","x",null,"AV    Wiskunde (oud)  ->  D-finaliteit","d",null,null,null,null,null,null,null,null,null,null,0]
[null,null,null,"Dans",null,0,null,null,1,null,1,null,1,null,1,null,1,null,1,null,1,null,1,null,1,null,"d","x",null,"SV    Dans  ->  D-finaliteit","d",null,null,null,null,null,null,null,null,null,null,0]
[null,null,null,"Dans",null,0,null,null,1,null,1,null,1,null,1,null,1,null,1,null,1,null,1,null,1,null,"d","x",null,"CG    Artistieke vorming Co  ->  D-D/A-A-finaliteit","d",null,null,null,null,null,null,null,null,null,null,0]
[null,null,null,"Dans",null,0,null,null,1,null,1,null,1,null,1,null,1,null,1,null,1,null,1,null,1,null,"d","x",null,"CG    ICT Co  ->  D/DA/A-finaliteit","d",null,null,null,null,null,null,null,null,null,null,0]
[null,null,null,"Dans",null,0,null,null,1,null,1,null,1,null,1,null,1,null,1,null,1,null,1,null,1,null,"d","x",null,"CG    Mens en samenleving complementair  ->  D/DA-finaliteit","d",null,null,null,null,null,null,null,null,null,null,0]
[null,null,null,"Decor en etalage",null,0,null,null,1,null,1,null,1,null,1,null,1,null,1,null,1,null,1,null,1,null,"d","x",null,"AV    Engels B  ->  A-finaliteit","d",null,null,null,null,null,null,null,null,null,null,0]
[null,null,null,"Decor en etalage",null,0,null,null,1,null,1,null,1,null,1,null,1,null,1,null,1,null,1,null,1,null,"d","x",null,"AV    Frans B  ->  A-finaliteit","d",null,null,null,null,null,null,null,null,null,null,0]
[null,null,null,"Decor en etalage",null,0,null,null,1,null,1,null,1,null,1,null,1,null,1,null,1,null,1,null,1,null,"d","x",null,"AV    Gemeenschappelijk funderend leerplan B  ->  D,- D/A-, A-finaliteit","d",null,null,null,null,null,null,null,null,null,null,0]
[null,null,null,"Decor en etalage",null,0,null,null,1,null,1,null,1,null,1,null,1,null,1,null,1,null,1,null,1,null,"d","x",null,"AV    Lichamelijke opvoeding B  ->  D-, D/A-, A-finaliteit","d",null,null,null,null,null,null,null,null,null,null,0]
[null,null,null,"Decor en etalage",null,0,null,null,1,null,1,null,1,null,1,null,1,null,1,null,1,null,1,null,1,null,"d","x",null,"AV    Natuurwetenschappen B (oud)  ->  A-finaliteit","d",null,null,null,null,null,null,null,null,null,null,0]
[null,null,null,"Decor en etalage",null,0,null,null,1,null,1,null,1,null,1,null,1,null,1,null,1,null,1,null,1,null,"d","x",null,"AV    Rooms-katholieke godsdienst - 1ste, 2de en 3de graad","d",null,null,null,null,null,null,null,null,null,null,0]
[null,null,null,"Decor en etalage",null,0,null,null,1,null,1,null,1,null,1,null,1,null,1,null,1,null,1,null,1,null,"d","x",null,"AV    Wiskunde  ->  A-finaliteit","d",null,null,null,null,null,null,null,null,null,null,0]
[null,null,null,"Decor en etalage",null,0,null,null,1,null,1,null,1,null,1,null,1,null,1,null,1,null,1,null,1,null,"d","x",null,"SV    Decor en etalage  ->  A-finaliteit","d",null,null,null,null,null,null,null,null,null,null,0]
[null,null,null,"Decor en etalage",null,0,null,null,1,null,1,null,1,null,1,null,1,null,1,null,1,null,1,null,1,null,"d","x",null,"CG    Artistieke vorming Co  ->  D-D/A-A-finaliteit","d",null,null,null,null,null,null,null,null,null,null,0]
[null,null,null,"Decor en etalage",null,0,null,null,1,null,1,null,1,null,1,null,1,null,1,null,1,null,1,null,1,null,"d","x",null,"CG    ICT Co  ->  D/DA/A-finaliteit","d",null,null,null,null,null,null,null,null,null,null,0]
[null,null,null,"Economische wetenschappen",null,0,null,null,1,null,1,null,1,null,1,null,1,null,1,null,1,null,1,null,1,null,"d","x",null,"AV    Aardrijkskunde B  ->  D-finaliteit","d",null,null,null,null,null,null,null,null,null,null,0]
[null,null,null,"Economische wetenschappen",null,0,null,null,1,null,1,null,1,null,1,null,1,null,1,null,1,null,1,null,1,null,"d","x",null,"AV    Engels B+  ->  D-finaliteit","d",null,null,null,null,null,null,null,null,null,null,0]
[null,null,null,"Economische wetenschappen",null,0,null,null,1,null,1,null,1,null,1,null,1,null,1,null,1,null,1,null,1,null,"d","x",null,"AV    Frans B+  ->  D-finaliteit","d",null,null,null,null,null,null,null,null,null,null,0]
[null,null,null,"Economische wetenschappen",null,0,null,null,1,null,1,null,1,null,1,null,1,null,1,null,1,null,1,null,1,null,"d","x",null,"AV    Gemeenschappelijk funderend leerplan B  ->  D,- D/A-, A-finaliteit","d",null,null,null,null,null,null,null,null,null,null,0]
[null,null,null,"Economische wetenschappen",null,0,null,null,1,null,1,null,1,null,1,null,1,null,1,null,1,null,1,null,1,null,"d","x",null,"AV    Geschiedenis B+  ->  D-finaliteit","d",null,null,null,null,null,null,null,null,null,null,0]
[null,null,null,"Economische wetenschappen",null,0,null,null,1,null,1,null,1,null,1,null,1,null,1,null,1,null,1,null,1,null,"d","x",null,"AV    Lichamelijke opvoeding B  ->  D-, D/A-, A-finaliteit","d",null,null,null,null,null,null,null,null,null,null,0]
[null,null,null,"Economische wetenschappen",null,0,null,null,1,null,1,null,1,null,1,null,1,null,1,null,1,null,1,null,1,null,"d","x",null,"AV    Natuurwetenschappen B+  ->  D-finaliteit","d",null,null,null,null,null,null,null,null,null,null,0]
[null,null,null,"Economische wetenschappen",null,0,null,null,1,null,1,null,1,null,1,null,1,null,1,null,1,null,1,null,1,null,"d","x",null,"AV    Nederlands B+  ->  D-finaliteit","d",null,null,null,null,null,null,null,null,null,null,0]
[null,null,null,"Economische wetenschappen",null,0,null,null,1,null,1,null,1,null,1,null,1,null,1,null,1,null,1,null,1,null,"d","x",null,"AV    Rooms-katholieke godsdienst - 1ste, 2de en 3de graad","d",null,null,null,null,null,null,null,null,null,null,0]
[null,null,null,"Economische wetenschappen",null,0,null,null,1,null,1,null,1,null,1,null,1,null,1,null,1,null,1,null,1,null,"d","x",null,"SV    Economie  ->  D-finaliteit","d",null,null,null,null,null,null,null,null,null,null,0]
[null,null,null,"Economische wetenschappen",null,0,null,null,1,null,1,null,1,null,1,null,1,null,1,null,1,null,1,null,1,null,"d","x",null,"SV    Wiskunde B+S  ->  D-finaliteit","d",null,null,null,null,null,null,null,null,null,null,0]
[null,null,null,"Economische wetenschappen",null,0,null,null,1,null,1,null,1,null,1,null,1,null,1,null,1,null,1,null,1,null,"d","x",null,"CG    Artistieke vorming Co  ->  D-D/A-A-finaliteit","d",null,null,null,null,null,null,null,null,null,null,0]
[null,null,null,"Economische wetenschappen",null,0,null,null,1,null,1,null,1,null,1,null,1,null,1,null,1,null,1,null,1,null,"d","x",null,"CG    Duits Co  ->  D-D/A-finaliteit","d",null,null,null,null,null,null,null,null,null,null,0]
[null,null,null,"Economische wetenschappen",null,0,null,null,1,null,1,null,1,null,1,null,1,null,1,null,1,null,1,null,1,null,"d","x",null,"CG    ICT Co  ->  D/DA/A-finaliteit","d",null,null,null,null,null,null,null,null,null,null,0]
[null,null,null,"Economische wetenschappen",null,0,null,null,1,null,1,null,1,null,1,null,1,null,1,null,1,null,1,null,1,null,"d","x",null,"CG    Mens en samenleving complementair  ->  D/DA-finaliteit","d",null,null,null,null,null,null,null,null,null,null,0]
[null,null,null,"Elektriciteit",null,0,null,null,1,null,1,null,1,null,1,null,1,null,1,null,1,null,1,null,1,null,"d","x",null,"AV    Engels B  ->  A-finaliteit","d",null,null,null,null,null,null,null,null,null,null,0]
[null,null,null,"Elektriciteit",null,0,null,null,1,null,1,null,1,null,1,null,1,null,1,null,1,null,1,null,1,null,"d","x",null,"AV    Frans B  ->  A-finaliteit","d",null,null,null,null,null,null,null,null,null,null,0]
[null,null,null,"Elektriciteit",null,0,null,null,1,null,1,null,1,null,1,null,1,null,1,null,1,null,1,null,1,null,"d","x",null,"AV    Gemeenschappelijk funderend leerplan B  ->  D,- D/A-, A-finaliteit","d",null,null,null,null,null,null,null,null,null,null,0]
[null,null,null,"Elektriciteit",null,{"$f":"9-(I454+K454+M454+O454+Q454+S454+U454++Y454+W454)","v":0},null,null,1,null,1,null,1,null,1,null,1,null,1,null,1,null,1,null,1,null,"d","x",null,"AV    Lichamelijke opvoeding B  ->  D-, D/A-, A-finaliteit","d",null,null,null,null,null,null,null,null,null,null,0]
[null,null,null,"Elektriciteit",null,0,null,null,1,null,1,null,1,null,1,null,1,null,1,null,1,null,1,null,1,null,"d","x",null,"AV    Maatschappelijke vorming  ->  A-finaliteit","d",null,null,null,null,null,null,null,null,null,null,0]
[null,null,null,"Elektriciteit",null,0,null,null,1,null,1,null,1,null,1,null,1,null,1,null,1,null,1,null,1,null,"d","x",null,"AV    Natuurwetenschappen B (oud)  ->  A-finaliteit","d",null,null,null,null,null,null,null,null,null,null,0]
[null,null,null,"Elektriciteit",null,0,null,null,1,null,1,null,1,null,1,null,1,null,1,null,1,null,1,null,1,null,"d","x",null,"AV    Nederlands  ->  A-finaliteit","d",null,null,null,null,null,null,null,null,null,null,0]
[null,null,null,"Elektriciteit",null,0,null,null,1,null,1,null,1,null,1,null,1,null,1,null,1,null,1,null,1,null,"d","x",null,"AV    Rooms-katholieke godsdienst - 1ste, 2de en 3de graad","d",null,null,null,null,null,null,null,null,null,null,0]
[null,null,null,"Elektriciteit",null,0,null,null,1,null,1,null,1,null,1,null,1,null,1,null,1,null,1,null,1,null,"d","x",null,"AV    Wiskunde  ->  A-finaliteit","d",null,null,null,null,null,null,null,null,null,null,0]
[null,null,null,"Elektriciteit",null,0,null,null,1,null,1,null,1,null,1,null,1,null,1,null,1,null,1,null,1,null,"d","x",null,"SV    Elektriciteit  ->  A-finaliteit","d",null,null,null,null,null,null,null,null,null,null,0]
[null,null,null,"Elektriciteit",null,0,null,null,1,null,1,null,1,null,1,null,1,null,1,null,1,null,1,null,1,null,"d","x",null,"CG    Artistieke vorming Co  ->  D-D/A-A-finaliteit","d",null,null,null,null,null,null,null,null,null,null,0]
[null,null,null,"Elektriciteit",null,0,null,null,1,null,1,null,1,null,1,null,1,null,1,null,1,null,1,null,1,null,"d","x",null,"CG    ICT Co  ->  D/DA/A-finaliteit","d",null,null,null,null,null,null,null,null,null,null,0]
[null,null,null,"Elektromechanische technieken",null,0,null,null,1,null,1,null,1,null,1,null,1,null,1,null,1,null,1,null,1,null,"d","x",null,"AV    Aardrijkskunde B  ->  D/A-finaliteit","d",null,null,null,null,null,null,null,null,null,null,0]
[null,null,null,"Elektromechanische technieken",null,0,null,null,1,null,1,null,1,null,1,null,1,null,1,null,1,null,1,null,1,null,"d","x",null,"AV    Engels B  ->  D/A-finaliteit","d",null,null,null,null,null,null,null,null,null,null,0]
[null,null,null,"Elektromechanische technieken",null,0,null,null,1,null,1,null,1,null,1,null,1,null,1,null,1,null,1,null,1,null,"d","x",null,"AV    Frans B  ->  D/A-finaliteit","d",null,null,null,null,null,null,null,null,null,null,0]
[null,null,null,"Elektromechanische technieken",null,0,null,null,1,null,1,null,1,null,1,null,1,null,1,null,1,null,1,null,1,null,"d","x",null,"AV    Gemeenschappelijk funderend leerplan B  ->  D,- D/A-, A-finaliteit","d",null,null,null,null,null,null,null,null,null,null,0]
[null,null,null,"Elektromechanische technieken",null,0,null,null,1,null,1,null,1,null,1,null,1,null,1,null,1,null,1,null,1,null,"d","x",null,"AV    Geschiedenis B  ->  D/A-finaliteit","d",null,null,null,null,null,null,null,null,null,null,0]
[null,null,null,"Elektromechanische technieken",null,0,null,null,1,null,1,null,1,null,1,null,1,null,1,null,1,null,1,null,1,null,"d","x",null,"AV    Lichamelijke opvoeding B  ->  D-, D/A-, A-finaliteit","d",null,null,null,null,null,null,null,null,null,null,0]
[null,null,null,"Elektromechanische technieken",null,0,null,null,1,null,1,null,1,null,1,null,1,null,1,null,1,null,1,null,1,null,"d","x",null,"AV    Natuurwetenschappen B'  ->  D/A-finaliteit","d",null,null,null,null,null,null,null,null,null,null,0]
[null,null,null,"Elektromechanische technieken",null,0,null,null,1,null,1,null,1,null,1,null,1,null,1,null,1,null,1,null,1,null,"d","x",null,"AV    Nederlands B  ->  D/A-finaliteit","d",null,null,null,null,null,null,null,null,null,null,0]
[null,null,null,"Elektromechanische technieken",null,0,null,null,1,null,1,null,1,null,1,null,1,null,1,null,1,null,1,null,1,null,"d","x",null,"AV    Rooms-katholieke godsdienst - 1ste, 2de en 3de graad","d",null,null,null,null,null,null,null,null,null,null,0]
[null,null,null,"Elektromechanische technieken",null,0,null,null,1,null,1,null,1,null,1,null,1,null,1,null,1,null,1,null,1,null,"d","x",null,"SV    Elektromechanische technieken B+S  ->  D/A-finaliteit","d",null,null,null,null,null,null,null,null,null,null,0]
[null,null,null,"Elektromechanische technieken",null,0,null,null,1,null,1,null,1,null,1,null,1,null,1,null,1,null,1,null,1,null,"d","x",null,"SV    Wiskunde B+S  ->  D/A-finaliteit","d",null,null,null,null,null,null,null,null,null,null,0]
[null,null,null,"Elektromechanische technieken",null,0,null,null,1,null,1,null,1,null,1,null,1,null,1,null,1,null,1,null,1,null,"d","x",null,"CG    Artistieke vorming Co  ->  D-D/A-A-finaliteit","d",null,null,null,null,null,null,null,null,null,null,0]
[null,null,null,"Elektromechanische technieken",null,0,null,null,1,null,1,null,1,null,1,null,1,null,1,null,1,null,1,null,1,null,"d","x",null,"CG    ICT Co  ->  D/DA/A-finaliteit","d",null,null,null,null,null,null,null,null,null,null,0]
[null,null,null,"Elektromechanische technieken",null,0,null,null,1,null,1,null,1,null,1,null,1,null,1,null,1,null,1,null,1,null,"d","x",null,"CG    Mens en samenleving complementair  ->  D/DA-finaliteit","d",null,null,null,null,null,null,null,null,null,null,0]
[null,null,null,"Elektrotechnieken",null,0,null,null,1,null,1,null,1,null,1,null,1,null,1,null,1,null,1,null,1,null,"d","x",null,"AV    Aardrijkskunde B  ->  D/A-finaliteit","d",null,null,null,null,null,null,null,null,null,null,0]
[null,null,null,"Elektrotechnieken",null,0,null,null,1,null,1,null,1,null,1,null,1,null,1,null,1,null,1,null,1,null,"d","x",null,"AV    Engels B  ->  D/A-finaliteit","d",null,null,null,null,null,null,null,null,null,null,0]
[null,null,null,"Elektrotechnieken",null,0,null,null,1,null,1,null,1,null,1,null,1,null,1,null,1,null,1,null,1,null,"d","x",null,"AV    Frans B  ->  D/A-finaliteit","d",null,null,null,null,null,null,null,null,null,null,0]
[null,null,null,"Elektrotechnieken",null,0,null,null,1,null,1,null,1,null,1,null,1,null,1,null,1,null,1,null,1,null,"d","x",null,"AV    Gemeenschappelijk funderend leerplan B  ->  D,- D/A-, A-finaliteit","d",null,null,null,null,null,null,null,null,null,null,0]
[null,null,null,"Elektrotechnieken",null,0,null,null,1,null,1,null,1,null,1,null,1,null,1,null,1,null,1,null,1,null,"d","x",null,"AV    Geschiedenis B  ->  D/A-finaliteit","d",null,null,null,null,null,null,null,null,null,null,0]
[null,null,null,"Elektrotechnieken",null,0,null,null,{"$f":"COUNTBLANK(H482)","v":1},null,{"$f":"COUNTBLANK(J482)","v":1},null,{"$f":"COUNTBLANK(L482)","v":1},null,{"$f":"COUNTBLANK(N482)","v":1},null,{"$f":"COUNTBLANK(P482)","v":1},null,{"$f":"COUNTBLANK(R482)","v":1},null,{"$f":"COUNTBLANK(T482)","v":1},null,{"$f":"COUNTBLANK(V482)","v":1},null,{"$f":"COUNTBLANK(X482)","v":1},null,"d","x",null,"AV    Lichamelijke opvoeding B  ->  D-, D/A-, A-finaliteit","d",null,null,null,null,null,null,null,null,null,null,0]
[null,null,null,"Elektrotechnieken",null,0,null,null,1,null,1,null,1,null,1,null,1,null,1,null,1,null,1,null,1,null,"d","x",null,"AV    Natuurwetenschappen B'  ->  D/A-finaliteit","d",null,null,null,null,null,null,null,null,null,null,0]
[null,null,null,"Elektrotechnieken",null,0,null,null,1,null,1,null,1,null,1,null,1,null,1,null,1,null,1,null,1,null,"d","x",null,"AV    Nederlands B  ->  D/A-finaliteit","d",null,null,null,null,null,null,null,null,null,null,0]
[null,null,null,"Elektrotechnieken",null,0,null,null,1,null,1,null,1,null,1,null,1,null,1,null,1,null,1,null,1,null,"d","x",null,"AV    Rooms-katholieke godsdienst - 1ste, 2de en 3de graad","d",null,null,null,null,null,null,null,null,null,null,0]
[null,null,null,"Elektrotechnieken",null,0,null,null,1,null,1,null,1,null,1,null,1,null,1,null,1,null,1,null,1,null,"d","x",null,"SV    Elektrotechnieken B+S  ->  D/A-finaliteit","d",null,null,null,null,null,null,null,null,null,null,0]
[null,null,null,"Elektrotechnieken",null,0,null,null,1,null,1,null,1,null,1,null,1,null,1,null,1,null,1,null,1,null,"d","x",null,"SV    Wiskunde B+S  ->  D/A-finaliteit","d",null,null,null,null,null,null,null,null,null,null,0]
[null,null,null,"Elektrotechnieken",null,0,null,null,1,null,1,null,1,null,1,null,1,null,1,null,1,null,1,null,1,null,"d","x",null,"CG    Artistieke vorming Co  ->  D-D/A-A-finaliteit","d",null,null,null,null,null,null,null,null,null,null,0]
[null,null,null,"Elektrotechnieken",null,0,null,null,1,null,1,null,1,null,1,null,1,null,1,null,1,null,1,null,1,null,"d","x",null,"CG    ICT Co  ->  D/DA/A-finaliteit","d",null,null,null,null,null,null,null,null,null,null,0]
[null,null,null,"Elektrotechnieken",null,0,null,null,1,null,1,null,1,null,1,null,1,null,1,null,1,null,1,null,1,null,"d","x",null,"CG    Mens en samenleving complementair  ->  D/DA-finaliteit","d",null,null,null,null,null,null,null,null,null,null,0]
[null,null,null,"Fietshersteller",null,0,null,null,1,null,1,null,1,null,1,null,1,null,1,null,1,null,1,null,1,null,"d","x",null,"AV    Engels B  ->  A-finaliteit","d",null,null,null,null,null,null,null,null,null,null,0]
[null,null,null,"Fietshersteller",null,0,null,null,1,null,1,null,1,null,1,null,1,null,1,null,1,null,1,null,1,null,"d","x",null,"AV    Frans B  ->  A-finaliteit","d",null,null,null,null,null,null,null,null,null,null,0]
[null,null,null,"Fietshersteller",null,0,null,null,1,null,1,null,1,null,1,null,1,null,1,null,1,null,1,null,1,null,"d","x",null,"AV    Gemeenschappelijk funderend leerplan B  ->  D,- D/A-, A-finaliteit","d",null,null,null,null,null,null,null,null,null,null,0]
[null,null,null,"Fietshersteller",null,0,null,null,1,null,1,null,1,null,1,null,1,null,1,null,1,null,1,null,1,null,"d","x",null,"AV    Maatschappelijke vorming  ->  A-finaliteit","d",null,null,null,null,null,null,null,null,null,null,0]
[null,null,null,"Fietshersteller",null,0,null,null,1,null,1,null,1,null,1,null,1,null,1,null,1,null,1,null,1,null,"d","x",null,"AV    Natuurwetenschappen B (oud)  ->  A-finaliteit","d",null,null,null,null,null,null,null,null,null,null,0]
[null,null,null,"Fietshersteller",null,0,null,null,1,null,1,null,1,null,1,null,1,null,1,null,1,null,1,null,1,null,"d","x",null,"AV    Nederlands  ->  A-finaliteit","d",null,null,null,null,null,null,null,null,null,null,0]
[null,null,null,"Fietshersteller",null,0,null,null,1,null,1,null,1,null,1,null,1,null,1,null,1,null,1,null,1,null,"d","x",null,"AV    Wiskunde  ->  A-finaliteit","d",null,null,null,null,null,null,null,null,null,null,0]
[null,null,null,"Fietshersteller",null,0,null,null,1,null,1,null,1,null,1,null,1,null,1,null,1,null,1,null,1,null,"d","x",null,"SV    Fietshersteller  ->  A-finaliteit","d",null,null,null,null,null,null,null,null,null,null,0]
[null,null,null,"Fotografie",null,0,null,null,1,null,1,null,1,null,1,null,1,null,1,null,1,null,1,null,1,null,"d","x",null,"AV    Aardrijkskunde B  ->  D/A-finaliteit","d",null,null,null,null,null,null,null,null,null,null,0]
[null,null,null,"Fotografie",null,0,null,null,1,null,1,null,1,null,1,null,1,null,1,null,1,null,1,null,1,null,"d","x",null,"AV    Engels B  ->  D/A-finaliteit","d",null,null,null,null,null,null,null,null,null,null,0]
[null,null,null,"Fotografie",null,0,null,null,1,null,1,null,1,null,1,null,1,null,1,null,1,null,1,null,1,null,"d","x",null,"AV    Frans B  ->  D/A-finaliteit","d",null,null,null,null,null,null,null,null,null,null,0]
[null,null,null,"Fotografie",null,0,null,null,1,null,1,null,1,null,1,null,1,null,1,null,1,null,1,null,1,null,"d","x",null,"AV    Gemeenschappelijk funderend leerplan B  ->  D,- D/A-, A-finaliteit","d",null,null,null,null,null,null,null,null,null,null,0]
[null,null,null,"Fotografie",null,0,null,null,1,null,1,null,1,null,1,null,1,null,1,null,1,null,1,null,1,null,"d","x",null,"AV    Geschiedenis B  ->  D/A-finaliteit","d",null,null,null,null,null,null,null,null,null,null,0]
[null,null,null,"Fotografie",null,0,null,null,1,null,1,null,1,null,1,null,1,null,1,null,1,null,1,null,1,null,"d","x",null,"AV    Lichamelijke opvoeding B  ->  D-, D/A-, A-finaliteit","d",null,null,null,null,null,null,null,null,null,null,0]
[null,null,null,"Fotografie",null,0,null,null,1,null,1,null,1,null,1,null,1,null,1,null,1,null,1,null,1,null,"d","x",null,"AV    Natuurwetenschappen B  ->  D/A-finaliteit","d",null,null,null,null,null,null,null,null,null,null,0]
[null,null,null,"Fotografie",null,0,null,null,1,null,1,null,1,null,1,null,1,null,1,null,1,null,1,null,1,null,"d","x",null,"AV    Nederlands B  ->  D/A-finaliteit","d",null,null,null,null,null,null,null,null,null,null,0]
[null,null,null,"Fotografie",null,0,null,null,1,null,1,null,1,null,1,null,1,null,1,null,1,null,1,null,1,null,"d","x",null,"AV    Rooms-katholieke godsdienst - 1ste, 2de en 3de graad","d",null,null,null,null,null,null,null,null,null,null,0]
[null,null,null,"Fotografie",null,0,null,null,1,null,1,null,1,null,1,null,1,null,1,null,1,null,1,null,1,null,"d","x",null,"AV    Wiskunde  ->  D/A-finaliteit","d",null,null,null,null,null,null,null,null,null,null,0]
[null,null,null,"Fotografie",null,0,null,null,1,null,1,null,1,null,1,null,1,null,1,null,1,null,1,null,1,null,"d","x",null,"SV    Fotografie  ->  D/A-finaliteit","d",null,null,null,null,null,null,null,null,null,null,0]
[null,null,null,"Fotografie",null,0,null,null,1,null,1,null,1,null,1,null,1,null,1,null,1,null,1,null,1,null,"d","x",null,"CG    Artistieke vorming Co  ->  D-D/A-A-finaliteit","d",null,null,null,null,null,null,null,null,null,null,0]
[null,null,null,"Fotografie",null,0,null,null,1,null,1,null,1,null,1,null,1,null,1,null,1,null,1,null,1,null,"d","x",null,"CG    ICT Co  ->  D/DA/A-finaliteit","d",null,null,null,null,null,null,null,null,null,null,0]
[null,null,null,"Fotografie",null,0,null,null,1,null,1,null,1,null,1,null,1,null,1,null,1,null,1,null,1,null,"d","x",null,"CG    Mens en samenleving complementair  ->  D/DA-finaliteit","d",null,null,null,null,null,null,null,null,null,null,0]
[null,null,null,"Freinetpedagogie",null,0,null,null,1,null,1,null,1,null,1,null,1,null,1,null,1,null,1,null,1,null,"d","x",null,"AV    Aardrijkskunde B  ->  D-finaliteit","d",null,null,null,null,null,null,null,null,null,null,0]
[null,null,null,"Freinetpedagogie",null,0,null,null,1,null,1,null,1,null,1,null,1,null,1,null,1,null,1,null,1,null,"d","x",null,"AV    Engels B+  ->  D-finaliteit","d",null,null,null,null,null,null,null,null,null,null,0]
[null,null,null,"Freinetpedagogie",null,0,null,null,1,null,1,null,1,null,1,null,1,null,1,null,1,null,1,null,1,null,"d","x",null,"AV    Frans B+  ->  D-finaliteit","d",null,null,null,null,null,null,null,null,null,null,0]
[null,null,null,"Freinetpedagogie",null,0,null,null,1,null,1,null,1,null,1,null,1,null,1,null,1,null,1,null,1,null,"d","x",null,"AV    Gemeenschappelijk funderend leerplan B  ->  D,- D/A-, A-finaliteit","d",null,null,null,null,null,null,null,null,null,null,0]
[null,null,null,"Freinetpedagogie",null,0,null,null,1,null,1,null,1,null,1,null,1,null,1,null,1,null,1,null,1,null,"d","x",null,"AV    Geschiedenis  ->  D-finaliteit","d",null,null,null,null,null,null,null,null,null,null,0]
[null,null,null,"Freinetpedagogie",null,{"$f":"9-(I518+K518+M518+O518+Q518+S518+U518++Y518+W518)","v":0},null,null,1,null,1,null,1,null,1,null,1,null,1,null,1,null,1,null,1,null,"d","x",null,"AV    Geschiedenis B+  ->  D-finaliteit","d",null,null,null,null,null,null,null,null,null,null,0]
[null,null,null,"Freinetpedagogie",null,0,null,null,1,null,1,null,1,null,1,null,1,null,1,null,1,null,1,null,1,null,"d","x",null,"AV    Lichamelijke opvoeding B  ->  D-, D/A-, A-finaliteit","d",null,null,null,null,null,null,null,null,null,null,0]
[null,null,null,"Freinetpedagogie",null,0,null,null,1,null,1,null,1,null,1,null,1,null,1,null,1,null,1,null,1,null,"d","x",null,"AV    Natuurwetenschappen B+  ->  D-finaliteit","d",null,null,null,null,null,null,null,null,null,null,0]
[null,null,null,"Freinetpedagogie",null,0,null,null,1,null,1,null,1,null,1,null,1,null,1,null,1,null,1,null,1,null,"d","x",null,"AV    Rooms-katholieke godsdienst - 1ste, 2de en 3de graad","d",null,null,null,null,null,null,null,null,null,null,0]
[null,null,null,"Freinetpedagogie",null,0,null,null,1,null,1,null,1,null,1,null,1,null,1,null,1,null,1,null,1,null,"d","x",null,"SV    Nederlands B+S  ->  D-finaliteit","d",null,null,null,null,null,null,null,null,null,null,0]
[null,null,null,"Freinetpedagogie",null,0,null,null,1,null,1,null,1,null,1,null,1,null,1,null,1,null,1,null,1,null,"d","x",null,"SV    Wiskunde B+S  ->  D-finaliteit","d",null,null,null,null,null,null,null,null,null,null,0]
[null,null,null,"Freinetpedagogie",null,0,null,null,1,null,1,null,1,null,1,null,1,null,1,null,1,null,1,null,1,null,"d","x",null,"CG    Artistieke vorming Co  ->  D-D/A-A-finaliteit","d",null,null,null,null,null,null,null,null,null,null,0]
[null,null,null,"Freinetpedagogie",null,0,null,null,1,null,1,null,1,null,1,null,1,null,1,null,1,null,1,null,1,null,"d","x",null,"CG    ICT Co  ->  D/DA/A-finaliteit","d",null,null,null,null,null,null,null,null,null,null,0]
[null,null,null,"Freinetpedagogie",null,0,null,null,1,null,1,null,1,null,1,null,1,null,1,null,1,null,1,null,1,null,"d","x",null,"CG    Mens en samenleving complementair  ->  D/DA-finaliteit","d",null,null,null,null,null,null,null,null,null,null,0]
[null,null,null,"Grafische technieken",null,0,null,null,1,null,1,null,1,null,1,null,1,null,1,null,1,null,1,null,1,null,"d","x",null,"AV    Aardrijkskunde B  ->  D/A-finaliteit","d",null,null,null,null,null,null,null,null,null,null,0]
[null,null,null,"Grafische technieken",null,0,null,null,1,null,1,null,1,null,1,null,1,null,1,null,1,null,1,null,1,null,"d","x",null,"AV    Engels B  ->  D/A-finaliteit","d",null,null,null,null,null,null,null,null,null,null,0]
[null,null,null,"Grafische technieken",null,0,null,null,1,null,1,null,1,null,1,null,1,null,1,null,1,null,1,null,1,null,"d","x",null,"AV    Frans B  ->  D/A-finaliteit","d",null,null,null,null,null,null,null,null,null,null,0]
[null,null,null,"Grafische technieken",null,0,null,null,1,null,1,null,1,null,1,null,1,null,1,null,1,null,1,null,1,null,"d","x",null,"AV    Gemeenschappelijk funderend leerplan B  ->  D,- D/A-, A-finaliteit","d",null,null,null,null,null,null,null,null,null,null,0]
[null,null,null,"Grafische technieken",null,0,null,null,1,null,1,null,1,null,1,null,1,null,1,null,1,null,1,null,1,null,"d","x",null,"AV    Geschiedenis B  ->  D/A-finaliteit","d",null,null,null,null,null,null,null,null,null,null,0]
[null,null,null,"Grafische technieken",null,0,null,null,1,null,1,null,1,null,1,null,1,null,1,null,1,null,1,null,1,null,"d","x",null,"AV    Lichamelijke opvoeding B  ->  D-, D/A-, A-finaliteit","d",null,null,null,null,null,null,null,null,null,null,0]
[null,null,null,"Grafische technieken",null,0,null,null,1,null,1,null,1,null,1,null,1,null,1,null,1,null,1,null,1,null,"d","x",null,"AV    Natuurwetenschappen B  ->  D/A-finaliteit","d",null,null,null,null,null,null,null,null,null,null,0]
[null,null,null,"Grafische technieken",null,0,null,null,1,null,1,null,1,null,1,null,1,null,1,null,1,null,1,null,1,null,"d","x",null,"AV    Nederlands B  ->  D/A-finaliteit","d",null,null,null,null,null,null,null,null,null,null,0]
[null,null,null,"Grafische technieken",null,0,null,null,1,null,1,null,1,null,1,null,1,null,1,null,1,null,1,null,1,null,"d","x",null,"AV    Rooms-katholieke godsdienst - 1ste, 2de en 3de graad","d",null,null,null,null,null,null,null,null,null,null,0]
[null,null,null,"Grafische technieken",null,0,null,null,1,null,1,null,1,null,1,null,1,null,1,null,1,null,1,null,1,null,"d","x",null,"SV    Grafische technieken  ->   D/A-finaliteit","d",null,null,null,null,null,null,null,null,null,null,0]
[null,null,null,"Grafische technieken",null,0,null,null,1,null,1,null,1,null,1,null,1,null,1,null,1,null,1,null,1,null,"d","x",null,"SV    Wiskunde B+S  ->  D/A-finaliteit","d",null,null,null,null,null,null,null,null,null,null,0]
[null,null,null,"Grafische technieken",null,0,null,null,1,null,1,null,1,null,1,null,1,null,1,null,1,null,1,null,1,null,"d","x",null,"CG    Artistieke vorming Co  ->  D-D/A-A-finaliteit","d",null,null,null,null,null,null,null,null,null,null,0]
[null,null,null,"Grafische technieken",null,0,null,null,1,null,1,null,1,null,1,null,1,null,1,null,1,null,1,null,1,null,"d","x",null,"CG    ICT Co  ->  D/DA/A-finaliteit","d",null,null,null,null,null,null,null,null,null,null,0]
[null,null,null,"Grafische technieken",null,0,null,null,1,null,1,null,1,null,1,null,1,null,1,null,1,null,1,null,1,null,"d","x",null,"CG    Mens en samenleving complementair  ->  D/DA-finaliteit","d",null,null,null,null,null,null,null,null,null,null,0]
[null,null,null,"Grieks-Latijn",null,0,null,null,1,null,1,null,1,null,1,null,1,null,1,null,1,null,1,null,1,null,"d","x",null,"AV    Aardrijkskunde B  ->  D-finaliteit","d",null,null,null,null,null,null,null,null,null,null,0]
[null,null,null,"Grieks-Latijn",null,0,null,null,1,null,1,null,1,null,1,null,1,null,1,null,1,null,1,null,1,null,"d","x",null,"AV    Engels B+  ->  D-finaliteit","d",null,null,null,null,null,null,null,null,null,null,0]
[null,null,null,"Grieks-Latijn",null,0,null,null,1,null,1,null,1,null,1,null,1,null,1,null,1,null,1,null,1,null,"d","x",null,"AV    Frans B+  ->  D-finaliteit","d",null,null,null,null,null,null,null,null,null,null,0]
[null,null,null,"Grieks-Latijn",null,0,null,null,1,null,1,null,1,null,1,null,1,null,1,null,1,null,1,null,1,null,"d","x",null,"AV    Gemeenschappelijk funderend leerplan B  ->  D,- D/A-, A-finaliteit","d",null,null,null,null,null,null,null,null,null,null,0]
[null,null,null,"Grieks-Latijn",null,0,null,null,1,null,1,null,1,null,1,null,1,null,1,null,1,null,1,null,1,null,"d","x",null,"AV    Geschiedenis B+  ->  D-finaliteit","d",null,null,null,null,null,null,null,null,null,null,0]
[null,null,null,"Grieks-Latijn",null,0,null,null,{"$f":"COUNTBLANK(H546)","v":1},null,{"$f":"COUNTBLANK(J546)","v":1},null,{"$f":"COUNTBLANK(L546)","v":1},null,{"$f":"COUNTBLANK(N546)","v":1},null,{"$f":"COUNTBLANK(P546)","v":1},null,{"$f":"COUNTBLANK(R546)","v":1},null,{"$f":"COUNTBLANK(T546)","v":1},null,{"$f":"COUNTBLANK(V546)","v":1},null,{"$f":"COUNTBLANK(X546)","v":1},null,"d","x",null,"AV    Lichamelijke opvoeding B  ->  D-, D/A-, A-finaliteit","d",null,null,null,null,null,null,null,null,null,null,0]
[null,null,null,"Grieks-Latijn",null,0,null,null,1,null,1,null,1,null,1,null,1,null,1,null,1,null,1,null,1,null,"d","x",null,"AV    Natuurwetenschappen B+  ->  D-finaliteit","d",null,null,null,null,null,null,null,null,null,null,0]
[null,null,null,"Grieks-Latijn",null,0,null,null,1,null,1,null,1,null,1,null,1,null,1,null,1,null,1,null,1,null,"d","x",null,"AV    Nederlands B+  ->  D-finaliteit","d",null,null,null,null,null,null,null,null,null,null,0]
[null,null,null,"Grieks-Latijn",null,0,null,null,1,null,1,null,1,null,1,null,1,null,1,null,1,null,1,null,1,null,"d","x",null,"AV    Rooms-katholieke godsdienst - 1ste, 2de en 3de graad","d",null,null,null,null,null,null,null,null,null,null,0]
[null,null,null,"Grieks-Latijn",null,0,null,null,1,null,1,null,1,null,1,null,1,null,1,null,1,null,1,null,1,null,"d","x",null,"SV    Grieks  ->  D-finaliteit","d",null,null,null,null,null,null,null,null,null,null,0]
[null,null,null,"Grieks-Latijn",null,0,null,null,1,null,1,null,1,null,1,null,1,null,1,null,1,null,1,null,1,null,"d","x",null,"SV    Latijn  ->  D-finaliteit","d",null,null,null,null,null,null,null,null,null,null,0]
[null,null,null,"Grieks-Latijn",null,0,null,null,1,null,1,null,1,null,1,null,1,null,1,null,1,null,1,null,1,null,"d","x",null,"SV    Wiskunde B+S  ->  D-finaliteit","d",null,null,null,null,null,null,null,null,null,null,0]
[null,null,null,"Grieks-Latijn",null,0,null,null,1,null,1,null,1,null,1,null,1,null,1,null,1,null,1,null,1,null,"d","x",null,"CG    Artistieke vorming Co  ->  D-D/A-A-finaliteit","d",null,null,null,null,null,null,null,null,null,null,0]
[null,null,null,"Grieks-Latijn",null,0,null,null,1,null,1,null,1,null,1,null,1,null,1,null,1,null,1,null,1,null,"d","x",null,"CG    Duits Co  ->  D-D/A-finaliteit","d",null,null,null,null,null,null,null,null,null,null,0]
[null,null,null,"Grieks-Latijn",null,0,null,null,1,null,1,null,1,null,1,null,1,null,1,null,1,null,1,null,1,null,"d","x",null,"CG    ICT Co  ->  D/DA/A-finaliteit","d",null,null,null,null,null,null,null,null,null,null,0]
[null,null,null,"Grieks-Latijn",null,0,null,null,1,null,1,null,1,null,1,null,1,null,1,null,1,null,1,null,1,null,"d","x",null,"CG    Mens en samenleving complementair  ->  D/DA-finaliteit","d",null,null,null,null,null,null,null,null,null,null,0]
[null,null,null,"Haar- en schoonheidsverzorging",null,0,null,null,1,null,1,null,1,null,1,null,1,null,1,null,1,null,1,null,1,null,"d","x",null,"AV    Engels B  ->  A-finaliteit","d",null,null,null,null,null,null,null,null,null,null,0]
[null,null,null,"Haar- en schoonheidsverzorging",null,0,null,null,1,null,1,null,1,null,1,null,1,null,1,null,1,null,1,null,1,null,"d","x",null,"AV    Frans B  ->  A-finaliteit","d",null,null,null,null,null,null,null,null,null,null,0]
[null,null,null,"Haar- en schoonheidsverzorging",null,0,null,null,1,null,1,null,1,null,1,null,1,null,1,null,1,null,1,null,1,null,"d","x",null,"AV    Gemeenschappelijk funderend leerplan B  ->  D,- D/A-, A-finaliteit","d",null,null,null,null,null,null,null,null,null,null,0]
[null,null,null,"Haar- en schoonheidsverzorging",null,0,null,null,1,null,1,null,1,null,1,null,1,null,1,null,1,null,1,null,1,null,"d","x",null,"AV    Lichamelijke opvoeding B  ->  D-, D/A-, A-finaliteit","d",null,null,null,null,null,null,null,null,null,null,0]
[null,null,null,"Haar- en schoonheidsverzorging",null,0,null,null,1,null,1,null,1,null,1,null,1,null,1,null,1,null,1,null,1,null,"d","x",null,"AV    Maatschappelijke vorming  ->  A-finaliteit","d",null,null,null,null,null,null,null,null,null,null,0]
[null,null,null,"Haar- en schoonheidsverzorging",null,0,null,null,1,null,1,null,1,null,1,null,1,null,1,null,1,null,1,null,1,null,"d","x",null,"AV    Natuurwetenschappen B (oud)  ->  A-finaliteit","d",null,null,null,null,null,null,null,null,null,null,0]
[null,null,null,"Haar- en schoonheidsverzorging",null,0,null,null,1,null,1,null,1,null,1,null,1,null,1,null,1,null,1,null,1,null,"d","x",null,"AV    Nederlands  ->  A-finaliteit","d",null,null,null,null,null,null,null,null,null,null,0]
[null,null,null,"Haar- en schoonheidsverzorging",null,0,null,null,1,null,1,null,1,null,1,null,1,null,1,null,1,null,1,null,1,null,"d","x",null,"AV    Rooms-katholieke godsdienst - 1ste, 2de en 3de graad","d",null,null,null,null,null,null,null,null,null,null,0]
[null,null,null,"Haar- en schoonheidsverzorging",null,0,null,null,1,null,1,null,1,null,1,null,1,null,1,null,1,null,1,null,1,null,"d","x",null,"AV    Wiskunde  ->  A-finaliteit","d",null,null,null,null,null,null,null,null,null,null,0]
[null,null,null,"Haar- en schoonheidsverzorging",null,0,null,null,1,null,1,null,1,null,1,null,1,null,1,null,1,null,1,null,1,null,"d","x",null,"SV    Haar- en schoonheidSV    erzorging  ->  A-finaliteit","d",null,null,null,null,null,null,null,null,null,null,0]
[null,null,null,"Haar- en schoonheidsverzorging",null,0,null,null,1,null,1,null,1,null,1,null,1,null,1,null,1,null,1,null,1,null,"d","x",null,"CG    Artistieke vorming Co  ->  D-D/A-A-finaliteit","d",null,null,null,null,null,null,null,null,null,null,0]
[null,null,null,"Haar- en schoonheidsverzorging",null,0,null,null,1,null,1,null,1,null,1,null,1,null,1,null,1,null,1,null,1,null,"d","x",null,"CG    ICT Co  ->  D/DA/A-finaliteit","d",null,null,null,null,null,null,null,null,null,null,0]
[null,null,null,"Hoeknaadlasser",null,0,null,null,1,null,1,null,1,null,1,null,1,null,1,null,1,null,1,null,1,null,"d","x",null,"AV    Engels B  ->  A-finaliteit","d",null,null,null,null,null,null,null,null,null,null,0]
[null,null,null,"Hoeknaadlasser",null,0,null,null,1,null,1,null,1,null,1,null,1,null,1,null,1,null,1,null,1,null,"d","x",null,"AV    Frans B  ->  A-finaliteit","d",null,null,null,null,null,null,null,null,null,null,0]
[null,null,null,"Hoeknaadlasser",null,0,null,null,1,null,1,null,1,null,1,null,1,null,1,null,1,null,1,null,1,null,"d","x",null,"AV    Gemeenschappelijk funderend leerplan B  ->  D,- D/A-, A-finaliteit","d",null,null,null,null,null,null,null,null,null,null,0]
[null,null,null,"Hoeknaadlasser",null,0,null,null,1,null,1,null,1,null,1,null,1,null,1,null,1,null,1,null,1,null,"d","x",null,"AV    Maatschappelijke vorming  ->  A-finaliteit","d",null,null,null,null,null,null,null,null,null,null,0]
[null,null,null,"Hoeknaadlasser",null,0,null,null,1,null,1,null,1,null,1,null,1,null,1,null,1,null,1,null,1,null,"d","x",null,"AV    Natuurwetenschappen B (oud)  ->  A-finaliteit","d",null,null,null,null,null,null,null,null,null,null,0]
[null,null,null,"Hoeknaadlasser",null,0,null,null,1,null,1,null,1,null,1,null,1,null,1,null,1,null,1,null,1,null,"d","x",null,"AV    Nederlands  ->  A-finaliteit","d",null,null,null,null,null,null,null,null,null,null,0]
[null,null,null,"Hoeknaadlasser",null,0,null,null,1,null,1,null,1,null,1,null,1,null,1,null,1,null,1,null,1,null,"d","x",null,"AV    Wiskunde  ->  A-finaliteit","d",null,null,null,null,null,null,null,null,null,null,0]
[null,null,null,"Hoeknaadlasser",null,0,null,null,1,null,1,null,1,null,1,null,1,null,1,null,1,null,1,null,1,null,"d","x",null,"SV    Hoeknaadlasser  ->  A-finaliteit","d",null,null,null,null,null,null,null,null,null,null,0]
[null,null,null,"Horeca",null,0,null,null,1,null,1,null,1,null,1,null,1,null,1,null,1,null,1,null,1,null,"d","x",null,"AV    Aardrijkskunde B  ->  D/A-finaliteit","d",null,null,null,null,null,null,null,null,null,null,0]
[null,null,null,"Horeca",null,0,null,null,1,null,1,null,1,null,1,null,1,null,1,null,1,null,1,null,1,null,"d","x",null,"AV    Gemeenschappelijk funderend leerplan B  ->  D,- D/A-, A-finaliteit","d",null,null,null,null,null,null,null,null,null,null,0]
[null,null,null,"Horeca",null,0,null,null,1,null,1,null,1,null,1,null,1,null,1,null,1,null,1,null,1,null,"d","x",null,"AV    Geschiedenis B  ->  D/A-finaliteit","d",null,null,null,null,null,null,null,null,null,null,0]
[null,null,null,"Horeca",null,0,null,null,1,null,1,null,1,null,1,null,1,null,1,null,1,null,1,null,1,null,"d","x",null,"AV    Lichamelijke opvoeding B  ->  D-, D/A-, A-finaliteit","d",null,null,null,null,null,null,null,null,null,null,0]
[null,null,null,"Horeca",null,0,null,null,1,null,1,null,1,null,1,null,1,null,1,null,1,null,1,null,1,null,"d","x",null,"AV    Natuurwetenschappen B  ->  D/A-finaliteit","d",null,null,null,null,null,null,null,null,null,null,0]
[null,null,null,"Horeca",null,{"$f":"9-(I582+K582+M582+O582+Q582+S582+U582++Y582+W582)","v":0},null,null,1,null,1,null,1,null,1,null,1,null,1,null,1,null,1,null,1,null,"d","x",null,"AV    Nederlands B  ->  D/A-finaliteit","d",null,null,null,null,null,null,null,null,null,null,0]
[null,null,null,"Horeca",null,0,null,null,1,null,1,null,1,null,1,null,1,null,1,null,1,null,1,null,1,null,"d","x",null,"AV    Rooms-katholieke godsdienst - 1ste, 2de en 3de graad","d",null,null,null,null,null,null,null,null,null,null,0]
[null,null,null,"Horeca",null,0,null,null,1,null,1,null,1,null,1,null,1,null,1,null,1,null,1,null,1,null,"d","x",null,"AV    Wiskunde  ->  D/A-finaliteit","d",null,null,null,null,null,null,null,null,null,null,0]
[null,null,null,"Horeca",null,0,null,null,1,null,1,null,1,null,1,null,1,null,1,null,1,null,1,null,1,null,"d","x",null,"SV    Engels B+S'  ->  D/A-finaliteit","d",null,null,null,null,null,null,null,null,null,null,0]
[null,null,null,"Horeca",null,0,null,null,1,null,1,null,1,null,1,null,1,null,1,null,1,null,1,null,1,null,"d","x",null,"SV    Frans B+S'  ->  D/A-finaliteit","d",null,null,null,null,null,null,null,null,null,null,0]
[null,null,null,"Horeca",null,0,null,null,1,null,1,null,1,null,1,null,1,null,1,null,1,null,1,null,1,null,"d","x",null,"SV    Horeca  ->  D/A-finaliteit","d",null,null,null,null,null,null,null,null,null,null,0]
[null,null,null,"Horeca",null,0,null,null,1,null,1,null,1,null,1,null,1,null,1,null,1,null,1,null,1,null,"d","x",null,"CG    Artistieke vorming Co  ->  D-D/A-A-finaliteit","d",null,null,null,null,null,null,null,null,null,null,0]
[null,null,null,"Horeca",null,0,null,null,1,null,1,null,1,null,1,null,1,null,1,null,1,null,1,null,1,null,"d","x",null,"CG    ICT Co  ->  D/DA/A-finaliteit","d",null,null,null,null,null,null,null,null,null,null,0]
[null,null,null,"Horeca",null,0,null,null,1,null,1,null,1,null,1,null,1,null,1,null,1,null,1,null,1,null,"d","x",null,"CG    Mens en samenleving complementair  ->  D/DA-finaliteit","d",null,null,null,null,null,null,null,null,null,null,0]
[null,null,null,"Hout",null,0,null,null,1,null,1,null,1,null,1,null,1,null,1,null,1,null,1,null,1,null,"d","x",null,"AV    Engels B  ->  A-finaliteit","d",null,null,null,null,null,null,null,null,null,null,0]
[null,null,null,"Hout",null,0,null,null,1,null,1,null,1,null,1,null,1,null,1,null,1,null,1,null,1,null,"d","x",null,"AV    Frans B  ->  A-finaliteit","d",null,null,null,null,null,null,null,null,null,null,0]
[null,null,null,"Hout",null,0,null,null,1,null,1,null,1,null,1,null,1,null,1,null,1,null,1,null,1,null,"d","x",null,"AV    Gemeenschappelijk funderend leerplan B  ->  D,- D/A-, A-finaliteit","d",null,null,null,null,null,null,null,null,null,null,0]
[null,null,null,"Hout",null,0,null,null,1,null,1,null,1,null,1,null,1,null,1,null,1,null,1,null,1,null,"d","x",null,"AV    Lichamelijke opvoeding B  ->  D-, D/A-, A-finaliteit","d",null,null,null,null,null,null,null,null,null,null,0]
[null,null,null,"Hout",null,0,null,null,1,null,1,null,1,null,1,null,1,null,1,null,1,null,1,null,1,null,"d","x",null,"AV    Maatschappelijke vorming  ->  A-finaliteit","d",null,null,null,null,null,null,null,null,null,null,0]
[null,null,null,"Hout",null,0,null,null,1,null,1,null,1,null,1,null,1,null,1,null,1,null,1,null,1,null,"d","x",null,"AV    Natuurwetenschappen B (oud)  ->  A-finaliteit","d",null,null,null,null,null,null,null,null,null,null,0]
[null,null,null,"Hout",null,0,null,null,1,null,1,null,1,null,1,null,1,null,1,null,1,null,1,null,1,null,"d","x",null,"AV    Nederlands  ->  A-finaliteit","d",null,null,null,null,null,null,null,null,null,null,0]
[null,null,null,"Hout",null,0,null,null,1,null,1,null,1,null,1,null,1,null,1,null,1,null,1,null,1,null,"d","x",null,"AV    Rooms-katholieke godsdienst - 1ste, 2de en 3de graad","d",null,null,null,null,null,null,null,null,null,null,0]
[null,null,null,"Hout",null,0,null,null,1,null,1,null,1,null,1,null,1,null,1,null,1,null,1,null,1,null,"d","x",null,"AV    Wiskunde  ->  A-finaliteit","d",null,null,null,null,null,null,null,null,null,null,0]
[null,null,null,"Hout",null,0,null,null,1,null,1,null,1,null,1,null,1,null,1,null,1,null,1,null,1,null,"d","x",null,"SV    Hout  ->  A-finaliteit","d",null,null,null,null,null,null,null,null,null,null,0]
[null,null,null,"Hout",null,0,null,null,1,null,1,null,1,null,1,null,1,null,1,null,1,null,1,null,1,null,"d","x",null,"CG    Artistieke vorming Co  ->  D-D/A-A-finaliteit","d",null,null,null,null,null,null,null,null,null,null,0]
[null,null,null,"Hout",null,0,null,null,1,null,1,null,1,null,1,null,1,null,1,null,1,null,1,null,1,null,"d","x",null,"CG    ICT Co  ->  D/DA/A-finaliteit","d",null,null,null,null,null,null,null,null,null,null,0]
[null,null,null,"Houttechnieken",null,0,null,null,1,null,1,null,1,null,1,null,1,null,1,null,1,null,1,null,1,null,"d","x",null,"AV    Aardrijkskunde B  ->  D/A-finaliteit","d",null,null,null,null,null,null,null,null,null,null,0]
[null,null,null,"Houttechnieken",null,0,null,null,1,null,1,null,1,null,1,null,1,null,1,null,1,null,1,null,1,null,"d","x",null,"AV    Engels B  ->  D/A-finaliteit","d",null,null,null,null,null,null,null,null,null,null,0]
[null,null,null,"Houttechnieken",null,0,null,null,1,null,1,null,1,null,1,null,1,null,1,null,1,null,1,null,1,null,"d","x",null,"AV    Frans B  ->  D/A-finaliteit","d",null,null,null,null,null,null,null,null,null,null,0]
[null,null,null,"Houttechnieken",null,0,null,null,1,null,1,null,1,null,1,null,1,null,1,null,1,null,1,null,1,null,"d","x",null,"AV    Gemeenschappelijk funderend leerplan B  ->  D,- D/A-, A-finaliteit","d",null,null,null,null,null,null,null,null,null,null,0]
[null,null,null,"Houttechnieken",null,0,null,null,1,null,1,null,1,null,1,null,1,null,1,null,1,null,1,null,1,null,"d","x",null,"AV    Geschiedenis B  ->  D/A-finaliteit","d",null,null,null,null,null,null,null,null,null,null,0]
[null,null,null,"Houttechnieken",null,0,null,null,1,null,1,null,1,null,1,null,1,null,1,null,1,null,1,null,1,null,"d","x",null,"AV    Lichamelijke opvoeding B  ->  D-, D/A-, A-finaliteit","d",null,null,null,null,null,null,null,null,null,null,0]
[null,null,null,"Houttechnieken",null,0,null,null,1,null,1,null,1,null,1,null,1,null,1,null,1,null,1,null,1,null,"d","x",null,"AV    Natuurwetenschappen B'  ->  D/A-finaliteit","d",null,null,null,null,null,null,null,null,null,null,0]
[null,null,null,"Houttechnieken",null,0,null,null,{"$f":"COUNTBLANK(H610)","v":1},null,{"$f":"COUNTBLANK(J610)","v":1},null,{"$f":"COUNTBLANK(L610)","v":1},null,{"$f":"COUNTBLANK(N610)","v":1},null,{"$f":"COUNTBLANK(P610)","v":1},null,{"$f":"COUNTBLANK(R610)","v":1},null,{"$f":"COUNTBLANK(T610)","v":1},null,{"$f":"COUNTBLANK(V610)","v":1},null,{"$f":"COUNTBLANK(X610)","v":1},null,"d","x",null,"AV    Nederlands B  ->  D/A-finaliteit","d",null,null,null,null,null,null,null,null,null,null,0]
[null,null,null,"Houttechnieken",null,0,null,null,1,null,1,null,1,null,1,null,1,null,1,null,1,null,1,null,1,null,"d","x",null,"AV    Rooms-katholieke godsdienst - 1ste, 2de en 3de graad","d",null,null,null,null,null,null,null,null,null,null,0]
[null,null,null,"Houttechnieken",null,0,null,null,1,null,1,null,1,null,1,null,1,null,1,null,1,null,1,null,1,null,"d","x",null,"SV    Houttechnieken B+S  ->  D/A-finaliteit","d",null,null,null,null,null,null,null,null,null,null,0]
[null,null,null,"Houttechnieken",null,0,null,null,1,null,1,null,1,null,1,null,1,null,1,null,1,null,1,null,1,null,"d","x",null,"SV    Wiskunde B+S  ->  D/A-finaliteit","d",null,null,null,null,null,null,null,null,null,null,0]
[null,null,null,"Houttechnieken",null,0,null,null,1,null,1,null,1,null,1,null,1,null,1,null,1,null,1,null,1,null,"d","x",null,"CG    Artistieke vorming Co  ->  D-D/A-A-finaliteit","d",null,null,null,null,null,null,null,null,null,null,0]
[null,null,null,"Houttechnieken",null,0,null,null,1,null,1,null,1,null,1,null,1,null,1,null,1,null,1,null,1,null,"d","x",null,"CG    ICT Co  ->  D/DA/A-finaliteit","d",null,null,null,null,null,null,null,null,null,null,0]
[null,null,null,"Houttechnieken",null,0,null,null,1,null,1,null,1,null,1,null,1,null,1,null,1,null,1,null,1,null,"d","x",null,"CG    Mens en samenleving complementair  ->  D/DA-finaliteit","d",null,null,null,null,null,null,null,null,null,null,0]
[null,null,null,"Hulpkelner",null,0,null,null,1,null,1,null,1,null,1,null,1,null,1,null,1,null,1,null,1,null,"d","x",null,"AV    Engels B  ->  A-finaliteit","d",null,null,null,null,null,null,null,null,null,null,0]
[null,null,null,"Hulpkelner",null,0,null,null,1,null,1,null,1,null,1,null,1,null,1,null,1,null,1,null,1,null,"d","x",null,"AV    Frans B  ->  A-finaliteit","d",null,null,null,null,null,null,null,null,null,null,0]
[null,null,null,"Hulpkelner",null,0,null,null,1,null,1,null,1,null,1,null,1,null,1,null,1,null,1,null,1,null,"d","x",null,"AV    Gemeenschappelijk funderend leerplan B  ->  D,- D/A-, A-finaliteit","d",null,null,null,null,null,null,null,null,null,null,0]
[null,null,null,"Hulpkelner",null,0,null,null,1,null,1,null,1,null,1,null,1,null,1,null,1,null,1,null,1,null,"d","x",null,"AV    Maatschappelijke vorming  ->  A-finaliteit","d",null,null,null,null,null,null,null,null,null,null,0]
[null,null,null,"Hulpkelner",null,0,null,null,1,null,1,null,1,null,1,null,1,null,1,null,1,null,1,null,1,null,"d","x",null,"AV    Natuurwetenschappen B (oud)  ->  A-finaliteit","d",null,null,null,null,null,null,null,null,null,null,0]
[null,null,null,"Hulpkelner",null,0,null,null,1,null,1,null,1,null,1,null,1,null,1,null,1,null,1,null,1,null,"d","x",null,"AV    Nederlands  ->  A-finaliteit","d",null,null,null,null,null,null,null,null,null,null,0]
[null,null,null,"Hulpkelner",null,0,null,null,1,null,1,null,1,null,1,null,1,null,1,null,1,null,1,null,1,null,"d","x",null,"AV    Wiskunde  ->  A-finaliteit","d",null,null,null,null,null,null,null,null,null,null,0]
[null,null,null,"Hulpkelner",null,0,null,null,1,null,1,null,1,null,1,null,1,null,1,null,1,null,1,null,1,null,"d","x",null,"SV    Hulpkelner  ->  A-finaliteit","d",null,null,null,null,null,null,null,null,null,null,0]
[null,null,null,"Humane wetenschappen",null,0,null,null,1,null,1,null,1,null,1,null,1,null,1,null,1,null,1,null,1,null,"d","x",null,"AV    Aardrijkskunde B  ->  D-finaliteit","d",null,null,null,null,null,null,null,null,null,null,0]
[null,null,null,"Humane wetenschappen",null,0,null,null,1,null,1,null,1,null,1,null,1,null,1,null,1,null,1,null,1,null,"d","x",null,"AV    Engels B+  ->  D-finaliteit","d",null,null,null,null,null,null,null,null,null,null,0]
[null,null,null,"Humane wetenschappen",null,0,null,null,1,null,1,null,1,null,1,null,1,null,1,null,1,null,1,null,1,null,"d","x",null,"AV    Frans B+  ->  D-finaliteit","d",null,null,null,null,null,null,null,null,null,null,0]
[null,null,null,"Humane wetenschappen",null,0,null,null,1,null,1,null,1,null,1,null,1,null,1,null,1,null,1,null,1,null,"d","x",null,"AV    Gemeenschappelijk funderend leerplan B  ->  D,- D/A-, A-finaliteit","d",null,null,null,null,null,null,null,null,null,null,0]
[null,null,null,"Humane wetenschappen",null,0,null,null,1,null,1,null,1,null,1,null,1,null,1,null,1,null,1,null,1,null,"d","x",null,"AV    Geschiedenis B+  ->  D-finaliteit","d",null,null,null,null,null,null,null,null,null,null,0]
[null,null,null,"Humane wetenschappen",null,0,null,null,1,null,1,null,1,null,1,null,1,null,1,null,1,null,1,null,1,null,"d","x",null,"AV    Lichamelijke opvoeding B  ->  D-, D/A-, A-finaliteit","d",null,null,null,null,null,null,null,null,null,null,0]
[null,null,null,"Humane wetenschappen",null,0,null,null,1,null,1,null,1,null,1,null,1,null,1,null,1,null,1,null,1,null,"d","x",null,"AV    Natuurwetenschappen B+  ->  D-finaliteit","d",null,null,null,null,null,null,null,null,null,null,0]
[null,null,null,"Humane wetenschappen",null,0,null,null,1,null,1,null,1,null,1,null,1,null,1,null,1,null,1,null,1,null,"d","x",null,"AV    Nederlands B+  ->  D-finaliteit","d",null,null,null,null,null,null,null,null,null,null,0]
[null,null,null,"Humane wetenschappen",null,0,null,null,1,null,1,null,1,null,1,null,1,null,1,null,1,null,1,null,1,null,"d","x",null,"AV    Rooms-katholieke godsdienst - 1ste, 2de en 3de graad","d",null,null,null,null,null,null,null,null,null,null,0]
[null,null,null,"Humane wetenschappen",null,0,null,null,1,null,1,null,1,null,1,null,1,null,1,null,1,null,1,null,1,null,"d","x",null,"AV    Wiskunde B+  ->  D-finaliteit","d",null,null,null,null,null,null,null,null,null,null,0]
[null,null,null,"Humane wetenschappen",null,0,null,null,1,null,1,null,1,null,1,null,1,null,1,null,1,null,1,null,1,null,"d","x",null,"SV    Filosofie  ->  D-finaliteit","d",null,null,null,null,null,null,null,null,null,null,0]
[null,null,null,"Humane wetenschappen",null,0,null,null,1,null,1,null,1,null,1,null,1,null,1,null,1,null,1,null,1,null,"d","x",null,"SV    Kunstbeschouwing  ->  D-finaliteit","d",null,null,null,null,null,null,null,null,null,null,0]
[null,null,null,"Humane wetenschappen",null,0,null,null,1,null,1,null,1,null,1,null,1,null,1,null,1,null,1,null,1,null,"d","x",null,"SV    Sociologie en psychologie  ->  D-finaliteit","d",null,null,null,null,null,null,null,null,null,null,0]
[null,null,null,"Humane wetenschappen",null,0,null,null,1,null,1,null,1,null,1,null,1,null,1,null,1,null,1,null,1,null,"d","x",null,"CG    Artistieke vorming Co  ->  D-D/A-A-finaliteit","d",null,null,null,null,null,null,null,null,null,null,0]
[null,null,null,"Humane wetenschappen",null,0,null,null,1,null,1,null,1,null,1,null,1,null,1,null,1,null,1,null,1,null,"d","x",null,"CG    Duits Co  ->  D-D/A-finaliteit","d",null,null,null,null,null,null,null,null,null,null,0]
[null,null,null,"Humane wetenschappen",null,0,null,null,1,null,1,null,1,null,1,null,1,null,1,null,1,null,1,null,1,null,"d","x",null,"CG    ICT Co  ->  D/DA/A-finaliteit","d",null,null,null,null,null,null,null,null,null,null,0]
[null,null,null,"Humane wetenschappen",null,0,null,null,1,null,1,null,1,null,1,null,1,null,1,null,1,null,1,null,1,null,"d","x",null,"CG    Mens en samenleving complementair  ->  D/DA-finaliteit","d",null,null,null,null,null,null,null,null,null,null,0]
[null,null,null,"Installateur elektrotechnische basiscomponenten",null,0,null,null,1,null,1,null,1,null,1,null,1,null,1,null,1,null,1,null,1,null,"d","x",null,"AV    Engels B  ->  A-finaliteit","d",null,null,null,null,null,null,null,null,null,null,0]
[null,null,null,"Installateur elektrotechnische basiscomponenten",null,0,null,null,1,null,1,null,1,null,1,null,1,null,1,null,1,null,1,null,1,null,"d","x",null,"AV    Frans B  ->  A-finaliteit","d",null,null,null,null,null,null,null,null,null,null,0]
[null,null,null,"Installateur elektrotechnische basiscomponenten",null,0,null,null,1,null,1,null,1,null,1,null,1,null,1,null,1,null,1,null,1,null,"d","x",null,"AV    Gemeenschappelijk funderend leerplan B  ->  D,- D/A-, A-finaliteit","d",null,null,null,null,null,null,null,null,null,null,0]
[null,null,null,"Installateur elektrotechnische basiscomponenten",null,0,null,null,1,null,1,null,1,null,1,null,1,null,1,null,1,null,1,null,1,null,"d","x",null,"AV    Maatschappelijke vorming  ->  A-finaliteit","d",null,null,null,null,null,null,null,null,null,null,0]
[null,null,null,"Installateur elektrotechnische basiscomponenten",null,{"$f":"9-(I646+K646+M646+O646+Q646+S646+U646++Y646+W646)","v":0},null,null,1,null,1,null,1,null,1,null,1,null,1,null,1,null,1,null,1,null,"d","x",null,"AV    Natuurwetenschappen B (oud)  ->  A-finaliteit","d",null,null,null,null,null,null,null,null,null,null,0]
[null,null,null,"Installateur elektrotechnische basiscomponenten",null,0,null,null,1,null,1,null,1,null,1,null,1,null,1,null,1,null,1,null,1,null,"d","x",null,"AV    Nederlands  ->  A-finaliteit","d",null,null,null,null,null,null,null,null,null,null,0]
[null,null,null,"Installateur elektrotechnische basiscomponenten",null,0,null,null,1,null,1,null,1,null,1,null,1,null,1,null,1,null,1,null,1,null,"d","x",null,"AV    Wiskunde  ->  A-finaliteit","d",null,null,null,null,null,null,null,null,null,null,0]
[null,null,null,"Installateur elektrotechnische basiscomponenten",null,0,null,null,1,null,1,null,1,null,1,null,1,null,1,null,1,null,1,null,1,null,"d","x",null,"SV    Installateur elektrotechnische basiscomponenten  ->  A-finaliteit","d",null,null,null,null,null,null,null,null,null,null,0]
[null,null,null,"Keukenmedewerker",null,0,null,null,1,null,1,null,1,null,1,null,1,null,1,null,1,null,1,null,1,null,"d","x",null,"AV    Engels B  ->  A-finaliteit","d",null,null,null,null,null,null,null,null,null,null,0]
[null,null,null,"Keukenmedewerker",null,0,null,null,1,null,1,null,1,null,1,null,1,null,1,null,1,null,1,null,1,null,"d","x",null,"AV    Frans B  ->  A-finaliteit","d",null,null,null,null,null,null,null,null,null,null,0]
[null,null,null,"Keukenmedewerker",null,0,null,null,1,null,1,null,1,null,1,null,1,null,1,null,1,null,1,null,1,null,"d","x",null,"AV    Gemeenschappelijk funderend leerplan B  ->  D,- D/A-, A-finaliteit","d",null,null,null,null,null,null,null,null,null,null,0]
[null,null,null,"Keukenmedewerker",null,0,null,null,1,null,1,null,1,null,1,null,1,null,1,null,1,null,1,null,1,null,"d","x",null,"AV    Maatschappelijke vorming  ->  A-finaliteit","d",null,null,null,null,null,null,null,null,null,null,0]
[null,null,null,"Keukenmedewerker",null,0,null,null,1,null,1,null,1,null,1,null,1,null,1,null,1,null,1,null,1,null,"d","x",null,"AV    Natuurwetenschappen B (oud)  ->  A-finaliteit","d",null,null,null,null,null,null,null,null,null,null,0]
[null,null,null,"Keukenmedewerker",null,0,null,null,1,null,1,null,1,null,1,null,1,null,1,null,1,null,1,null,1,null,"d","x",null,"AV    Nederlands  ->  A-finaliteit","d",null,null,null,null,null,null,null,null,null,null,0]
[null,null,null,"Keukenmedewerker",null,0,null,null,1,null,1,null,1,null,1,null,1,null,1,null,1,null,1,null,1,null,"d","x",null,"AV    Wiskunde  ->  A-finaliteit","d",null,null,null,null,null,null,null,null,null,null,0]
[null,null,null,"Keukenmedewerker",null,0,null,null,1,null,1,null,1,null,1,null,1,null,1,null,1,null,1,null,1,null,"d","x",null,"SV    Keukenmedewerker S  ->  A-finaliteit","d",null,null,null,null,null,null,null,null,null,null,0]
[null,null,null,"Latijn",null,0,null,null,1,null,1,null,1,null,1,null,1,null,1,null,1,null,1,null,1,null,"d","x",null,"AV    Aardrijkskunde B  ->  D-finaliteit","d",null,null,null,null,null,null,null,null,null,null,0]
[null,null,null,"Latijn",null,0,null,null,1,null,1,null,1,null,1,null,1,null,1,null,1,null,1,null,1,null,"d","x",null,"AV    Engels B+  ->  D-finaliteit","d",null,null,null,null,null,null,null,null,null,null,0]
[null,null,null,"Latijn",null,0,null,null,1,null,1,null,1,null,1,null,1,null,1,null,1,null,1,null,1,null,"d","x",null,"AV    Frans B+  ->  D-finaliteit","d",null,null,null,null,null,null,null,null,null,null,0]
[null,null,null,"Latijn",null,0,null,null,1,null,1,null,1,null,1,null,1,null,1,null,1,null,1,null,1,null,"d","x",null,"AV    Gemeenschappelijk funderend leerplan B  ->  D,- D/A-, A-finaliteit","d",null,null,null,null,null,null,null,null,null,null,0]
[null,null,null,"Latijn",null,0,null,null,1,null,1,null,1,null,1,null,1,null,1,null,1,null,1,null,1,null,"d","x",null,"AV    Geschiedenis B+  ->  D-finaliteit","d",null,null,null,null,null,null,null,null,null,null,0]
[null,null,null,"Latijn",null,0,null,null,1,null,1,null,1,null,1,null,1,null,1,null,1,null,1,null,1,null,"d","x",null,"AV    Lichamelijke opvoeding B  ->  D-, D/A-, A-finaliteit","d",null,null,null,null,null,null,null,null,null,null,0]
[null,null,null,"Latijn",null,0,null,null,1,null,1,null,1,null,1,null,1,null,1,null,1,null,1,null,1,null,"d","x",null,"AV    Natuurwetenschappen B+  ->  D-finaliteit","d",null,null,null,null,null,null,null,null,null,null,0]
[null,null,null,"Latijn",null,0,null,null,1,null,1,null,1,null,1,null,1,null,1,null,1,null,1,null,1,null,"d","x",null,"AV    Nederlands B+  ->  D-finaliteit","d",null,null,null,null,null,null,null,null,null,null,0]
[null,null,null,"Latijn",null,0,null,null,1,null,1,null,1,null,1,null,1,null,1,null,1,null,1,null,1,null,"d","x",null,"AV    Rooms-katholieke godsdienst - 1ste, 2de en 3de graad","d",null,null,null,null,null,null,null,null,null,null,0]
[null,null,null,"Latijn",null,0,null,null,1,null,1,null,1,null,1,null,1,null,1,null,1,null,1,null,1,null,"d","x",null,"SV    Latijn  ->  D-finaliteit","d",null,null,null,null,null,null,null,null,null,null,0]
[null,null,null,"Latijn",null,0,null,null,1,null,1,null,1,null,1,null,1,null,1,null,1,null,1,null,1,null,"d","x",null,"SV    Wiskunde B+S  ->  D-finaliteit","d",null,null,null,null,null,null,null,null,null,null,0]
[null,null,null,"Latijn",null,0,null,null,1,null,1,null,1,null,1,null,1,null,1,null,1,null,1,null,1,null,"d","x",null,"CG    Artistieke vorming Co  ->  D-D/A-A-finaliteit","d",null,null,null,null,null,null,null,null,null,null,0]
[null,null,null,"Latijn",null,0,null,null,1,null,1,null,1,null,1,null,1,null,1,null,1,null,1,null,1,null,"d","x",null,"CG    Duits Co  ->  D-D/A-finaliteit","d",null,null,null,null,null,null,null,null,null,null,0]
[null,null,null,"Latijn",null,0,null,null,1,null,1,null,1,null,1,null,1,null,1,null,1,null,1,null,1,null,"d","x",null,"CG    ICT Co  ->  D/DA/A-finaliteit","d",null,null,null,null,null,null,null,null,null,null,0]
[null,null,null,"Latijn",null,0,null,null,1,null,1,null,1,null,1,null,1,null,1,null,1,null,1,null,1,null,"d","x",null,"CG    Mens en samenleving complementair  ->  D/DA-finaliteit","d",null,null,null,null,null,null,null,null,null,null,0]
[null,null,null,"Maatschappij en welzijn",null,0,null,null,1,null,1,null,1,null,1,null,1,null,1,null,1,null,1,null,1,null,"d","x",null,"AV    Aardrijkskunde B  ->  D/A-finaliteit","d",null,null,null,null,null,null,null,null,null,null,0]
[null,null,null,"Maatschappij en welzijn",null,0,null,null,{"$f":"COUNTBLANK(H674)","v":1},null,{"$f":"COUNTBLANK(J674)","v":1},null,{"$f":"COUNTBLANK(L674)","v":1},null,{"$f":"COUNTBLANK(N674)","v":1},null,{"$f":"COUNTBLANK(P674)","v":1},null,{"$f":"COUNTBLANK(R674)","v":1},null,{"$f":"COUNTBLANK(T674)","v":1},null,{"$f":"COUNTBLANK(V674)","v":1},null,{"$f":"COUNTBLANK(X674)","v":1},null,"d","x",null,"AV    Engels B  ->  D/A-finaliteit","d",null,null,null,null,null,null,null,null,null,null,0]
[null,null,null,"Maatschappij en welzijn",null,0,null,null,1,null,1,null,1,null,1,null,1,null,1,null,1,null,1,null,1,null,"d","x",null,"AV    Frans B  ->  D/A-finaliteit","d",null,null,null,null,null,null,null,null,null,null,0]
[null,null,null,"Maatschappij en welzijn",null,0,null,null,1,null,1,null,1,null,1,null,1,null,1,null,1,null,1,null,1,null,"d","x",null,"AV    Gemeenschappelijk funderend leerplan B  ->  D,- D/A-, A-finaliteit","d",null,null,null,null,null,null,null,null,null,null,0]
[null,null,null,"Maatschappij en welzijn",null,0,null,null,1,null,1,null,1,null,1,null,1,null,1,null,1,null,1,null,1,null,"d","x",null,"AV    Geschiedenis B  ->  D/A-finaliteit","d",null,null,null,null,null,null,null,null,null,null,0]
[null,null,null,"Maatschappij en welzijn",null,0,null,null,1,null,1,null,1,null,1,null,1,null,1,null,1,null,1,null,1,null,"d","x",null,"AV    Lichamelijke opvoeding B  ->  D-, D/A-, A-finaliteit","d",null,null,null,null,null,null,null,null,null,null,0]
[null,null,null,"Maatschappij en welzijn",null,0,null,null,1,null,1,null,1,null,1,null,1,null,1,null,1,null,1,null,1,null,"d","x",null,"AV    Natuurwetenschappen B  ->  D/A-finaliteit","d",null,null,null,null,null,null,null,null,null,null,0]
[null,null,null,"Maatschappij en welzijn",null,0,null,null,1,null,1,null,1,null,1,null,1,null,1,null,1,null,1,null,1,null,"d","x",null,"AV    Nederlands B  ->  D/A-finaliteit","d",null,null,null,null,null,null,null,null,null,null,0]
[null,null,null,"Maatschappij en welzijn",null,0,null,null,1,null,1,null,1,null,1,null,1,null,1,null,1,null,1,null,1,null,"d","x",null,"AV    Rooms-katholieke godsdienst - 1ste, 2de en 3de graad","d",null,null,null,null,null,null,null,null,null,null,0]
[null,null,null,"Maatschappij en welzijn",null,0,null,null,1,null,1,null,1,null,1,null,1,null,1,null,1,null,1,null,1,null,"d","x",null,"AV    Wiskunde  ->  D/A-finaliteit","d",null,null,null,null,null,null,null,null,null,null,0]
[null,null,null,"Maatschappij en welzijn",null,0,null,null,1,null,1,null,1,null,1,null,1,null,1,null,1,null,1,null,1,null,"d","x",null,"SV    Maatschappij en welzijn  ->  D/A-finaliteit","d",null,null,null,null,null,null,null,null,null,null,0]
[null,null,null,"Maatschappij en welzijn",null,0,null,null,1,null,1,null,1,null,1,null,1,null,1,null,1,null,1,null,1,null,"d","x",null,"CG    Artistieke vorming Co  ->  D-D/A-A-finaliteit","d",null,null,null,null,null,null,null,null,null,null,0]
[null,null,null,"Maatschappij en welzijn",null,0,null,null,1,null,1,null,1,null,1,null,1,null,1,null,1,null,1,null,1,null,"d","x",null,"CG    ICT Co  ->  D/DA/A-finaliteit","d",null,null,null,null,null,null,null,null,null,null,0]
[null,null,null,"Maatschappij en welzijn",null,0,null,null,1,null,1,null,1,null,1,null,1,null,1,null,1,null,1,null,1,null,"d","x",null,"CG    Mens en samenleving complementair  ->  D/DA-finaliteit","d",null,null,null,null,null,null,null,null,null,null,0]
[null,null,null,"Maatschappij- en welzijnswetenschappen",null,0,null,null,1,null,1,null,1,null,1,null,1,null,1,null,1,null,1,null,1,null,"d","x",null,"AV    Aardrijkskunde B  ->  D-finaliteit","d",null,null,null,null,null,null,null,null,null,null,0]
[null,null,null,"Maatschappij- en welzijnswetenschappen",null,0,null,null,1,null,1,null,1,null,1,null,1,null,1,null,1,null,1,null,1,null,"d","x",null,"AV    Engels B  ->  D-finaliteit","d",null,null,null,null,null,null,null,null,null,null,0]
[null,null,null,"Maatschappij- en welzijnswetenschappen",null,0,null,null,1,null,1,null,1,null,1,null,1,null,1,null,1,null,1,null,1,null,"d","x",null,"AV    Frans  ->  D-finaliteit","d",null,null,null,null,null,null,null,null,null,null,0]
[null,null,null,"Maatschappij- en welzijnswetenschappen",null,0,null,null,1,null,1,null,1,null,1,null,1,null,1,null,1,null,1,null,1,null,"d","x",null,"AV    Gemeenschappelijk funderend leerplan B  ->  D,- D/A-, A-finaliteit","d",null,null,null,null,null,null,null,null,null,null,0]
[null,null,null,"Maatschappij- en welzijnswetenschappen",null,0,null,null,1,null,1,null,1,null,1,null,1,null,1,null,1,null,1,null,1,null,"d","x",null,"AV    Geschiedenis  ->  D-finaliteit","d",null,null,null,null,null,null,null,null,null,null,0]
[null,null,null,"Maatschappij- en welzijnswetenschappen",null,0,null,null,1,null,1,null,1,null,1,null,1,null,1,null,1,null,1,null,1,null,"d","x",null,"AV    Lichamelijke opvoeding B  ->  D-, D/A-, A-finaliteit","d",null,null,null,null,null,null,null,null,null,null,0]
[null,null,null,"Maatschappij- en welzijnswetenschappen",null,0,null,null,1,null,1,null,1,null,1,null,1,null,1,null,1,null,1,null,1,null,"d","x",null,"AV    Natuurwetenschappen  ->  D-finaliteit","d",null,null,null,null,null,null,null,null,null,null,0]
[null,null,null,"Maatschappij- en welzijnswetenschappen",null,0,null,null,1,null,1,null,1,null,1,null,1,null,1,null,1,null,1,null,1,null,"d","x",null,"AV    Nederlands B+  ->  D-finaliteit","d",null,null,null,null,null,null,null,null,null,null,0]
[null,null,null,"Maatschappij- en welzijnswetenschappen",null,0,null,null,1,null,1,null,1,null,1,null,1,null,1,null,1,null,1,null,1,null,"d","x",null,"AV    Rooms-katholieke godsdienst - 1ste, 2de en 3de graad","d",null,null,null,null,null,null,null,null,null,null,0]
[null,null,null,"Maatschappij- en welzijnswetenschappen",null,0,null,null,1,null,1,null,1,null,1,null,1,null,1,null,1,null,1,null,1,null,"d","x",null,"AV    Wiskunde  ->  D-finaliteit","d",null,null,null,null,null,null,null,null,null,null,0]
[null,null,null,"Maatschappij- en welzijnswetenschappen",null,0,null,null,1,null,1,null,1,null,1,null,1,null,1,null,1,null,1,null,1,null,"d","x",null,"AV    Wiskunde (oud)  ->  D-finaliteit","d",null,null,null,null,null,null,null,null,null,null,0]
[null,null,null,"Maatschappij- en welzijnswetenschappen",null,0,null,null,1,null,1,null,1,null,1,null,1,null,1,null,1,null,1,null,1,null,"d","x",null,"SV    Filosofie  ->  D-finaliteit","d",null,null,null,null,null,null,null,null,null,null,0]
[null,null,null,"Maatschappij- en welzijnswetenschappen",null,0,null,null,1,null,1,null,1,null,1,null,1,null,1,null,1,null,1,null,1,null,"d","x",null,"SV    Inleiding filosofie S (oud)  ->  D-finaliteit","d",null,null,null,null,null,null,null,null,null,null,0]
[null,null,null,"Maatschappij- en welzijnswetenschappen",null,0,null,null,1,null,1,null,1,null,1,null,1,null,1,null,1,null,1,null,1,null,"d","x",null,"SV    Sociologie en psychologie  ->  D-finaliteit","d",null,null,null,null,null,null,null,null,null,null,0]
[null,null,null,"Maatschappij- en welzijnswetenschappen",null,0,null,null,1,null,1,null,1,null,1,null,1,null,1,null,1,null,1,null,1,null,"d","x",null,"CG    Artistieke vorming Co  ->  D-D/A-A-finaliteit","d",null,null,null,null,null,null,null,null,null,null,0]
[null,null,null,"Maatschappij- en welzijnswetenschappen",null,0,null,null,1,null,1,null,1,null,1,null,1,null,1,null,1,null,1,null,1,null,"d","x",null,"CG    ICT Co  ->  D/DA/A-finaliteit","d",null,null,null,null,null,null,null,null,null,null,0]
[null,null,null,"Maatschappij- en welzijnswetenschappen",null,0,null,null,1,null,1,null,1,null,1,null,1,null,1,null,1,null,1,null,1,null,"d","x",null,"CG    Mens en samenleving complementair  ->  D/DA-finaliteit","d",null,null,null,null,null,null,null,null,null,null,0]
[null,null,null,"Machinaal houtbewerker",null,0,null,null,1,null,1,null,1,null,1,null,1,null,1,null,1,null,1,null,1,null,"d","x",null,"AV    Engels B  ->  A-finaliteit","d",null,null,null,null,null,null,null,null,null,null,0]
[null,null,null,"Machinaal houtbewerker",null,0,null,null,1,null,1,null,1,null,1,null,1,null,1,null,1,null,1,null,1,null,"d","x",null,"AV    Frans B  ->  A-finaliteit","d",null,null,null,null,null,null,null,null,null,null,0]
[null,null,null,"Machinaal houtbewerker",null,0,null,null,1,null,1,null,1,null,1,null,1,null,1,null,1,null,1,null,1,null,"d","x",null,"AV    Gemeenschappelijk funderend leerplan B  ->  D,- D/A-, A-finaliteit","d",null,null,null,null,null,null,null,null,null,null,0]
[null,null,null,"Machinaal houtbewerker",null,0,null,null,1,null,1,null,1,null,1,null,1,null,1,null,1,null,1,null,1,null,"d","x",null,"AV    Maatschappelijke vorming  ->  A-finaliteit","d",null,null,null,null,null,null,null,null,null,null,0]
[null,null,null,"Machinaal houtbewerker",null,0,null,null,1,null,1,null,1,null,1,null,1,null,1,null,1,null,1,null,1,null,"d","x",null,"AV    Natuurwetenschappen B (oud)  ->  A-finaliteit","d",null,null,null,null,null,null,null,null,null,null,0]
[null,null,null,"Machinaal houtbewerker",null,0,null,null,1,null,1,null,1,null,1,null,1,null,1,null,1,null,1,null,1,null,"d","x",null,"AV    Nederlands  ->  A-finaliteit","d",null,null,null,null,null,null,null,null,null,null,0]
[null,null,null,"Machinaal houtbewerker",null,{"$f":"9-(I710+K710+M710+O710+Q710+S710+U710++Y710+W710)","v":0},null,null,1,null,1,null,1,null,1,null,1,null,1,null,1,null,1,null,1,null,"d","x",null,"AV    Wiskunde  ->  A-finaliteit","d",null,null,null,null,null,null,null,null,null,null,0]
[null,null,null,"Machinaal houtbewerker",null,0,null,null,1,null,1,null,1,null,1,null,1,null,1,null,1,null,1,null,1,null,"d","x",null,"SV    Machinaal houtbewerker S  ->  A-finaliteit","d",null,null,null,null,null,null,null,null,null,null,0]
[null,null,null,"Magazijnmedewerker",null,0,null,null,1,null,1,null,1,null,1,null,1,null,1,null,1,null,1,null,1,null,"d","x",null,"AV    Engels B  ->  A-finaliteit","d",null,null,null,null,null,null,null,null,null,null,0]
[null,null,null,"Magazijnmedewerker",null,0,null,null,1,null,1,null,1,null,1,null,1,null,1,null,1,null,1,null,1,null,"d","x",null,"AV    Frans B  ->  A-finaliteit","d",null,null,null,null,null,null,null,null,null,null,0]
[null,null,null,"Magazijnmedewerker",null,0,null,null,1,null,1,null,1,null,1,null,1,null,1,null,1,null,1,null,1,null,"d","x",null,"AV    Gemeenschappelijk funderend leerplan B  ->  D,- D/A-, A-finaliteit","d",null,null,null,null,null,null,null,null,null,null,0]
[null,null,null,"Magazijnmedewerker",null,0,null,null,1,null,1,null,1,null,1,null,1,null,1,null,1,null,1,null,1,null,"d","x",null,"AV    Maatschappelijke vorming  ->  A-finaliteit","d",null,null,null,null,null,null,null,null,null,null,0]
[null,null,null,"Magazijnmedewerker",null,0,null,null,1,null,1,null,1,null,1,null,1,null,1,null,1,null,1,null,1,null,"d","x",null,"AV    Natuurwetenschappen B (oud)  ->  A-finaliteit","d",null,null,null,null,null,null,null,null,null,null,0]
[null,null,null,"Magazijnmedewerker",null,0,null,null,1,null,1,null,1,null,1,null,1,null,1,null,1,null,1,null,1,null,"d","x",null,"AV    Nederlands  ->  A-finaliteit","d",null,null,null,null,null,null,null,null,null,null,0]
[null,null,null,"Magazijnmedewerker",null,0,null,null,1,null,1,null,1,null,1,null,1,null,1,null,1,null,1,null,1,null,"d","x",null,"AV    Wiskunde  ->  A-finaliteit","d",null,null,null,null,null,null,null,null,null,null,0]
[null,null,null,"Magazijnmedewerker",null,0,null,null,1,null,1,null,1,null,1,null,1,null,1,null,1,null,1,null,1,null,"d","x",null,"SV    Magazijnmedewerker  ->  A-finaliteit","d",null,null,null,null,null,null,null,null,null,null,0]
[null,null,null,"Mechanica",null,0,null,null,1,null,1,null,1,null,1,null,1,null,1,null,1,null,1,null,1,null,"d","x",null,"AV    Engels B  ->  A-finaliteit","d",null,null,null,null,null,null,null,null,null,null,0]
[null,null,null,"Mechanica",null,0,null,null,1,null,1,null,1,null,1,null,1,null,1,null,1,null,1,null,1,null,"d","x",null,"AV    Frans B  ->  A-finaliteit","d",null,null,null,null,null,null,null,null,null,null,0]
[null,null,null,"Mechanica",null,0,null,null,1,null,1,null,1,null,1,null,1,null,1,null,1,null,1,null,1,null,"d","x",null,"AV    Gemeenschappelijk funderend leerplan B  ->  D,- D/A-, A-finaliteit","d",null,null,null,null,null,null,null,null,null,null,0]
[null,null,null,"Mechanica",null,0,null,null,1,null,1,null,1,null,1,null,1,null,1,null,1,null,1,null,1,null,"d","x",null,"AV    Lichamelijke opvoeding B  ->  D-, D/A-, A-finaliteit","d",null,null,null,null,null,null,null,null,null,null,0]
[null,null,null,"Mechanica",null,0,null,null,1,null,1,null,1,null,1,null,1,null,1,null,1,null,1,null,1,null,"d","x",null,"AV    Maatschappelijke vorming  ->  A-finaliteit","d",null,null,null,null,null,null,null,null,null,null,0]
[null,null,null,"Mechanica",null,0,null,null,1,null,1,null,1,null,1,null,1,null,1,null,1,null,1,null,1,null,"d","x",null,"AV    Nederlands  ->  A-finaliteit","d",null,null,null,null,null,null,null,null,null,null,0]
[null,null,null,"Mechanica",null,0,null,null,1,null,1,null,1,null,1,null,1,null,1,null,1,null,1,null,1,null,"d","x",null,"AV    Rooms-katholieke godsdienst - 1ste, 2de en 3de graad","d",null,null,null,null,null,null,null,null,null,null,0]
[null,null,null,"Mechanica",null,0,null,null,1,null,1,null,1,null,1,null,1,null,1,null,1,null,1,null,1,null,"d","x",null,"AV    Wiskunde  ->  A-finaliteit","d",null,null,null,null,null,null,null,null,null,null,0]
[null,null,null,"Mechanica",null,0,null,null,1,null,1,null,1,null,1,null,1,null,1,null,1,null,1,null,1,null,"d","x",null,"SV    Mechanica  ->  A-finaliteit","d",null,null,null,null,null,null,null,null,null,null,0]
[null,null,null,"Mechanica",null,0,null,null,1,null,1,null,1,null,1,null,1,null,1,null,1,null,1,null,1,null,"d","x",null,"CG    Artistieke vorming Co  ->  D-D/A-A-finaliteit","d",null,null,null,null,null,null,null,null,null,null,0]
[null,null,null,"Mechanische technieken",null,0,null,null,1,null,1,null,1,null,1,null,1,null,1,null,1,null,1,null,1,null,"d","x",null,"AV    Aardrijkskunde B  ->  D/A-finaliteit","d",null,null,null,null,null,null,null,null,null,null,0]
[null,null,null,"Mechanische technieken",null,0,null,null,1,null,1,null,1,null,1,null,1,null,1,null,1,null,1,null,1,null,"d","x",null,"AV    Engels B  ->  D/A-finaliteit","d",null,null,null,null,null,null,null,null,null,null,0]
[null,null,null,"Mechanische technieken",null,0,null,null,1,null,1,null,1,null,1,null,1,null,1,null,1,null,1,null,1,null,"d","x",null,"AV    Frans B  ->  D/A-finaliteit","d",null,null,null,null,null,null,null,null,null,null,0]
[null,null,null,"Mechanische technieken",null,0,null,null,1,null,1,null,1,null,1,null,1,null,1,null,1,null,1,null,1,null,"d","x",null,"AV    Gemeenschappelijk funderend leerplan B  ->  D,- D/A-, A-finaliteit","d",null,null,null,null,null,null,null,null,null,null,0]
[null,null,null,"Mechanische technieken",null,0,null,null,1,null,1,null,1,null,1,null,1,null,1,null,1,null,1,null,1,null,"d","x",null,"AV    Geschiedenis B  ->  D/A-finaliteit","d",null,null,null,null,null,null,null,null,null,null,0]
[null,null,null,"Mechanische technieken",null,0,null,null,1,null,1,null,1,null,1,null,1,null,1,null,1,null,1,null,1,null,"d","x",null,"AV    Lichamelijke opvoeding B  ->  D-, D/A-, A-finaliteit","d",null,null,null,null,null,null,null,null,null,null,0]
[null,null,null,"Mechanische technieken",null,0,null,null,1,null,1,null,1,null,1,null,1,null,1,null,1,null,1,null,1,null,"d","x",null,"AV    Natuurwetenschappen B'  ->  D/A-finaliteit","d",null,null,null,null,null,null,null,null,null,null,0]
[null,null,null,"Mechanische technieken",null,0,null,null,1,null,1,null,1,null,1,null,1,null,1,null,1,null,1,null,1,null,"d","x",null,"AV    Nederlands B  ->  D/A-finaliteit","d",null,null,null,null,null,null,null,null,null,null,0]
[null,null,null,"Mechanische technieken",null,0,null,null,{"$f":"COUNTBLANK(H738)","v":1},null,{"$f":"COUNTBLANK(J738)","v":1},null,{"$f":"COUNTBLANK(L738)","v":1},null,{"$f":"COUNTBLANK(N738)","v":1},null,{"$f":"COUNTBLANK(P738)","v":1},null,{"$f":"COUNTBLANK(R738)","v":1},null,{"$f":"COUNTBLANK(T738)","v":1},null,{"$f":"COUNTBLANK(V738)","v":1},null,{"$f":"COUNTBLANK(X738)","v":1},null,"d","x",null,"AV    Rooms-katholieke godsdienst - 1ste, 2de en 3de graad","d",null,null,null,null,null,null,null,null,null,null,0]
[null,null,null,"Mechanische technieken",null,0,null,null,1,null,1,null,1,null,1,null,1,null,1,null,1,null,1,null,1,null,"d","x",null,"SV    Mechanische technieken B+S  ->  D/A-finaliteit","d",null,null,null,null,null,null,null,null,null,null,0]
[null,null,null,"Mechanische technieken",null,0,null,null,1,null,1,null,1,null,1,null,1,null,1,null,1,null,1,null,1,null,"d","x",null,"SV    Wiskunde B+S  ->  D/A-finaliteit","d",null,null,null,null,null,null,null,null,null,null,0]
[null,null,null,"Mechanische technieken",null,0,null,null,1,null,1,null,1,null,1,null,1,null,1,null,1,null,1,null,1,null,"d","x",null,"CG    Artistieke vorming Co  ->  D-D/A-A-finaliteit","d",null,null,null,null,null,null,null,null,null,null,0]
[null,null,null,"Mechanische technieken",null,0,null,null,1,null,1,null,1,null,1,null,1,null,1,null,1,null,1,null,1,null,"d","x",null,"CG    ICT Co  ->  D/DA/A-finaliteit","d",null,null,null,null,null,null,null,null,null,null,0]
[null,null,null,"Mechanische technieken",null,0,null,null,1,null,1,null,1,null,1,null,1,null,1,null,1,null,1,null,1,null,"d","x",null,"CG    Mens en samenleving complementair  ->  D/DA-finaliteit","d",null,null,null,null,null,null,null,null,null,null,0]
[null,null,null,"Medewerker (banket)bakkerij",null,0,null,null,1,null,1,null,1,null,1,null,1,null,1,null,1,null,1,null,1,null,"d","x",null,"AV    Engels B  ->  A-finaliteit","d",null,null,null,null,null,null,null,null,null,null,0]
[null,null,null,"Medewerker (banket)bakkerij",null,0,null,null,1,null,1,null,1,null,1,null,1,null,1,null,1,null,1,null,1,null,"d","x",null,"AV    Frans B  ->  A-finaliteit","d",null,null,null,null,null,null,null,null,null,null,0]
[null,null,null,"Medewerker (banket)bakkerij",null,0,null,null,1,null,1,null,1,null,1,null,1,null,1,null,1,null,1,null,1,null,"d","x",null,"AV    Gemeenschappelijk funderend leerplan B  ->  D,- D/A-, A-finaliteit","d",null,null,null,null,null,null,null,null,null,null,0]
[null,null,null,"Medewerker (banket)bakkerij",null,0,null,null,1,null,1,null,1,null,1,null,1,null,1,null,1,null,1,null,1,null,"d","x",null,"AV    Maatschappelijke vorming  ->  A-finaliteit","d",null,null,null,null,null,null,null,null,null,null,0]
[null,null,null,"Medewerker (banket)bakkerij",null,0,null,null,1,null,1,null,1,null,1,null,1,null,1,null,1,null,1,null,1,null,"d","x",null,"AV    Natuurwetenschappen B (oud)  ->  A-finaliteit","d",null,null,null,null,null,null,null,null,null,null,0]
[null,null,null,"Medewerker (banket)bakkerij",null,0,null,null,1,null,1,null,1,null,1,null,1,null,1,null,1,null,1,null,1,null,"d","x",null,"AV    Nederlands  ->  A-finaliteit","d",null,null,null,null,null,null,null,null,null,null,0]
[null,null,null,"Medewerker (banket)bakkerij",null,0,null,null,1,null,1,null,1,null,1,null,1,null,1,null,1,null,1,null,1,null,"d","x",null,"AV    Wiskunde  ->  A-finaliteit","d",null,null,null,null,null,null,null,null,null,null,0]
[null,null,null,"Medewerker (banket)bakkerij",null,0,null,null,1,null,1,null,1,null,1,null,1,null,1,null,1,null,1,null,1,null,"d","x",null,"SV    Medewerker (banket)bakkerij  ->  A-finaliteit","d",null,null,null,null,null,null,null,null,null,null,0]
[null,null,null,"Medewerker fastfood",null,0,null,null,1,null,1,null,1,null,1,null,1,null,1,null,1,null,1,null,1,null,"d","x",null,"AV    Engels B  ->  A-finaliteit","d",null,null,null,null,null,null,null,null,null,null,0]
[null,null,null,"Medewerker fastfood",null,0,null,null,1,null,1,null,1,null,1,null,1,null,1,null,1,null,1,null,1,null,"d","x",null,"AV    Frans B  ->  A-finaliteit","d",null,null,null,null,null,null,null,null,null,null,0]
[null,null,null,"Medewerker fastfood",null,0,null,null,1,null,1,null,1,null,1,null,1,null,1,null,1,null,1,null,1,null,"d","x",null,"AV    Gemeenschappelijk funderend leerplan B  ->  D,- D/A-, A-finaliteit","d",null,null,null,null,null,null,null,null,null,null,0]
[null,null,null,"Medewerker fastfood",null,0,null,null,1,null,1,null,1,null,1,null,1,null,1,null,1,null,1,null,1,null,"d","x",null,"AV    Maatschappelijke vorming  ->  A-finaliteit","d",null,null,null,null,null,null,null,null,null,null,0]
[null,null,null,"Medewerker fastfood",null,0,null,null,1,null,1,null,1,null,1,null,1,null,1,null,1,null,1,null,1,null,"d","x",null,"AV    Natuurwetenschappen B (oud)  ->  A-finaliteit","d",null,null,null,null,null,null,null,null,null,null,0]
[null,null,null,"Medewerker fastfood",null,0,null,null,1,null,1,null,1,null,1,null,1,null,1,null,1,null,1,null,1,null,"d","x",null,"AV    Nederlands  ->  A-finaliteit","d",null,null,null,null,null,null,null,null,null,null,0]
[null,null,null,"Medewerker fastfood",null,0,null,null,1,null,1,null,1,null,1,null,1,null,1,null,1,null,1,null,1,null,"d","x",null,"AV    Wiskunde  ->  A-finaliteit","d",null,null,null,null,null,null,null,null,null,null,0]
[null,null,null,"Medewerker fastfood",null,0,null,null,1,null,1,null,1,null,1,null,1,null,1,null,1,null,1,null,1,null,"d","x",null,"SV    Medewerker fastfood S  ->  A-finaliteit","d",null,null,null,null,null,null,null,null,null,null,0]
[null,null,null,"Medewerker groen- en tuinaanleg",null,0,null,null,1,null,1,null,1,null,1,null,1,null,1,null,1,null,1,null,1,null,"d","x",null,"AV    Engels B  ->  A-finaliteit","d",null,null,null,null,null,null,null,null,null,null,0]
[null,null,null,"Medewerker groen- en tuinaanleg",null,0,null,null,1,null,1,null,1,null,1,null,1,null,1,null,1,null,1,null,1,null,"d","x",null,"AV    Frans B  ->  A-finaliteit","d",null,null,null,null,null,null,null,null,null,null,0]
[null,null,null,"Medewerker groen- en tuinaanleg",null,0,null,null,1,null,1,null,1,null,1,null,1,null,1,null,1,null,1,null,1,null,"d","x",null,"AV    Gemeenschappelijk funderend leerplan B  ->  D,- D/A-, A-finaliteit","d",null,null,null,null,null,null,null,null,null,null,0]
[null,null,null,"Medewerker groen- en tuinaanleg",null,0,null,null,1,null,1,null,1,null,1,null,1,null,1,null,1,null,1,null,1,null,"d","x",null,"AV    Maatschappelijke vorming  ->  A-finaliteit","d",null,null,null,null,null,null,null,null,null,null,0]
[null,null,null,"Medewerker groen- en tuinaanleg",null,0,null,null,1,null,1,null,1,null,1,null,1,null,1,null,1,null,1,null,1,null,"d","x",null,"AV    Natuurwetenschappen B (oud)  ->  A-finaliteit","d",null,null,null,null,null,null,null,null,null,null,0]
[null,null,null,"Medewerker groen- en tuinaanleg",null,0,null,null,1,null,1,null,1,null,1,null,1,null,1,null,1,null,1,null,1,null,"d","x",null,"AV    Nederlands  ->  A-finaliteit","d",null,null,null,null,null,null,null,null,null,null,0]
[null,null,null,"Medewerker groen- en tuinaanleg",null,0,null,null,1,null,1,null,1,null,1,null,1,null,1,null,1,null,1,null,1,null,"d","x",null,"AV    Wiskunde  ->  A-finaliteit","d",null,null,null,null,null,null,null,null,null,null,0]
[null,null,null,"Medewerker groen- en tuinaanleg",null,0,null,null,1,null,1,null,1,null,1,null,1,null,1,null,1,null,1,null,1,null,"d","x",null,"SV    Medewerker groen- en tuinaanleg S  ->  A-finaliteit","d",null,null,null,null,null,null,null,null,null,null,0]
[null,null,null,"Medewerker groen- en tuinbeheer",null,0,null,null,1,null,1,null,1,null,1,null,1,null,1,null,1,null,1,null,1,null,"d","x",null,"AV    Engels B  ->  A-finaliteit","d",null,null,null,null,null,null,null,null,null,null,0]
[null,null,null,"Medewerker groen- en tuinbeheer",null,0,null,null,1,null,1,null,1,null,1,null,1,null,1,null,1,null,1,null,1,null,"d","x",null,"AV    Frans B  ->  A-finaliteit","d",null,null,null,null,null,null,null,null,null,null,0]
[null,null,null,"Medewerker groen- en tuinbeheer",null,0,null,null,1,null,1,null,1,null,1,null,1,null,1,null,1,null,1,null,1,null,"d","x",null,"AV    Gemeenschappelijk funderend leerplan B  ->  D,- D/A-, A-finaliteit","d",null,null,null,null,null,null,null,null,null,null,0]
[null,null,null,"Medewerker groen- en tuinbeheer",null,0,null,null,1,null,1,null,1,null,1,null,1,null,1,null,1,null,1,null,1,null,"d","x",null,"AV    Maatschappelijke vorming  ->  A-finaliteit","d",null,null,null,null,null,null,null,null,null,null,0]
[null,null,null,"Medewerker groen- en tuinbeheer",null,0,null,null,1,null,1,null,1,null,1,null,1,null,1,null,1,null,1,null,1,null,"d","x",null,"AV    Natuurwetenschappen B (oud)  ->  A-finaliteit","d",null,null,null,null,null,null,null,null,null,null,0]
[null,null,null,"Medewerker groen- en tuinbeheer",null,0,null,null,1,null,1,null,1,null,1,null,1,null,1,null,1,null,1,null,1,null,"d","x",null,"AV    Nederlands  ->  A-finaliteit","d",null,null,null,null,null,null,null,null,null,null,0]
[null,null,null,"Medewerker groen- en tuinbeheer",null,{"$f":"9-(I774+K774+M774+O774+Q774+S774+U774++Y774+W774)","v":0},null,null,1,null,1,null,1,null,1,null,1,null,1,null,1,null,1,null,1,null,"d","x",null,"AV    Wiskunde  ->  A-finaliteit","d",null,null,null,null,null,null,null,null,null,null,0]
[null,null,null,"Medewerker groen- en tuinbeheer",null,0,null,null,1,null,1,null,1,null,1,null,1,null,1,null,1,null,1,null,1,null,"d","x",null,"SV    Medewerker groen- en tuinbeheer S  ->  A-finaliteit","d",null,null,null,null,null,null,null,null,null,null,0]
[null,null,null,"Medewerker hout",null,0,null,null,1,null,1,null,1,null,1,null,1,null,1,null,1,null,1,null,1,null,"d","x",null,"AV    Engels B  ->  A-finaliteit","d",null,null,null,null,null,null,null,null,null,null,0]
[null,null,null,"Medewerker hout",null,0,null,null,1,null,1,null,1,null,1,null,1,null,1,null,1,null,1,null,1,null,"d","x",null,"AV    Frans B  ->  A-finaliteit","d",null,null,null,null,null,null,null,null,null,null,0]
[null,null,null,"Medewerker hout",null,0,null,null,1,null,1,null,1,null,1,null,1,null,1,null,1,null,1,null,1,null,"d","x",null,"AV    Gemeenschappelijk funderend leerplan B  ->  D,- D/A-, A-finaliteit","d",null,null,null,null,null,null,null,null,null,null,0]
[null,null,null,"Medewerker hout",null,0,null,null,1,null,1,null,1,null,1,null,1,null,1,null,1,null,1,null,1,null,"d","x",null,"AV    Maatschappelijke vorming  ->  A-finaliteit","d",null,null,null,null,null,null,null,null,null,null,0]
[null,null,null,"Medewerker hout",null,0,null,null,1,null,1,null,1,null,1,null,1,null,1,null,1,null,1,null,1,null,"d","x",null,"AV    Natuurwetenschappen B (oud)  ->  A-finaliteit","d",null,null,null,null,null,null,null,null,null,null,0]
[null,null,null,"Medewerker hout",null,0,null,null,1,null,1,null,1,null,1,null,1,null,1,null,1,null,1,null,1,null,"d","x",null,"AV    Nederlands  ->  A-finaliteit","d",null,null,null,null,null,null,null,null,null,null,0]
[null,null,null,"Medewerker hout",null,0,null,null,1,null,1,null,1,null,1,null,1,null,1,null,1,null,1,null,1,null,"d","x",null,"AV    Wiskunde  ->  A-finaliteit","d",null,null,null,null,null,null,null,null,null,null,0]
[null,null,null,"Medewerker hout",null,0,null,null,1,null,1,null,1,null,1,null,1,null,1,null,1,null,1,null,1,null,"d","x",null,"SV    Medewerker hout  ->  A-finaliteit","d",null,null,null,null,null,null,null,null,null,null,0]
[null,null,null,"Medewerker kamerdienst",null,0,null,null,1,null,1,null,1,null,1,null,1,null,1,null,1,null,1,null,1,null,"d","x",null,"AV    Engels B  ->  A-finaliteit","d",null,null,null,null,null,null,null,null,null,null,0]
[null,null,null,"Medewerker kamerdienst",null,0,null,null,1,null,1,null,1,null,1,null,1,null,1,null,1,null,1,null,1,null,"d","x",null,"AV    Frans B  ->  A-finaliteit","d",null,null,null,null,null,null,null,null,null,null,0]
[null,null,null,"Medewerker kamerdienst",null,0,null,null,1,null,1,null,1,null,1,null,1,null,1,null,1,null,1,null,1,null,"d","x",null,"AV    Gemeenschappelijk funderend leerplan B  ->  D,- D/A-, A-finaliteit","d",null,null,null,null,null,null,null,null,null,null,0]
[null,null,null,"Medewerker kamerdienst",null,0,null,null,1,null,1,null,1,null,1,null,1,null,1,null,1,null,1,null,1,null,"d","x",null,"AV    Maatschappelijke vorming  ->  A-finaliteit","d",null,null,null,null,null,null,null,null,null,null,0]
[null,null,null,"Medewerker kamerdienst",null,0,null,null,1,null,1,null,1,null,1,null,1,null,1,null,1,null,1,null,1,null,"d","x",null,"AV    Natuurwetenschappen B (oud)  ->  A-finaliteit","d",null,null,null,null,null,null,null,null,null,null,0]
[null,null,null,"Medewerker kamerdienst",null,0,null,null,1,null,1,null,1,null,1,null,1,null,1,null,1,null,1,null,1,null,"d","x",null,"AV    Nederlands  ->  A-finaliteit","d",null,null,null,null,null,null,null,null,null,null,0]
[null,null,null,"Medewerker kamerdienst",null,0,null,null,1,null,1,null,1,null,1,null,1,null,1,null,1,null,1,null,1,null,"d","x",null,"AV    Wiskunde  ->  A-finaliteit","d",null,null,null,null,null,null,null,null,null,null,0]
[null,null,null,"Medewerker kamerdienst",null,0,null,null,1,null,1,null,1,null,1,null,1,null,1,null,1,null,1,null,1,null,"d","x",null,"SV    Medewerker kamerdienst  ->  A-finaliteit","d",null,null,null,null,null,null,null,null,null,null,0]
[null,null,null,"Medewerker productielijn kleding…",null,0,null,null,1,null,1,null,1,null,1,null,1,null,1,null,1,null,1,null,1,null,"d","x",null,"AV    Engels B  ->  A-finaliteit","d",null,null,null,null,null,null,null,null,null,null,0]
[null,null,null,"Medewerker productielijn kleding, confectie en meubelstoffering",null,0,null,null,1,null,1,null,1,null,1,null,1,null,1,null,1,null,1,null,1,null,"d","x",null,"AV    Frans B  ->  A-finaliteit","d",null,null,null,null,null,null,null,null,null,null,0]
[null,null,null,"Medewerker productielijn kleding, confectie en meubelstoffering",null,0,null,null,1,null,1,null,1,null,1,null,1,null,1,null,1,null,1,null,1,null,"d","x",null,"AV    Gemeenschappelijk funderend leerplan B  ->  D,- D/A-, A-finaliteit","d",null,null,null,null,null,null,null,null,null,null,0]
[null,null,null,"Medewerker productielijn kleding, confectie en meubelstoffering",null,0,null,null,1,null,1,null,1,null,1,null,1,null,1,null,1,null,1,null,1,null,"d","x",null,"AV    Maatschappelijke vorming  ->  A-finaliteit","d",null,null,null,null,null,null,null,null,null,null,0]
[null,null,null,"Medewerker productielijn kleding, confectie en meubelstoffering",null,0,null,null,1,null,1,null,1,null,1,null,1,null,1,null,1,null,1,null,1,null,"d","x",null,"AV    Natuurwetenschappen B (oud)  ->  A-finaliteit","d",null,null,null,null,null,null,null,null,null,null,0]
[null,null,null,"Medewerker productielijn kleding, confectie en meubelstoffering",null,0,null,null,1,null,1,null,1,null,1,null,1,null,1,null,1,null,1,null,1,null,"d","x",null,"AV    Nederlands  ->  A-finaliteit","d",null,null,null,null,null,null,null,null,null,null,0]
[null,null,null,"Medewerker productielijn kleding, confectie en meubelstoffering",null,0,null,null,1,null,1,null,1,null,1,null,1,null,1,null,1,null,1,null,1,null,"d","x",null,"AV    Wiskunde  ->  A-finaliteit","d",null,null,null,null,null,null,null,null,null,null,0]
[null,null,null,"Medewerker productielijn kleding, confectie en meubelstoffering",null,0,null,null,1,null,1,null,1,null,1,null,1,null,1,null,1,null,1,null,1,null,"d","x",null,"SV    Medewerker productielijn kleding, confectie en meubelstoffering  ->  A-finaliteit","d",null,null,null,null,null,null,null,null,null,null,0]
[null,null,null,"Medewerker ruwbouw",null,0,null,null,1,null,1,null,1,null,1,null,1,null,1,null,1,null,1,null,1,null,"d","x",null,"AV    Engels B  ->  A-finaliteit","d",null,null,null,null,null,null,null,null,null,null,0]
[null,null,null,"Medewerker ruwbouw",null,0,null,null,1,null,1,null,1,null,1,null,1,null,1,null,1,null,1,null,1,null,"d","x",null,"AV    Frans B  ->  A-finaliteit","d",null,null,null,null,null,null,null,null,null,null,0]
[null,null,null,"Medewerker ruwbouw",null,0,null,null,{"$f":"COUNTBLANK(H802)","v":1},null,{"$f":"COUNTBLANK(J802)","v":1},null,{"$f":"COUNTBLANK(L802)","v":1},null,{"$f":"COUNTBLANK(N802)","v":1},null,{"$f":"COUNTBLANK(P802)","v":1},null,{"$f":"COUNTBLANK(R802)","v":1},null,{"$f":"COUNTBLANK(T802)","v":1},null,{"$f":"COUNTBLANK(V802)","v":1},null,{"$f":"COUNTBLANK(X802)","v":1},null,"d","x",null,"AV    Gemeenschappelijk funderend leerplan B  ->  D,- D/A-, A-finaliteit","d",null,null,null,null,null,null,null,null,null,null,0]
[null,null,null,"Medewerker ruwbouw",null,0,null,null,1,null,1,null,1,null,1,null,1,null,1,null,1,null,1,null,1,null,"d","x",null,"AV    Maatschappelijke vorming  ->  A-finaliteit","d",null,null,null,null,null,null,null,null,null,null,0]
[null,null,null,"Medewerker ruwbouw",null,0,null,null,1,null,1,null,1,null,1,null,1,null,1,null,1,null,1,null,1,null,"d","x",null,"AV    Natuurwetenschappen B (oud)  ->  A-finaliteit","d",null,null,null,null,null,null,null,null,null,null,0]
[null,null,null,"Medewerker ruwbouw",null,0,null,null,1,null,1,null,1,null,1,null,1,null,1,null,1,null,1,null,1,null,"d","x",null,"AV    Nederlands  ->  A-finaliteit","d",null,null,null,null,null,null,null,null,null,null,0]
[null,null,null,"Medewerker ruwbouw",null,0,null,null,1,null,1,null,1,null,1,null,1,null,1,null,1,null,1,null,1,null,"d","x",null,"AV    Wiskunde  ->  A-finaliteit","d",null,null,null,null,null,null,null,null,null,null,0]
[null,null,null,"Medewerker ruwbouw",null,0,null,null,1,null,1,null,1,null,1,null,1,null,1,null,1,null,1,null,1,null,"d","x",null,"SV    Medewerker ruwbouw S  ->  A-finaliteit","d",null,null,null,null,null,null,null,null,null,null,0]
[null,null,null,"Medewerker schilder- en behangwerken",null,0,null,null,1,null,1,null,1,null,1,null,1,null,1,null,1,null,1,null,1,null,"d","x",null,"AV    Engels B  ->  A-finaliteit","d",null,null,null,null,null,null,null,null,null,null,0]
[null,null,null,"Medewerker schilder- en behangwerken",null,0,null,null,1,null,1,null,1,null,1,null,1,null,1,null,1,null,1,null,1,null,"d","x",null,"AV    Frans B  ->  A-finaliteit","d",null,null,null,null,null,null,null,null,null,null,0]
[null,null,null,"Medewerker schilder- en behangwerken",null,0,null,null,1,null,1,null,1,null,1,null,1,null,1,null,1,null,1,null,1,null,"d","x",null,"AV    Gemeenschappelijk funderend leerplan B  ->  D,- D/A-, A-finaliteit","d",null,null,null,null,null,null,null,null,null,null,0]
[null,null,null,"Medewerker schilder- en behangwerken",null,0,null,null,1,null,1,null,1,null,1,null,1,null,1,null,1,null,1,null,1,null,"d","x",null,"AV    Maatschappelijke vorming  ->  A-finaliteit","d",null,null,null,null,null,null,null,null,null,null,0]
[null,null,null,"Medewerker schilder- en behangwerken",null,0,null,null,1,null,1,null,1,null,1,null,1,null,1,null,1,null,1,null,1,null,"d","x",null,"AV    Natuurwetenschappen B (oud)  ->  A-finaliteit","d",null,null,null,null,null,null,null,null,null,null,0]
[null,null,null,"Medewerker schilder- en behangwerken",null,0,null,null,1,null,1,null,1,null,1,null,1,null,1,null,1,null,1,null,1,null,"d","x",null,"AV    Nederlands  ->  A-finaliteit","d",null,null,null,null,null,null,null,null,null,null,0]
[null,null,null,"Medewerker schilder- en behangwerken",null,0,null,null,1,null,1,null,1,null,1,null,1,null,1,null,1,null,1,null,1,null,"d","x",null,"AV    Wiskunde  ->  A-finaliteit","d",null,null,null,null,null,null,null,null,null,null,0]
[null,null,null,"Medewerker schilder- en behangwerken",null,0,null,null,1,null,1,null,1,null,1,null,1,null,1,null,1,null,1,null,1,null,"d","x",null,"SV    Medewerker schilder- en behangwerken  ->  A-finaliteit","d",null,null,null,null,null,null,null,null,null,null,0]
[null,null,null,"Medewerker slagerij",null,0,null,null,1,null,1,null,1,null,1,null,1,null,1,null,1,null,1,null,1,null,"d","x",null,"AV    Engels B  ->  A-finaliteit","d",null,null,null,null,null,null,null,null,null,null,0]
[null,null,null,"Medewerker slagerij",null,0,null,null,1,null,1,null,1,null,1,null,1,null,1,null,1,null,1,null,1,null,"d","x",null,"AV    Frans B  ->  A-finaliteit","d",null,null,null,null,null,null,null,null,null,null,0]
[null,null,null,"Medewerker slagerij",null,0,null,null,1,null,1,null,1,null,1,null,1,null,1,null,1,null,1,null,1,null,"d","x",null,"AV    Gemeenschappelijk funderend leerplan B  ->  D,- D/A-, A-finaliteit","d",null,null,null,null,null,null,null,null,null,null,0]
[null,null,null,"Medewerker slagerij",null,0,null,null,1,null,1,null,1,null,1,null,1,null,1,null,1,null,1,null,1,null,"d","x",null,"AV    Maatschappelijke vorming  ->  A-finaliteit","d",null,null,null,null,null,null,null,null,null,null,0]
[null,null,null,"Medewerker slagerij",null,0,null,null,1,null,1,null,1,null,1,null,1,null,1,null,1,null,1,null,1,null,"d","x",null,"AV    Natuurwetenschappen B (oud)  ->  A-finaliteit","d",null,null,null,null,null,null,null,null,null,null,0]
[null,null,null,"Medewerker slagerij",null,0,null,null,1,null,1,null,1,null,1,null,1,null,1,null,1,null,1,null,1,null,"d","x",null,"AV    Nederlands  ->  A-finaliteit","d",null,null,null,null,null,null,null,null,null,null,0]
[null,null,null,"Medewerker slagerij",null,0,null,null,1,null,1,null,1,null,1,null,1,null,1,null,1,null,1,null,1,null,"d","x",null,"AV    Wiskunde  ->  A-finaliteit","d",null,null,null,null,null,null,null,null,null,null,0]
[null,null,null,"Medewerker slagerij",null,0,null,null,1,null,1,null,1,null,1,null,1,null,1,null,1,null,1,null,1,null,"d","x",null,"SV    Medewerker slagerij  ->  A-finaliteit","d",null,null,null,null,null,null,null,null,null,null,0]
[null,null,null,"Medewerker tegelzetwerken en dekvloeren",null,0,null,null,1,null,1,null,1,null,1,null,1,null,1,null,1,null,1,null,1,null,"d","x",null,"AV    Engels B  ->  A-finaliteit","d",null,null,null,null,null,null,null,null,null,null,0]
[null,null,null,"Medewerker tegelzetwerken en dekvloeren",null,0,null,null,1,null,1,null,1,null,1,null,1,null,1,null,1,null,1,null,1,null,"d","x",null,"AV    Frans B  ->  A-finaliteit","d",null,null,null,null,null,null,null,null,null,null,0]
[null,null,null,"Medewerker tegelzetwerken en dekvloeren",null,0,null,null,1,null,1,null,1,null,1,null,1,null,1,null,1,null,1,null,1,null,"d","x",null,"AV    Gemeenschappelijk funderend leerplan B  ->  D,- D/A-, A-finaliteit","d",null,null,null,null,null,null,null,null,null,null,0]
[null,null,null,"Medewerker tegelzetwerken en dekvloeren",null,0,null,null,1,null,1,null,1,null,1,null,1,null,1,null,1,null,1,null,1,null,"d","x",null,"AV    Maatschappelijke vorming  ->  A-finaliteit","d",null,null,null,null,null,null,null,null,null,null,0]
[null,null,null,"Medewerker tegelzetwerken en dekvloeren",null,0,null,null,1,null,1,null,1,null,1,null,1,null,1,null,1,null,1,null,1,null,"d","x",null,"AV    Natuurwetenschappen B (oud)  ->  A-finaliteit","d",null,null,null,null,null,null,null,null,null,null,0]
[null,null,null,"Medewerker tegelzetwerken en dekvloeren",null,0,null,null,1,null,1,null,1,null,1,null,1,null,1,null,1,null,1,null,1,null,"d","x",null,"AV    Nederlands  ->  A-finaliteit","d",null,null,null,null,null,null,null,null,null,null,0]
[null,null,null,"Medewerker tegelzetwerken en dekvloeren",null,0,null,null,1,null,1,null,1,null,1,null,1,null,1,null,1,null,1,null,1,null,"d","x",null,"AV    Wiskunde  ->  A-finaliteit","d",null,null,null,null,null,null,null,null,null,null,0]
[null,null,null,"Medewerker tegelzetwerken en dekvloeren",null,0,null,null,1,null,1,null,1,null,1,null,1,null,1,null,1,null,1,null,1,null,"d","x",null,"SV    Medewerker tegelzetwerken en dekvloeren  ->  A-finaliteit","d",null,null,null,null,null,null,null,null,null,null,0]
[null,null,null,"Moderealisatie en textielverzorging",null,0,null,null,1,null,1,null,1,null,1,null,1,null,1,null,1,null,1,null,1,null,"d","x",null,"AV    Engels B  ->  A-finaliteit","d",null,null,null,null,null,null,null,null,null,null,0]
[null,null,null,"Moderealisatie en textielverzorging",null,0,null,null,1,null,1,null,1,null,1,null,1,null,1,null,1,null,1,null,1,null,"d","x",null,"AV    Frans B  ->  A-finaliteit","d",null,null,null,null,null,null,null,null,null,null,0]
[null,null,null,"Moderealisatie en textielverzorging",null,0,null,null,1,null,1,null,1,null,1,null,1,null,1,null,1,null,1,null,1,null,"d","x",null,"AV    Gemeenschappelijk funderend leerplan B  ->  D,- D/A-, A-finaliteit","d",null,null,null,null,null,null,null,null,null,null,0]
[null,null,null,"Moderealisatie en textielverzorging",null,0,null,null,1,null,1,null,1,null,1,null,1,null,1,null,1,null,1,null,1,null,"d","x",null,"AV    Lichamelijke opvoeding B  ->  D-, D/A-, A-finaliteit","d",null,null,null,null,null,null,null,null,null,null,0]
[null,null,null,"Moderealisatie en textielverzorging",null,0,null,null,1,null,1,null,1,null,1,null,1,null,1,null,1,null,1,null,1,null,"d","x",null,"AV    Maatschappelijke vorming  ->  A-finaliteit","d",null,null,null,null,null,null,null,null,null,null,0]
[null,null,null,"Moderealisatie en textielverzorging",null,0,null,null,1,null,1,null,1,null,1,null,1,null,1,null,1,null,1,null,1,null,"d","x",null,"AV    Natuurwetenschappen B (oud)  ->  A-finaliteit","d",null,null,null,null,null,null,null,null,null,null,0]
[null,null,null,"Moderealisatie en textielverzorging",null,{"$f":"9-(I838+K838+M838+O838+Q838+S838+U838++Y838+W838)","v":0},null,null,1,null,1,null,1,null,1,null,1,null,1,null,1,null,1,null,1,null,"d","x",null,"AV    Nederlands  ->  A-finaliteit","d",null,null,null,null,null,null,null,null,null,null,0]
[null,null,null,"Moderealisatie en textielverzorging",null,0,null,null,1,null,1,null,1,null,1,null,1,null,1,null,1,null,1,null,1,null,"d","x",null,"AV    Rooms-katholieke godsdienst - 1ste, 2de en 3de graad","d",null,null,null,null,null,null,null,null,null,null,0]
[null,null,null,"Moderealisatie en textielverzorging",null,0,null,null,1,null,1,null,1,null,1,null,1,null,1,null,1,null,1,null,1,null,"d","x",null,"AV    Wiskunde  ->  A-finaliteit","d",null,null,null,null,null,null,null,null,null,null,0]
[null,null,null,"Moderealisatie en textielverzorging",null,0,null,null,1,null,1,null,1,null,1,null,1,null,1,null,1,null,1,null,1,null,"d","x",null,"SV    Moderealisatie en textielverzorging  ->  A-finaliteit","d",null,null,null,null,null,null,null,null,null,null,0]
[null,null,null,"Moderealisatie en textielverzorging",null,0,null,null,1,null,1,null,1,null,1,null,1,null,1,null,1,null,1,null,1,null,"d","x",null,"CG    Artistieke vorming Co  ->  D-D/A-A-finaliteit","d",null,null,null,null,null,null,null,null,null,null,0]
[null,null,null,"Moderealisatie en textielverzorging",null,0,null,null,1,null,1,null,1,null,1,null,1,null,1,null,1,null,1,null,1,null,"d","x",null,"CG    ICT Co  ->  D/DA/A-finaliteit","d",null,null,null,null,null,null,null,null,null,null,0]
[null,null,null,"Moderne talen",null,0,null,null,1,null,1,null,1,null,1,null,1,null,1,null,1,null,1,null,1,null,"d","x",null,"AV    Aardrijkskunde B  ->  D-finaliteit","d",null,null,null,null,null,null,null,null,null,null,0]
[null,null,null,"Moderne talen",null,0,null,null,1,null,1,null,1,null,1,null,1,null,1,null,1,null,1,null,1,null,"d","x",null,"AV    Gemeenschappelijk funderend leerplan B  ->  D,- D/A-, A-finaliteit","d",null,null,null,null,null,null,null,null,null,null,0]
[null,null,null,"Moderne talen",null,0,null,null,1,null,1,null,1,null,1,null,1,null,1,null,1,null,1,null,1,null,"d","x",null,"AV    Geschiedenis B+  ->  D-finaliteit","d",null,null,null,null,null,null,null,null,null,null,0]
[null,null,null,"Moderne talen",null,0,null,null,1,null,1,null,1,null,1,null,1,null,1,null,1,null,1,null,1,null,"d","x",null,"AV    Lichamelijke opvoeding B  ->  D-, D/A-, A-finaliteit","d",null,null,null,null,null,null,null,null,null,null,0]
[null,null,null,"Moderne talen",null,0,null,null,1,null,1,null,1,null,1,null,1,null,1,null,1,null,1,null,1,null,"d","x",null,"AV    Natuurwetenschappen B+  ->  D-finaliteit","d",null,null,null,null,null,null,null,null,null,null,0]
[null,null,null,"Moderne talen",null,0,null,null,1,null,1,null,1,null,1,null,1,null,1,null,1,null,1,null,1,null,"d","x",null,"AV    Rooms-katholieke godsdienst - 1ste, 2de en 3de graad","d",null,null,null,null,null,null,null,null,null,null,0]
[null,null,null,"Moderne talen",null,0,null,null,1,null,1,null,1,null,1,null,1,null,1,null,1,null,1,null,1,null,"d","x",null,"SV    Communicatiewetenschappen en taaltechnologie  ->  D-finaliteit","d",null,null,null,null,null,null,null,null,null,null,0]
[null,null,null,"Moderne talen",null,0,null,null,1,null,1,null,1,null,1,null,1,null,1,null,1,null,1,null,1,null,"d","x",null,"SV    Duits  ->  D-finaliteit","d",null,null,null,null,null,null,null,null,null,null,0]
[null,null,null,"Moderne talen",null,0,null,null,1,null,1,null,1,null,1,null,1,null,1,null,1,null,1,null,1,null,"d","x",null,"SV    Engels B+S  ->  D-finaliteit","d",null,null,null,null,null,null,null,null,null,null,0]
[null,null,null,"Moderne talen",null,0,null,null,1,null,1,null,1,null,1,null,1,null,1,null,1,null,1,null,1,null,"d","x",null,"SV    Frans B+S  ->  D-finaliteit","d",null,null,null,null,null,null,null,null,null,null,0]
[null,null,null,"Moderne talen",null,0,null,null,1,null,1,null,1,null,1,null,1,null,1,null,1,null,1,null,1,null,"d","x",null,"SV    Nederlands B+S  ->  D-finaliteit","d",null,null,null,null,null,null,null,null,null,null,0]
[null,null,null,"Moderne talen",null,0,null,null,1,null,1,null,1,null,1,null,1,null,1,null,1,null,1,null,1,null,"d","x",null,"SV    Wiskunde B+S  ->  D-finaliteit","d",null,null,null,null,null,null,null,null,null,null,0]
[null,null,null,"Moderne talen",null,0,null,null,1,null,1,null,1,null,1,null,1,null,1,null,1,null,1,null,1,null,"d","x",null,"CG    Artistieke vorming Co  ->  D-D/A-A-finaliteit","d",null,null,null,null,null,null,null,null,null,null,0]
[null,null,null,"Moderne talen",null,0,null,null,1,null,1,null,1,null,1,null,1,null,1,null,1,null,1,null,1,null,"d","x",null,"CG    Economie Co  ->  D-finaliteit","d",null,null,null,null,null,null,null,null,null,null,0]
[null,null,null,"Moderne talen",null,0,null,null,1,null,1,null,1,null,1,null,1,null,1,null,1,null,1,null,1,null,"d","x",null,"CG    ICT Co  ->  D/DA/A-finaliteit","d",null,null,null,null,null,null,null,null,null,null,0]
[null,null,null,"Moderne talen",null,0,null,null,1,null,1,null,1,null,1,null,1,null,1,null,1,null,1,null,1,null,"d","x",null,"CG    Mens en samenleving complementair  ->  D/DA-finaliteit","d",null,null,null,null,null,null,null,null,null,null,0]
[null,null,null,"Monteur sanitaire en verwarmingsinstallaties",null,0,null,null,1,null,1,null,1,null,1,null,1,null,1,null,1,null,1,null,1,null,"d","x",null,"AV    Engels B  ->  A-finaliteit","d",null,null,null,null,null,null,null,null,null,null,0]
[null,null,null,"Monteur sanitaire en verwarmingsinstallaties",null,0,null,null,1,null,1,null,1,null,1,null,1,null,1,null,1,null,1,null,1,null,"d","x",null,"AV    Frans B  ->  A-finaliteit","d",null,null,null,null,null,null,null,null,null,null,0]
[null,null,null,"Monteur sanitaire en verwarmingsinstallaties",null,0,null,null,1,null,1,null,1,null,1,null,1,null,1,null,1,null,1,null,1,null,"d","x",null,"AV    Gemeenschappelijk funderend leerplan B  ->  D,- D/A-, A-finaliteit","d",null,null,null,null,null,null,null,null,null,null,0]
[null,null,null,"Monteur sanitaire en verwarmingsinstallaties",null,0,null,null,1,null,1,null,1,null,1,null,1,null,1,null,1,null,1,null,1,null,"d","x",null,"AV    Maatschappelijke vorming  ->  A-finaliteit","d",null,null,null,null,null,null,null,null,null,null,0]
[null,null,null,"Monteur sanitaire en verwarmingsinstallaties",null,0,null,null,1,null,1,null,1,null,1,null,1,null,1,null,1,null,1,null,1,null,"d","x",null,"AV    Natuurwetenschappen B (oud)  ->  A-finaliteit","d",null,null,null,null,null,null,null,null,null,null,0]
[null,null,null,"Monteur sanitaire en verwarmingsinstallaties",null,0,null,null,1,null,1,null,1,null,1,null,1,null,1,null,1,null,1,null,1,null,"d","x",null,"AV    Nederlands  ->  A-finaliteit","d",null,null,null,null,null,null,null,null,null,null,0]
[null,null,null,"Monteur sanitaire en verwarmingsinstallaties",null,0,null,null,{"$f":"COUNTBLANK(H866)","v":1},null,{"$f":"COUNTBLANK(J866)","v":1},null,{"$f":"COUNTBLANK(L866)","v":1},null,{"$f":"COUNTBLANK(N866)","v":1},null,{"$f":"COUNTBLANK(P866)","v":1},null,{"$f":"COUNTBLANK(R866)","v":1},null,{"$f":"COUNTBLANK(T866)","v":1},null,{"$f":"COUNTBLANK(V866)","v":1},null,{"$f":"COUNTBLANK(X866)","v":1},null,"d","x",null,"AV    Wiskunde  ->  A-finaliteit","d",null,null,null,null,null,null,null,null,null,null,0]
[null,null,null,"Monteur sanitaire en verwarmingsinstallaties",null,0,null,null,1,null,1,null,1,null,1,null,1,null,1,null,1,null,1,null,1,null,"d","x",null,"SV    Monteur sanitaire en verwarmingsinstallaties  ->  A-finaliteit","d",null,null,null,null,null,null,null,null,null,null,0]
[null,null,null,"Muziek",null,0,null,null,1,null,1,null,1,null,1,null,1,null,1,null,1,null,1,null,1,null,"d","x",null,"AV    Aardrijkskunde B  ->  D-finaliteit","d",null,null,null,null,null,null,null,null,null,null,0]
[null,null,null,"Muziek",null,0,null,null,1,null,1,null,1,null,1,null,1,null,1,null,1,null,1,null,1,null,"d","x",null,"AV    Engels B  ->  D-finaliteit","d",null,null,null,null,null,null,null,null,null,null,0]
[null,null,null,"Muziek",null,0,null,null,1,null,1,null,1,null,1,null,1,null,1,null,1,null,1,null,1,null,"d","x",null,"AV    Frans  ->  D-finaliteit","d",null,null,null,null,null,null,null,null,null,null,0]
[null,null,null,"Muziek",null,0,null,null,1,null,1,null,1,null,1,null,1,null,1,null,1,null,1,null,1,null,"d","x",null,"AV    Gemeenschappelijk funderend leerplan B  ->  D,- D/A-, A-finaliteit","d",null,null,null,null,null,null,null,null,null,null,0]
[null,null,null,"Muziek",null,0,null,null,1,null,1,null,1,null,1,null,1,null,1,null,1,null,1,null,1,null,"d","x",null,"AV    Geschiedenis  ->  D-finaliteit","d",null,null,null,null,null,null,null,null,null,null,0]
[null,null,null,"Muziek",null,0,null,null,1,null,1,null,1,null,1,null,1,null,1,null,1,null,1,null,1,null,"d","x",null,"AV    Lichamelijke opvoeding B  ->  D-, D/A-, A-finaliteit","d",null,null,null,null,null,null,null,null,null,null,0]
[null,null,null,"Muziek",null,0,null,null,1,null,1,null,1,null,1,null,1,null,1,null,1,null,1,null,1,null,"d","x",null,"AV    Natuurwetenschappen  ->  D-finaliteit","d",null,null,null,null,null,null,null,null,null,null,0]
[null,null,null,"Muziek",null,0,null,null,1,null,1,null,1,null,1,null,1,null,1,null,1,null,1,null,1,null,"d","x",null,"AV    Nederlands B  ->  D-finaliteit","d",null,null,null,null,null,null,null,null,null,null,0]
[null,null,null,"Muziek",null,0,null,null,1,null,1,null,1,null,1,null,1,null,1,null,1,null,1,null,1,null,"d","x",null,"AV    Rooms-katholieke godsdienst - 1ste, 2de en 3de graad","d",null,null,null,null,null,null,null,null,null,null,0]
[null,null,null,"Muziek",null,0,null,null,1,null,1,null,1,null,1,null,1,null,1,null,1,null,1,null,1,null,"d","x",null,"AV    Wiskunde  ->  D-finaliteit","d",null,null,null,null,null,null,null,null,null,null,0]
[null,null,null,"Muziek",null,0,null,null,1,null,1,null,1,null,1,null,1,null,1,null,1,null,1,null,1,null,"d","x",null,"AV    Wiskunde (oud)  ->  D-finaliteit","d",null,null,null,null,null,null,null,null,null,null,0]
[null,null,null,"Muziek",null,0,null,null,1,null,1,null,1,null,1,null,1,null,1,null,1,null,1,null,1,null,"d","x",null,"SV    Muziek  ->  D-finaliteit","d",null,null,null,null,null,null,null,null,null,null,0]
[null,null,null,"Muziek",null,0,null,null,1,null,1,null,1,null,1,null,1,null,1,null,1,null,1,null,1,null,"d","x",null,"CG    Artistieke vorming Co  ->  D-D/A-A-finaliteit","d",null,null,null,null,null,null,null,null,null,null,0]
[null,null,null,"Muziek",null,0,null,null,1,null,1,null,1,null,1,null,1,null,1,null,1,null,1,null,1,null,"d","x",null,"CG    ICT Co  ->  D/DA/A-finaliteit","d",null,null,null,null,null,null,null,null,null,null,0]
[null,null,null,"Muziek",null,0,null,null,1,null,1,null,1,null,1,null,1,null,1,null,1,null,1,null,1,null,"d","x",null,"CG    Mens en samenleving complementair  ->  D/DA-finaliteit","d",null,null,null,null,null,null,null,null,null,null,0]
[null,null,null,"Natuurwetenschappen",null,0,null,null,1,null,1,null,1,null,1,null,1,null,1,null,1,null,1,null,1,null,"d","x",null,"AV    Aardrijkskunde B  ->  D-finaliteit","d",null,null,null,null,null,null,null,null,null,null,0]
[null,null,null,"Natuurwetenschappen",null,0,null,null,1,null,1,null,1,null,1,null,1,null,1,null,1,null,1,null,1,null,"d","x",null,"AV    Engels B+  ->  D-finaliteit","d",null,null,null,null,null,null,null,null,null,null,0]
[null,null,null,"Natuurwetenschappen",null,0,null,null,1,null,1,null,1,null,1,null,1,null,1,null,1,null,1,null,1,null,"d","x",null,"AV    Frans B+  ->  D-finaliteit","d",null,null,null,null,null,null,null,null,null,null,0]
[null,null,null,"Natuurwetenschappen",null,0,null,null,1,null,1,null,1,null,1,null,1,null,1,null,1,null,1,null,1,null,"d","x",null,"AV    Gemeenschappelijk funderend leerplan B  ->  D,- D/A-, A-finaliteit","d",null,null,null,null,null,null,null,null,null,null,0]
[null,null,null,"Natuurwetenschappen",null,0,null,null,1,null,1,null,1,null,1,null,1,null,1,null,1,null,1,null,1,null,"d","x",null,"AV    Geschiedenis B+  ->  D-finaliteit","d",null,null,null,null,null,null,null,null,null,null,0]
[null,null,null,"Natuurwetenschappen",null,0,null,null,1,null,1,null,1,null,1,null,1,null,1,null,1,null,1,null,1,null,"d","x",null,"AV    Lichamelijke opvoeding B  ->  D-, D/A-, A-finaliteit","d",null,null,null,null,null,null,null,null,null,null,0]
[null,null,null,"Natuurwetenschappen",null,0,null,null,1,null,1,null,1,null,1,null,1,null,1,null,1,null,1,null,1,null,"d","x",null,"AV    Nederlands B+  ->  D-finaliteit","d",null,null,null,null,null,null,null,null,null,null,0]
[null,null,null,"Natuurwetenschappen",null,0,null,null,1,null,1,null,1,null,1,null,1,null,1,null,1,null,1,null,1,null,"d","x",null,"AV    Rooms-katholieke godsdienst - 1ste, 2de en 3de graad","d",null,null,null,null,null,null,null,null,null,null,0]
[null,null,null,"Natuurwetenschappen",null,0,null,null,1,null,1,null,1,null,1,null,1,null,1,null,1,null,1,null,1,null,"d","x",null,"SV    Natuurwetenschappen B+S  ->  D-finaliteit","d",null,null,null,null,null,null,null,null,null,null,0]
[null,null,null,"Natuurwetenschappen",null,0,null,null,1,null,1,null,1,null,1,null,1,null,1,null,1,null,1,null,1,null,"d","x",null,"SV    Wiskunde B+S  ->  D-finaliteit","d",null,null,null,null,null,null,null,null,null,null,0]
[null,null,null,"Natuurwetenschappen",null,0,null,null,1,null,1,null,1,null,1,null,1,null,1,null,1,null,1,null,1,null,"d","x",null,"CG    Artistieke vorming Co  ->  D-D/A-A-finaliteit","d",null,null,null,null,null,null,null,null,null,null,0]
[null,null,null,"Natuurwetenschappen",null,0,null,null,1,null,1,null,1,null,1,null,1,null,1,null,1,null,1,null,1,null,"d","x",null,"CG    Duits Co  ->  D-D/A-finaliteit","d",null,null,null,null,null,null,null,null,null,null,0]
[null,null,null,"Natuurwetenschappen",null,0,null,null,1,null,1,null,1,null,1,null,1,null,1,null,1,null,1,null,1,null,"d","x",null,"CG    Economie Co  ->  D-finaliteit","d",null,null,null,null,null,null,null,null,null,null,0]
[null,null,null,"Natuurwetenschappen",null,0,null,null,1,null,1,null,1,null,1,null,1,null,1,null,1,null,1,null,1,null,"d","x",null,"CG    ICT Co  ->  D/DA/A-finaliteit","d",null,null,null,null,null,null,null,null,null,null,0]
[null,null,null,"Natuurwetenschappen",null,0,null,null,1,null,1,null,1,null,1,null,1,null,1,null,1,null,1,null,1,null,"d","x",null,"CG    Mens en samenleving complementair  ->  D/DA-finaliteit","d",null,null,null,null,null,null,null,null,null,null,0]
[null,null,null,"Onderhoudsmedewerker",null,0,null,null,1,null,1,null,1,null,1,null,1,null,1,null,1,null,1,null,1,null,"d","x",null,"AV    Engels B  ->  A-finaliteit","d",null,null,null,null,null,null,null,null,null,null,0]
[null,null,null,"Onderhoudsmedewerker",null,0,null,null,1,null,1,null,1,null,1,null,1,null,1,null,1,null,1,null,1,null,"d","x",null,"AV    Frans B  ->  A-finaliteit","d",null,null,null,null,null,null,null,null,null,null,0]
[null,null,null,"Onderhoudsmedewerker",null,0,null,null,1,null,1,null,1,null,1,null,1,null,1,null,1,null,1,null,1,null,"d","x",null,"AV    Gemeenschappelijk funderend leerplan B  ->  D,- D/A-, A-finaliteit","d",null,null,null,null,null,null,null,null,null,null,0]
[null,null,null,"Onderhoudsmedewerker",null,0,null,null,1,null,1,null,1,null,1,null,1,null,1,null,1,null,1,null,1,null,"d","x",null,"AV    Maatschappelijke vorming  ->  A-finaliteit","d",null,null,null,null,null,null,null,null,null,null,0]
[null,null,null,"Onderhoudsmedewerker",null,{"$f":"9-(I902+K902+M902+O902+Q902+S902+U902++Y902+W902)","v":0},null,null,1,null,1,null,1,null,1,null,1,null,1,null,1,null,1,null,1,null,"d","x",null,"AV    Natuurwetenschappen B (oud)  ->  A-finaliteit","d",null,null,null,null,null,null,null,null,null,null,0]
[null,null,null,"Onderhoudsmedewerker",null,0,null,null,1,null,1,null,1,null,1,null,1,null,1,null,1,null,1,null,1,null,"d","x",null,"AV    Nederlands  ->  A-finaliteit","d",null,null,null,null,null,null,null,null,null,null,0]
[null,null,null,"Onderhoudsmedewerker",null,0,null,null,1,null,1,null,1,null,1,null,1,null,1,null,1,null,1,null,1,null,"d","x",null,"AV    Wiskunde  ->  A-finaliteit","d",null,null,null,null,null,null,null,null,null,null,0]
[null,null,null,"Onderhoudsmedewerker",null,0,null,null,1,null,1,null,1,null,1,null,1,null,1,null,1,null,1,null,1,null,"d","x",null,"SV    Onderhoudsmedewerker  ->  A-finaliteit","d",null,null,null,null,null,null,null,null,null,null,0]
[null,null,null,"Onthaal en recreatie",null,0,null,null,1,null,1,null,1,null,1,null,1,null,1,null,1,null,1,null,1,null,"d","x",null,"AV    Gemeenschappelijk funderend leerplan B  ->  D,- D/A-, A-finaliteit","d",null,null,null,null,null,null,null,null,null,null,0]
[null,null,null,"Onthaal en recreatie",null,0,null,null,1,null,1,null,1,null,1,null,1,null,1,null,1,null,1,null,1,null,"d","x",null,"AV    Lichamelijke opvoeding B  ->  D-, D/A-, A-finaliteit","d",null,null,null,null,null,null,null,null,null,null,0]
[null,null,null,"Onthaal en recreatie",null,0,null,null,1,null,1,null,1,null,1,null,1,null,1,null,1,null,1,null,1,null,"d","x",null,"AV    Maatschappelijke vorming  ->  A-finaliteit","d",null,null,null,null,null,null,null,null,null,null,0]
[null,null,null,"Onthaal en recreatie",null,0,null,null,1,null,1,null,1,null,1,null,1,null,1,null,1,null,1,null,1,null,"d","x",null,"AV    Natuurwetenschappen B (oud)  ->  A-finaliteit","d",null,null,null,null,null,null,null,null,null,null,0]
[null,null,null,"Onthaal en recreatie",null,0,null,null,1,null,1,null,1,null,1,null,1,null,1,null,1,null,1,null,1,null,"d","x",null,"AV    Nederlands  ->  A-finaliteit","d",null,null,null,null,null,null,null,null,null,null,0]
[null,null,null,"Onthaal en recreatie",null,0,null,null,1,null,1,null,1,null,1,null,1,null,1,null,1,null,1,null,1,null,"d","x",null,"AV    Rooms-katholieke godsdienst - 1ste, 2de en 3de graad","d",null,null,null,null,null,null,null,null,null,null,0]
[null,null,null,"Onthaal en recreatie",null,0,null,null,1,null,1,null,1,null,1,null,1,null,1,null,1,null,1,null,1,null,"d","x",null,"AV    Wiskunde  ->  A-finaliteit","d",null,null,null,null,null,null,null,null,null,null,0]
[null,null,null,"Onthaal en recreatie",null,0,null,null,1,null,1,null,1,null,1,null,1,null,1,null,1,null,1,null,1,null,"d","x",null,"SV    Engels B+S  ->  A-finaliteit","d",null,null,null,null,null,null,null,null,null,null,0]
[null,null,null,"Onthaal en recreatie",null,0,null,null,1,null,1,null,1,null,1,null,1,null,1,null,1,null,1,null,1,null,"d","x",null,"SV    Frans B+S  ->  A-finaliteit","d",null,null,null,null,null,null,null,null,null,null,0]
[null,null,null,"Onthaal en recreatie",null,0,null,null,1,null,1,null,1,null,1,null,1,null,1,null,1,null,1,null,1,null,"d","x",null,"SV    Onthaal en recreatie  ->  A-finaliteit","d",null,null,null,null,null,null,null,null,null,null,0]
[null,null,null,"Onthaal en recreatie",null,0,null,null,1,null,1,null,1,null,1,null,1,null,1,null,1,null,1,null,1,null,"d","x",null,"CG    Artistieke vorming Co  ->  D-D/A-A-finaliteit","d",null,null,null,null,null,null,null,null,null,null,0]
[null,null,null,"Onthaal en recreatie",null,0,null,null,1,null,1,null,1,null,1,null,1,null,1,null,1,null,1,null,1,null,"d","x",null,"CG    ICT Co  ->  D/DA/A-finaliteit","d",null,null,null,null,null,null,null,null,null,null,0]
[null,null,null,"Organisatie en logistiek",null,0,null,null,1,null,1,null,1,null,1,null,1,null,1,null,1,null,1,null,1,null,"d","x",null,"AV    Engels B  ->  A-finaliteit","d",null,null,null,null,null,null,null,null,null,null,0]
[null,null,null,"Organisatie en logistiek",null,0,null,null,1,null,1,null,1,null,1,null,1,null,1,null,1,null,1,null,1,null,"d","x",null,"AV    Frans B  ->  A-finaliteit","d",null,null,null,null,null,null,null,null,null,null,0]
[null,null,null,"Organisatie en logistiek",null,0,null,null,1,null,1,null,1,null,1,null,1,null,1,null,1,null,1,null,1,null,"d","x",null,"AV    Gemeenschappelijk funderend leerplan B  ->  D,- D/A-, A-finaliteit","d",null,null,null,null,null,null,null,null,null,null,0]
[null,null,null,"Organisatie en logistiek",null,0,null,null,1,null,1,null,1,null,1,null,1,null,1,null,1,null,1,null,1,null,"d","x",null,"AV    Lichamelijke opvoeding B  ->  D-, D/A-, A-finaliteit","d",null,null,null,null,null,null,null,null,null,null,0]
[null,null,null,"Organisatie en logistiek",null,0,null,null,1,null,1,null,1,null,1,null,1,null,1,null,1,null,1,null,1,null,"d","x",null,"AV    Maatschappelijke vorming  ->  A-finaliteit","d",null,null,null,null,null,null,null,null,null,null,0]
[null,null,null,"Organisatie en logistiek",null,0,null,null,1,null,1,null,1,null,1,null,1,null,1,null,1,null,1,null,1,null,"d","x",null,"AV    Natuurwetenschappen B (oud)  ->  A-finaliteit","d",null,null,null,null,null,null,null,null,null,null,0]
[null,null,null,"Organisatie en logistiek",null,0,null,null,1,null,1,null,1,null,1,null,1,null,1,null,1,null,1,null,1,null,"d","x",null,"AV    Nederlands  ->  A-finaliteit","d",null,null,null,null,null,null,null,null,null,null,0]
[null,null,null,"Organisatie en logistiek",null,0,null,null,1,null,1,null,1,null,1,null,1,null,1,null,1,null,1,null,1,null,"d","x",null,"AV    Rooms-katholieke godsdienst - 1ste, 2de en 3de graad","d",null,null,null,null,null,null,null,null,null,null,0]
[null,null,null,"Organisatie en logistiek",null,0,null,null,1,null,1,null,1,null,1,null,1,null,1,null,1,null,1,null,1,null,"d","x",null,"AV    Wiskunde  ->  A-finaliteit","d",null,null,null,null,null,null,null,null,null,null,0]
[null,null,null,"Organisatie en logistiek",null,0,null,null,1,null,1,null,1,null,1,null,1,null,1,null,1,null,1,null,1,null,"d","x",null,"SV    Organisatie en logistiek  ->  A-finaliteit","d",null,null,null,null,null,null,null,null,null,null,0]
[null,null,null,"Organisatie en logistiek",null,0,null,null,1,null,1,null,1,null,1,null,1,null,1,null,1,null,1,null,1,null,"d","x",null,"CG    Artistieke vorming Co  ->  D-D/A-A-finaliteit","d",null,null,null,null,null,null,null,null,null,null,0]
[null,null,null,"Organisatie en logistiek",null,0,null,null,1,null,1,null,1,null,1,null,1,null,1,null,1,null,1,null,1,null,"d","x",null,"CG    ICT Co  ->  D/DA/A-finaliteit","d",null,null,null,null,null,null,null,null,null,null,0]
[null,null,null,"Paardenhouderij",null,0,null,null,{"$f":"COUNTBLANK(H930)","v":1},null,{"$f":"COUNTBLANK(J930)","v":1},null,{"$f":"COUNTBLANK(L930)","v":1},null,{"$f":"COUNTBLANK(N930)","v":1},null,{"$f":"COUNTBLANK(P930)","v":1},null,{"$f":"COUNTBLANK(R930)","v":1},null,{"$f":"COUNTBLANK(T930)","v":1},null,{"$f":"COUNTBLANK(V930)","v":1},null,{"$f":"COUNTBLANK(X930)","v":1},null,"d","x",null,"AV    Engels B  ->  A-finaliteit","d",null,null,null,null,null,null,null,null,null,null,0]
[null,null,null,"Paardenhouderij",null,0,null,null,1,null,1,null,1,null,1,null,1,null,1,null,1,null,1,null,1,null,"d","x",null,"AV    Frans B  ->  A-finaliteit","d",null,null,null,null,null,null,null,null,null,null,0]
[null,null,null,"Paardenhouderij",null,0,null,null,1,null,1,null,1,null,1,null,1,null,1,null,1,null,1,null,1,null,"d","x",null,"AV    Gemeenschappelijk funderend leerplan B  ->  D,- D/A-, A-finaliteit","d",null,null,null,null,null,null,null,null,null,null,0]
[null,null,null,"Paardenhouderij",null,0,null,null,1,null,1,null,1,null,1,null,1,null,1,null,1,null,1,null,1,null,"d","x",null,"AV    Lichamelijke opvoeding B  ->  D-, D/A-, A-finaliteit","d",null,null,null,null,null,null,null,null,null,null,0]
[null,null,null,"Paardenhouderij",null,0,null,null,1,null,1,null,1,null,1,null,1,null,1,null,1,null,1,null,1,null,"d","x",null,"AV    Maatschappelijke vorming  ->  A-finaliteit","d",null,null,null,null,null,null,null,null,null,null,0]
[null,null,null,"Paardenhouderij",null,0,null,null,1,null,1,null,1,null,1,null,1,null,1,null,1,null,1,null,1,null,"d","x",null,"AV    Natuurwetenschappen B (oud)  ->  A-finaliteit","d",null,null,null,null,null,null,null,null,null,null,0]
[null,null,null,"Paardenhouderij",null,0,null,null,1,null,1,null,1,null,1,null,1,null,1,null,1,null,1,null,1,null,"d","x",null,"AV    Nederlands  ->  A-finaliteit","d",null,null,null,null,null,null,null,null,null,null,0]
[null,null,null,"Paardenhouderij",null,0,null,null,1,null,1,null,1,null,1,null,1,null,1,null,1,null,1,null,1,null,"d","x",null,"AV    Rooms-katholieke godsdienst - 1ste, 2de en 3de graad","d",null,null,null,null,null,null,null,null,null,null,0]
[null,null,null,"Paardenhouderij",null,0,null,null,1,null,1,null,1,null,1,null,1,null,1,null,1,null,1,null,1,null,"d","x",null,"AV    Wiskunde  ->  A-finaliteit","d",null,null,null,null,null,null,null,null,null,null,0]
[null,null,null,"Paardenhouderij",null,0,null,null,1,null,1,null,1,null,1,null,1,null,1,null,1,null,1,null,1,null,"d","x",null,"SV    Paardenhouderij  ->  A-finaliteit","d",null,null,null,null,null,null,null,null,null,null,0]
[null,null,null,"Paardenhouderij",null,0,null,null,1,null,1,null,1,null,1,null,1,null,1,null,1,null,1,null,1,null,"d","x",null,"CG    Artistieke vorming Co  ->  D-D/A-A-finaliteit","d",null,null,null,null,null,null,null,null,null,null,0]
[null,null,null,"Paardenhouderij",null,0,null,null,1,null,1,null,1,null,1,null,1,null,1,null,1,null,1,null,1,null,"d","x",null,"CG    ICT Co  ->  D/DA/A-finaliteit","d",null,null,null,null,null,null,null,null,null,null,0]
[null,null,null,"Plant-, dier- en milieutechnieken",null,0,null,null,1,null,1,null,1,null,1,null,1,null,1,null,1,null,1,null,1,null,"d","x",null,"AV    Aardrijkskunde B  ->  D/A-finaliteit","d",null,null,null,null,null,null,null,null,null,null,0]
[null,null,null,"Plant-, dier- en milieutechnieken",null,0,null,null,1,null,1,null,1,null,1,null,1,null,1,null,1,null,1,null,1,null,"d","x",null,"AV    Engels B  ->  D/A-finaliteit","d",null,null,null,null,null,null,null,null,null,null,0]
[null,null,null,"Plant-, dier- en milieutechnieken",null,0,null,null,1,null,1,null,1,null,1,null,1,null,1,null,1,null,1,null,1,null,"d","x",null,"AV    Frans B  ->  D/A-finaliteit","d",null,null,null,null,null,null,null,null,null,null,0]
[null,null,null,"Plant-, dier- en milieutechnieken",null,0,null,null,1,null,1,null,1,null,1,null,1,null,1,null,1,null,1,null,1,null,"d","x",null,"AV    Gemeenschappelijk funderend leerplan B  ->  D,- D/A-, A-finaliteit","d",null,null,null,null,null,null,null,null,null,null,0]
[null,null,null,"Plant-, dier- en milieutechnieken",null,0,null,null,1,null,1,null,1,null,1,null,1,null,1,null,1,null,1,null,1,null,"d","x",null,"AV    Geschiedenis B  ->  D/A-finaliteit","d",null,null,null,null,null,null,null,null,null,null,0]
[null,null,null,"Plant-, dier- en milieutechnieken",null,0,null,null,1,null,1,null,1,null,1,null,1,null,1,null,1,null,1,null,1,null,"d","x",null,"AV    Lichamelijke opvoeding B  ->  D-, D/A-, A-finaliteit","d",null,null,null,null,null,null,null,null,null,null,0]
[null,null,null,"Plant-, dier- en milieutechnieken",null,0,null,null,1,null,1,null,1,null,1,null,1,null,1,null,1,null,1,null,1,null,"d","x",null,"AV    Nederlands B  ->  D/A-finaliteit","d",null,null,null,null,null,null,null,null,null,null,0]
[null,null,null,"Plant-, dier- en milieutechnieken",null,0,null,null,1,null,1,null,1,null,1,null,1,null,1,null,1,null,1,null,1,null,"d","x",null,"AV    Rooms-katholieke godsdienst - 1ste, 2de en 3de graad","d",null,null,null,null,null,null,null,null,null,null,0]
[null,null,null,"Plant-, dier- en milieutechnieken",null,0,null,null,1,null,1,null,1,null,1,null,1,null,1,null,1,null,1,null,1,null,"d","x",null,"AV    Wiskunde  ->  D/A-finaliteit","d",null,null,null,null,null,null,null,null,null,null,0]
[null,null,null,"Plant-, dier- en milieutechnieken",null,0,null,null,1,null,1,null,1,null,1,null,1,null,1,null,1,null,1,null,1,null,"d","x",null,"SV    Natuurwetenschappen B+S  ->  D/A-finaliteit","d",null,null,null,null,null,null,null,null,null,null,0]
[null,null,null,"Plant-, dier- en milieutechnieken",null,0,null,null,1,null,1,null,1,null,1,null,1,null,1,null,1,null,1,null,1,null,"d","x",null,"SV    Plant-, dier- en milieutechnieken  ->  D/A-finaliteit","d",null,null,null,null,null,null,null,null,null,null,0]
[null,null,null,"Plant-, dier- en milieutechnieken",null,0,null,null,1,null,1,null,1,null,1,null,1,null,1,null,1,null,1,null,1,null,"d","x",null,"CG    Artistieke vorming Co  ->  D-D/A-A-finaliteit","d",null,null,null,null,null,null,null,null,null,null,0]
[null,null,null,"Plant-, dier- en milieutechnieken",null,0,null,null,1,null,1,null,1,null,1,null,1,null,1,null,1,null,1,null,1,null,"d","x",null,"CG    ICT Co  ->  D/DA/A-finaliteit","d",null,null,null,null,null,null,null,null,null,null,0]
[null,null,null,"Plant-, dier- en milieutechnieken",null,0,null,null,1,null,1,null,1,null,1,null,1,null,1,null,1,null,1,null,1,null,"d","x",null,"CG    Mens en samenleving complementair  ->  D/DA-finaliteit","d",null,null,null,null,null,null,null,null,null,null,0]
[null,null,null,"Plant, dier en milieu",null,0,null,null,1,null,1,null,1,null,1,null,1,null,1,null,1,null,1,null,1,null,"d","x",null,"AV    Engels B  ->  A-finaliteit","d",null,null,null,null,null,null,null,null,null,null,0]
[null,null,null,"Plant, dier en milieu",null,0,null,null,1,null,1,null,1,null,1,null,1,null,1,null,1,null,1,null,1,null,"d","x",null,"AV    Frans B  ->  A-finaliteit","d",null,null,null,null,null,null,null,null,null,null,0]
[null,null,null,"Plant, dier en milieu",null,0,null,null,1,null,1,null,1,null,1,null,1,null,1,null,1,null,1,null,1,null,"d","x",null,"AV    Gemeenschappelijk funderend leerplan B  ->  D,- D/A-, A-finaliteit","d",null,null,null,null,null,null,null,null,null,null,0]
[null,null,null,"Plant, dier en milieu",null,0,null,null,1,null,1,null,1,null,1,null,1,null,1,null,1,null,1,null,1,null,"d","x",null,"AV    Lichamelijke opvoeding B  ->  D-, D/A-, A-finaliteit","d",null,null,null,null,null,null,null,null,null,null,0]
[null,null,null,"Plant, dier en milieu",null,0,null,null,1,null,1,null,1,null,1,null,1,null,1,null,1,null,1,null,1,null,"d","x",null,"AV    Maatschappelijke vorming  ->  A-finaliteit","d",null,null,null,null,null,null,null,null,null,null,0]
[null,null,null,"Plant, dier en milieu",null,0,null,null,1,null,1,null,1,null,1,null,1,null,1,null,1,null,1,null,1,null,"d","x",null,"AV    Natuurwetenschappen B (oud)  ->  A-finaliteit","d",null,null,null,null,null,null,null,null,null,null,0]
[null,null,null,"Plant, dier en milieu",null,0,null,null,1,null,1,null,1,null,1,null,1,null,1,null,1,null,1,null,1,null,"d","x",null,"AV    Nederlands  ->  A-finaliteit","d",null,null,null,null,null,null,null,null,null,null,0]
[null,null,null,"Plant, dier en milieu",null,0,null,null,1,null,1,null,1,null,1,null,1,null,1,null,1,null,1,null,1,null,"d","x",null,"AV    Rooms-katholieke godsdienst - 1ste, 2de en 3de graad","d",null,null,null,null,null,null,null,null,null,null,0]
[null,null,null,"Plant, dier en milieu",null,0,null,null,1,null,1,null,1,null,1,null,1,null,1,null,1,null,1,null,1,null,"d","x",null,"AV    Wiskunde  ->  A-finaliteit","d",null,null,null,null,null,null,null,null,null,null,0]
[null,null,null,"Plant, dier en milieu",null,0,null,null,1,null,1,null,1,null,1,null,1,null,1,null,1,null,1,null,1,null,"d","x",null,"SV    Plant, dier en milieu  ->  A-finaliteit","d",null,null,null,null,null,null,null,null,null,null,0]
[null,null,null,"Plant, dier en milieu",null,{"$f":"9-(I966+K966+M966+O966+Q966+S966+U966++Y966+W966)","v":0},null,null,1,null,1,null,1,null,1,null,1,null,1,null,1,null,1,null,1,null,"d","x",null,"CG    Artistieke vorming Co  ->  D-D/A-A-finaliteit","d",null,null,null,null,null,null,null,null,null,null,0]
[null,null,null,"Plant, dier en milieu",null,0,null,null,1,null,1,null,1,null,1,null,1,null,1,null,1,null,1,null,1,null,"d","x",null,"CG    ICT Co  ->  D/DA/A-finaliteit","d",null,null,null,null,null,null,null,null,null,null,0]
[null,null,null,"Polyvalent administratief ondersteuner",null,0,null,null,1,null,1,null,1,null,1,null,1,null,1,null,1,null,1,null,1,null,"d","x",null,"AV    Engels B  ->  A-finaliteit","d",null,null,null,null,null,null,null,null,null,null,0]
[null,null,null,"Polyvalent administratief ondersteuner",null,0,null,null,1,null,1,null,1,null,1,null,1,null,1,null,1,null,1,null,1,null,"d","x",null,"AV    Frans B  ->  A-finaliteit","d",null,null,null,null,null,null,null,null,null,null,0]
[null,null,null,"Polyvalent administratief ondersteuner",null,0,null,null,1,null,1,null,1,null,1,null,1,null,1,null,1,null,1,null,1,null,"d","x",null,"AV    Gemeenschappelijk funderend leerplan B  ->  D,- D/A-, A-finaliteit","d",null,null,null,null,null,null,null,null,null,null,0]
[null,null,null,"Polyvalent administratief ondersteuner",null,0,null,null,1,null,1,null,1,null,1,null,1,null,1,null,1,null,1,null,1,null,"d","x",null,"AV    Maatschappelijke vorming  ->  A-finaliteit","d",null,null,null,null,null,null,null,null,null,null,0]
[null,null,null,"Polyvalent administratief ondersteuner",null,0,null,null,1,null,1,null,1,null,1,null,1,null,1,null,1,null,1,null,1,null,"d","x",null,"AV    Natuurwetenschappen B (oud)  ->  A-finaliteit","d",null,null,null,null,null,null,null,null,null,null,0]
[null,null,null,"Polyvalent administratief ondersteuner",null,0,null,null,1,null,1,null,1,null,1,null,1,null,1,null,1,null,1,null,1,null,"d","x",null,"AV    Nederlands  ->  A-finaliteit","d",null,null,null,null,null,null,null,null,null,null,0]
[null,null,null,"Polyvalent administratief ondersteuner",null,0,null,null,1,null,1,null,1,null,1,null,1,null,1,null,1,null,1,null,1,null,"d","x",null,"AV    Wiskunde  ->  A-finaliteit","d",null,null,null,null,null,null,null,null,null,null,0]
[null,null,null,"Polyvalent administratief ondersteuner",null,0,null,null,1,null,1,null,1,null,1,null,1,null,1,null,1,null,1,null,1,null,"d","x",null,"SV    Polyvalent administratief ondersteuner  ->  A-finaliteit","d",null,null,null,null,null,null,null,null,null,null,0]
[null,null,null,"Printmedia",null,0,null,null,1,null,1,null,1,null,1,null,1,null,1,null,1,null,1,null,1,null,"d","x",null,"AV    Engels B  ->  A-finaliteit","d",null,null,null,null,null,null,null,null,null,null,0]
[null,null,null,"Printmedia",null,0,null,null,1,null,1,null,1,null,1,null,1,null,1,null,1,null,1,null,1,null,"d","x",null,"AV    Frans B  ->  A-finaliteit","d",null,null,null,null,null,null,null,null,null,null,0]
[null,null,null,"Printmedia",null,0,null,null,1,null,1,null,1,null,1,null,1,null,1,null,1,null,1,null,1,null,"d","x",null,"AV    Gemeenschappelijk funderend leerplan B  ->  D,- D/A-, A-finaliteit","d",null,null,null,null,null,null,null,null,null,null,0]
[null,null,null,"Printmedia",null,0,null,null,1,null,1,null,1,null,1,null,1,null,1,null,1,null,1,null,1,null,"d","x",null,"AV    Lichamelijke opvoeding B  ->  D-, D/A-, A-finaliteit","d",null,null,null,null,null,null,null,null,null,null,0]
[null,null,null,"Printmedia",null,0,null,null,1,null,1,null,1,null,1,null,1,null,1,null,1,null,1,null,1,null,"d","x",null,"AV    Maatschappelijke vorming  ->  A-finaliteit","d",null,null,null,null,null,null,null,null,null,null,0]
[null,null,null,"Printmedia",null,0,null,null,1,null,1,null,1,null,1,null,1,null,1,null,1,null,1,null,1,null,"d","x",null,"AV    Natuurwetenschappen B (oud)  ->  A-finaliteit","d",null,null,null,null,null,null,null,null,null,null,0]
[null,null,null,"Printmedia",null,0,null,null,1,null,1,null,1,null,1,null,1,null,1,null,1,null,1,null,1,null,"d","x",null,"AV    Nederlands  ->  A-finaliteit","d",null,null,null,null,null,null,null,null,null,null,0]
[null,null,null,"Printmedia",null,0,null,null,1,null,1,null,1,null,1,null,1,null,1,null,1,null,1,null,1,null,"d","x",null,"AV    Rooms-katholieke godsdienst - 1ste, 2de en 3de graad","d",null,null,null,null,null,null,null,null,null,null,0]
[null,null,null,"Printmedia",null,0,null,null,1,null,1,null,1,null,1,null,1,null,1,null,1,null,1,null,1,null,"d","x",null,"AV    Wiskunde  ->  A-finaliteit","d",null,null,null,null,null,null,null,null,null,null,0]
[null,null,null,"Printmedia",null,0,null,null,1,null,1,null,1,null,1,null,1,null,1,null,1,null,1,null,1,null,"d","x",null,"SV    Printmedia  ->  A-finaliteit","d",null,null,null,null,null,null,null,null,null,null,0]
[null,null,null,"Printmedia",null,0,null,null,1,null,1,null,1,null,1,null,1,null,1,null,1,null,1,null,1,null,"d","x",null,"CG    Artistieke vorming Co  ->  D-D/A-A-finaliteit","d",null,null,null,null,null,null,null,null,null,null,0]
[null,null,null,"Printmedia",null,0,null,null,1,null,1,null,1,null,1,null,1,null,1,null,1,null,1,null,1,null,"d","x",null,"CG    ICT Co  ->  D/DA/A-finaliteit","d",null,null,null,null,null,null,null,null,null,null,0]
[null,null,null,"Productiemedewerker drukafwerking…",null,0,null,null,1,null,1,null,1,null,1,null,1,null,1,null,1,null,1,null,1,null,"d","x",null,"AV    Engels B  ->  A-finaliteit","d",null,null,null,null,null,null,null,null,null,null,0]
[null,null,null,"Productiemedewerker drukafwerking in de printmedia",null,0,null,null,1,null,1,null,1,null,1,null,1,null,1,null,1,null,1,null,1,null,"d","x",null,"AV    Frans B  ->  A-finaliteit","d",null,null,null,null,null,null,null,null,null,null,0]
[null,null,null,"Productiemedewerker drukafwerking in de printmedia",null,0,null,null,1,null,1,null,1,null,1,null,1,null,1,null,1,null,1,null,1,null,"d","x",null,"AV    Gemeenschappelijk funderend leerplan B  ->  D,- D/A-, A-finaliteit","d",null,null,null,null,null,null,null,null,null,null,0]
[null,null,null,"Productiemedewerker drukafwerking in de printmedia",null,0,null,null,1,null,1,null,1,null,1,null,1,null,1,null,1,null,1,null,1,null,"d","x",null,"AV    Maatschappelijke vorming  ->  A-finaliteit","d",null,null,null,null,null,null,null,null,null,null,0]
[null,null,null,"Productiemedewerker drukafwerking in de printmedia",null,0,null,null,1,null,1,null,1,null,1,null,1,null,1,null,1,null,1,null,1,null,"d","x",null,"AV    Natuurwetenschappen B (oud)  ->  A-finaliteit","d",null,null,null,null,null,null,null,null,null,null,0]
[null,null,null,"Productiemedewerker drukafwerking in de printmedia",null,0,null,null,1,null,1,null,1,null,1,null,1,null,1,null,1,null,1,null,1,null,"d","x",null,"AV    Nederlands  ->  A-finaliteit","d",null,null,null,null,null,null,null,null,null,null,0]
[null,null,null,"Productiemedewerker drukafwerking in de printmedia",null,0,null,null,{"$f":"COUNTBLANK(H994)","v":1},null,{"$f":"COUNTBLANK(J994)","v":1},null,{"$f":"COUNTBLANK(L994)","v":1},null,{"$f":"COUNTBLANK(N994)","v":1},null,{"$f":"COUNTBLANK(P994)","v":1},null,{"$f":"COUNTBLANK(R994)","v":1},null,{"$f":"COUNTBLANK(T994)","v":1},null,{"$f":"COUNTBLANK(V994)","v":1},null,{"$f":"COUNTBLANK(X994)","v":1},null,"d","x",null,"AV    Wiskunde  ->  A-finaliteit","d",null,null,null,null,null,null,null,null,null,null,0]
[null,null,null,"Productiemedewerker drukafwerking in de printmedia",null,0,null,null,1,null,1,null,1,null,1,null,1,null,1,null,1,null,1,null,1,null,"d","x",null,"SV    Productiemedewerker drukafwerking in de printmedia  ->  A-finaliteit","d",null,null,null,null,null,null,null,null,null,null,0]
[null,null,null,"Productiemedewerker industrie",null,0,null,null,1,null,1,null,1,null,1,null,1,null,1,null,1,null,1,null,1,null,"d","x",null,"AV    Engels B  ->  A-finaliteit","d",null,null,null,null,null,null,null,null,null,null,0]
[null,null,null,"Productiemedewerker industrie",null,0,null,null,1,null,1,null,1,null,1,null,1,null,1,null,1,null,1,null,1,null,"d","x",null,"AV    Frans B  ->  A-finaliteit","d",null,null,null,null,null,null,null,null,null,null,0]
[null,null,null,"Productiemedewerker industrie",null,0,null,null,1,null,1,null,1,null,1,null,1,null,1,null,1,null,1,null,1,null,"d","x",null,"AV    Gemeenschappelijk funderend leerplan B  ->  D,- D/A-, A-finaliteit","d",null,null,null,null,null,null,null,null,null,null,0]
[null,null,null,"Productiemedewerker industrie",null,0,null,null,1,null,1,null,1,null,1,null,1,null,1,null,1,null,1,null,1,null,"d","x",null,"AV    Maatschappelijke vorming  ->  A-finaliteit","d",null,null,null,null,null,null,null,null,null,null,0]
[null,null,null,"Productiemedewerker industrie",null,0,null,null,1,null,1,null,1,null,1,null,1,null,1,null,1,null,1,null,1,null,"d","x",null,"AV    Natuurwetenschappen B (oud)  ->  A-finaliteit","d",null,null,null,null,null,null,null,null,null,null,0]
[null,null,null,"Productiemedewerker industrie",null,{"$f":"9-(I1001+K1001+M1001+O1001+Q1001+S1001+U1001++Y1001+W1001)","v":0},null,null,1,null,1,null,1,null,1,null,1,null,1,null,1,null,1,null,1,null,"d","x",null,"AV    Nederlands  ->  A-finaliteit","d",null,null,null,null,null,null,null,null,null,null,1]
[null,null,null,"Productiemedewerker industrie",null,0,null,null,1,null,1,null,1,null,1,null,1,null,1,null,1,null,1,null,1,null,"d","x",null,"AV    Wiskunde  ->  A-finaliteit","d",null,null,null,null,null,null,null,null,null,null,2]
[null,null,null,"Productiemedewerker industrie",null,0,null,null,1,null,1,null,1,null,1,null,1,null,1,null,1,null,1,null,1,null,"d","x",null,"SV    Productiemedewerker industrie  ->  A-finaliteit","d",null,null,null,null,null,null,null,null,null,null,3]
[null,null,null,"Restaurant en keuken",null,0,null,null,1,null,1,null,1,null,1,null,1,null,1,null,1,null,1,null,1,null,"d","x",null,"AV    Engels B  ->  A-finaliteit","d",null,null,null,null,null,null,null,null,null,null,4]
[null,null,null,"Restaurant en keuken",null,0,null,null,1,null,1,null,1,null,1,null,1,null,1,null,1,null,1,null,1,null,"d","x",null,"AV    Frans B  ->  A-finaliteit","d",null,null,null,null,null,null,null,null,null,null,5]
[null,null,null,"Restaurant en keuken",null,0,null,null,1,null,1,null,1,null,1,null,1,null,1,null,1,null,1,null,1,null,"d","x",null,"AV    Gemeenschappelijk funderend leerplan B  ->  D,- D/A-, A-finaliteit","d",null,null,null,null,null,null,null,null,null,null,6]
[null,null,null,"Restaurant en keuken",null,0,null,null,1,null,1,null,1,null,1,null,1,null,1,null,1,null,1,null,1,null,"d","x",null,"AV    Lichamelijke opvoeding B  ->  D-, D/A-, A-finaliteit","d",null,null,null,null,null,null,null,null,null,null,7]
[null,null,null,"Restaurant en keuken",null,0,null,null,1,null,1,null,1,null,1,null,1,null,1,null,1,null,1,null,1,null,"d","x",null,"AV    Maatschappelijke vorming  ->  A-finaliteit","d",null,null,null,null,null,null,null,null,null,null,8]
[null,null,null,"Restaurant en keuken",null,0,null,null,1,null,1,null,1,null,1,null,1,null,1,null,1,null,1,null,1,null,"d","x",null,"AV    Natuurwetenschappen B (oud)  ->  A-finaliteit","d",null,null,null,null,null,null,null,null,null,null,9]
[null,null,null,"Restaurant en keuken",null,0,null,null,1,null,1,null,1,null,1,null,1,null,1,null,1,null,1,null,1,null,"d","x",null,"AV    Nederlands  ->  A-finaliteit","d",null,null,null,null,null,null,null,null,null,null,10]
[null,null,null,"Restaurant en keuken",null,0,null,null,1,null,1,null,1,null,1,null,1,null,1,null,1,null,1,null,1,null,"d","x",null,"AV    Rooms-katholieke godsdienst - 1ste, 2de en 3de graad","d",null,null,null,null,null,null,null,null,null,null,11]
[null,null,null,"Restaurant en keuken",null,0,null,null,1,null,1,null,1,null,1,null,1,null,1,null,1,null,1,null,1,null,"d","x",null,"AV    Wiskunde  ->  A-finaliteit","d",null,null,null,null,null,null,null,null,null,null,12]
[null,null,null,"Restaurant en keuken",null,0,null,null,1,null,1,null,1,null,1,null,1,null,1,null,1,null,1,null,1,null,"d","x",null,"SV    Restaurant en keuken  ->  A-finaliteit","d",null,null,null,null,null,null,null,null,null,null,13]
[null,null,null,"Restaurant en keuken",null,0,null,null,1,null,1,null,1,null,1,null,1,null,1,null,1,null,1,null,1,null,"d","x",null,"CG    Artistieke vorming Co  ->  D-D/A-A-finaliteit","d",null,null,null,null,null,null,null,null,null,null,14]
[null,null,null,"Restaurant en keuken",null,0,null,null,1,null,1,null,1,null,1,null,1,null,1,null,1,null,1,null,1,null,"d","x",null,"CG    ICT Co  ->  D/DA/A-finaliteit","d",null,null,null,null,null,null,null,null,null,null,15]
[null,null,null,"Schilderen en decoratie",null,0,null,null,1,null,1,null,1,null,1,null,1,null,1,null,1,null,1,null,1,null,"d","x",null,"AV    Engels B  ->  A-finaliteit","d",null,null,null,null,null,null,null,null,null,null,16]
[null,null,null,"Schilderen en decoratie",null,0,null,null,1,null,1,null,1,null,1,null,1,null,1,null,1,null,1,null,1,null,"d","x",null,"AV    Frans B  ->  A-finaliteit","d",null,null,null,null,null,null,null,null,null,null,17]
[null,null,null,"Schilderen en decoratie",null,0,null,null,1,null,1,null,1,null,1,null,1,null,1,null,1,null,1,null,1,null,"d","x",null,"AV    Gemeenschappelijk funderend leerplan B  ->  D,- D/A-, A-finaliteit","d",null,null,null,null,null,null,null,null,null,null,18]
[null,null,null,"Schilderen en decoratie",null,0,null,null,1,null,1,null,1,null,1,null,1,null,1,null,1,null,1,null,1,null,"d","x",null,"AV    Lichamelijke opvoeding B  ->  D-, D/A-, A-finaliteit","d",null,null,null,null,null,null,null,null,null,null,19]
[null,null,null,"Schilderen en decoratie",null,0,null,null,1,null,1,null,1,null,1,null,1,null,1,null,1,null,1,null,1,null,"d","x",null,"AV    Maatschappelijke vorming  ->  A-finaliteit","d",null,null,null,null,null,null,null,null,null,null,20]
[null,null,null,"Schilderen en decoratie",null,0,null,null,1,null,1,null,1,null,1,null,1,null,1,null,1,null,1,null,1,null,"d","x",null,"AV    Nederlands  ->  A-finaliteit","d",null,null,null,null,null,null,null,null,null,null,21]
[null,null,null,"Schilderen en decoratie",null,0,null,null,1,null,1,null,1,null,1,null,1,null,1,null,1,null,1,null,1,null,"d","x",null,"AV    Rooms-katholieke godsdienst - 1ste, 2de en 3de graad","d",null,null,null,null,null,null,null,null,null,null,22]
[null,null,null,"Schilderen en decoratie",null,0,null,null,1,null,1,null,1,null,1,null,1,null,1,null,1,null,1,null,1,null,"d","x",null,"AV    Wiskunde  ->  A-finaliteit","d",null,null,null,null,null,null,null,null,null,null,23]
[null,null,null,"Schilderen en decoratie",null,0,null,null,1,null,1,null,1,null,1,null,1,null,1,null,1,null,1,null,1,null,"d","x",null,"SV    Schilderen en decoratie  ->  A-finaliteit","d",null,null,null,null,null,null,null,null,null,null,24]
[null,null,null,"Schilderen en decoratie",null,0,null,null,1,null,1,null,1,null,1,null,1,null,1,null,1,null,1,null,1,null,"d","x",null,"CG    Artistieke vorming Co  ->  D-D/A-A-finaliteit","d",null,null,null,null,null,null,null,null,null,null,25]
[null,null,null,"Schilderen en decoratie",null,0,null,null,1,null,1,null,1,null,1,null,1,null,1,null,1,null,1,null,1,null,"d","x",null,"CG    ICT Co  ->  D/DA/A-finaliteit","d",null,null,null,null,null,null,null,null,null,null,26]
[null,null,null,"Schoonmaker",null,0,null,null,1,null,1,null,1,null,1,null,1,null,1,null,1,null,1,null,1,null,"d","x",null,"AV    Engels B  ->  A-finaliteit","d",null,null,null,null,null,null,null,null,null,null,27]
[null,null,null,"Schoonmaker",null,0,null,null,1,null,1,null,1,null,1,null,1,null,1,null,1,null,1,null,1,null,"d","x",null,"AV    Frans B  ->  A-finaliteit","d",null,null,null,null,null,null,null,null,null,null,28]
[null,null,null,"Schoonmaker",null,0,null,null,1,null,1,null,1,null,1,null,1,null,1,null,1,null,1,null,1,null,"d","x",null,"AV    Gemeenschappelijk funderend leerplan B  ->  D,- D/A-, A-finaliteit","d",null,null,null,null,null,null,null,null,null,null,29]
[null,null,null,"Schoonmaker",null,0,null,null,1,null,1,null,1,null,1,null,1,null,1,null,1,null,1,null,1,null,"d","x",null,"AV    Maatschappelijke vorming  ->  A-finaliteit","d",null,null,null,null,null,null,null,null,null,null,30]
[null,null,null,"Schoonmaker",null,0,null,null,1,null,1,null,1,null,1,null,1,null,1,null,1,null,1,null,1,null,"d","x",null,"AV    Natuurwetenschappen B (oud)  ->  A-finaliteit","d",null,null,null,null,null,null,null,null,null,null,31]
[null,null,null,"Schoonmaker",null,0,null,null,1,null,1,null,1,null,1,null,1,null,1,null,1,null,1,null,1,null,"d","x",null,"AV    Nederlands  ->  A-finaliteit","d",null,null,null,null,null,null,null,null,null,null,32]
[null,null,null,"Schoonmaker",null,0,null,null,1,null,1,null,1,null,1,null,1,null,1,null,1,null,1,null,1,null,"d","x",null,"AV    Wiskunde  ->  A-finaliteit","d",null,null,null,null,null,null,null,null,null,null,33]
[null,null,null,"Schoonmaker",null,0,null,null,1,null,1,null,1,null,1,null,1,null,1,null,1,null,1,null,1,null,"d","x",null,"SV    Schoonmaker  ->  A-finaliteit","d",null,null,null,null,null,null,null,null,null,null,34]
[null,null,null,"Slagerij",null,0,null,null,1,null,1,null,1,null,1,null,1,null,1,null,1,null,1,null,1,null,"d","x",null,"AV    Engels B  ->  A-finaliteit","d",null,null,null,null,null,null,null,null,null,null,35]
[null,null,null,"Slagerij",null,0,null,null,1,null,1,null,1,null,1,null,1,null,1,null,1,null,1,null,1,null,"d","x",null,"AV    Frans B  ->  A-finaliteit","d",null,null,null,null,null,null,null,null,null,null,36]
[null,null,null,"Slagerij",null,0,null,null,1,null,1,null,1,null,1,null,1,null,1,null,1,null,1,null,1,null,"d","x",null,"AV    Gemeenschappelijk funderend leerplan B  ->  D,- D/A-, A-finaliteit","d",null,null,null,null,null,null,null,null,null,null,37]
[null,null,null,"Slagerij",null,0,null,null,1,null,1,null,1,null,1,null,1,null,1,null,1,null,1,null,1,null,"d","x",null,"AV    Lichamelijke opvoeding B  ->  D-, D/A-, A-finaliteit","d",null,null,null,null,null,null,null,null,null,null,38]
[null,null,null,"Slagerij",null,0,null,null,1,null,1,null,1,null,1,null,1,null,1,null,1,null,1,null,1,null,"d","x",null,"AV    Maatschappelijke vorming  ->  A-finaliteit","d",null,null,null,null,null,null,null,null,null,null,39]
[null,null,null,"Slagerij",null,0,null,null,1,null,1,null,1,null,1,null,1,null,1,null,1,null,1,null,1,null,"d","x",null,"AV    Natuurwetenschappen B (oud)  ->  A-finaliteit","d",null,null,null,null,null,null,null,null,null,null,40]
[null,null,null,"Slagerij",null,0,null,null,1,null,1,null,1,null,1,null,1,null,1,null,1,null,1,null,1,null,"d","x",null,"AV    Nederlands  ->  A-finaliteit","d",null,null,null,null,null,null,null,null,null,null,41]
[null,null,null,"Slagerij",null,0,null,null,1,null,1,null,1,null,1,null,1,null,1,null,1,null,1,null,1,null,"d","x",null,"AV    Rooms-katholieke godsdienst - 1ste, 2de en 3de graad","d",null,null,null,null,null,null,null,null,null,null,42]
[null,null,null,"Slagerij",null,0,null,null,1,null,1,null,1,null,1,null,1,null,1,null,1,null,1,null,1,null,"d","x",null,"AV    Wiskunde  ->  A-finaliteit","d",null,null,null,null,null,null,null,null,null,null,43]
[null,null,null,"Slagerij",null,0,null,null,1,null,1,null,1,null,1,null,1,null,1,null,1,null,1,null,1,null,"d","x",null,"SV    Slagerij  ->  A-finaliteit","d",null,null,null,null,null,null,null,null,null,null,44]
[null,null,null,"Slagerij",null,0,null,null,1,null,1,null,1,null,1,null,1,null,1,null,1,null,1,null,1,null,"d","x",null,"CG    Artistieke vorming Co  ->  D-D/A-A-finaliteit","d",null,null,null,null,null,null,null,null,null,null,45]
[null,null,null,"Slagerij",null,0,null,null,1,null,1,null,1,null,1,null,1,null,1,null,1,null,1,null,1,null,"d","x",null,"CG    ICT Co  ->  D/DA/A-finaliteit","d",null,null,null,null,null,null,null,null,null,null,46]
[null,null,null,"Slagerijtechnieken",null,0,null,null,1,null,1,null,1,null,1,null,1,null,1,null,1,null,1,null,1,null,"d","x",null,"AV    Aardrijkskunde B  ->  D/A-finaliteit","d",null,null,null,null,null,null,null,null,null,null,47]
[null,null,null,"Slagerijtechnieken",null,0,null,null,1,null,1,null,1,null,1,null,1,null,1,null,1,null,1,null,1,null,"d","x",null,"AV    Engels B  ->  D/A-finaliteit","d",null,null,null,null,null,null,null,null,null,null,48]
[null,null,null,"Slagerijtechnieken",null,0,null,null,1,null,1,null,1,null,1,null,1,null,1,null,1,null,1,null,1,null,"d","x",null,"AV    Frans B  ->  D/A-finaliteit","d",null,null,null,null,null,null,null,null,null,null,49]
[null,null,null,"Slagerijtechnieken",null,0,null,null,1,null,1,null,1,null,1,null,1,null,1,null,1,null,1,null,1,null,"d","x",null,"AV    Gemeenschappelijk funderend leerplan B  ->  D,- D/A-, A-finaliteit","d",null,null,null,null,null,null,null,null,null,null,50]
[null,null,null,"Slagerijtechnieken",null,0,null,null,1,null,1,null,1,null,1,null,1,null,1,null,1,null,1,null,1,null,"d","x",null,"AV    Geschiedenis B  ->  D/A-finaliteit","d",null,null,null,null,null,null,null,null,null,null,51]
[null,null,null,"Slagerijtechnieken",null,0,null,null,1,null,1,null,1,null,1,null,1,null,1,null,1,null,1,null,1,null,"d","x",null,"AV    Lichamelijke opvoeding B  ->  D-, D/A-, A-finaliteit","d",null,null,null,null,null,null,null,null,null,null,52]
[null,null,null,"Slagerijtechnieken",null,0,null,null,1,null,1,null,1,null,1,null,1,null,1,null,1,null,1,null,1,null,"d","x",null,"AV    Nederlands B  ->  D/A-finaliteit","d",null,null,null,null,null,null,null,null,null,null,53]
[null,null,null,"Slagerijtechnieken",null,0,null,null,1,null,1,null,1,null,1,null,1,null,1,null,1,null,1,null,1,null,"d","x",null,"AV    Rooms-katholieke godsdienst - 1ste, 2de en 3de graad","d",null,null,null,null,null,null,null,null,null,null,54]
[null,null,null,"Slagerijtechnieken",null,0,null,null,1,null,1,null,1,null,1,null,1,null,1,null,1,null,1,null,1,null,"d","x",null,"AV    Wiskunde  ->  D/A-finaliteit","d",null,null,null,null,null,null,null,null,null,null,55]
[null,null,null,"Slagerijtechnieken",null,0,null,null,1,null,1,null,1,null,1,null,1,null,1,null,1,null,1,null,1,null,"d","x",null,"SV    Natuurwetenschappen B+S'  ->  D/A-finaliteit","d",null,null,null,null,null,null,null,null,null,null,56]
[null,null,null,"Slagerijtechnieken",null,0,null,null,1,null,1,null,1,null,1,null,1,null,1,null,1,null,1,null,1,null,"d","x",null,"SV    Slagerijtechnieken  ->  D/A-finaliteit","d",null,null,null,null,null,null,null,null,null,null,57]
[null,null,null,"Slagerijtechnieken",null,0,null,null,{"$f":"COUNTBLANK(H1058)","v":1},null,{"$f":"COUNTBLANK(J1058)","v":1},null,{"$f":"COUNTBLANK(L1058)","v":1},null,{"$f":"COUNTBLANK(N1058)","v":1},null,{"$f":"COUNTBLANK(P1058)","v":1},null,{"$f":"COUNTBLANK(R1058)","v":1},null,{"$f":"COUNTBLANK(T1058)","v":1},null,{"$f":"COUNTBLANK(V1058)","v":1},null,{"$f":"COUNTBLANK(X1058)","v":1},null,"d","x",null,"CG    Artistieke vorming Co  ->  D-D/A-A-finaliteit","d",null,null,null,null,null,null,null,null,null,null,58]
[null,null,null,"Slagerijtechnieken",null,0,null,null,1,null,1,null,1,null,1,null,1,null,1,null,1,null,1,null,1,null,"d","x",null,"CG    ICT Co  ->  D/DA/A-finaliteit","d",null,null,null,null,null,null,null,null,null,null,59]
[null,null,null,"Slagerijtechnieken",null,0,null,null,1,null,1,null,1,null,1,null,1,null,1,null,1,null,1,null,1,null,"d","x",null,"CG    Mens en samenleving complementair  ->  D/DA-finaliteit","d",null,null,null,null,null,null,null,null,null,null,60]
[null,null,null,"Sport",null,0,null,null,1,null,1,null,1,null,1,null,1,null,1,null,1,null,1,null,1,null,"d","x",null,"AV    Aardrijkskunde B  ->  D/A-finaliteit","d",null,null,null,null,null,null,null,null,null,null,61]
[null,null,null,"Sport",null,0,null,null,1,null,1,null,1,null,1,null,1,null,1,null,1,null,1,null,1,null,"d","x",null,"AV    Engels B  ->  D/A-finaliteit","d",null,null,null,null,null,null,null,null,null,null,62]
[null,null,null,"Sport",null,0,null,null,1,null,1,null,1,null,1,null,1,null,1,null,1,null,1,null,1,null,"d","x",null,"AV    Frans B  ->  D/A-finaliteit","d",null,null,null,null,null,null,null,null,null,null,63]
[null,null,null,"Sport",null,0,null,null,1,null,1,null,1,null,1,null,1,null,1,null,1,null,1,null,1,null,"d","x",null,"AV    Gemeenschappelijk funderend leerplan B  ->  D,- D/A-, A-finaliteit","d",null,null,null,null,null,null,null,null,null,null,64]
[null,null,null,"Sport",null,{"$f":"9-(I1065+K1065+M1065+O1065+Q1065+S1065+U1065++Y1065+W1065)","v":0},null,null,1,null,1,null,1,null,1,null,1,null,1,null,1,null,1,null,1,null,"d","x",null,"AV    Geschiedenis B  ->  D/A-finaliteit","d",null,null,null,null,null,null,null,null,null,null,65]
[null,null,null,"Sport",null,0,null,null,1,null,1,null,1,null,1,null,1,null,1,null,1,null,1,null,1,null,"d","x",null,"AV    Natuurwetenschappen B  ->  D/A-finaliteit","d",null,null,null,null,null,null,null,null,null,null,66]
[null,null,null,"Sport",null,0,null,null,1,null,1,null,1,null,1,null,1,null,1,null,1,null,1,null,1,null,"d","x",null,"AV    Nederlands B  ->  D/A-finaliteit","d",null,null,null,null,null,null,null,null,null,null,67]
[null,null,null,"Sport",null,0,null,null,1,null,1,null,1,null,1,null,1,null,1,null,1,null,1,null,1,null,"d","x",null,"AV    Rooms-katholieke godsdienst - 1ste, 2de en 3de graad","d",null,null,null,null,null,null,null,null,null,null,68]
[null,null,null,"Sport",null,0,null,null,1,null,1,null,1,null,1,null,1,null,1,null,1,null,1,null,1,null,"d","x",null,"AV    Wiskunde  ->  D/A-finaliteit","d",null,null,null,null,null,null,null,null,null,null,69]
[null,null,null,"Sport",null,0,null,null,1,null,1,null,1,null,1,null,1,null,1,null,1,null,1,null,1,null,"d","x",null,"SV    Sport B+S  ->  D/A-finaliteit","d",null,null,null,null,null,null,null,null,null,null,70]
[null,null,null,"Sport",null,0,null,null,1,null,1,null,1,null,1,null,1,null,1,null,1,null,1,null,1,null,"d","x",null,"CG    Artistieke vorming Co  ->  D-D/A-A-finaliteit","d",null,null,null,null,null,null,null,null,null,null,71]
[null,null,null,"Sport",null,0,null,null,1,null,1,null,1,null,1,null,1,null,1,null,1,null,1,null,1,null,"d","x",null,"CG    ICT Co  ->  D/DA/A-finaliteit","d",null,null,null,null,null,null,null,null,null,null,72]
[null,null,null,"Sport",null,0,null,null,1,null,1,null,1,null,1,null,1,null,1,null,1,null,1,null,1,null,"d","x",null,"CG    Mens en samenleving complementair  ->  D/DA-finaliteit","d",null,null,null,null,null,null,null,null,null,null,73]
[null,null,null,"Sportwetenschappen",null,0,null,null,1,null,1,null,1,null,1,null,1,null,1,null,1,null,1,null,1,null,"d","x",null,"AV    Aardrijkskunde B  ->  D-finaliteit","d",null,null,null,null,null,null,null,null,null,null,74]
[null,null,null,"Sportwetenschappen",null,0,null,null,1,null,1,null,1,null,1,null,1,null,1,null,1,null,1,null,1,null,"d","x",null,"AV    Engels B+  ->  D-finaliteit","d",null,null,null,null,null,null,null,null,null,null,75]
[null,null,null,"Sportwetenschappen",null,0,null,null,1,null,1,null,1,null,1,null,1,null,1,null,1,null,1,null,1,null,"d","x",null,"AV    Frans B+  ->  D-finaliteit","d",null,null,null,null,null,null,null,null,null,null,76]
[null,null,null,"Sportwetenschappen",null,0,null,null,1,null,1,null,1,null,1,null,1,null,1,null,1,null,1,null,1,null,"d","x",null,"AV    Gemeenschappelijk funderend leerplan B  ->  D,- D/A-, A-finaliteit","d",null,null,null,null,null,null,null,null,null,null,77]
[null,null,null,"Sportwetenschappen",null,0,null,null,1,null,1,null,1,null,1,null,1,null,1,null,1,null,1,null,1,null,"d","x",null,"AV    Geschiedenis B+  ->  D-finaliteit","d",null,null,null,null,null,null,null,null,null,null,78]
[null,null,null,"Sportwetenschappen",null,0,null,null,1,null,1,null,1,null,1,null,1,null,1,null,1,null,1,null,1,null,"d","x",null,"AV    Nederlands B+  ->  D-finaliteit","d",null,null,null,null,null,null,null,null,null,null,79]
[null,null,null,"Sportwetenschappen",null,0,null,null,1,null,1,null,1,null,1,null,1,null,1,null,1,null,1,null,1,null,"d","x",null,"AV    Rooms-katholieke godsdienst - 1ste, 2de en 3de graad","d",null,null,null,null,null,null,null,null,null,null,80]
[null,null,null,"Sportwetenschappen",null,0,null,null,1,null,1,null,1,null,1,null,1,null,1,null,1,null,1,null,1,null,"d","x",null,"SV    Natuurwetenschappen B+S  ->  D-finaliteit","d",null,null,null,null,null,null,null,null,null,null,81]
[null,null,null,"Sportwetenschappen",null,0,null,null,1,null,1,null,1,null,1,null,1,null,1,null,1,null,1,null,1,null,"d","x",null,"SV    Sport B+S  ->  D-finaliteit","d",null,null,null,null,null,null,null,null,null,null,82]
[null,null,null,"Sportwetenschappen",null,0,null,null,1,null,1,null,1,null,1,null,1,null,1,null,1,null,1,null,1,null,"d","x",null,"SV    Wiskunde B+S  ->  D-finaliteit","d",null,null,null,null,null,null,null,null,null,null,83]
[null,null,null,"Sportwetenschappen",null,0,null,null,1,null,1,null,1,null,1,null,1,null,1,null,1,null,1,null,1,null,"d","x",null,"CG    Artistieke vorming Co  ->  D-D/A-A-finaliteit","d",null,null,null,null,null,null,null,null,null,null,84]
[null,null,null,"Sportwetenschappen",null,0,null,null,1,null,1,null,1,null,1,null,1,null,1,null,1,null,1,null,1,null,"d","x",null,"CG    Duits Co  ->  D-D/A-finaliteit","d",null,null,null,null,null,null,null,null,null,null,85]
[null,null,null,"Sportwetenschappen",null,0,null,null,1,null,1,null,1,null,1,null,1,null,1,null,1,null,1,null,1,null,"d","x",null,"CG    ICT Co  ->  D/DA/A-finaliteit","d",null,null,null,null,null,null,null,null,null,null,86]
[null,null,null,"Sportwetenschappen",null,0,null,null,1,null,1,null,1,null,1,null,1,null,1,null,1,null,1,null,1,null,"d","x",null,"CG    Mens en samenleving complementair  ->  D/DA-finaliteit","d",null,null,null,null,null,null,null,null,null,null,87]
[null,null,null,"Stratenmaker",null,0,null,null,1,null,1,null,1,null,1,null,1,null,1,null,1,null,1,null,1,null,"d","x",null,"AV    Engels B  ->  A-finaliteit","d",null,null,null,null,null,null,null,null,null,null,88]
[null,null,null,"Stratenmaker",null,0,null,null,1,null,1,null,1,null,1,null,1,null,1,null,1,null,1,null,1,null,"d","x",null,"AV    Frans B  ->  A-finaliteit","d",null,null,null,null,null,null,null,null,null,null,89]
[null,null,null,"Stratenmaker",null,0,null,null,1,null,1,null,1,null,1,null,1,null,1,null,1,null,1,null,1,null,"d","x",null,"AV    Gemeenschappelijk funderend leerplan B  ->  D,- D/A-, A-finaliteit","d",null,null,null,null,null,null,null,null,null,null,90]
[null,null,null,"Stratenmaker",null,0,null,null,1,null,1,null,1,null,1,null,1,null,1,null,1,null,1,null,1,null,"d","x",null,"AV    Maatschappelijke vorming  ->  A-finaliteit","d",null,null,null,null,null,null,null,null,null,null,91]
[null,null,null,"Stratenmaker",null,0,null,null,1,null,1,null,1,null,1,null,1,null,1,null,1,null,1,null,1,null,"d","x",null,"AV    Natuurwetenschappen B (oud)  ->  A-finaliteit","d",null,null,null,null,null,null,null,null,null,null,92]
[null,null,null,"Stratenmaker",null,0,null,null,1,null,1,null,1,null,1,null,1,null,1,null,1,null,1,null,1,null,"d","x",null,"AV    Nederlands  ->  A-finaliteit","d",null,null,null,null,null,null,null,null,null,null,93]
[null,null,null,"Stratenmaker",null,0,null,null,1,null,1,null,1,null,1,null,1,null,1,null,1,null,1,null,1,null,"d","x",null,"AV    Wiskunde  ->  A-finaliteit","d",null,null,null,null,null,null,null,null,null,null,94]
[null,null,null,"Stratenmaker",null,0,null,null,1,null,1,null,1,null,1,null,1,null,1,null,1,null,1,null,1,null,"d","x",null,"SV    Stratenmaker  ->  A-finaliteit","d",null,null,null,null,null,null,null,null,null,null,95]
[null,null,null,"Taal en communicatie",null,0,null,null,1,null,1,null,1,null,1,null,1,null,1,null,1,null,1,null,1,null,"d","x",null,"AV    Aardrijkskunde B  ->  D/A-finaliteit","d",null,null,null,null,null,null,null,null,null,null,96]
[null,null,null,"Taal en communicatie",null,0,null,null,1,null,1,null,1,null,1,null,1,null,1,null,1,null,1,null,1,null,"d","x",null,"AV    Gemeenschappelijk funderend leerplan B  ->  D,- D/A-, A-finaliteit","d",null,null,null,null,null,null,null,null,null,null,97]
[null,null,null,"Taal en communicatie",null,0,null,null,1,null,1,null,1,null,1,null,1,null,1,null,1,null,1,null,1,null,"d","x",null,"AV    Geschiedenis B  ->  D/A-finaliteit","d",null,null,null,null,null,null,null,null,null,null,98]
[null,null,null,"Taal en communicatie",null,0,null,null,1,null,1,null,1,null,1,null,1,null,1,null,1,null,1,null,1,null,"d","x",null,"AV    Lichamelijke opvoeding B  ->  D-, D/A-, A-finaliteit","d",null,null,null,null,null,null,null,null,null,null,99]
[null,null,null,"Taal en communicatie",null,0,null,null,1,null,1,null,1,null,1,null,1,null,1,null,1,null,1,null,1,null,"d","x",null,"AV    Natuurwetenschappen B  ->  D/A-finaliteit","d",null,null,null,null,null,null,null,null,null,null,100]
[null,null,null,"Taal en communicatie",null,0,null,null,1,null,1,null,1,null,1,null,1,null,1,null,1,null,1,null,1,null,"d","x",null,"AV    Rooms-katholieke godsdienst - 1ste, 2de en 3de graad","d",null,null,null,null,null,null,null,null,null,null,101]
[null,null,null,"Taal en communicatie",null,0,null,null,1,null,1,null,1,null,1,null,1,null,1,null,1,null,1,null,1,null,"d","x",null,"AV    Wiskunde  ->  D/A-finaliteit","d",null,null,null,null,null,null,null,null,null,null,102]
[null,null,null,"Taal en communicatie",null,0,null,null,1,null,1,null,1,null,1,null,1,null,1,null,1,null,1,null,1,null,"d","x",null,"SV    Duits S  ->  D/A-finaliteit","d",null,null,null,null,null,null,null,null,null,null,103]
[null,null,null,"Taal en communicatie",null,0,null,null,1,null,1,null,1,null,1,null,1,null,1,null,1,null,1,null,1,null,"d","x",null,"SV    Engels B+S  ->  D/A-finaliteit","d",null,null,null,null,null,null,null,null,null,null,104]
[null,null,null,"Taal en communicatie",null,0,null,null,1,null,1,null,1,null,1,null,1,null,1,null,1,null,1,null,1,null,"d","x",null,"SV    Frans B+S  ->  D/A-finaliteit","d",null,null,null,null,null,null,null,null,null,null,105]
[null,null,null,"Taal en communicatie",null,0,null,null,1,null,1,null,1,null,1,null,1,null,1,null,1,null,1,null,1,null,"d","x",null,"SV    Nederlands B+S  ->  D/A-finaliteit","d",null,null,null,null,null,null,null,null,null,null,106]
[null,null,null,"Taal en communicatie",null,0,null,null,1,null,1,null,1,null,1,null,1,null,1,null,1,null,1,null,1,null,"d","x",null,"SV    Public relations S  ->  D/A-finaliteit","d",null,null,null,null,null,null,null,null,null,null,107]
[null,null,null,"Taal en communicatie",null,0,null,null,1,null,1,null,1,null,1,null,1,null,1,null,1,null,1,null,1,null,"d","x",null,"CG    Artistieke vorming Co  ->  D-D/A-A-finaliteit","d",null,null,null,null,null,null,null,null,null,null,108]
[null,null,null,"Taal en communicatie",null,0,null,null,1,null,1,null,1,null,1,null,1,null,1,null,1,null,1,null,1,null,"d","x",null,"CG    ICT Co  ->  D/DA/A-finaliteit","d",null,null,null,null,null,null,null,null,null,null,109]
[null,null,null,"Taal en communicatie",null,0,null,null,1,null,1,null,1,null,1,null,1,null,1,null,1,null,1,null,1,null,"d","x",null,"CG    Mens en samenleving complementair  ->  D/DA-finaliteit","d",null,null,null,null,null,null,null,null,null,null,110]
[null,null,null,"Technologische wetenschappen",null,0,null,null,1,null,1,null,1,null,1,null,1,null,1,null,1,null,1,null,1,null,"d","x",null,"AV    Aardrijkskunde B  ->  D-finaliteit","d",null,null,null,null,null,null,null,null,null,null,111]
[null,null,null,"Technologische wetenschappen",null,0,null,null,1,null,1,null,1,null,1,null,1,null,1,null,1,null,1,null,1,null,"d","x",null,"AV    Biologie  ->  D-finaliteit","d",null,null,null,null,null,null,null,null,null,null,112]
[null,null,null,"Technologische wetenschappen",null,0,null,null,1,null,1,null,1,null,1,null,1,null,1,null,1,null,1,null,1,null,"d","x",null,"AV    Engels B  ->  D-finaliteit","d",null,null,null,null,null,null,null,null,null,null,113]
[null,null,null,"Technologische wetenschappen",null,0,null,null,1,null,1,null,1,null,1,null,1,null,1,null,1,null,1,null,1,null,"d","x",null,"AV    Frans  ->  D-finaliteit","d",null,null,null,null,null,null,null,null,null,null,114]
[null,null,null,"Technologische wetenschappen",null,0,null,null,1,null,1,null,1,null,1,null,1,null,1,null,1,null,1,null,1,null,"d","x",null,"AV    Gemeenschappelijk funderend leerplan B  ->  D,- D/A-, A-finaliteit","d",null,null,null,null,null,null,null,null,null,null,115]
[null,null,null,"Technologische wetenschappen",null,0,null,null,1,null,1,null,1,null,1,null,1,null,1,null,1,null,1,null,1,null,"d","x",null,"AV    Geschiedenis  ->  D-finaliteit","d",null,null,null,null,null,null,null,null,null,null,116]
[null,null,null,"Technologische wetenschappen",null,0,null,null,1,null,1,null,1,null,1,null,1,null,1,null,1,null,1,null,1,null,"d","x",null,"AV    Lichamelijke opvoeding B  ->  D-, D/A-, A-finaliteit","d",null,null,null,null,null,null,null,null,null,null,117]
[null,null,null,"Technologische wetenschappen",null,0,null,null,1,null,1,null,1,null,1,null,1,null,1,null,1,null,1,null,1,null,"d","x",null,"AV    Nederlands B  ->  D-finaliteit","d",null,null,null,null,null,null,null,null,null,null,118]
[null,null,null,"Technologische wetenschappen",null,0,null,null,1,null,1,null,1,null,1,null,1,null,1,null,1,null,1,null,1,null,"d","x",null,"AV    Rooms-katholieke godsdienst - 1ste, 2de en 3de graad","d",null,null,null,null,null,null,null,null,null,null,119]
[null,null,null,"Technologische wetenschappen",null,0,null,null,1,null,1,null,1,null,1,null,1,null,1,null,1,null,1,null,1,null,"d","x",null,"SV    Technologische wetenschappen B+S  ->  D-finaliteit","d",null,null,null,null,null,null,null,null,null,null,120]
[null,null,null,"Technologische wetenschappen",null,0,null,null,1,null,1,null,1,null,1,null,1,null,1,null,1,null,1,null,1,null,"d","x",null,"SV    Wiskunde B+S  ->  D-finaliteit","d",null,null,null,null,null,null,null,null,null,null,121]
[null,null,null,"Technologische wetenschappen",null,0,null,null,{"$f":"COUNTBLANK(H1122)","v":1},null,{"$f":"COUNTBLANK(J1122)","v":1},null,{"$f":"COUNTBLANK(L1122)","v":1},null,{"$f":"COUNTBLANK(N1122)","v":1},null,{"$f":"COUNTBLANK(P1122)","v":1},null,{"$f":"COUNTBLANK(R1122)","v":1},null,{"$f":"COUNTBLANK(T1122)","v":1},null,{"$f":"COUNTBLANK(V1122)","v":1},null,{"$f":"COUNTBLANK(X1122)","v":1},null,"d","x",null,"CG    Artistieke vorming Co  ->  D-D/A-A-finaliteit","d",null,null,null,null,null,null,null,null,null,null,122]
[null,null,null,"Technologische wetenschappen",null,0,null,null,1,null,1,null,1,null,1,null,1,null,1,null,1,null,1,null,1,null,"d","x",null,"CG    ICT Co  ->  D/DA/A-finaliteit","d",null,null,null,null,null,null,null,null,null,null,123]
[null,null,null,"Technologische wetenschappen",null,0,null,null,1,null,1,null,1,null,1,null,1,null,1,null,1,null,1,null,1,null,"d","x",null,"CG    Mens en samenleving complementair  ->  D/DA-finaliteit","d",null,null,null,null,null,null,null,null,null,null,124]
[null,null,null,"Textiel",null,0,null,null,1,null,1,null,1,null,1,null,1,null,1,null,1,null,1,null,1,null,"d","x",null,"AV    Gemeenschappelijk funderend leerplan B  ->  D,- D/A-, A-finaliteit","d",null,null,null,null,null,null,null,null,null,null,125]
[null,null,null,"Textiel",null,0,null,null,1,null,1,null,1,null,1,null,1,null,1,null,1,null,1,null,1,null,"d","x",null,"AV    Rooms-katholieke godsdienst - 1ste, 2de en 3de graad","d",null,null,null,null,null,null,null,null,null,null,126]
[null,null,null,"Textiel",null,0,null,null,1,null,1,null,1,null,1,null,1,null,1,null,1,null,1,null,1,null,"d","x",null,"CG    Artistieke vorming Co  ->  D-D/A-A-finaliteit","d",null,null,null,null,null,null,null,null,null,null,127]
[null,null,null,"Textiel",null,0,null,null,1,null,1,null,1,null,1,null,1,null,1,null,1,null,1,null,1,null,"d","x",null,"CG    ICT Co  ->  D/DA/A-finaliteit","d",null,null,null,null,null,null,null,null,null,null,128]
[null,null,null,"Toerisme",null,{"$f":"9-(I1129+K1129+M1129+O1129+Q1129+S1129+U1129++Y1129+W1129)","v":0},null,null,1,null,1,null,1,null,1,null,1,null,1,null,1,null,1,null,1,null,"d","x",null,"AV    Aardrijkskunde B  ->  D/A-finaliteit","d",null,null,null,null,null,null,null,null,null,null,129]
[null,null,null,"Toerisme",null,0,null,null,1,null,1,null,1,null,1,null,1,null,1,null,1,null,1,null,1,null,"d","x",null,"AV    Gemeenschappelijk funderend leerplan B  ->  D,- D/A-, A-finaliteit","d",null,null,null,null,null,null,null,null,null,null,130]
[null,null,null,"Toerisme",null,0,null,null,1,null,1,null,1,null,1,null,1,null,1,null,1,null,1,null,1,null,"d","x",null,"AV    Geschiedenis B  ->  D/A-finaliteit","d",null,null,null,null,null,null,null,null,null,null,131]
[null,null,null,"Toerisme",null,0,null,null,1,null,1,null,1,null,1,null,1,null,1,null,1,null,1,null,1,null,"d","x",null,"AV    Lichamelijke opvoeding B  ->  D-, D/A-, A-finaliteit","d",null,null,null,null,null,null,null,null,null,null,132]
[null,null,null,"Toerisme",null,0,null,null,1,null,1,null,1,null,1,null,1,null,1,null,1,null,1,null,1,null,"d","x",null,"AV    Natuurwetenschappen B  ->  D/A-finaliteit","d",null,null,null,null,null,null,null,null,null,null,133]
[null,null,null,"Toerisme",null,0,null,null,1,null,1,null,1,null,1,null,1,null,1,null,1,null,1,null,1,null,"d","x",null,"AV    Rooms-katholieke godsdienst - 1ste, 2de en 3de graad","d",null,null,null,null,null,null,null,null,null,null,134]
[null,null,null,"Toerisme",null,0,null,null,1,null,1,null,1,null,1,null,1,null,1,null,1,null,1,null,1,null,"d","x",null,"AV    Wiskunde  ->  D/A-finaliteit","d",null,null,null,null,null,null,null,null,null,null,135]
[null,null,null,"Toerisme",null,0,null,null,1,null,1,null,1,null,1,null,1,null,1,null,1,null,1,null,1,null,"d","x",null,"SV    Duits S  ->  D/A-finaliteit","d",null,null,null,null,null,null,null,null,null,null,136]
[null,null,null,"Toerisme",null,0,null,null,1,null,1,null,1,null,1,null,1,null,1,null,1,null,1,null,1,null,"d","x",null,"SV    Engels B+S  ->  D/A-finaliteit","d",null,null,null,null,null,null,null,null,null,null,137]
[null,null,null,"Toerisme",null,0,null,null,1,null,1,null,1,null,1,null,1,null,1,null,1,null,1,null,1,null,"d","x",null,"SV    Frans B+S  ->  D/A-finaliteit","d",null,null,null,null,null,null,null,null,null,null,138]
[null,null,null,"Toerisme",null,0,null,null,1,null,1,null,1,null,1,null,1,null,1,null,1,null,1,null,1,null,"d","x",null,"SV    Nederlands B+S  ->  D/A-finaliteit","d",null,null,null,null,null,null,null,null,null,null,139]
[null,null,null,"Toerisme",null,0,null,null,1,null,1,null,1,null,1,null,1,null,1,null,1,null,1,null,1,null,"d","x",null,"SV    Toerisme  ->  D/A-finaliteit","d",null,null,null,null,null,null,null,null,null,null,140]
[null,null,null,"Toerisme",null,0,null,null,1,null,1,null,1,null,1,null,1,null,1,null,1,null,1,null,1,null,"d","x",null,"CG    Artistieke vorming Co  ->  D-D/A-A-finaliteit","d",null,null,null,null,null,null,null,null,null,null,141]
[null,null,null,"Toerisme",null,0,null,null,1,null,1,null,1,null,1,null,1,null,1,null,1,null,1,null,1,null,"d","x",null,"CG    ICT Co  ->  D/DA/A-finaliteit","d",null,null,null,null,null,null,null,null,null,null,142]
[null,null,null,"Toerisme",null,{"$f":"9-(I1143+K1143+M1143+O1143+Q1143+S1143+U1143++Y1143+W1143)","v":0},null,null,1,null,1,null,1,null,1,null,1,null,1,null,1,null,1,null,1,null,"d","x",null,"CG    Mens en samenleving complementair  ->  D/DA-finaliteit","d",null,null,null,null,null,null,null,null,null,null,143]
[null,null,null,"Topsport (Dubbele finaliteit)",null,0,null,null,1,null,1,null,1,null,1,null,1,null,1,null,1,null,1,null,1,null,"d","x",null,"AV    Aardrijkskunde B  ->  D/A-finaliteit","d",null,null,null,null,null,null,null,null,null,null,144]
[null,null,null,"Topsport (Dubbele finaliteit)",null,0,null,null,1,null,1,null,1,null,1,null,1,null,1,null,1,null,1,null,1,null,"d","x",null,"AV    Engels B  ->  D/A-finaliteit","d",null,null,null,null,null,null,null,null,null,null,145]
[null,null,null,"Topsport (Dubbele finaliteit)",null,0,null,null,1,null,1,null,1,null,1,null,1,null,1,null,1,null,1,null,1,null,"d","x",null,"AV    Frans B  ->  D/A-finaliteit","d",null,null,null,null,null,null,null,null,null,null,146]
[null,null,null,"Topsport (Dubbele finaliteit)",null,0,null,null,1,null,1,null,1,null,1,null,1,null,1,null,1,null,1,null,1,null,"d","x",null,"AV    Gemeenschappelijk funderend leerplan B  ->  D,- D/A-, A-finaliteit","d",null,null,null,null,null,null,null,null,null,null,147]
[null,null,null,"Topsport (Dubbele finaliteit)",null,0,null,null,1,null,1,null,1,null,1,null,1,null,1,null,1,null,1,null,1,null,"d","x",null,"AV    Geschiedenis B  ->  D/A-finaliteit","d",null,null,null,null,null,null,null,null,null,null,148]
[null,null,null,"Topsport (Dubbele finaliteit)",null,0,null,null,1,null,1,null,1,null,1,null,1,null,1,null,1,null,1,null,1,null,"d","x",null,"AV    Lichamelijke opvoeding B  ->  D-, D/A-, A-finaliteit","d",null,null,null,null,null,null,null,null,null,null,149]
[null,null,null,"Topsport (Dubbele finaliteit)",null,0,null,null,1,null,1,null,1,null,1,null,1,null,1,null,1,null,1,null,1,null,"d","x",null,"AV    Natuurwetenschappen B  ->  D/A-finaliteit","d",null,null,null,null,null,null,null,null,null,null,150]
[null,null,null,"Topsport (Dubbele finaliteit)",null,0,null,null,1,null,1,null,1,null,1,null,1,null,1,null,1,null,1,null,1,null,"d","x",null,"AV    Nederlands B  ->  D/A-finaliteit","d",null,null,null,null,null,null,null,null,null,null,151]
[null,null,null,"Topsport (Dubbele finaliteit)",null,0,null,null,1,null,1,null,1,null,1,null,1,null,1,null,1,null,1,null,1,null,"d","x",null,"AV    Rooms-katholieke godsdienst - 1ste, 2de en 3de graad","d",null,null,null,null,null,null,null,null,null,null,152]
[null,null,null,"Topsport (Dubbele finaliteit)",null,0,null,null,1,null,1,null,1,null,1,null,1,null,1,null,1,null,1,null,1,null,"d","x",null,"AV    Wiskunde  ->  D/A-finaliteit","d",null,null,null,null,null,null,null,null,null,null,153]
[null,null,null,"Topsport (Dubbele finaliteit)",null,0,null,null,1,null,1,null,1,null,1,null,1,null,1,null,1,null,1,null,1,null,"d","x",null,"SV    Topsport B+S  ->  D/A-finaliteit","d",null,null,null,null,null,null,null,null,null,null,154]
[null,null,null,"Topsport (Dubbele finaliteit)",null,0,null,null,1,null,1,null,1,null,1,null,1,null,1,null,1,null,1,null,1,null,"d","x",null,"CG    Artistieke vorming Co  ->  D-D/A-A-finaliteit","d",null,null,null,null,null,null,null,null,null,null,155]
[null,null,null,"Topsport (Dubbele finaliteit)",null,0,null,null,1,null,1,null,1,null,1,null,1,null,1,null,1,null,1,null,1,null,"d","x",null,"CG    ICT Co  ->  D/DA/A-finaliteit","d",null,null,null,null,null,null,null,null,null,null,156]
[null,null,null,"Topsport (Dubbele finaliteit)",null,0,null,null,1,null,1,null,1,null,1,null,1,null,1,null,1,null,1,null,1,null,"d","x",null,"CG    Mens en samenleving complementair  ->  D/DA-finaliteit","d",null,null,null,null,null,null,null,null,null,null,157]
[null,null,null,"Topsport (Finaliteit arbeidsmarkt)",null,0,null,null,1,null,1,null,1,null,1,null,1,null,1,null,1,null,1,null,1,null,"d","x",null,"AV    Engels B  ->  A-finaliteit","d",null,null,null,null,null,null,null,null,null,null,158]
[null,null,null,"Topsport (Finaliteit arbeidsmarkt)",null,0,null,null,1,null,1,null,1,null,1,null,1,null,1,null,1,null,1,null,1,null,"d","x",null,"AV    Frans B  ->  A-finaliteit","d",null,null,null,null,null,null,null,null,null,null,159]
[null,null,null,"Topsport (Finaliteit arbeidsmarkt)",null,0,null,null,1,null,1,null,1,null,1,null,1,null,1,null,1,null,1,null,1,null,"d","x",null,"AV    Gemeenschappelijk funderend leerplan B  ->  D,- D/A-, A-finaliteit","d",null,null,null,null,null,null,null,null,null,null,160]
[null,null,null,"Topsport (Finaliteit arbeidsmarkt)",null,0,null,null,1,null,1,null,1,null,1,null,1,null,1,null,1,null,1,null,1,null,"d","x",null,"AV    Lichamelijke opvoeding B  ->  D-, D/A-, A-finaliteit","d",null,null,null,null,null,null,null,null,null,null,161]
[null,null,null,"Topsport (Finaliteit arbeidsmarkt)",null,0,null,null,1,null,1,null,1,null,1,null,1,null,1,null,1,null,1,null,1,null,"d","x",null,"AV    Maatschappelijke vorming  ->  A-finaliteit","d",null,null,null,null,null,null,null,null,null,null,162]
[null,null,null,"Topsport (Finaliteit arbeidsmarkt)",null,0,null,null,1,null,1,null,1,null,1,null,1,null,1,null,1,null,1,null,1,null,"d","x",null,"AV    Natuurwetenschappen B (oud)  ->  A-finaliteit","d",null,null,null,null,null,null,null,null,null,null,163]
[null,null,null,"Topsport (Finaliteit arbeidsmarkt)",null,0,null,null,1,null,1,null,1,null,1,null,1,null,1,null,1,null,1,null,1,null,"d","x",null,"AV    Nederlands  ->  A-finaliteit","d",null,null,null,null,null,null,null,null,null,null,164]
[null,null,null,"Topsport (Finaliteit arbeidsmarkt)",null,0,null,null,1,null,1,null,1,null,1,null,1,null,1,null,1,null,1,null,1,null,"d","x",null,"AV    Rooms-katholieke godsdienst - 1ste, 2de en 3de graad","d",null,null,null,null,null,null,null,null,null,null,165]
[null,null,null,"Topsport (Finaliteit arbeidsmarkt)",null,0,null,null,1,null,1,null,1,null,1,null,1,null,1,null,1,null,1,null,1,null,"d","x",null,"AV    Wiskunde  ->  A-finaliteit","d",null,null,null,null,null,null,null,null,null,null,166]
[null,null,null,"Topsport (Finaliteit arbeidsmarkt)",null,0,null,null,1,null,1,null,1,null,1,null,1,null,1,null,1,null,1,null,1,null,"d","x",null,"SV    Topsport S  ->  A-finaliteit","d",null,null,null,null,null,null,null,null,null,null,167]
[null,null,null,"Topsport (Finaliteit arbeidsmarkt)",null,0,null,null,1,null,1,null,1,null,1,null,1,null,1,null,1,null,1,null,1,null,"d","x",null,"CG    Artistieke vorming Co  ->  D-D/A-A-finaliteit","d",null,null,null,null,null,null,null,null,null,null,168]
[null,null,null,"Topsport (Finaliteit arbeidsmarkt)",null,0,null,null,1,null,1,null,1,null,1,null,1,null,1,null,1,null,1,null,1,null,"d","x",null,"CG    ICT Co  ->  D/DA/A-finaliteit","d",null,null,null,null,null,null,null,null,null,null,169]
[null,null,null,"Topsport-Economie",null,0,null,null,1,null,1,null,1,null,1,null,1,null,1,null,1,null,1,null,1,null,"d","x",null,"AV    Aardrijkskunde B  ->  D-finaliteit","d",null,null,null,null,null,null,null,null,null,null,170]
[null,null,null,"Topsport-Economie",null,0,null,null,1,null,1,null,1,null,1,null,1,null,1,null,1,null,1,null,1,null,"d","x",null,"AV    Engels B+  ->  D-finaliteit","d",null,null,null,null,null,null,null,null,null,null,171]
[null,null,null,"Topsport-Economie",null,0,null,null,1,null,1,null,1,null,1,null,1,null,1,null,1,null,1,null,1,null,"d","x",null,"AV    Frans B+  ->  D-finaliteit","d",null,null,null,null,null,null,null,null,null,null,172]
[null,null,null,"Topsport-Economie",null,0,null,null,1,null,1,null,1,null,1,null,1,null,1,null,1,null,1,null,1,null,"d","x",null,"AV    Gemeenschappelijk funderend leerplan B  ->  D,- D/A-, A-finaliteit","d",null,null,null,null,null,null,null,null,null,null,173]
[null,null,null,"Topsport-Economie",null,0,null,null,1,null,1,null,1,null,1,null,1,null,1,null,1,null,1,null,1,null,"d","x",null,"AV    Geschiedenis B+  ->  D-finaliteit","d",null,null,null,null,null,null,null,null,null,null,174]
[null,null,null,"Topsport-Economie",null,0,null,null,1,null,1,null,1,null,1,null,1,null,1,null,1,null,1,null,1,null,"d","x",null,"AV    Lichamelijke opvoeding B  ->  D-, D/A-, A-finaliteit","d",null,null,null,null,null,null,null,null,null,null,175]
[null,null,null,"Topsport-Economie",null,0,null,null,1,null,1,null,1,null,1,null,1,null,1,null,1,null,1,null,1,null,"d","x",null,"AV    Natuurwetenschappen  ->  D-finaliteit","d",null,null,null,null,null,null,null,null,null,null,176]
[null,null,null,"Topsport-Economie",null,0,null,null,1,null,1,null,1,null,1,null,1,null,1,null,1,null,1,null,1,null,"d","x",null,"AV    Nederlands B+  ->  D-finaliteit","d",null,null,null,null,null,null,null,null,null,null,177]
[null,null,null,"Topsport-Economie",null,0,null,null,1,null,1,null,1,null,1,null,1,null,1,null,1,null,1,null,1,null,"d","x",null,"AV    Rooms-katholieke godsdienst - 1ste, 2de en 3de graad","d",null,null,null,null,null,null,null,null,null,null,178]
[null,null,null,"Topsport-Economie",null,0,null,null,1,null,1,null,1,null,1,null,1,null,1,null,1,null,1,null,1,null,"d","x",null,"SV    Economie'  ->  D-finaliteit","d",null,null,null,null,null,null,null,null,null,null,179]
[null,null,null,"Topsport-Economie",null,0,null,null,1,null,1,null,1,null,1,null,1,null,1,null,1,null,1,null,1,null,"d","x",null,"SV    Topsport B+S  ->  D-finaliteit","d",null,null,null,null,null,null,null,null,null,null,180]
[null,null,null,"Topsport-Economie",null,0,null,null,1,null,1,null,1,null,1,null,1,null,1,null,1,null,1,null,1,null,"d","x",null,"SV    Wiskunde B+S'  ->  D-finaliteit","d",null,null,null,null,null,null,null,null,null,null,181]
[null,null,null,"Topsport-Economie",null,0,null,null,1,null,1,null,1,null,1,null,1,null,1,null,1,null,1,null,1,null,"d","x",null,"CG    Artistieke vorming Co  ->  D-D/A-A-finaliteit","d",null,null,null,null,null,null,null,null,null,null,182]
[null,null,null,"Topsport-Economie",null,0,null,null,1,null,1,null,1,null,1,null,1,null,1,null,1,null,1,null,1,null,"d","x",null,"CG    ICT Co  ->  D/DA/A-finaliteit","d",null,null,null,null,null,null,null,null,null,null,183]
[null,null,null,"Topsport-Economie",null,0,null,null,1,null,1,null,1,null,1,null,1,null,1,null,1,null,1,null,1,null,"d","x",null,"CG    Mens en samenleving complementair  ->  D/DA-finaliteit","d",null,null,null,null,null,null,null,null,null,null,184]
[null,null,null,"Topsport-Natuurwetenschappen",null,0,null,null,1,null,1,null,1,null,1,null,1,null,1,null,1,null,1,null,1,null,"d","x",null,"AV    Aardrijkskunde B  ->  D-finaliteit","d",null,null,null,null,null,null,null,null,null,null,185]
[null,null,null,"Topsport-Natuurwetenschappen",null,0,null,null,{"$f":"COUNTBLANK(H1186)","v":1},null,{"$f":"COUNTBLANK(J1186)","v":1},null,{"$f":"COUNTBLANK(L1186)","v":1},null,{"$f":"COUNTBLANK(N1186)","v":1},null,{"$f":"COUNTBLANK(P1186)","v":1},null,{"$f":"COUNTBLANK(R1186)","v":1},null,{"$f":"COUNTBLANK(T1186)","v":1},null,{"$f":"COUNTBLANK(V1186)","v":1},null,{"$f":"COUNTBLANK(X1186)","v":1},null,"d","x",null,"AV    Engels B+  ->  D-finaliteit","d",null,null,null,null,null,null,null,null,null,null,186]
[null,null,null,"Topsport-Natuurwetenschappen",null,0,null,null,1,null,1,null,1,null,1,null,1,null,1,null,1,null,1,null,1,null,"d","x",null,"AV    Frans B+  ->  D-finaliteit","d",null,null,null,null,null,null,null,null,null,null,187]
[null,null,null,"Topsport-Natuurwetenschappen",null,0,null,null,1,null,1,null,1,null,1,null,1,null,1,null,1,null,1,null,1,null,"d","x",null,"AV    Gemeenschappelijk funderend leerplan B  ->  D,- D/A-, A-finaliteit","d",null,null,null,null,null,null,null,null,null,null,188]
[null,null,null,"Topsport-Natuurwetenschappen",null,0,null,null,1,null,1,null,1,null,1,null,1,null,1,null,1,null,1,null,1,null,"d","x",null,"AV    Geschiedenis B+  ->  D-finaliteit","d",null,null,null,null,null,null,null,null,null,null,189]
[null,null,null,"Topsport-Natuurwetenschappen",null,0,null,null,1,null,1,null,1,null,1,null,1,null,1,null,1,null,1,null,1,null,"d","x",null,"AV    Lichamelijke opvoeding B  ->  D-, D/A-, A-finaliteit","d",null,null,null,null,null,null,null,null,null,null,190]
[null,null,null,"Topsport-Natuurwetenschappen",null,0,null,null,1,null,1,null,1,null,1,null,1,null,1,null,1,null,1,null,1,null,"d","x",null,"AV    Natuurwetenschappen B+  ->  D-finaliteit","d",null,null,null,null,null,null,null,null,null,null,191]
[null,null,null,"Topsport-Natuurwetenschappen",null,0,null,null,1,null,1,null,1,null,1,null,1,null,1,null,1,null,1,null,1,null,"d","x",null,"AV    Nederlands B+  ->  D-finaliteit","d",null,null,null,null,null,null,null,null,null,null,192]
[null,null,null,"Topsport-Natuurwetenschappen",null,0,null,null,1,null,1,null,1,null,1,null,1,null,1,null,1,null,1,null,1,null,"d","x",null,"AV    Rooms-katholieke godsdienst - 1ste, 2de en 3de graad","d",null,null,null,null,null,null,null,null,null,null,193]
[null,null,null,"Topsport-Natuurwetenschappen",null,0,null,null,1,null,1,null,1,null,1,null,1,null,1,null,1,null,1,null,1,null,"d","x",null,"SV    Natuurwetenschappen B+S  ->  D-finaliteit","d",null,null,null,null,null,null,null,null,null,null,194]
[null,null,null,"Topsport-Natuurwetenschappen",null,0,null,null,1,null,1,null,1,null,1,null,1,null,1,null,1,null,1,null,1,null,"d","x",null,"SV    Topsport B+S  ->  D-finaliteit","d",null,null,null,null,null,null,null,null,null,null,195]
[null,null,null,"Topsport-Natuurwetenschappen",null,0,null,null,1,null,1,null,1,null,1,null,1,null,1,null,1,null,1,null,1,null,"d","x",null,"SV    Wiskunde B+S  ->  D-finaliteit","d",null,null,null,null,null,null,null,null,null,null,196]
[null,null,null,"Topsport-Natuurwetenschappen",null,0,null,null,1,null,1,null,1,null,1,null,1,null,1,null,1,null,1,null,1,null,"d","x",null,"CG    Artistieke vorming Co  ->  D-D/A-A-finaliteit","d",null,null,null,null,null,null,null,null,null,null,197]
[null,null,null,"Topsport-Natuurwetenschappen",null,0,null,null,1,null,1,null,1,null,1,null,1,null,1,null,1,null,1,null,1,null,"d","x",null,"CG    ICT Co  ->  D/DA/A-finaliteit","d",null,null,null,null,null,null,null,null,null,null,198]
[null,null,null,"Topsport-Natuurwetenschappen",null,0,null,null,1,null,1,null,1,null,1,null,1,null,1,null,1,null,1,null,1,null,"d","x",null,"CG    Mens en samenleving complementair  ->  D/DA-finaliteit","d",null,null,null,null,null,null,null,null,null,null,199]
[null,null,null,"Verpakker",null,0,null,null,1,null,1,null,1,null,1,null,1,null,1,null,1,null,1,null,1,null,"d","x",null,"AV    Engels B  ->  A-finaliteit","d",null,null,null,null,null,null,null,null,null,null,200]
[null,null,null,"Verpakker",null,0,null,null,1,null,1,null,1,null,1,null,1,null,1,null,1,null,1,null,1,null,"d","x",null,"AV    Frans B  ->  A-finaliteit","d",null,null,null,null,null,null,null,null,null,null,201]
[null,null,null,"Verpakker",null,0,null,null,1,null,1,null,1,null,1,null,1,null,1,null,1,null,1,null,1,null,"d","x",null,"AV    Gemeenschappelijk funderend leerplan B  ->  D,- D/A-, A-finaliteit","d",null,null,null,null,null,null,null,null,null,null,202]
[null,null,null,"Verpakker",null,0,null,null,1,null,1,null,1,null,1,null,1,null,1,null,1,null,1,null,1,null,"d","x",null,"AV    Maatschappelijke vorming  ->  A-finaliteit","d",null,null,null,null,null,null,null,null,null,null,203]
[null,null,null,"Verpakker",null,0,null,null,1,null,1,null,1,null,1,null,1,null,1,null,1,null,1,null,1,null,"d","x",null,"AV    Natuurwetenschappen B (oud)  ->  A-finaliteit","d",null,null,null,null,null,null,null,null,null,null,204]
[null,null,null,"Verpakker",null,0,null,null,1,null,1,null,1,null,1,null,1,null,1,null,1,null,1,null,1,null,"d","x",null,"AV    Nederlands  ->  A-finaliteit","d",null,null,null,null,null,null,null,null,null,null,205]
[null,null,null,"Verpakker",null,0,null,null,1,null,1,null,1,null,1,null,1,null,1,null,1,null,1,null,1,null,"d","x",null,"AV    Wiskunde  ->  A-finaliteit","d",null,null,null,null,null,null,null,null,null,null,206]
[null,null,null,"Verpakker",null,{"$f":"9-(I1207+K1207+M1207+O1207+Q1207+S1207+U1207++Y1207+W1207)","v":0},null,null,1,null,1,null,1,null,1,null,1,null,1,null,1,null,1,null,1,null,"d","x",null,"SV    Verpakker  ->  A-finaliteit","d",null,null,null,null,null,null,null,null,null,null,207]
[null,null,null,"Voertuigtechnieken",null,0,null,null,1,null,1,null,1,null,1,null,1,null,1,null,1,null,1,null,1,null,"d","x",null,"AV    Aardrijkskunde B  ->  D/A-finaliteit","d",null,null,null,null,null,null,null,null,null,null,208]
[null,null,null,"Voertuigtechnieken",null,0,null,null,1,null,1,null,1,null,1,null,1,null,1,null,1,null,1,null,1,null,"d","x",null,"AV Engels B  ->  D/A-finaliteit","d",null,null,null,null,null,null,null,null,null,null,209]
[null,null,null,"Voertuigtechnieken",null,0,null,null,1,null,1,null,1,null,1,null,1,null,1,null,1,null,1,null,1,null,"d","x",null,"AV    Frans B  ->  D/A-finaliteit","d",null,null,null,null,null,null,null,null,null,null,210]
[null,null,null,"Voertuigtechnieken",null,0,null,null,1,null,1,null,1,null,1,null,1,null,1,null,1,null,1,null,1,null,"d","x",null,"AV    Gemeenschappelijk funderend leerplan B  ->  D,- D/A-, A-finaliteit","d",null,null,null,null,null,null,null,null,null,null,211]
[null,null,null,"Voertuigtechnieken",null,0,null,null,1,null,1,null,1,null,1,null,1,null,1,null,1,null,1,null,1,null,"d","x",null,"AV    Geschiedenis B  ->  D/A-finaliteit","d",null,null,null,null,null,null,null,null,null,null,212]
[null,null,null,"Voertuigtechnieken",null,0,null,null,1,null,1,null,1,null,1,null,1,null,1,null,1,null,1,null,1,null,"d","x",null,"AV    Lichamelijke opvoeding B  ->  D-, D/A-, A-finaliteit","d",null,null,null,null,null,null,null,null,null,null,213]
[null,null,null,"Voertuigtechnieken",null,0,null,null,1,null,1,null,1,null,1,null,1,null,1,null,1,null,1,null,1,null,"d","x",null,"AV    Natuurwetenschappen B'  ->  D/A-finaliteit","d",null,null,null,null,null,null,null,null,null,null,214]
[null,null,null,"Voertuigtechnieken",null,0,null,null,1,null,1,null,1,null,1,null,1,null,1,null,1,null,1,null,1,null,"d","x",null,"AV    Nederlands B  ->  D/A-finaliteit","d",null,null,null,null,null,null,null,null,null,null,215]
[null,null,null,"Voertuigtechnieken",null,0,null,null,1,null,1,null,1,null,1,null,1,null,1,null,1,null,1,null,1,null,"d","x",null,"AV    Rooms-katholieke godsdienst - 1ste, 2de en 3de graad","d",null,null,null,null,null,null,null,null,null,null,216]
[null,null,null,"Voertuigtechnieken",null,0,null,null,1,null,1,null,1,null,1,null,1,null,1,null,1,null,1,null,1,null,"d","x",null,"SV    Voertuigtechnieken B+S  ->  D/A-finaliteit","d",null,null,null,null,null,null,null,null,null,null,217]
[null,null,null,"Voertuigtechnieken",null,0,null,null,1,null,1,null,1,null,1,null,1,null,1,null,1,null,1,null,1,null,"d","x",null,"SV    Wiskunde B+S  ->  D/A-finaliteit","d",null,null,null,null,null,null,null,null,null,null,218]
[null,null,null,"Voertuigtechnieken",null,0,null,null,1,null,1,null,1,null,1,null,1,null,1,null,1,null,1,null,1,null,"d","x",null,"CG    Artistieke vorming Co  ->  D-D/A-A-finaliteit","d",null,null,null,null,null,null,null,null,null,null,219]
[null,null,null,"Voertuigtechnieken",null,0,null,null,1,null,1,null,1,null,1,null,1,null,1,null,1,null,1,null,1,null,"d","x",null,"CG    ICT Co  ->  D/DA/A-finaliteit","d",null,null,null,null,null,null,null,null,null,null,220]
[null,null,null,"Voertuigtechnieken",null,0,null,null,1,null,1,null,1,null,1,null,1,null,1,null,1,null,1,null,1,null,"d","x",null,"CG    Mens en samenleving complementair  ->  D/DA-finaliteit","d",null,null,null,null,null,null,null,null,null,null,221]
[null,null,null,"Voorbewerker carrosserie",null,0,null,null,1,null,1,null,1,null,1,null,1,null,1,null,1,null,1,null,1,null,"d","x",null,"AV    Engels B  ->  A-finaliteit","d",null,null,null,null,null,null,null,null,null,null,222]
[null,null,null,"Voorbewerker carrosserie",null,0,null,null,1,null,1,null,1,null,1,null,1,null,1,null,1,null,1,null,1,null,"d","x",null,"AV    Frans B  ->  A-finaliteit","d",null,null,null,null,null,null,null,null,null,null,223]
[null,null,null,"Voorbewerker carrosserie",null,0,null,null,1,null,1,null,1,null,1,null,1,null,1,null,1,null,1,null,1,null,"d","x",null,"AV    Gemeenschappelijk funderend leerplan B  ->  D,- D/A-, A-finaliteit","d",null,null,null,null,null,null,null,null,null,null,224]
[null,null,null,"Voorbewerker carrosserie",null,0,null,null,1,null,1,null,1,null,1,null,1,null,1,null,1,null,1,null,1,null,"d","x",null,"AV    Maatschappelijke vorming  ->  A-finaliteit","d",null,null,null,null,null,null,null,null,null,null,225]
[null,null,null,"Voorbewerker carrosserie",null,0,null,null,1,null,1,null,1,null,1,null,1,null,1,null,1,null,1,null,1,null,"d","x",null,"AV    Natuurwetenschappen B (oud)  ->  A-finaliteit","d",null,null,null,null,null,null,null,null,null,null,226]
[null,null,null,"Voorbewerker carrosserie",null,0,null,null,1,null,1,null,1,null,1,null,1,null,1,null,1,null,1,null,1,null,"d","x",null,"AV    Nederlands  ->  A-finaliteit","d",null,null,null,null,null,null,null,null,null,null,227]
[null,null,null,"Voorbewerker carrosserie",null,0,null,null,1,null,1,null,1,null,1,null,1,null,1,null,1,null,1,null,1,null,"d","x",null,"AV    Wiskunde  ->  A-finaliteit","d",null,null,null,null,null,null,null,null,null,null,228]
[null,null,null,"Voorbewerker carrosserie",null,0,null,null,1,null,1,null,1,null,1,null,1,null,1,null,1,null,1,null,1,null,"d","x",null,"SV    Voorbewerker carrosserie  ->  A-finaliteit","d",null,null,null,null,null,null,null,null,null,null,229]
[null,null,null,"Wellness en lifestyle",null,0,null,null,1,null,1,null,1,null,1,null,1,null,1,null,1,null,1,null,1,null,"d","x",null,"AV    Aardrijkskunde B  ->  D/A-finaliteit","d",null,null,null,null,null,null,null,null,null,null,230]
[null,null,null,"Wellness en lifestyle",null,0,null,null,1,null,1,null,1,null,1,null,1,null,1,null,1,null,1,null,1,null,"d","x",null,"AV    Engels B  ->  D/A-finaliteit","d",null,null,null,null,null,null,null,null,null,null,231]
[null,null,null,"Wellness en lifestyle",null,0,null,null,1,null,1,null,1,null,1,null,1,null,1,null,1,null,1,null,1,null,"d","x",null,"AV    Frans B  ->  D/A-finaliteit","d",null,null,null,null,null,null,null,null,null,null,232]
[null,null,null,"Wellness en lifestyle",null,0,null,null,1,null,1,null,1,null,1,null,1,null,1,null,1,null,1,null,1,null,"d","x",null,"AV    Gemeenschappelijk funderend leerplan B  ->  D,- D/A-, A-finaliteit","d",null,null,null,null,null,null,null,null,null,null,233]
[null,null,null,"Wellness en lifestyle",null,0,null,null,1,null,1,null,1,null,1,null,1,null,1,null,1,null,1,null,1,null,"d","x",null,"AV    Geschiedenis B  ->  D/A-finaliteit","d",null,null,null,null,null,null,null,null,null,null,234]
[null,null,null,"Wellness en lifestyle",null,0,null,null,1,null,1,null,1,null,1,null,1,null,1,null,1,null,1,null,1,null,"d","x",null,"AV    Lichamelijke opvoeding B  ->  D-, D/A-, A-finaliteit","d",null,null,null,null,null,null,null,null,null,null,235]
[null,null,null,"Wellness en lifestyle",null,0,null,null,1,null,1,null,1,null,1,null,1,null,1,null,1,null,1,null,1,null,"d","x",null,"AV    Natuurwetenschappen B  ->  D/A-finaliteit","d",null,null,null,null,null,null,null,null,null,null,236]
[null,null,null,"Wellness en lifestyle",null,0,null,null,1,null,1,null,1,null,1,null,1,null,1,null,1,null,1,null,1,null,"d","x",null,"AV    Nederlands B  ->  D/A-finaliteit","d",null,null,null,null,null,null,null,null,null,null,237]
[null,null,null,"Wellness en lifestyle",null,0,null,null,1,null,1,null,1,null,1,null,1,null,1,null,1,null,1,null,1,null,"d","x",null,"AV    Rooms-katholieke godsdienst - 1ste, 2de en 3de graad","d",null,null,null,null,null,null,null,null,null,null,238]
[null,null,null,"Wellness en lifestyle",null,0,null,null,1,null,1,null,1,null,1,null,1,null,1,null,1,null,1,null,1,null,"d","x",null,"AV    Wiskunde  ->  D/A-finaliteit","d",null,null,null,null,null,null,null,null,null,null,239]
[null,null,null,"Wellness en lifestyle",null,0,null,null,1,null,1,null,1,null,1,null,1,null,1,null,1,null,1,null,1,null,"d","x",null,"SV    Wellness en lifestyle B + S  ->  D/A-finaliteit","d",null,null,null,null,null,null,null,null,null,null,240]
[null,null,null,"Wellness en lifestyle",null,0,null,null,1,null,1,null,1,null,1,null,1,null,1,null,1,null,1,null,1,null,"d","x",null,"CG    Artistieke vorming Co  ->  D-D/A-A-finaliteit","d",null,null,null,null,null,null,null,null,null,null,241]
[null,null,null,"Wellness en lifestyle",null,0,null,null,1,null,1,null,1,null,1,null,1,null,1,null,1,null,1,null,1,null,"d","x",null,"CG    ICT Co  ->  D/DA/A-finaliteit","d",null,null,null,null,null,null,null,null,null,null,242]
[null,null,null,"Wellness en lifestyle",null,0,null,null,1,null,1,null,1,null,1,null,1,null,1,null,1,null,1,null,1,null,"d","x",null,"CG    Mens en samenleving complementair  ->  D/DA-finaliteit","d",null,null,null,null,null,null,null,null,null,null,243]
[null,null,null,"Winkelmedewerker",null,0,null,null,1,null,1,null,1,null,1,null,1,null,1,null,1,null,1,null,1,null,"d","x",null,"AV    Engels B  ->  A-finaliteit","d",null,null,null,null,null,null,null,null,null,null,244]
[null,null,null,"Winkelmedewerker",null,0,null,null,1,null,1,null,1,null,1,null,1,null,1,null,1,null,1,null,1,null,"d","x",null,"AV    Frans B  ->  A-finaliteit","d",null,null,null,null,null,null,null,null,null,null,245]
[null,null,null,"Winkelmedewerker",null,0,null,null,1,null,1,null,1,null,1,null,1,null,1,null,1,null,1,null,1,null,"d","x",null,"AV    Gemeenschappelijk funderend leerplan B  ->  D,- D/A-, A-finaliteit","d",null,null,null,null,null,null,null,null,null,null,246]
[null,null,null,"Winkelmedewerker",null,0,null,null,1,null,1,null,1,null,1,null,1,null,1,null,1,null,1,null,1,null,"d","x",null,"AV    Maatschappelijke vorming  ->  A-finaliteit","d",null,null,null,null,null,null,null,null,null,null,247]
[null,null,null,"Winkelmedewerker",null,0,null,null,1,null,1,null,1,null,1,null,1,null,1,null,1,null,1,null,1,null,"d","x",null,"AV    Natuurwetenschappen B (oud)  ->  A-finaliteit","d",null,null,null,null,null,null,null,null,null,null,248]
[null,null,null,"Winkelmedewerker",null,0,null,null,1,null,1,null,1,null,1,null,1,null,1,null,1,null,1,null,1,null,"d","x",null,"AV    Nederlands  ->  A-finaliteit","d",null,null,null,null,null,null,null,null,null,null,249]
[null,null,null,"Winkelmedewerker",null,0,null,null,{"$f":"COUNTBLANK(H1250)","v":1},null,{"$f":"COUNTBLANK(J1250)","v":1},null,{"$f":"COUNTBLANK(L1250)","v":1},null,{"$f":"COUNTBLANK(N1250)","v":1},null,{"$f":"COUNTBLANK(P1250)","v":1},null,{"$f":"COUNTBLANK(R1250)","v":1},null,{"$f":"COUNTBLANK(T1250)","v":1},null,{"$f":"COUNTBLANK(V1250)","v":1},null,{"$f":"COUNTBLANK(X1250)","v":1},null,"d","x",null,"AV    Wiskunde  ->  A-finaliteit","d",null,null,null,null,null,null,null,null,null,null,250]
[null,null,null,"Winkelmedewerker",null,0,null,null,1,null,1,null,1,null,1,null,1,null,1,null,1,null,1,null,1,null,"d","x",null,"SV    Winkelmedewerker  ->  A-finaliteit","d",null,null,null,null,null,null,null,null,null,null,251]
[null,null,null,"Woordkunst-drama",null,0,null,null,1,null,1,null,1,null,1,null,1,null,1,null,1,null,1,null,1,null,"d","x",null,"AV    Aardrijkskunde B  ->  D-finaliteit","d",null,null,null,null,null,null,null,null,null,null,252]
[null,null,null,"Woordkunst-drama",null,0,null,null,1,null,1,null,1,null,1,null,1,null,1,null,1,null,1,null,1,null,"d","x",null,"AV    Engels B  ->  D-finaliteit","d",null,null,null,null,null,null,null,null,null,null,253]
[null,null,null,"Woordkunst-drama",null,0,null,null,1,null,1,null,1,null,1,null,1,null,1,null,1,null,1,null,1,null,"d","x",null,"AV    Frans  ->  D-finaliteit","d",null,null,null,null,null,null,null,null,null,null,254]
[null,null,null,"Woordkunst-drama",null,0,null,null,1,null,1,null,1,null,1,null,1,null,1,null,1,null,1,null,1,null,"d","x",null,"AV    Gemeenschappelijk funderend leerplan B  ->  D,- D/A-, A-finaliteit","d",null,null,null,null,null,null,null,null,null,null,255]
[null,null,null,"Woordkunst-drama",null,0,null,null,1,null,1,null,1,null,1,null,1,null,1,null,1,null,1,null,1,null,"d","x",null,"AV    Geschiedenis  ->  D-finaliteit","d",null,null,null,null,null,null,null,null,null,null,256]
[null,null,null,"Woordkunst-drama",null,0,null,null,1,null,1,null,1,null,1,null,1,null,1,null,1,null,1,null,1,null,"d","x",null,"AV    Lichamelijke opvoeding B  ->  D-, D/A-, A-finaliteit","d",null,null,null,null,null,null,null,null,null,null,257]
[null,null,null,"Woordkunst-drama",null,0,null,null,1,null,1,null,1,null,1,null,1,null,1,null,1,null,1,null,1,null,"d","x",null,"AV    Natuurwetenschappen  ->  D-finaliteit","d",null,null,null,null,null,null,null,null,null,null,258]
[null,null,null,"Woordkunst-drama",null,0,null,null,1,null,1,null,1,null,1,null,1,null,1,null,1,null,1,null,1,null,"d","x",null,"AV    Rooms-katholieke godsdienst - 1ste, 2de en 3de graad","d",null,null,null,null,null,null,null,null,null,null,259]
[null,null,null,"Woordkunst-drama",null,0,null,null,1,null,1,null,1,null,1,null,1,null,1,null,1,null,1,null,1,null,"d","x",null,"AV    Wiskunde  ->  D-finaliteit","d",null,null,null,null,null,null,null,null,null,null,260]
[null,null,null,"Woordkunst-drama",null,0,null,null,1,null,1,null,1,null,1,null,1,null,1,null,1,null,1,null,1,null,"d","x",null,"AV    Wiskunde (oud)  ->  D-finaliteit","d",null,null,null,null,null,null,null,null,null,null,261]
[null,null,null,"Woordkunst-drama",null,0,null,null,1,null,1,null,1,null,1,null,1,null,1,null,1,null,1,null,1,null,"d","x",null,"SV    Nederlands B+S'  ->  D-finaliteit","d",null,null,null,null,null,null,null,null,null,null,262]
[null,null,null,"Woordkunst-drama",null,0,null,null,1,null,1,null,1,null,1,null,1,null,1,null,1,null,1,null,1,null,"d","x",null,"SV    Woordkunst-drama  ->  D-finaliteit","d",null,null,null,null,null,null,null,null,null,null,263]
[null,null,null,"Woordkunst-drama",null,0,null,null,1,null,1,null,1,null,1,null,1,null,1,null,1,null,1,null,1,null,"d","x",null,"CG    Artistieke vorming Co  ->  D-D/A-A-finaliteit","d",null,null,null,null,null,null,null,null,null,null,264]
[null,null,null,"Woordkunst-drama",null,0,null,null,1,null,1,null,1,null,1,null,1,null,1,null,1,null,1,null,1,null,"d","x",null,"CG    ICT Co  ->  D/DA/A-finaliteit","d",null,null,null,null,null,null,null,null,null,null,265]
[null,null,null,"Woordkunst-drama",null,0,null,null,1,null,1,null,1,null,1,null,1,null,1,null,1,null,1,null,1,null,"d","x",null,"CG    Mens en samenleving complementair  ->  D/DA-finaliteit","d",null,null,null,null,null,null,null,null,null,null,266]
[null,null,null,"Yeshiva",null,0,null,null,1,null,1,null,1,null,1,null,1,null,1,null,1,null,1,null,1,null,"d","x",null,"AV    Aardrijkskunde B  ->  D-finaliteit","d",null,null,null,null,null,null,null,null,null,null,267]
[null,null,null,"Yeshiva",null,0,null,null,1,null,1,null,1,null,1,null,1,null,1,null,1,null,1,null,1,null,"d","x",null,"AV    Gemeenschappelijk funderend leerplan B  ->  D,- D/A-, A-finaliteit","d",null,null,null,null,null,null,null,null,null,null,268]
[null,null,null,"Yeshiva",null,0,null,null,1,null,1,null,1,null,1,null,1,null,1,null,1,null,1,null,1,null,"d","x",null,"AV    Rooms-katholieke godsdienst - 1ste, 2de en 3de graad","d",null,null,null,null,null,null,null,null,null,null,269]
[null,null,null,"Yeshiva",null,0,null,null,1,null,1,null,1,null,1,null,1,null,1,null,1,null,1,null,1,null,"d","x",null,"CG    Artistieke vorming Co  ->  D-D/A-A-finaliteit","d",null,null,null,null,null,null,null,null,null,null,270]
[null,null,null,"Yeshiva",null,{"$f":"9-(I1271+K1271+M1271+O1271+Q1271+S1271+U1271++Y1271+W1271)","v":0},null,null,1,null,1,null,1,null,1,null,1,null,1,null,1,null,1,null,1,null,"d","x",null,"CG    ICT Co  ->  D/DA/A-finaliteit","d",null,null,null,null,null,null,null,null,null,null,271]
[null,null,null,"Yeshiva",null,0,null,null,1,null,1,null,1,null,1,null,1,null,1,null,1,null,1,null,1,null,"d","x",null,"CG    Mens en samenleving complementair  ->  D/DA-finaliteit","d",null,null,null,null,null,null,null,null,null,null,272]
[null,null,null,"Zorg en welzijn",null,0,null,null,1,null,1,null,1,null,1,null,1,null,1,null,1,null,1,null,1,null,"d","x",null,"AV    Engels B  ->  A-finaliteit","d",null,null,null,null,null,null,null,null,null,null,273]
[null,null,null,"Zorg en welzijn",null,0,null,null,1,null,1,null,1,null,1,null,1,null,1,null,1,null,1,null,1,null,"d","x",null,"AV    Frans B  ->  A-finaliteit","d",null,null,null,null,null,null,null,null,null,null,274]
[null,null,null,"Zorg en welzijn",null,0,null,null,1,null,1,null,1,null,1,null,1,null,1,null,1,null,1,null,1,null,"d","x",null,"AV    Gemeenschappelijk funderend leerplan B  ->  D,- D/A-, A-finaliteit","d",null,null,null,null,null,null,null,null,null,null,275]
[null,null,null,"Zorg en welzijn",null,0,null,null,1,null,1,null,1,null,1,null,1,null,1,null,1,null,1,null,1,null,"d","x",null,"AV    Lichamelijke opvoeding B  ->  D-, D/A-, A-finaliteit","d",null,null,null,null,null,null,null,null,null,null,276]
[null,null,null,"Zorg en welzijn",null,0,null,null,1,null,1,null,1,null,1,null,1,null,1,null,1,null,1,null,1,null,"d","x",null,"AV    Maatschappelijke vorming  ->  A-finaliteit","d",null,null,null,null,null,null,null,null,null,null,277]
[null,null,null,"Zorg en welzijn",null,0,null,null,1,null,1,null,1,null,1,null,1,null,1,null,1,null,1,null,1,null,"d","x",null,"AV    Natuurwetenschappen B (oud)  ->  A-finaliteit","d",null,null,null,null,null,null,null,null,null,null,278]
[null,null,null,"Zorg en welzijn",null,0,null,null,1,null,1,null,1,null,1,null,1,null,1,null,1,null,1,null,1,null,"d","x",null,"AV    Nederlands  ->  A-finaliteit","d",null,null,null,null,null,null,null,null,null,null,279]
[null,null,null,"Zorg en welzijn",null,0,null,null,1,null,1,null,1,null,1,null,1,null,1,null,1,null,1,null,1,null,"d","x",null,"AV    Rooms-katholieke godsdienst - 1ste, 2de en 3de graad","d",null,null,null,null,null,null,null,null,null,null,280]
[null,null,null,"Zorg en welzijn",null,0,null,null,1,null,1,null,1,null,1,null,1,null,1,null,1,null,1,null,1,null,"d","x",null,"AV    Wiskunde  ->  A-finaliteit","d",null,null,null,null,null,null,null,null,null,null,281]
[null,null,null,"Zorg en welzijn",null,0,null,null,1,null,1,null,1,null,1,null,1,null,1,null,1,null,1,null,1,null,"d","x",null,"SV    Zorg en welzijn  ->  A-finaliteit","d",null,null,null,null,null,null,null,null,null,null,282]
[null,null,null,"Zorg en welzijn",null,0,null,null,1,null,1,null,1,null,1,null,1,null,1,null,1,null,1,null,1,null,"d","x",null,"CG    Artistieke vorming Co  ->  D-D/A-A-finaliteit","d",null,null,null,null,null,null,null,null,null,null,283]
[null,null,null,"Zorg en welzijn",null,0,null,null,1,null,1,null,1,null,1,null,1,null,1,null,1,null,1,null,1,null,"d","x",null,"CG    ICT Co  ->  D/DA/A-finaliteit","d",null,null,null,null,null,null,null,null,null,null,284]
[null,null,null,"01 extra",null,0,null,null,1,null,1,null,1,null,1,null,1,null,1,null,1,null,1,null,1,null,"d","x",null,{"$f":"D1285","v":"01 extra"},"d",null,null,null,null,null,null,null,null,null,null,285]
[null,null,null,"02 extra",null,0,null,null,1,null,1,null,1,null,1,null,1,null,1,null,1,null,1,null,1,null,"d","x",null,{"$f":"D1286","v":"02 extra"},"d",null,null,null,null,null,null,null,null,null,null,286]
[null,null,null,"03 extra",null,0,null,null,1,null,1,null,1,null,1,null,1,null,1,null,1,null,1,null,1,null,"d","x",null,{"$f":"D1287","v":"03 extra"},"d",null,null,null,null,null,null,null,null,null,null,287]
[null,null,null,"04 extra",null,0,null,null,1,null,1,null,1,null,1,null,1,null,1,null,1,null,1,null,1,null,"d","x",null,"04 extra","d",null,null,null,null,null,null,null,null,null,null,288]
[null,null,null,"05 extra",null,0,null,null,1,null,1,null,1,null,1,null,1,null,1,null,1,null,1,null,1,null,"d","x",null,"05 extra","d",null,null,null,null,null,null,null,null,null,null,289]
[null,null,null,"06 extra",null,0,null,null,1,null,1,null,1,null,1,null,1,null,1,null,1,null,1,null,1,null,"d","x",null,"06 extra","d",null,null,null,null,null,null,null,null,null,null,290]
[null,null,null,"07 extra",null,0,null,null,1,null,1,null,1,null,1,null,1,null,1,null,1,null,1,null,1,null,"d","x",null,"07 extra","d",null,null,null,null,null,null,null,null,null,null,291]
[null,null,null,"08 extra",null,0,null,null,1,null,1,null,1,null,1,null,1,null,1,null,1,null,1,null,1,null,"d","x",null,"08 extra","d",null,null,null,null,null,null,null,null,null,null,292]
[null,null,null,"09 Bezoek aan een bakkerij in ons dorp",null,0,null,null,1,null,1,null,1,null,1,null,1,null,1,null,1,null,1,null,1,null,"d","x",null,"09 Bezoek aan een bakkerij in ons dorp","d",null,null,null,null,null,null,null,null,null,null,293]
[null,null,null,"10 extra",null,{"$f":"9-(I1294+K1294+M1294+O1294+Q1294+S1294+U1294++Y1294+W1294)","v":0},null,null,1,null,1,null,1,null,1,null,1,null,1,null,1,null,1,null,1,null,"d","x",null,{"$f":"D1294","v":"10 extra"},"d",null,null,null,null,null,null,null,null,null,null,294]
[null,null,null,"11 extra",null,0,null,null,1,null,1,null,1,null,1,null,1,null,1,null,1,null,1,null,1,null,"d","x",null,"11 extra","d",null,null,null,null,null,null,null,null,null,null,295]
[null,null,null,"12 extra",null,0,null,null,1,null,1,null,1,null,1,null,1,null,1,null,1,null,1,null,1,null,"d","x",null,"12 extra","d",null,null,null,null,null,null,null,null,null,null,296]
[null,null,null,"13 extra",null,0,null,null,1,null,1,null,1,null,1,null,1,null,1,null,1,null,1,null,1,null,"d","x",null,"13 extra","d",null,null,null,null,null,null,null,null,null,null,297]
[null,null,null,"14 extra",null,0,null,null,1,null,1,null,1,null,1,null,1,null,1,null,1,null,1,null,1,null,"d","x",null,"14 extra","d",null,null,null,null,null,null,null,null,null,null,298]
[null,null,null,"15 extra",null,0,null,null,1,null,1,null,1,null,1,null,1,null,1,null,1,null,1,null,1,null,"d","x",null,"15 extra","d",null,null,null,null,null,null,null,null,null,null,299]
[null,null,null,"16 extra",null,{"$f":"9-(I1300+K1300+M1300+O1300+Q1300+S1300+U1300++Y1300+W1300)","v":0},null,null,1,null,1,null,1,null,1,null,1,null,1,null,1,null,1,null,1,null,"d","x",null,{"$f":"D1300","v":"16 extra"},"d",null,null,null,null,null,null,null,null,null,null,294]
[null,null,null,"17 extra",null,{"$f":"9-(I1301+K1301+M1301+O1301+Q1301+S1301+U1301++Y1301+W1301)","v":0},null,null,1,null,1,null,1,null,1,null,1,null,1,null,1,null,1,null,1,null,"d","x",null,{"$f":"D1301","v":"17 extra"},"d",null,null,null,null,null,null,null,null,null,null,295]
[null,null,null,"18 extra",null,{"$f":"9-(I1302+K1302+M1302+O1302+Q1302+S1302+U1302++Y1302+W1302)","v":0},null,null,1,null,1,null,1,null,1,null,1,null,1,null,1,null,1,null,1,null,"d","x",null,{"$f":"D1302","v":"18 extra"},"d",null,null,null,null,null,null,null,null,null,null,296]
[null,null,null,"19 extra",null,{"$f":"9-(I1303+K1303+M1303+O1303+Q1303+S1303+U1303++Y1303+W1303)","v":0},null,null,1,null,1,null,1,null,1,null,1,null,1,null,1,null,1,null,1,null,"d","x",null,{"$f":"D1303","v":"19 extra"},"d",null,null,null,null,null,null,null,null,null,null,297]
[null,null,null,"20 extra",null,{"$f":"9-(I1304+K1304+M1304+O1304+Q1304+S1304+U1304++Y1304+W1304)","v":0},null,null,1,null,1,null,1,null,1,null,1,null,1,null,1,null,1,null,1,null,"d","x",null,{"$f":"D1304","v":"20 extra"},"d",null,null,null,null,null,null,null,null,null,null,298]

{"sheet":"Blad2","index":1,"n_rows":160,"n_cols":3,"rows_kept":160,"cut":false,"hidden":false,"merged":[[0,1,3,1]]}
[null,"Leerplannen 2de graad"]
[]
["terug"]
[]
[]
[null,"Maak je keuze"]
[null,"Aardrijkskunde B - 2de graad - D/A-finaliteit",1]
[null,"Aardrijkskunde B - 2de graad - D-finaliteit",2]
[null,"Architecturale en beeldende kunsten - 2de graad - D/A-finaliteit",3]
[null,"Architecturale en beeldende vorming - 2de graad - D-finaliteit",4]
[null,"Artistiek-creatieve bewerkingen - 2de graad - A-finaliteit",5]
[null,"Artistieke vorming Co - 2de graad - D-D/A-A-finaliteit",6]
[null,"Bakkerij - 2de graad - A-finaliteit",7]
[null,"Bakkerijtechnieken - 2de graad - D/A-finaliteit",8]
[null,"Bandenmonteur S - 2de graad - A-finaliteit",9]
[null,"Bedrijfseconomie - 2de graad - D/A-finaliteit",10]
[null,"Beeldende en audiovisuele kunsten - 2de graad - D/A-finaliteit",11]
[null,"Beeldende en audiovisuele vorming - 2de graad - D-finaliteit",12]
[null,"Bestuurder interne transportmiddelen - 2de graad - A-finaliteit",13]
[null,"Biologie - 2de graad - D-finaliteit",14]
[null,"Biologie-chemie - 2de graad - D-finaliteit",15]
[null,"Biotechnieken B+S - 2de graad - D/A-finaliteit",16]
[null,"Biotechnologische STEM-wetenschappen B+S - 2de graad - D-finaliteit",17]
[null,"Biotechnologische wetenschappen B+S - 2de graad - D-finaliteit",18]
[null,"Bouw - 2de graad - A-finaliteit",19]
[null,"Bouwtechnieken B+S - 2de graad - D/A-finaliteit",20]
[null,"Bouwwetenschappen B+S - 2de graad - D-finaliteit",21]
[null,"Cementgebonden voeger - 2de graad - A-finaliteit",22]
[null,"Communicatiewetenschappen en taaltechnologie - 2de graad - D-finaliteit",23]
[null,"Creatie en mode - 2de graad - D/A-finaliteit",24]
[null,"Dans - 2de graad - D-finaliteit",25]
[null,"Decor en etalage - 2de graad - A-finaliteit",26]
[null,"Duits - 2de graad - D-finaliteit",27]
[null,"Duits Co - 2de graad - D-D/A-finaliteit",28]
[null,"Duits S - 2de graad - D/A-finaliteit",29]
[null,"Economie' - 2de graad - D-finaliteit",30]
[null,"Economie Co - 2de graad - D-finaliteit",31]
[null,"Economie - 2de graad - D-finaliteit",32]
[null,"Elektriciteit - 2de graad - A-finaliteit",33]
[null,"Elektromechanische technieken B+S - 2de graad - D/A-finaliteit",34]
[null,"Elektrotechnieken B+S - 2de graad - D/A-finaliteit",35]
[null,"Engels B - 2de graad - A-finaliteit",36]
[null,"Engels B - 2de graad - D/A-finaliteit",37]
[null,"Engels B - 2de graad - D-finaliteit",38]
[null,"Engels B+ - 2de graad - D-finaliteit",39]
[null,"Engels B+S - 2de graad - A-finaliteit",40]
[null,"Engels B+S - 2de graad - D/A-finaliteit",41]
[null,"Engels B+S - 2de graad - D-finaliteit",42]
[null,"Fietshersteller - 2de graad - A-finaliteit",43]
[null,"Filosofie - 2de graad - D-finaliteit",44]
[null,"Fotografie - 2de graad - D/A-finaliteit",45]
[null,"Frans - 2de graad - D-finaliteit",46]
[null,"Frans B - 2de graad - A-finaliteit",47]
[null,"Frans B - 2de graad - D/A-finaliteit",48]
[null,"Frans B+ - 2de graad - D-finaliteit",49]
[null,"Frans B+S - 2de graad - A-finaliteit",50]
[null,"Frans B+S - 2de graad - D/A-finaliteit",51]
[null,"Frans B+S' - 2de graad - D/A-finaliteit",52]
[null,"Frans B+S - 2de graad - D-finaliteit",53]
[null,"Gemeenschappelijk funderend leerplan B - 2de graad - D,- D/A-, A-finaliteit",54]
[null,"Geschiedenis B - 2de graad - D/A-finaliteit",55]
[null,"Geschiedenis B+ - 2de graad - D-finaliteit",56]
[null,"Geschiedenis - 2de graad - D-finaliteit",57]
[null,"Grafische technieken - 2de graad -  D/A-finaliteit",58]
[null,"Grieks - 2de graad - D-finaliteit",59]
[null,"Haar- en schoonheidsverzorging - 2de graad - A-finaliteit",60]
[null,"Hoeknaadlasser - 2de graad - A-finaliteit",61]
[null,"Horeca - 2de graad - D/A-finaliteit",62]
[null,"Hout - 2de graad - A-finaliteit",63]
[null,"Houttechnieken B+S - 2de graad - D/A-finaliteit",64]
[null,"Hulpkelner - 2de graad - A-finaliteit",65]
[null,"ICT Co - 2de graad - D/DA/A-finaliteit",66]
[null,"Informaticawetenschappen - 2de graad - D-finaliteit",67]
[null,"Inleiding filosofie S (oud) - 2de graad - D-finaliteit",68]
[null,"Installateur elektrotechnische basiscomponenten - 2de graad - A-finaliteit",69]
[null,"Keukenmedewerker S - 2de graad - A-finaliteit",70]
[null,"Kunstbeschouwing S' - 2de graad - D-finaliteit",71]
[null,"Kunstbeschouwing - 2de graad - D-finaliteit",72]
[null,"Latijn - 2de graad - D-finaliteit",73]
[null,"Lichamelijke opvoeding B - 2de graad - D-, D/A-, A-finaliteit",74]
[null,"Maatschappelijke vorming - 2de graad - A-finaliteit",75]
[null,"Maatschappij en welzijn - 2de graad - D/A-finaliteit",76]
[null,"Machinaal houtbewerker S - 2de graad - A-finaliteit",77]
[null,"Magazijnmedewerker - 2de graad - A-finaliteit",78]
[null,"Mechanica - 2de graad - A-finaliteit",79]
[null,"Mechanische technieken B+S - 2de graad - D/A-finaliteit",80]
[null,"Medewerker (banket)bakkerij - 2de graad - A-finaliteit",81]
[null,"Medewerker fastfood S - 2de graad - A-finaliteit",82]
[null,"Medewerker groen- en tuinaanleg S - 2de graad - A-finaliteit",83]
[null,"Medewerker groen- en tuinbeheer S - 2de graad - A-finaliteit",84]
[null,"Medewerker hout - 2de graad - A-finaliteit",85]
[null,"Medewerker kamerdienst - 2de graad - A-finaliteit",86]
[null,"Medewerker productielijn kleding, confectie en meubelstoffering - 2de graad - A-finaliteit",87]
[null,"Medewerker ruwbouw S - 2de graad - A-finaliteit",88]
[null,"Medewerker schilder- en behangwerken - 2de graad - A-finaliteit",89]
[null,"Medewerker slagerij - 2de graad - A-finaliteit",90]
[null,"Medewerker tegelzetwerken en dekvloeren - 2de graad - A-finaliteit",91]
[null,"Mens en samenleving complementair - 2de graad - D/DA-finaliteit",92]
[null,"Moderealisatie en textielverzorging - 2de graad - A-finaliteit",93]
[null,"Monteur sanitaire en verwarmingsinstallaties - 2de graad - A-finaliteit",94]
[null,"Muziek - 2de graad - D-finaliteit",95]
[null,"Natuurwetenschappen B - 2de graad - D/A-finaliteit",96]
[null,"Natuurwetenschappen B' - 2de graad - D/A-finaliteit",97]
[null,"Natuurwetenschappen B (oud) - 2de graad - A-finaliteit",98]
[null,"Natuurwetenschappen B+ - 2de graad - D-finaliteit",99]
[null,"Natuurwetenschappen B+S - 2de graad - D/A-finaliteit",100]
[null,"Natuurwetenschappen B+S' - 2de graad - D/A-finaliteit",101]
[null,"Natuurwetenschappen B+S - 2de graad - D-finaliteit",102]
[null,"Natuurwetenschappen - 2de graad - D-finaliteit",103]
[null,"Nederlands B - 2de graad - D/A-finaliteit",104]
[null,"Nederlands B - 2de graad - D-finaliteit",105]
[null,"Nederlands B+ - 2de graad - D-finaliteit",106]
[null,"Nederlands B+S - 2de graad - D/A-finaliteit",107]
[null,"Nederlands B+S' - 2de graad - D-finaliteit",108]
[null,"Nederlands B+S - 2de graad - D-finaliteit",109]
[null,"Nederlands - 2de graad - A-finaliteit",110]
[null,"Onderhoudsmedewerker - 2de graad - A-finaliteit",111]
[null,"Onthaal en recreatie - 2de graad - A-finaliteit",112]
[null,"Organisatie en logistiek - 2de graad - A-finaliteit",113]
[null,"Paardenhouderij - 2de graad - A-finaliteit",114]
[null,"Plant, dier en milieu - 2de graad - A-finaliteit",115]
[null,"Plant-, dier- en milieutechnieken - 2de graad - D/A-finaliteit",116]
[null,"Polyvalent administratief ondersteuner - 2de graad - A-finaliteit",117]
[null,"Printmedia - 2de graad - A-finaliteit",118]
[null,"Productiemedewerker drukafwerking in de printmedia - 2de graad - A-finaliteit",119]
[null,"Productiemedewerker industrie - 2de graad - A-finaliteit",120]
[null,"Public relations S - 2de graad - D/A-finaliteit",121]
[null,"Restaurant en keuken - 2de graad - A-finaliteit",122]
[null,"Rooms-katholieke godsdienst - 1ste, 2de en 3de graad",123]
[null,"Schilderen en decoratie - 2de graad - A-finaliteit",124]
[null,"Schoonmaker - 2de graad - A-finaliteit",125]
[null,"Slagerij - 2de graad - A-finaliteit",126]
[null,"Slagerijtechnieken - 2de graad - D/A-finaliteit",127]
[null,"Sociologie en psychologie - 2de graad - D-finaliteit",128]
[null,"Sport B+S - 2de graad - D/A-finaliteit",129]
[null,"Sport B+S - 2de graad - D-finaliteit",130]
[null,"Sport - 2de graad - A-finaliteit",131]
[null,"Stratenmaker - 2de graad - A-finaliteit",132]
[null,"Technologische wetenschappen B+S - 2de graad - D-finaliteit",133]
[null,"Toerisme - 2de graad - D/A-finaliteit",134]
[null,"Topsport B+S - 2de graad - D/A-finaliteit",135]
[null,"Topsport B+S - 2de graad - D-finaliteit",136]
[null,"Topsport S - 2de graad - A-finaliteit",137]
[null,"Verpakker - 2de graad - A-finaliteit",138]
[null,"Voertuigtechnieken B+S - 2de graad - D/A-finaliteit",139]
[null,"Voorbewerker carrosserie - 2de graad - A-finaliteit",140]
[null,"Wellness en lifestyle B + S - 2de graad - D/A-finaliteit",141]
[null,"Winkelmedewerker - 2de graad - A-finaliteit",142]
[null,"Wiskunde - 2de graad - D-finaliteit",143]
[null,"Wiskunde (oud) - 2de graad - D-finaliteit",144]
[null,"Wiskunde B + C' (oud) - 2de graad - D-finaliteit",145]
[null,"Wiskunde B+ - 2de graad - D-finaliteit",146]
[null,"Wiskunde B+S - 2de graad - D/A-finaliteit",147]
[null,"Wiskunde B+S - 2de graad - D-finaliteit",148]
[null,"Wiskunde B+S' - 2de graad - D-finaliteit",149]
[null,"Wiskunde B+S' (oud) - 2de graad - D/A-finaliteit",150]
[null,"Wiskunde B+S'' (oud) - 2de graad - D/A-finaliteit",151]
[null,"Wiskunde - 2de graad - A-finaliteit",152]
[null,"Wiskunde - 2de graad - D/A-finaliteit",153]
[null,"Woordkunst-drama - 2de graad - D-finaliteit",154]